Workbook

Sheet Condiciones
B3: Fecha de reajuste | C3: 2013-04-04

Sheet ResumenIndicadores
A1: RESUMEN DEL REAJUSTE TARIFARIO
D3: Factor que motiva reajuste tarifario
A4: =CONCATENATE("Reajuste al ",TEXT(Historico!P5,"dd/mmmm/yyyy")) -> Reajuste al 04/abril/2013
A5: Actividad | C5: Límite | D5: Límite | E5: Límite | G5: Factor
A6: Regulada | C6: Inferior | D6: Superior | E6: Tarifario +/- | G6: aplicable
A7: Generación SEIN | C7: =MIN(Factores!$D$8:$D$10) -> 0.004121586811 | D7: =MAX(Factores!$D$8:$D$10) -> 0.004640839387 | E7: 0.05 | G7: =IF(AND(DAY(Factores!F5)=1,MONTH(Factores!F5)=5),"Ft",IF(AND(OR(OR(-E7>C7,C7>E7,-E7>D7,D7>E7)=TRUE,OR(-E9>C9,C9>E9,-E9>D9,D9>E9)=TRUE,OR(-E10>C10,C10>E10,-E10>D10,D10>E10)=TRUE)=TRUE)=TRUE,"Ft","Ft-1")) -> Ft-1
A8: Generación Aislada | C8: =MIN(Factores!$D$12:$D$22) -> -0.001216791726 | D8: =MAX(Factores!$D$12:$D$22) -> 0.007602339181 | E8: 0.015 | G8: =IF(AND(DAY(Factores!F5)=1,MONTH(Factores!F5)=5),"Ft",IF(AND(OR(-E8>C8,C8>E8,-E8>D8,D8>E8)=TRUE)=TRUE,"Ft","Ft-1")) -> Ft-1
A9: Transmisión Principal | C9: =MIN(Factores!$D$28:$D$61) -> -0.001464128843 | D9: =MAX(Factores!$D$28:$D$61) -> 0.00424298872 | E9: 0.05 | G9: =IF(AND(DAY(Factores!F5)=1,MONTH(Factores!F5)=5),"Ft",IF(AND(OR(OR(-E7>C7,C7>E7,-E7>D7,D7>E7)=TRUE,OR(-E9>C9,C9>E9,-E9>D9,D9>E9)=TRUE,OR(-E10>C10,C10>E10,-E10>D10,D10>E10)=TRUE)=TRUE)=TRUE,"Ft","Ft-1")) -> Ft-1
A10: Transmisión Secundaria | C10: =MIN(Factores!$D$65:$D$84) -> -0.03179018478 | D10: =MAX(Factores!$D$65:$D$84) -> -0.01666666667 | E10: 0.05 | G10: =IF(AND(DAY(Factores!F5)=1,MONTH(Factores!F5)=5),"Ft",IF(OR(-E10>C10,C10>E10,-E10>D10,D10>E10)=TRUE,"Ft","Ft-1")) -> Ft-1
A11: Distribución | C11: =MIN(Factores!$D$91:$D$124) -> 0.001570187376 | D11: =MAX(Factores!$D$91:$D$124) -> 0.002784712886 | E11: 0.015 | G11: =IF(AND(DAY(Factores!F5)=1,MONTH(Factores!F5)=5),"Ft",IF(OR(AND(OR(-E8>C8,C8>E8,-E8>D8,D8>E8)=TRUE)=TRUE,OR(OR(-E7>C7,C7>E7,-E7>D7,D7>E7)=TRUE,OR(-E9>C9,C9>E9,-E9>D9,D9>E9)=TRUE,OR(-E10>C10,C10>E10,-E10>D10,D10>E10)=TRUE,OR(-E11>C11,C11>E11,-E11>D11,D11>E11)=TRUE)=TRUE)=TRUE,"Ft","Ft-1")) -> Ft-1
A12: Precio a Nivel Generación | C12: =+Factores!D23 -> -0.007103240245 | E12: 0.01 | G12: =IF(AND(DAY(Factores!F5)=1,MONTH(Factores!F5)=5),"Ft",IF(AND(OR(-E12>C12,C12>E12)=TRUE)=TRUE,"Ft","Ft-1")) -> Ft-1
A13: Donde: | C13: Ft = Factor calculado en la presente evaluación
C14: Ft-1 = Factor empleado en la última actualización
C15: = Factor ratificado en la evaluación del mes anterior
A17: Variación respecto al mes pasado
A18: Variable | C18: =IF(OR(AND(MONTH(D18)=5,DAY(D18)=4),AND(MONTH(D18)=11,DAY(D18)=4)),DATE(YEAR(D18),MONTH(D18),DAY(D18)-3),IF(OR(AND(MONTH(D18)=5,DAY(D18)=1),AND(MONTH(D18)=11,DAY(D18)=1)),DATE(YEAR(D18),MONTH(D18)-1,DAY(D18)+3),DATE(YEAR(D18),MONTH(D18)-1,DAY(D18)))) -> 2013-03-04 | D18: =+Historico!P5 -> 2013-04-04 | E18: Variación
A19: IPM | B19: 212 | C19: =VLOOKUP(C$18,BBDD!$7:$1048576,$B19,FALSE) -> 206.762562 | D19: =+'ALUMINIO-COBRE-TC-IPM'!G8 -> 207.345341 | E19: =+D19/C19-1 -> 0.002818590534
A20: TC (S/./US$) | B20: =1+B31 -> 214 | C20: =VLOOKUP(C$18,BBDD!$7:$1048576,$B20,FALSE) -> 2.587 | D20: =+'ALUMINIO-COBRE-TC-IPM'!F8 -> 2.589 | E20: =+D20/C20-1 -> 0.0007730962505
A21: PGN (US$/MMBtu) | B21: =1+B20 -> 215 | C21: =VLOOKUP(C$18,BBDD!$7:$1048576,$B21,FALSE) -> 2.5317 | D21: =COMBUSTIBLES!$F$14 -> 2.5317 | E21: 0
A22: FOBCB (US$/tn) | B22: =1+B32 -> 217 | C22: =VLOOKUP(C$18,BBDD!$7:$1048576,$B22,FALSE) -> 102.37 | D22: =+COMBUSTIBLES!E14 -> 101.41 | E22: =+D22/C22-1 -> -0.009377747387
A23: Diesel+ISC (S/./gl) - Callao (SEIN) | B23: 223 | C23: =VLOOKUP(C$18,BBDD!$7:$1048576,$B23,FALSE) -> 10.03 | D23: =COMBUSTIBLES!K6 -> 9.77 | E23: =+D23/C23-1 -> -0.0259222333
A24: Residual+ISC (S/./gl.) - Callao (SEIN) | B24: 224 | C24: =VLOOKUP(C$18,BBDD!$7:$1048576,$B24,FALSE) -> 6.88 | D24: =COMBUSTIBLES!L6 -> 6.77 | E24: -0.01598837209
A25: Diesel+ISC (S/./gl) - Callao (Aislados) | B25: 225 | C25: =VLOOKUP(C$18,BBDD!$7:$1048576,$B25,FALSE) -> 10.54 | D25: =COMBUSTIBLES!K7 -> 10.54 | E25: 0
A26: Diesel+ISC (S/./gl) - Iquitos (Aislados) | B26: 226 | C26: =VLOOKUP(C$18,BBDD!$7:$1048576,$B26,FALSE) -> 9.84 | D26: =COMBUSTIBLES!K8 -> 9.84 | E26: =+D26/C26-1 -> 0
A27: Residual+ISC (S/./gl.) - Iquitos (Aislados) | B27: 227 | C27: =VLOOKUP(C$18,BBDD!$7:$1048576,$B27,FALSE) -> 7.42 | D27: =COMBUSTIBLES!L8 -> 7.42 | E27: 0
A28: Diesel+ISC (S/./gl) - Cusco (Aislados) | B28: 228 | C28: =VLOOKUP(C$18,BBDD!$7:$1048576,$B28,FALSE) -> 11.07 | D28: =COMBUSTIBLES!K10 -> 11.07 | E28: 0
A29: IPCu (ctv.US$/lb) | B29: 229 | C29: =VLOOKUP(C$18,BBDD!$7:$1048576,$B29,FALSE) -> 360.6591667 | D29: =+'ALUMINIO-COBRE-TC-IPM'!E8 -> 359.3275 | E29: -0.00369231338
A30: IPAl (US$/tn) | B30: 230 | C30: =VLOOKUP(C$18,BBDD!$7:$1048576,$B30,FALSE) -> 2010.417904 | D30: =+'ALUMINIO-COBRE-TC-IPM'!D8 -> 2000.47175 | E30: -0.004947306641
A31: IPM Pre Pago | B31: =1+B19 -> 213 | C31: =VLOOKUP(C$18,BBDD!$7:$1048576,$B31,FALSE) -> 206.605903 | D31: ='ALUMINIO-COBRE-TC-IPM'!H8 -> 206.762562 | E31: 0.0007582503584
A32: PGN (S/./MMBtu) | B32: =1+B21 -> 216 | C32: =VLOOKUP(C$18,BBDD!$7:$1048576,$B32,FALSE) -> 6.55 | D32: =+COMBUSTIBLES!I14 -> 6.555 | E32: 0.0007633587786
A33: FOBCB (S/./tn) | B33: =1+B22 -> 218 | C33: =VLOOKUP(C$18,BBDD!$7:$1048576,$B33,FALSE) -> 264.831 | D33: =COMBUSTIBLES!H14 -> 262.55 | E33: -0.008613040014
A34: TA Cobre | B34: =1+B30 -> 231 | C34: =VLOOKUP(C$18,BBDD!$7:$1048576,$B34,FALSE) -> 0 | D34: =Factores!DL73 -> 0 | E34: =+D34-C34 -> 0
A35: TA Aluminio | B35: 232 | C35: =VLOOKUP(C$18,BBDD!$7:$1048576,$B35,FALSE) -> 0 | D35: =Factores!DL74 -> 0 | E35: 0
A36: TA Prod. Import. - Sector 1 | B36: 233 | C36: =VLOOKUP(C$18,BBDD!$7:$1048576,$B36,FALSE) -> 0.01047 | D36: =+Factores!BD102 -> 0.01047 | E36: 0
A37: TA Prod. Import. - Sector 2 | B37: 234 | C37: =VLOOKUP(C$18,BBDD!$7:$1048576,$B37,FALSE) -> 0.017886 | D37: =+Factores!BD103 -> 0.017886 | E37: 0
A38: TA Prod. Import. - Sector 3 | B38: 235 | C38: =VLOOKUP(C$18,BBDD!$7:$1048576,$B38,FALSE) -> 0.020844 | D38: =+Factores!BD104 -> 0.020844 | E38: 0
A39: TA Prod. Import. - Sector 4 | B39: 236 | C39: =VLOOKUP(C$18,BBDD!$7:$1048576,$B39,FALSE) -> 0.02238 | D39: =+Factores!BD105 -> 0.02238 | E39: 0
A40: TA Prod. Import. - Sector 5 | B40: 237 | C40: =VLOOKUP(C$18,BBDD!$7:$1048576,$B40,FALSE) -> 0.01929 | D40: =+Factores!BD106 -> 0.01929 | E40: 0
A41: TA Prod. Import. - Sector Especial | B41: 238 | C41: =VLOOKUP(C$18,BBDD!$7:$1048576,$B41,FALSE) -> 0.000846 | D41: =+Factores!BD107 -> 0.000846 | E41: 0
A42: TA Prod. Import. - SER 100% Estado Prepago | B42: 239 | C42: =VLOOKUP(C$18,BBDD!$7:$1048576,$B42,FALSE) -> 0.004308 | D42: =+Factores!BD108 -> 0.004308 | E42: 0
A43: TA Prod. Import. - SER 100% Estado Convencional | B43: 240 | C43: =VLOOKUP(C$18,BBDD!$7:$1048576,$B43,FALSE) -> 0.00744 | D43: =+Factores!BD109 -> 0.00744 | E43: 0
A44: TA Prod. Import. - SER 100% Privado Prepago | B44: 241 | C44: =VLOOKUP(C$18,BBDD!$7:$1048576,$B44,FALSE) -> 0.004308 | D44: =+Factores!BD110 -> 0.004308 | E44: 0
A45: TA Prod. Import. - SER 100% Privado Convencional | B45: 242 | C45: =VLOOKUP(C$18,BBDD!$7:$1048576,$B45,FALSE) -> 0.00744 | D45: =+Factores!BD111 -> 0.00744 | E45: 0
A47: Por actividad
A48: Precio en Barra-SEIN (Res. 057-2012-OS/CD) | K48: Resolución 057-2012-OS/CD
A49: Variable | C49: =$C$18 -> 2013-03-04 | D49: =$D$18 -> 2013-04-04 | E49: Variación
A50: IPM | C50: =C19 -> 206.762562 | D50: =D19 -> 207.345341 | E50: =+D50/C50-1 -> 0.002818590534
A51: TC (S/./US$) | C51: =C20 -> 2.587 | D51: =D20 -> 2.589 | E51: 0.0007730962505
A52: PGN (S/./MMBtu) | C52: =C32 -> 6.55 | D52: =D32 -> 6.555 | E52: 0.0007633587786
A53: FOBCB (US$/tn) | C53: =C22 -> 102.37 | D53: =D22 -> 101.41 | E53: -0.009377747387
A54: Diesel+ISC (S/./gl) - Callao (SEIN) | C54: =C23 -> 10.03 | D54: 9.77 | E54: -0.0259222333
A55: Residual+ISC (S/./gl.) - Callao (SEIN) | C55: =C24 -> 6.88 | D55: 6.77 | E55: -0.01598837209
A57: Precio en Barra-Aislados (Res. 057-2012-OS/CD) - Addendum 4
A58: Variable | C58: =C18 -> 2013-03-04 | D58: 2013-04-04 | E58: Variación
A59: IPM | C59: 206.762562 | D59: 207.345341 | E59: =+D59/C59-1 -> 0.002818590534
A60: TC (S/./US$) | C60: 2.587 | D60: 2.589 | E60: =+D60/C60-1 -> 0.0007730962505
A61: PGN (S/./MMBtu) | C61: =C32 -> 6.55 | D61: =D32 -> 6.555 | E61: =+D61/C61-1 -> 0.0007633587786
A62: FOBCB (US$/tn) | C62: =C22 -> 102.37 | D62: =D22 -> 101.41 | E62: -0.009377747387
A63: Diesel+ISC (S/./gl) - Callao (Aislados) | C63: =C25 -> 10.54 | D63: 10.54 | E63: 0
A64: Diesel+ISC (S/./gl) - Iquitos (Aislados) | C64: =C26 -> 9.84 | D64: 9.84 | E64: 0
A65: Residual+ISC (S/./gl.) - Iquitos (Aislados) | C65: =C27 -> 7.42 | D65: 7.42 | E65: 0 | K65: Resolución 184-2009-OS/CD
A66: Diesel+ISC (S/./gl) - Cusco (Aislados) | C66: =C28 -> 11.07 | D66: 11.07 | E66: 0
A68: Transmision Principal (Res. 057-2012-OS/CD)
A69: Variable | C69: =C18 -> 2013-03-04 | D69: 2013-04-04 | E69: Variación
A70: IPM | C70: 206.762562 | D70: 207.345341 | E70: =+D70/C70-1 -> 0.002818590534
A71: TC (S/./US$) | C71: 2.587 | D71: 2.589 | E71: =+D71/C71-1 -> 0.0007730962505
A72: IPCu (ctv.US$/lb) | C72: =C29 -> 360.6591667 | D72: 359.3275 | E72: =+D72/C72-1 -> -0.00369231338
A73: IPAl (US$/tn) | C73: =C30 -> 2010.417904 | D73: =D30 -> 2000.47175 | E73: =+D73/C73-1 -> -0.004947306641
A75: Transmision Secundaria (Res. 184-2009-OS/CD)
A76: Variable | C76: =C18 -> 2013-03-04 | D76: 2013-04-04 | E76: Variación
A77: IPM | C77: 206.762562 | D77: 207.345341 | E77: =+D77/C77-1 -> 0.002818590534
A78: TC (S/./US$) | C78: 2.587 | D78: 2.589 | E78: =+D78/C78-1 -> 0.0007730962505
A79: IPCu (ctv.US$/lb) | C79: =C29 -> 360.6591667 | D79: 359.3275 | E79: =+D79/C79-1 -> -0.00369231338
A80: IPAl (US$/tn) | C80: =C30 -> 2010.417904 | D80: 2000.47175 | E80: =+D80/C80-1 -> -0.004947306641
A82: Distribución (Res. 181-2009-OS/CD)
A83: Variable | C83: =C18 -> 2013-03-04 | D83: =D18 -> 2013-04-04 | E83: Variación
A84: IPM | C84: =+C77 -> 206.762562 | D84: 207.345341 | E84: =+D84/C84-1 -> 0.002818590534
A85: IPM Pre Pago | C85: =C31 -> 206.605903 | D85: =D31 -> 206.762562 | E85: =E31 -> 0.0007582503584
A86: TC (S/./US$) | C86: =+C78 -> 2.587 | D86: 2.589 | E86: =+D86/C86-1 -> 0.0007730962505
A87: IPCu (ctv.US$/lb) | C87: =C29 -> 360.6591667 | D87: 359.3275 | E87: =+D87/C87-1 -> -0.00369231338 | K87: Resolución 181-2009-OS/CD
A88: IPAl (US$/tn) | C88: =C30 -> 2010.417904 | D88: 2000.47175 | E88: =+D88/C88-1 -> -0.004947306641
A89: TA Cobre | C89: =C34 -> 0 | D89: 0 | E89: =+D89-C89 -> 0
A90: TA Aluminio | C90: =C35 -> 0 | D90: 0 | E90: 0
A92: Tasa Arancelaria - Productos Importados (TABBT) (Res. 181-2009-OS/CD)
A93: Variable | C93: =C18 -> 2013-03-04 | D93: =D18 -> 2013-04-04 | E93: Diferencia
A94: TA Prod. Import. - Sector 1 | C94: =C36 -> 0.01047 | D94: 0.01047 | E94: =+D36-C36 -> 0
A95: TA Prod. Import. - Sector 2 | C95: =C37 -> 0.017886 | D95: 0.017886 | E95: 0
A96: TA Prod. Import. - Sector 3 | C96: =C38 -> 0.020844 | D96: 0.020844 | E96: 0
A97: TA Prod. Import. - Sector 4 | C97: =C39 -> 0.02238 | D97: 0.02238 | E97: 0
A98: TA Prod. Import. - Sector 5 | C98: =C40 -> 0.01929 | D98: 0.01929 | E98: 0
A99: TA Prod. Import. - Sector Especial | C99: =C41 -> 0.000846 | D99: 0.000846 | E99: 0
A100: TA Prod. Import. - SER 100% Estado Prepago | C100: =C42 -> 0.004308 | D100: 0.004308 | E100: 0
A101: TA Prod. Import. - SER 100% Estado Convencional | C101: =C43 -> 0.00744 | D101: 0.00744 | E101: 0
A102: TA Prod. Import. - SER 100% Privado Prepago | C102: =C44 -> 0.004308 | D102: 0.004308 | E102: 0
A103: TA Prod. Import. - SER 100% Privado Convencional | C103: =C45 -> 0.00744 | D103: 0.00744 | E103: 0
A105: IMPACTO DEL PRECIO DE LOS COMBUSTIBLES
A106: Variación respecto al último ajuste
D108: =C18 -> 2013-03-04 | G108: =+Historico!P5 -> 2013-04-04
D109: Precio + ISC | G109: Precio + ISC | J109: Var. %
A110: Sistema | C110: Punto de venta | D110: Diesel (S/./gl) | E110: Residual (S/./gl) | G110: Diesel (S/./gl) | H110: Residual (S/./gl) | J110: Diesel (S/./gl) | K110: Residual (S/./gl)
A111: SEIN | C111: Lima (Callao) | D111: =C23 -> 10.03 | E111: =C24 -> 6.88 | G111: =D23 -> 9.77 | H111: =D24 -> 6.77 | J111: =+G111/D111-1 -> -0.0259222333 | K111: =+H111/E111-1 -> -0.01598837209
A112: Electronorte | C112: Callao | D112: =C25 -> 10.54 | G112: =D25 -> 10.54 | J112: =+G112/D112-1 -> 0
A113: Electro Oriente | C113: Iquitos | D113: =C26 -> 9.84 | E113: =C27 -> 7.42 | G113: =D26 -> 9.84 | H113: =D27 -> 7.42 | J113: =+G113/D113-1 -> 0 | K113: =+H113/E113-1 -> 0
A114: Hidrandina, Seal | C114: Callao | D114: =C25 -> 10.54 | G114: =D25 -> 10.54 | J114: =+G114/D114-1 -> 0
A115: Electro Sur Este | C115: Cusco | D115: =C28 -> 11.07 | G115: =D28 -> 11.07 | J115: =+G115/D115-1 -> 0
A116: (*) Actualización de Precios de Contratos resultantes de procesos de licitación de suministro: Caso SEIN (Precio de Referencia Diesel)
A117: - Para el caso del SEIN, mediante Oficio GART 541-2012-GART dirigido a Edelnor con fecha 07/08/2012.
A118: - En este oficio, se establecen qué Precio de Referencia del Diesel se utilizará en las fórmulas de reajuste en los contratos (licitaciones)
A119: - En resumen, el precio a utilizarse correspondería al valor del Addendum N° 1 de la lista de Petroperú.
A120: (*) Actualización de Precios en Barra y alineación de criterios: Caso SEIN (Precio de Referencia del Diesel)
A121: - Al 04/08/2012 no existe un precio de referencia del Diesel 2 en la Hoja 1 de la Lista de Precios de Petroperú.
A122: - Se han recibido correos solicitando un precio de referencia del Diesel para la actualización de barra, pese a que su ponderador SEIN es cero.
A123: - A fin de alinear criterios, el precio Diesel a utilizarse en la actualización de barra, correspondería al valor del Addendum N° 1 de la lista de Petro.
A124: (*) Implicancias del ISC del Diesel SEIN y Aislados ante el Nuevo Precio Diesel B5 en la evaluación realizada para el 04/09/2012
A125: - El Precio del Diesel del Addendum 1 y del Addendum 4 tiene otro ISC (distinto al de los fijados incialmente)
A126: - Para efectos de la referencia, se está considerando los impuestos del combustible de referencia (Addendum 1 - SEIN) y (Addendum 4 - Aislados).
A127: - Ello es consistente con la definición prevista para esta variable ISC_D2 en el Cuadro 6 de la Res. de Barra 057-2012-OS/CD:
A144: CALENDARIZACIÓN DE LOS PLIEGOS TARIFARIOS
A145: Indicadores disponibles al segundo día calendario de cada mes
A146: Conformidad de factores y pliegos se da como máximo el segundo día calendario de cada mes
A147: Sin perjuicio de la entrada en vigencia (dos días calendario más) pues ello no requiere atención pública.
A149: Ley de Procedimiento Administrativo General, Ley N° 27444 – art. 134° y 139° | G149: Resolución de Barra N° 057-2012-OS/CD - Artículo 2°, Subtítulo 2.
G157: Resolución del VAD n° 181-2009-OS/CD - Artículo 5°

Sheet Factores
A1: Factores de Actualización Tarifaria | M1: Ponderadores Efectivos = Ponderadores por Resolución / Valores Base | X1: Ponderadores de los Factores de Actualización establecidos por Resolución | AI1: Índices Componentes de los Factores de Actualización | AT1: Variables actualizadas | CB1: Variables fijadas en la Resolución
A2: =+CONCATENATE("Reajuste al ",TEXT(Historico!P5,"dd/mmmm/yyyy")) -> Reajuste al 04/abril/2013
B4: Ft-1 | C4: Ft | F4: Aplicable
A5: Descripción | B5: =+Historico!O5 -> 2013-03-04 | C5: =+Historico!P5 -> 2013-04-04 | D5: Variación (%) | F5: =+Historico!P5 -> 2013-04-04 | AT5: Generación (V.actuales) | CB5: Generación (V.Resolución) | DI5: Indicadores Macroeconómicos de la Generación
A6: =Historico!A6 -> A. GENERACIÓN - TARIFAS EN BARRA (Res. N° 057-2012-OS/CD) | B6: =+Historico!O6 ->  | F6: =IF(IF(ResumenIndicadores!$G$7="Ft-1",B6,C6)=0,"",IF(ResumenIndicadores!$G$7="Ft-1",B6,C6)) ->  | M6: Generación (Pondedadores Efectivos) | Q6: FTC | R6: FPM | X6: Generación (Pondedadores) | AB6: FTC | AC6: FPM | AI6: Generación (Componentes) | AM6: FTC | AN6: FPM | AX6: TC | AY6: IPM | CF6: TCo | CG6: IPMo | DJ6: Fuente | DK6: IPM | DL6: TC (S/./US$) | DM6: PGN (S/./MMBtu) | DN6: FOBCB (US$/tn)
A7: =Historico!A7 -> 1. POTENCIA (FAPPM) | B7: =+Historico!O7 ->  | F7: =IF(IF(ResumenIndicadores!$G$7="Ft-1",B7,C7)=0,"",IF(ResumenIndicadores!$G$7="Ft-1",B7,C7)) ->  | Q7: a | R7: b | AB7: a | AC7: b | AM7: a | AN7: b | AX7: a | AY7: b | CF7: a | CG7: b | DI7: Valores Base | DJ7: Resolucion Base | DK7: 209.909211 | DL7: 2.668 | DM7: 6.5282 | DN7: 125.89
A8: =Historico!A8 -> Sistema Eléctrico Interconectado Nacional (SEIN) | B8: =+Historico!O8 -> 0.9705 | C8: =+ROUND(AB8*AM8+AC8*AN8,4) -> 0.9745 | D8: =+C8/B8-1 -> 0.004121586811 | F8: =IF(AND(DAY(F5)=1,MONTH(F5)=5),C8,IF(IF(ResumenIndicadores!$G$7="Ft-1",B8,C8)=0,"",IF(ResumenIndicadores!$G$7="Ft-1",B8,C8))) -> 0.9705 | M8: SEIN (Potencia) | Q8: =AB8/CF8 -> 0.2862068966 | R8: 0.001126201175 | S8: FD2SEIN | T8: FR6SEIN | U8: FPGN | V8: FCB | X8: SEIN (Potencia) | AB8: 0.7636 | AC8: 0.2364 | AD8: FD2SEIN | AE8: FR6SEIN | AF8: FPGN | AG8: FCB | AI8: SEIN (Potencia) | AM8: =AX8/CF8 -> 0.9703898051 | AN8: =AY8/CG8 -> 0.9877858147 | AO8: FD2 | AP8: FR6 | AQ8: FPGN | AR8: FCB | AT8: SEIN (Potencia) | AX8: =DL8 -> 2.589 | AY8: =DK8 -> 207.345341 | AZ8: FD2 | BA8: FR6 | BB8: FPGN | BC8: FCB | CB8: SEIN (Potencia) | CF8: =DL7 -> 2.668 | CG8: =DK7 -> 209.909211 | CH8: FD2 | CI8: FR6 | CJ8: FPGN | CK8: FCB | DI8: Valores Actuales | DJ8: Indicador actualizado | DK8: =+'ALUMINIO-COBRE-TC-IPM'!G8 -> 207.345341 | DL8: =+'ALUMINIO-COBRE-TC-IPM'!F8 -> 2.589 | DM8: =+COMBUSTIBLES!I14 -> 6.555 | DN8: =+COMBUSTIBLES!E14 -> 101.41
A9: =Historico!A9 -> 2. ENERGÍA (FAPEM) | B9: =+Historico!O9 ->  | F9: =IF(IF(ResumenIndicadores!$G$7="Ft-1",B9,C9)=0,"",IF(ResumenIndicadores!$G$7="Ft-1",B9,C9)) ->  | Q9: d | R9: s | S9: e | T9: f | U9: g | V9: cb | AB9: d | AC9: s | AD9: e | AE9: f | AF9: g | AG9: cb | AM9: d | AN9: s | AO9: e | AP9: f | AQ9: g | AR9: cb | AX9: d | AY9: s | AZ9: e | BA9: f | BB9: g | BC9: cb | CF9: d | CG9: s | CH9: e | CI9: f | CJ9: g | CK9: cb | DI9: Valores Base de combustibles
A10: =Historico!A10 -> Sistema Eléctrico Interconectado Nacional (SEIN) | B10: =+Historico!O10 -> 0.9912 | C10: =ROUND(AB10*AM10+AC10*AN10+AD10*AO10+AE10*AP10+AF10*AQ10+AG10*AR10,4) -> 0.9958 | D10: =+C10/B10-1 -> 0.004640839387 | F10: =IF(AND(DAY(F5)=1,MONTH(F5)=5),C8,IF(IF(ResumenIndicadores!$G$7="Ft-1",B10,C10)=0,"",IF(ResumenIndicadores!$G$7="Ft-1",B10,C10))) -> 0.9912 | M10: SEIN (Energía) | Q10: 0.1183 | R10: 0 | S10: 0 | T10: 0.0256 | U10: 0.8544 | V10: 0.0017 | X10: SEIN (Energía) | AB10: 0.1183 | AC10: 0 | AD10: 0 | AE10: 0.0256 | AF10: 0.8544 | AG10: 0.0017 | AI10: SEIN (Energía) | AM10: =AX10/CF10 -> 0.9703898051 | AN10: 0 | AO10: 0 | AP10: =BA10/CI10 -> 0.8505025126 | AQ10: =BB10/CJ10 -> 1.004105266 | AR10: =BC10/CK10 -> 0.7816921927 | AT10: SEIN (Energía) | AX10: =DL8 -> 2.589 | AY10: 0 | AZ10: 0 | BA10: =(DP20+DR20) -> 6.77 | BB10: =DM8 -> 6.555 | BC10: =(DN8*DL8) -> 262.55049 | CB10: SEIN (Energía) | CF10: =DL7 -> 2.668 | CG10: 0 | CH10: 0 | CI10: =(DL12+DN12) -> 7.96 | CJ10: =DM7 -> 6.5282 | CK10: =(DN7*DL7) -> 335.87452 | DI10: Sistema | DJ10: Punto de venta | DK10: D2 (S/./gl) | DL10: R6 (S/./gl) | DM10: ISC_D2(S/./Galón) | DN10: ISC_R6 (S/./Galón)
A11: =Historico!A11 -> Sistemas Aislados | F11: =IF(IF(ResumenIndicadores!$G$7="Ft-1",B11,C11)=0,"",IF(ResumenIndicadores!$G$7="Ft-1",B11,C11)) -> 
A12: =Historico!A12 -> Adinelsa | B12: =+Historico!O12 -> 0.9862 | C12: =ROUND(AB12*AM12+AC12*AN12+AD12*AO12+AE12*AP12+AF12*AQ12+AG12*AR12,4) -> 0.985 | D12: -0.001216791726 | F12: =IF(AND(DAY(F5)=1,MONTH(F5)=5),C8,IF(IF(ResumenIndicadores!$G$8="Ft-1",B12,C12)=0,"",IF(ResumenIndicadores!$G$8="Ft-1",B12,C12))) -> 0.9862 | M12: Adinelsa | P12: G3 | Q12: 0.1606 | R12: 0.8394 | S12: 0 | T12: 0 | U12: 0 | V12: 0 | X12: Adinelsa | AA12: G3 | AB12: 0.1606 | AC12: 0.8394 | AD12: 0 | AE12: 0 | AF12: 0 | AG12: 0 | AI12: Adinelsa | AL12: G3 | AM12: =AX12/CF12 -> 0.9703898051 | AN12: =AY12/CG12 -> 0.9877858147 | AO12: 0 | AP12: 0 | AQ12: 0 | AR12: 0 | AT12: Adinelsa | AW12: G3 | AX12: =DL8 -> 2.589 | AY12: =DK8 -> 207.345341 | AZ12: 0 | BA12: 0 | BB12: 0 | BC12: 0 | CB12: Adinelsa | CE12: G3 | CF12: =DL7 -> 2.668 | CG12: =DK7 -> 209.909211 | CH12: 0 | CI12: 0 | CJ12: 0 | CK12: 0 | DI12: SEIN | DJ12: Lima (Callao) | DK12: 9.37 | DL12: 7.57 | DM12: 1.2 | DN12: 0.39
A13: =Historico!A13 -> Chavimochic | B13: =+Historico!O13 -> 0.9862 | C13: 0.985 | D13: -0.001216791726 | F13: =IF(AND(DAY(F5)=1,MONTH(F5)=5),C8,IF(IF(ResumenIndicadores!$G$8="Ft-1",B13,C13)=0,"",IF(ResumenIndicadores!$G$8="Ft-1",B13,C13))) -> 0.9862 | M13: Chavimochic | P13: G3 | Q13: 0.1606 | R13: 0.8394 | S13: 0 | T13: 0 | U13: 0 | V13: 0 | X13: Chavimochic | AA13: G3 | AB13: 0.1606 | AC13: 0.8394 | AD13: 0 | AE13: 0 | AF13: 0 | AG13: 0 | AI13: Chavimochic | AL13: G3 | AM13: 0.9703898051 | AN13: 0.9877858147 | AO13: 0 | AP13: 0 | AQ13: 0 | AR13: 0 | AT13: Chavimochic | AW13: G3 | AX13: =DL8 -> 2.589 | AY13: =DK8 -> 207.345341 | AZ13: 0 | BA13: 0 | BB13: 0 | BC13: 0 | CB13: Chavimochic | CE13: G3 | CF13: =DL7 -> 2.668 | CG13: =DK7 -> 209.909211 | CH13: 0 | CI13: 0 | CJ13: 0 | CK13: 0 | DI13: G1 - Electronorte | DJ13: Callao | DK13: 9.03 | DM13: 1.2
A14: =Historico!A14 -> Edelnor | B14: =+Historico!O14 -> 0.9862 | C14: 0.985 | D14: =+C14/B14-1 -> -0.001216791726 | F14: =IF(AND(DAY(F5)=1,MONTH(F5)=5),C8,IF(IF(ResumenIndicadores!$G$8="Ft-1",B14,C14)=0,"",IF(ResumenIndicadores!$G$8="Ft-1",B14,C14))) -> 0.9862 | M14: Edelnor | P14: G3 | Q14: 0.1606 | R14: 0.8394 | S14: 0 | T14: 0 | U14: 0 | V14: 0 | X14: Edelnor | AA14: G3 | AB14: 0.1606 | AC14: 0.8394 | AD14: 0 | AE14: 0 | AF14: 0 | AG14: 0 | AI14: Edelnor | AL14: G3 | AM14: 0.9703898051 | AN14: 0.9877858147 | AO14: 0 | AP14: 0 | AQ14: 0 | AR14: 0 | AT14: Edelnor | AW14: G3 | AX14: =DL8 -> 2.589 | AY14: =DK8 -> 207.345341 | AZ14: 0 | BA14: 0 | BB14: 0 | BC14: 0 | CB14: Edelnor | CE14: G3 | CF14: =DL7 -> 2.668 | CG14: =DK7 -> 209.909211 | CH14: 0 | CI14: 0 | CJ14: 0 | CK14: 0 | DI14: G2 - Electro Oriente | DJ14: Iquitos | DK14: 9.53 | DL14: 7.8 | DM14: 0 | DN14: 0
A15: =Historico!A15 -> Eilhicha | B15: =+Historico!O15 -> 0.9862 | C15: 0.985 | D15: -0.001216791726 | F15: =IF(AND(DAY(F5)=1,MONTH(F5)=5),C8,IF(IF(ResumenIndicadores!$G$8="Ft-1",B15,C15)=0,"",IF(ResumenIndicadores!$G$8="Ft-1",B15,C15))) -> 0.9862 | M15: Eilhicha | P15: G3 | Q15: =Q12 -> 0.1606 | R15: =R12 -> 0.8394 | S15: 0 | T15: 0 | U15: 0 | V15: 0 | X15: Eilhicha | AA15: G3 | AB15: =AB12 -> 0.1606 | AC15: =AC12 -> 0.8394 | AD15: 0 | AE15: 0 | AF15: 0 | AG15: 0 | AI15: Eilhicha | AL15: G3 | AM15: 0.9703898051 | AN15: 0.9877858147 | AO15: 0 | AP15: 0 | AQ15: 0 | AR15: 0 | AT15: Eilhicha | AW15: G3 | AX15: =DL8 -> 2.589 | AY15: =DK8 -> 207.345341 | AZ15: 0 | BA15: 0 | BB15: 0 | BC15: 0 | CB15: Eilhicha | CE15: G3 | CF15: =DL7 -> 2.668 | CG15: =DK7 -> 209.909211 | CH15: 0 | CI15: 0 | CJ15: 0 | CK15: 0 | DI15: G3 - Hidrandina, Seal | DJ15: Callao | DK15: 9.03 | DM15: 1.2
A16: =Historico!A16 -> Electro Oriente | B16: =+Historico!O16 -> 0.9545 | C16: 0.96 | D16: 0.005762179151 | F16: =IF(AND(DAY(F5)=1,MONTH(F5)=5),C8,IF(IF(ResumenIndicadores!$G$8="Ft-1",B16,C16)=0,"",IF(ResumenIndicadores!$G$8="Ft-1",B16,C16))) -> 0.9545 | M16: Electro Oriente | P16: G2 | Q16: 0.0903 | R16: 0.0736 | S16: 0.053 | T16: 0.7831 | U16: 0 | V16: 0 | X16: Electro Oriente | AA16: G2 | AB16: 0.0903 | AC16: 0.0736 | AD16: 0.053 | AE16: 0.7831 | AF16: 0 | AG16: 0 | AI16: Electro Oriente | AL16: G2 | AM16: 0.9703898051 | AN16: =AY16/CG16 -> 0.9877858147 | AO16: =AZ16/CH16 -> 1.032528856 | AP16: =BA16/CI16 -> 0.9512820513 | AQ16: 0 | AR16: 0 | AT16: Electro Oriente | AW16: G2 | AX16: =DL8 -> 2.589 | AY16: =DK8 -> 207.345341 | AZ16: =(DO22+DQ22) -> 9.84 | BA16: =(DP22+DR22) -> 7.42 | BB16: 0 | BC16: 0 | CB16: Electro Oriente | CE16: G2 | CF16: =DL7 -> 2.668 | CG16: =DK7 -> 209.909211 | CH16: =(DK14+DM14) -> 9.53 | CI16: =(DL14+DN14) -> 7.8 | CJ16: 0 | CK16: 0 | DI16: G4 - Electro Sur Este | DJ16: Cusco | DK16: 9.47 | DM16: 1.2
A17: =Historico!A17 -> Electro Sur Este | B17: =+Historico!O17 -> 1.026 | C17: 1.0338 | D17: 0.007602339181 | F17: =IF(AND(DAY(F5)=1,MONTH(F5)=5),C8,IF(IF(ResumenIndicadores!$G$8="Ft-1",B17,C17)=0,"",IF(ResumenIndicadores!$G$8="Ft-1",B17,C17))) -> 1.026 | M17: Electro Sur Este | P17: G4 | Q17: 0.0118 | R17: 0.059 | S17: 0.9292 | T17: 0 | U17: 0 | V17: 0 | X17: Electro Sur Este | AA17: G4 | AB17: 0.0118 | AC17: 0.059 | AD17: 0.9292 | AE17: 0 | AF17: 0 | AG17: 0 | AI17: Electro Sur Este | AL17: G4 | AM17: 0.9703898051 | AN17: =AY17/CG17 -> 0.9877858147 | AO17: =AZ17/CH17 -> 1.037488285 | AP17: 0 | AQ17: 0 | AR17: 0 | AT17: Electro Sur Este | AW17: G4 | AX17: =DL8 -> 2.589 | AY17: =DK8 -> 207.345341 | AZ17: =(DO24+DQ24) -> 11.07 | BA17: 0 | BB17: 0 | BC17: 0 | CB17: Electro Sur Este | CE17: G4 | CF17: =DL7 -> 2.668 | CG17: =DK7 -> 209.909211 | CH17: =(DK16+DM16) -> 10.67 | CI17: 0 | CJ17: 0 | CK17: 0
A18: =Historico!A18 -> Electro Ucayali | B18: =+Historico!O18 -> 0.9862 | C18: 0.985 | D18: -0.001216791726 | F18: =IF(AND(DAY(F5)=1,MONTH(F5)=5),C8,IF(IF(ResumenIndicadores!$G$8="Ft-1",B18,C18)=0,"",IF(ResumenIndicadores!$G$8="Ft-1",B18,C18))) -> 0.9862 | M18: Electro Ucayali | P18: G3 | Q18: 0.1606 | R18: 0.8394 | S18: 0 | T18: 0 | U18: 0 | V18: 0 | X18: Electro Ucayali | AA18: G3 | AB18: 0.1606 | AC18: 0.8394 | AD18: 0 | AE18: 0 | AF18: 0 | AG18: 0 | AI18: Electro Ucayali | AL18: G3 | AM18: 0.9703898051 | AN18: 0.9877858147 | AO18: 0 | AP18: 0 | AQ18: 0 | AR18: 0 | AT18: Electro Ucayali | AW18: G3 | AX18: =DL8 -> 2.589 | AY18: =DK8 -> 207.345341 | AZ18: 0 | BA18: 0 | BB18: 0 | BC18: 0 | CB18: Electro Ucayali | CE18: G3 | CF18: =DL7 -> 2.668 | CG18: =DK7 -> 209.909211 | CH18: 0 | CI18: 0 | CJ18: 0 | CK18: 0 | DI18: Valores Actuales de Combustibles | DK18: PPVn - Lista Petroperú | DM18: Precios de referencia OSINERGMIN | DO18: Los Menores | DQ18: ISC
A19: =Historico!A19 -> Electrocentro | B19: =+Historico!O19 -> 0.9862 | C19: 0.985 | D19: -0.001216791726 | F19: =IF(AND(DAY(F5)=1,MONTH(F5)=5),C8,IF(IF(ResumenIndicadores!$G$8="Ft-1",B19,C19)=0,"",IF(ResumenIndicadores!$G$8="Ft-1",B19,C19))) -> 0.9862 | M19: Electrocentro | P19: G3 | Q19: 0.1606 | R19: 0.8394 | S19: 0 | T19: 0 | U19: 0 | V19: 0 | X19: Electrocentro | AA19: G3 | AB19: 0.1606 | AC19: 0.8394 | AD19: 0 | AE19: 0 | AF19: 0 | AG19: 0 | AI19: Electrocentro | AL19: G3 | AM19: 0.9703898051 | AN19: 0.9877858147 | AO19: 0 | AP19: 0 | AQ19: 0 | AR19: 0 | AT19: Electrocentro | AW19: G3 | AX19: =DL8 -> 2.589 | AY19: =DK8 -> 207.345341 | AZ19: 0 | BA19: 0 | BB19: 0 | BC19: 0 | CB19: Electrocentro | CE19: G3 | CF19: =DL7 -> 2.668 | CG19: =DK7 -> 209.909211 | CH19: 0 | CI19: 0 | CJ19: 0 | CK19: 0 | DI19: Sistema | DJ19: Punto de venta | DK19: D2 (S/./gl) | DL19: R6 (S/./gl) | DM19: D2 (S/./gl) | DN19: R6 (S/./gl) | DO19: D2 (S/./gl) | DP19: R6 (S/./gl) | DQ19: ISC_D2 (S/./Galón) | DR19: ISC_R6 (S/./Galón)
A20: =Historico!A20 -> Electronorte | B20: =+Historico!O20 -> 0.9886 | C20: 0.9881 | D20: -0.0005057657293 | F20: =IF(AND(DAY(F5)=1,MONTH(F5)=5),C8,IF(IF(ResumenIndicadores!$G$8="Ft-1",B20,C20)=0,"",IF(ResumenIndicadores!$G$8="Ft-1",B20,C20))) -> 0.9886 | M20: Electronorte | P20: G1 | Q20: 0.1502 | R20: 0.7808 | S20: 0.069 | T20: 0 | U20: 0 | V20: 0 | X20: Electronorte | AA20: G1 | AB20: 0.1502 | AC20: 0.7808 | AD20: 0.069 | AE20: 0 | AF20: 0 | AG20: 0 | AI20: Electronorte | AL20: G1 | AM20: 0.9703898051 | AN20: =AY20/CG20 -> 0.9877858147 | AO20: 1.03030303 | AP20: 0 | AQ20: 0 | AR20: 0 | AT20: Electronorte | AW20: G1 | AX20: =DL8 -> 2.589 | AY20: =DK8 -> 207.345341 | AZ20: =(DO21+DQ21) -> 10.54 | BA20: 0 | BB20: 0 | BC20: 0 | CB20: Electronorte | CE20: G1 | CF20: =DL7 -> 2.668 | CG20: =DK7 -> 209.909211 | CH20: =(DK13+DM13) -> 10.23 | CI20: 0 | CJ20: 0 | CK20: 0 | DI20: SEIN | DJ20: Lima (Callao) | DK20: =+COMBUSTIBLES!C6 -> 9.42 | DL20: =+COMBUSTIBLES!D6 -> 6.54 | DM20: =+COMBUSTIBLES!E6 -> 8.76 | DN20: =+COMBUSTIBLES!F6 -> 6.38 | DO20: =+COMBUSTIBLES!G6 -> 8.76 | DP20: =+COMBUSTIBLES!H6 -> 6.38 | DQ20: =+COMBUSTIBLES!I6 -> 1.01 | DR20: =+COMBUSTIBLES!J6 -> 0.39
A21: =Historico!A21 -> Hidrandina | B21: =+Historico!O21 -> 0.9881 | C21: 0.9875 | D21: -0.0006072259893 | F21: =IF(AND(DAY(F5)=1,MONTH(F5)=5),C8,IF(IF(ResumenIndicadores!$G$8="Ft-1",B21,C21)=0,"",IF(ResumenIndicadores!$G$8="Ft-1",B21,C21))) -> 0.9881 | M21: Hidrandina | P21: G3 | Q21: 0.1523 | R21: 0.7927 | S21: 0.055 | T21: 0 | U21: 0 | V21: 0 | X21: Hidrandina | AA21: G3 | AB21: 0.1523 | AC21: 0.7927 | AD21: 0.055 | AE21: 0 | AF21: 0 | AG21: 0 | AI21: Hidrandina | AL21: G3 | AM21: 0.9703898051 | AN21: 0.9877858147 | AO21: 1.03030303 | AP21: 0 | AQ21: 0 | AR21: 0 | AT21: Hidrandina | AW21: G3 | AX21: =DL8 -> 2.589 | AY21: =DK8 -> 207.345341 | AZ21: =(DO23+DQ23) -> 10.54 | BA21: 0 | BB21: 0 | BC21: 0 | CB21: Hidrandina | CE21: G3 | CF21: =DL7 -> 2.668 | CG21: =DK7 -> 209.909211 | CH21: =(DK15+DM15) -> 10.23 | CI21: 0 | CJ21: 0 | CK21: 0 | DI21: G1 - Electronorte | DJ21: Callao | DK21: =+COMBUSTIBLES!C7 -> 9.34 | DO21: =+COMBUSTIBLES!G7 -> 9.34 | DQ21: =+COMBUSTIBLES!I7 -> 1.2
A22: =Historico!A22 -> Seal | B22: =+Historico!O22 -> 1.0051 | C22: 1.0093 | D22: =+C22/B22-1 -> 0.004178688688 | F22: =IF(AND(DAY(F5)=1,MONTH(F5)=5),C8,IF(IF(ResumenIndicadores!$G$8="Ft-1",B22,C22)=0,"",IF(ResumenIndicadores!$G$8="Ft-1",B22,C22))) -> 1.0051 | M22: Seal | P22: G3 | Q22: 0.0795 | R22: 0.3809 | S22: 0.5396 | T22: 0 | U22: 0 | V22: 0 | X22: Seal | AA22: G3 | AB22: 0.0795 | AC22: 0.3809 | AD22: 0.5396 | AE22: 0 | AF22: 0 | AG22: 0 | AI22: Seal | AL22: G3 | AM22: 0.9703898051 | AN22: 0.9877858147 | AO22: 1.03030303 | AP22: 0 | AQ22: 0 | AR22: 0 | AT22: Seal | AW22: G3 | AX22: =DL8 -> 2.589 | AY22: =DK8 -> 207.345341 | AZ22: =(DO23+DQ23) -> 10.54 | BA22: 0 | BB22: 0 | BC22: 0 | CB22: Seal | CE22: G3 | CF22: =DL7 -> 2.668 | CG22: =DK7 -> 209.909211 | CH22: =(DK15+DM15) -> 10.23 | CI22: 0 | CJ22: 0 | CK22: 0 | DI22: G2 - Electro Oriente | DJ22: Iquitos | DK22: =+COMBUSTIBLES!C8 -> 9.84 | DL22: =+COMBUSTIBLES!D8 -> 7.42 | DO22: =+COMBUSTIBLES!G8 -> 9.84 | DP22: =+COMBUSTIBLES!H8 -> 7.42
A23: =Historico!A23 -> FA_PNG (Res. 008-2013-OS/CD) | B23: =+Historico!O23 -> 1.0277 | C23: 1.0204 | D23: =IF(MONTH(C5)={2,5,8,11},C23/1-1,C23/B23-1) -> -0.007103240245 | F23: =IF(C23=1,1,IF(IF(ResumenIndicadores!$G$12="Ft-1",B23,C23)=0,"",IF(ResumenIndicadores!$G$12="Ft-1",B23,C23))) -> 1.0277 | DI23: G3 - Hidrandina, Seal | DJ23: Callao | DK23: =+COMBUSTIBLES!C9 -> 9.34 | DO23: =+COMBUSTIBLES!G9 -> 9.34 | DQ23: =+COMBUSTIBLES!I9 -> 1.2
A24: =Historico!A24 -> FIGV (Resoluciones OSINERGMIN N° 182-2009-OS/CD) | B24: =+Historico!O24 -> 1.18 | C24: =B24 -> 1.18 | D24: =+C24/B24-1 -> 0 | F24: =C24 -> 1.18 | DI24: G4 - Electro Sur Este | DJ24: Cusco | DK24: =+COMBUSTIBLES!C10 -> 10.06 | DO24: =+COMBUSTIBLES!G10 -> 10.06 | DQ24: =+COMBUSTIBLES!I10 -> 1.01
A25: =Historico!A25 ->  | F25: =IF(AND(DAY(F5)=1,MONTH(F5)=5),C8,IF(IF(ResumenIndicadores!$G$8="Ft-1",B25,C25)=0,"",IF(ResumenIndicadores!$G$8="Ft-1",B25,C25))) -> 
A26: =Historico!A26 -> B1. TRANSMISIÓN PRINCIPAL - PEAJES (Res. N° 057-2012-OS/CD) | B26: =+Historico!O26 ->  | F26: =IF(AND(DAY($F$5)=1,MONTH($F$5)=5),$C$8,IF(IF(ResumenIndicadores!$G$9="Ft-1",B26,C26)=0,"",IF(ResumenIndicadores!$G$9="Ft-1",B26,C26))) ->  | M26: T.Principal (Ponderadores Efectivos) | Q26: FTCtp | R26: FPMtp | S26: FPALtp | T26: FPCUtp | X26: T.Principal (Ponderadores) | AB26: FTCtp | AC26: FPMtp | AD26: FPALtp | AE26: FPCUtp | AI26: T.Principal (Componentes) | AM26: FTCtp | AN26: FPMtp | AO26: FPALtp | AP26: FPCUtp | AT26: T.Principal (V.actuales) | AX26: FTCtp | AY26: FPMtp | AZ26: FPALtp | BA26: FPCUtp | CB26: T.Principal (V.Resolución) | CF26: FTCtp | CG26: FPMtp | CH26: FPALtp | CI26: FPCUtp | DI26: Indicadores Macroeconómicos de la Transmision Principal (Parte 2)
A27: Sistema Principal de Transmisión | Q27: l | R27: m | S27: n | T27: o | AB27: l | AC27: m | AD27: n | AE27: o | AM27: l | AN27: m | AO27: n | AP27: o | AQ27: p | AX27: l | AY27: m | AZ27: n | BA27: o | CF27: l | CG27: m | CH27: n | CI27: o | CJ27: p | DJ27: Fuente | DK27: IPM | DL27: TC (S/./US$) | DM27: Pcu (ctv. US$/lb) | DN27: Pal
A28: =Historico!A28 -> SPT de REP | B28: =+Historico!O28 -> 0.9663 | C28: =ROUND(AB28*AM28+AC28*AN28+AD28*AO28+AE28*AP28+AQ28,4) -> 0.9704 | D28: =+C28/B28-1 -> 0.00424298872 | F28: =IF(AND(DAY($F$5)=1,MONTH($F$5)=5),$C$8,IF(IF(ResumenIndicadores!$G$9="Ft-1",B28,C28)=0,0,IF(ResumenIndicadores!$G$9="Ft-1",B28,C28))) -> 0.9663 | M28: SPT de REP | Q28: 1 | R28: 0 | S28: 0 | T28: 0 | X28: SPT de REP | AB28: 1 | AC28: 0 | AD28: 0 | AE28: 0 | AI28: SPT de REP | AM28: =AX28/CF28 -> 0.9703898051 | AN28: 0 | AO28: 0 | AP28: 0 | AQ28: 0 | AT28: SPT de REP | AX28: =DL29 -> 2.589 | AY28: 0 | AZ28: 0 | BA28: 0 | CB28: SPT de REP | CF28: =DL28 -> 2.668 | CG28: 0 | CH28: 0 | CI28: 0 | CJ28: 0 | DI28: Valores Base | DJ28: Resolucion Base | DK28: 209.909211 | DL28: 2.668 | DM28: 271.35 | DN28: 1856.762
A29: =Historico!A29 -> SPT de San Gabán | B29: =+Historico!O29 -> 0.9752 | C29: 0.979 | D29: =+C29/B29-1 -> 0.003896636587 | F29: =IF(AND(DAY($F$5)=1,MONTH($F$5)=5),$C$8,IF(IF(ResumenIndicadores!$G$9="Ft-1",B29,C29)=0,0,IF(ResumenIndicadores!$G$9="Ft-1",B29,C29))) -> 0.9752 | M29: SPT de San Gabán | Q29: 0.5159 | R29: 0.4835 | S29: 0 | T29: 0.0006 | X29: SPT de San Gabán | AB29: 0.5159 | AC29: 0.4835 | AD29: 0 | AE29: 0.0006 | AI29: SPT de San Gabán | AM29: =AX29/CF29 -> 0.9703898051 | AN29: 0.9877858147 | AO29: 0 | AP29: =BA29/CI29 -> 1.324221485 | AQ29: 0 | AT29: SPT de San Gabán | AX29: =DL29 -> 2.589 | AY29: =DK29 -> 207.345341 | AZ29: 0 | BA29: =DM29 -> 359.3275 | CB29: SPT de San Gabán | CF29: =DL28 -> 2.668 | CG29: =DK28 -> 209.909211 | CH29: 0 | CI29: =DM28 -> 271.35 | CJ29: 0 | DI29: Valores Actuales | DJ29: Indicador actualizado | DK29: =+'ALUMINIO-COBRE-TC-IPM'!G8 -> 207.345341 | DL29: =+'ALUMINIO-COBRE-TC-IPM'!F8 -> 2.589 | DM29: =+'ALUMINIO-COBRE-TC-IPM'!E8 -> 359.3275 | DN29: =+'ALUMINIO-COBRE-TC-IPM'!D8 -> 2000.47175
A30: =Historico!A30 -> SPT de Antamina | B30: =+Historico!O30 -> 0.976 | C30: 0.9798 | D30: 0.003893442623 | F30: =IF(AND(DAY($F$5)=1,MONTH($F$5)=5),$C$8,IF(IF(ResumenIndicadores!$G$9="Ft-1",B30,C30)=0,0,IF(ResumenIndicadores!$G$9="Ft-1",B30,C30))) -> 0.976 | M30: SPT de Antamina | Q30: 0.5135 | R30: 0.4838 | S30: 0 | T30: 0.0027 | X30: SPT de Antamina | AB30: 0.5135 | AC30: 0.4838 | AD30: 0 | AE30: 0.0027 | AI30: SPT de Antamina | AM30: 0.9703898051 | AN30: 0.9877858147 | AO30: 0 | AP30: 1.324221485 | AQ30: 0 | AT30: SPT de Antamina | AX30: =DL29 -> 2.589 | AY30: =DK29 -> 207.345341 | AZ30: 0 | BA30: =DM29 -> 359.3275 | CB30: SPT de Antamina | CF30: =DL28 -> 2.668 | CG30: =DK28 -> 209.909211 | CH30: 0 | CI30: =DM28 -> 271.35 | CJ30: 0
A31: =Historico!A31 -> SPT de Eteselva | B31: =+Historico!O31 -> 1.0245 | C31: 1.023 | D31: -0.001464128843 | F31: =IF(AND(DAY($F$5)=1,MONTH($F$5)=5),$C$8,IF(IF(ResumenIndicadores!$G$9="Ft-1",B31,C31)=0,0,IF(ResumenIndicadores!$G$9="Ft-1",B31,C31))) -> 1.0245 | M31: SPT de Eteselva | Q31: 0.28 | R31: 0.2947 | S31: 0.4175 | T31: 0.0078 | X31: SPT de Eteselva | AB31: 0.28 | AC31: 0.2947 | AD31: 0.4175 | AE31: 0.0078 | AI31: SPT de Eteselva | AM31: 0.9703898051 | AN31: 0.9877858147 | AO31: =AZ31/CH31 -> 1.077398046 | AP31: 1.324221485 | AQ31: 0 | AT31: SPT de Eteselva | AX31: =DL29 -> 2.589 | AY31: =DK29 -> 207.345341 | AZ31: =DN29 -> 2000.47175 | BA31: =DM29 -> 359.3275 | CB31: SPT de Eteselva | CF31: =DL28 -> 2.668 | CG31: =DK28 -> 209.909211 | CH31: =DN28 -> 1856.762 | CI31: =DM28 -> 271.35 | CJ31: 0 | DI31: Variables del FAPPM, el cual está como Multiplicativo en el factor "p" de actualización del Cargo Unitario por Compensación de Seguridad de Suministro (CUCSS)
A32: =Historico!A32 -> SPT de Redesur | B32: =+Historico!O32 -> 0.9663 | C32: =ROUND(AB32*AM32+AC32*AN32+AD32*AO32+AE32*AP32+AQ32,4) -> 0.9704 | D32: 0.00424298872 | F32: =IF(AND(DAY($F$5)=1,MONTH($F$5)=5),$C$8,IF(IF(ResumenIndicadores!$G$9="Ft-1",B32,C32)=0,0,IF(ResumenIndicadores!$G$9="Ft-1",B32,C32))) -> 0.9663 | M32: SPT de Redesur | Q32: 1 | R32: 0 | S32: 0 | T32: 0 | X32: SPT de Redesur | AB32: 1 | AC32: 0 | AD32: 0 | AE32: 0 | AI32: SPT de Redesur | AM32: 0.9703898051 | AN32: 0 | AO32: 0 | AP32: 0 | AQ32: 0 | AT32: SPT de Redesur | AX32: =DL29 -> 2.589 | AY32: 0 | AZ32: 0 | BA32: 0 | CB32: SPT de Redesur | CF32: =DL28 -> 2.668 | CG32: 0 | CH32: 0 | CI32: 0 | CJ32: 0 | DJ32: Fuente | DK32: IPM | DL32: TC (S/./US$)
A33: =Historico!A33 -> SPT de Transmantaro | B33: =+Historico!O33 -> 0.9663 | C33: 0.9704 | D33: 0.00424298872 | F33: =IF(AND(DAY($F$5)=1,MONTH($F$5)=5),$C$8,IF(IF(ResumenIndicadores!$G$9="Ft-1",B33,C33)=0,0,IF(ResumenIndicadores!$G$9="Ft-1",B33,C33))) -> 0.9663 | M33: SPT de Transmantaro | Q33: 1 | R33: 0 | S33: 0 | T33: 0 | X33: SPT de Transmantaro | AB33: 1 | AC33: 0 | AD33: 0 | AE33: 0 | AI33: SPT de Transmantaro | AM33: 0.9703898051 | AN33: 0 | AO33: 0 | AP33: 0 | AQ33: 0 | AT33: SPT de Transmantaro | AX33: =DL29 -> 2.589 | AY33: 0 | AZ33: 0 | BA33: 0 | CB33: SPT de Transmantaro | CF33: =DL28 -> 2.668 | CG33: 0 | CH33: 0 | CI33: 0 | CJ33: 0 | DI33: Valores Base | DJ33: Resolucion Base | DK33: 209.909211 | DL33: 2.668
A34: =Historico!A34 -> SPT de ISA | B34: =+Historico!O34 -> 0.9663 | C34: =ROUND(AB34*AM34+AC34*AN34+AD34*AO34+AE34*AP34+AQ34,4) -> 0.9704 | D34: 0.00424298872 | F34: =IF(AND(DAY($F$5)=1,MONTH($F$5)=5),$C$8,IF(IF(ResumenIndicadores!$G$9="Ft-1",B34,C34)=0,0,IF(ResumenIndicadores!$G$9="Ft-1",B34,C34))) -> 0.9663 | M34: SPT de ISA | Q34: 1 | R34: 0 | S34: 0 | T34: 0 | X34: SPT de ISA | AB34: 1 | AC34: 0 | AD34: 0 | AE34: 0 | AI34: SPT de ISA | AM34: 0.9703898051 | AN34: 0 | AO34: 0 | AP34: 0 | AQ34: 0 | AT34: SPT de ISA | AX34: =DL29 -> 2.589 | AY34: 0 | AZ34: 0 | BA34: 0 | CB34: SPT de ISA | CF34: =DL28 -> 2.668 | CG34: 0 | CH34: 0 | CI34: 0 | CJ34: 0 | DI34: Valores Actuales | DJ34: Indicador actualizado | DK34: =+'ALUMINIO-COBRE-TC-IPM'!G8 -> 207.345341 | DL34: =+'ALUMINIO-COBRE-TC-IPM'!F8 -> 2.589
A35: =Historico!A35 ->  | F35: =IF(AND(DAY($F$5)=1,MONTH($F$5)=5),$C$8,IF(IF(ResumenIndicadores!$G$9="Ft-1",B35,C35)=0,"",IF(ResumenIndicadores!$G$9="Ft-1",B35,C35))) ->  | Q35: FTC | R35: FPM | AB35: FTC | AC35: FPM | AM35: FTC | AN35: FPM | AX35: FTC | AY35: FPM | CF35: FTC | CG35: FPM
A36: =Historico!A36 -> Cargo Unitario por Compensación por Seguridad de Suministro (CUCSS) | F36: =IF(AND(DAY($F$5)=1,MONTH($F$5)=5),$C$8,IF(IF(ResumenIndicadores!$G$9="Ft-1",B36,C36)=0,"",IF(ResumenIndicadores!$G$9="Ft-1",B36,C36))) ->  | Q36: a | R36: b | AB36: a | AC36: b | AM36: a | AN36: b | AX36: a | AY36: b | CF36: a | CG36: b | DI36: Multiplicativo del Factor "p", DP/550.204 | DK36: DP (Último Comunicado GART) | DL36: Denominador (por Res. Barra)
A37: =Historico!A37 -> Cargo Unitario por Compensación por Seguridad de Suministro | B37: =+Historico!O37 -> 0.9705 | C37: =ROUND((AB37*AM37+AC37*AN37)*DK37/DL37,4) -> 0.9745 | D37: =+C37/B37-1 -> 0.004121586811 | F37: =IF(AND(DAY($F$5)=1,MONTH($F$5)=5),$C$8,IF(IF(ResumenIndicadores!$G$9="Ft-1",B37,C37)=0,0,IF(ResumenIndicadores!$G$9="Ft-1",B37,C37))) -> 0.9705 | M37: Cargo Unitario por Compensación por Seguridad de Suministro | Q37: 0.7636 | R37: 0.2364 | X37: Cargo Unitario por Compensación por Seguridad de Suministro | AB37: 0.7636 | AC37: 0.2364 | AI37: Cargo Unitario por Compensación por Seguridad de Suministro | AM37: =AX37/CF37 -> 0.9703898051 | AN37: =AY37/CG37 -> 0.9877858147 | AT37: Cargo Unitario por Compensación por Seguridad de Suministro | AX37: =DL34 -> 2.589 | AY37: =DK34 -> 207.345341 | CB37: Cargo Unitario por Compensación por Seguridad de Suministro | CF37: =DL33 -> 2.668 | CG37: =DK33 -> 209.909211 | DI37: Multiplicativo del factor "p" del CUCSS | DK37: =COMBUSTIBLES!G395 -> 550.204 | DL37: 550.204
A38: =Historico!A38 ->  | F38: =IF(AND(DAY($F$5)=1,MONTH($F$5)=5),$C$8,IF(IF(ResumenIndicadores!$G$9="Ft-1",B38,C38)=0,"",IF(ResumenIndicadores!$G$9="Ft-1",B38,C38))) ->  | Q38: FTCtp | R38: FPMtp | S38: FPALtp | T38: FPCUtp | AB38: FTCtp | AC38: FPMtp | AD38: FPALtp | AE38: FPCUtp | AM38: FTCtp | AN38: FPMtp | AO38: FPALtp | AP38: FPCUtp | AX38: FTCtp | AY38: FPMtp | AZ38: FPALtp | BA38: FPCUtp | CF38: FTCtp | CG38: FPMtp | CH38: FPALtp | CI38: FPCUtp
A39: =Historico!A39 -> Costos Variables de Operación Adicional en Generación | F39: =IF(AND(DAY($F$5)=1,MONTH($F$5)=5),$C$8,IF(IF(ResumenIndicadores!$G$9="Ft-1",B39,C39)=0,"",IF(ResumenIndicadores!$G$9="Ft-1",B39,C39))) ->  | Q39: l | R39: m | S39: n | T39: o | AB39: l | AC39: m | AD39: n | AE39: o | AM39: l | AN39: m | AO39: n | AP39: o | AQ39: p | AX39: l | AY39: m | AZ39: n | BA39: o | CF39: l | CG39: m | CH39: n | CI39: o | CJ39: p | DI39: Factor "p" establecido por Resolución | DK39: p
A40: =Historico!A40 -> Cargo Unitario por CVOA-CMg | B40: =+Historico!O40 -> 2.1572 | C40: 2.1572 | D40: 0 | F40: =IF(AND(DAY($F$5)=1,MONTH($F$5)=5),$C$8,IF(IF(ResumenIndicadores!$G$9="Ft-1",B40,C40)=0,0,IF(ResumenIndicadores!$G$9="Ft-1",B40,C40))) -> 2.1572 | M40: Cargo Unitario por CVOA-CMg | Q40: 0 | R40: 0 | S40: 0 | T40: 0 | X40: Cargo Unitario por CVOA-CMg | AB40: 0 | AC40: 0 | AD40: 0 | AE40: 0 | AI40: Cargo Unitario por CVOA-CMg | AM40: 0 | AN40: 0 | AO40: 0 | AP40: 0 | AQ40: =CJ40 -> 2.1572 | AT40: Cargo Unitario por CVOA-CMg | AX40: 0 | AY40: 0 | AZ40: 0 | BA40: 0 | CB40: Cargo Unitario por CVOA-CMg | CF40: 0 | CG40: 0 | CH40: 0 | CI40: 0 | CJ40: =DK40 -> 2.1572 | DI40: Cargo Unitario por CVOA-CMg (*) | DK40: 2.1572
A41: =Historico!A41 -> Cargo Unitario por CVOA-RSC | B41: =+Historico!O41 -> 0 | C41: 0 | D41: =IF(B41=0,0,C41/B41-1) -> 0 | F41: =IF(AND(DAY($F$5)=1,MONTH($F$5)=5),$C$8,IF(IF(ResumenIndicadores!$G$9="Ft-1",B41,C41)=0,0,IF(ResumenIndicadores!$G$9="Ft-1",B41,C41))) -> 0 | M41: Cargo Unitario por CVOA-RSC | Q41: 0 | R41: 0 | S41: 0 | T41: 0 | X41: Cargo Unitario por CVOA-RSC | AB41: 0 | AC41: 0 | AD41: 0 | AE41: 0 | AI41: Cargo Unitario por CVOA-RSC | AM41: 0 | AN41: 0 | AO41: 0 | AP41: 0 | AQ41: 0 | AT41: Cargo Unitario por CVOA-RSC | AX41: 0 | AY41: 0 | AZ41: 0 | BA41: 0 | CB41: Cargo Unitario por CVOA-RSC | CF41: 0 | CG41: 0 | CH41: 0 | CI41: 0 | CJ41: =DK41 -> 0 | DI41: Cargo Unitario por CVOA-RSC (*) | DK41: 0
A42: =Historico!A42 -> Cargo por Prima | B42: =+Historico!O42 ->  | F42: =IF(AND(DAY($F$5)=1,MONTH($F$5)=5),$C$8,IF(IF(ResumenIndicadores!$G$9="Ft-1",B42,C42)=0,"",IF(ResumenIndicadores!$G$9="Ft-1",B42,C42))) ->  | M42: Cargo por Prima | X42: Cargo por Prima | AI42: Cargo por Prima | AT42: Cargo por Prima | CB42: Cargo por Prima | DI42: Cargo por Prima
A43: =Historico!A43 -> Cogeneración Paramonga | B43: =+Historico!O43 -> 1.5 | C43: 1.5 | D43: 0 | F43: =IF(AND(DAY($F$5)=1,MONTH($F$5)=5),$C$8,IF(IF(ResumenIndicadores!$G$9="Ft-1",B43,C43)=0,0,IF(ResumenIndicadores!$G$9="Ft-1",B43,C43))) -> 1.5 | M43: Cogeneración Paramonga | Q43: 0 | R43: 0 | S43: 0 | T43: 0 | X43: Cogeneración Paramonga | AB43: 0 | AC43: 0 | AD43: 0 | AE43: 0 | AI43: Cogeneración Paramonga | AM43: 0 | AN43: 0 | AO43: 0 | AP43: 0 | AQ43: 1.5 | AT43: Cogeneración Paramonga | AX43: 0 | AY43: 0 | AZ43: 0 | BA43: 0 | CB43: Cogeneración Paramonga | CF43: 0 | CG43: 0 | CH43: 0 | CI43: 0 | CJ43: =DK43 -> 1.5 | DI43: Cogeneración Paramonga | DK43: 1.5
A44: =Historico!A44 -> C.H. Santa Cruz II | B44: =+Historico!O44 -> 0.6667 | C44: 0.6667 | D44: 0 | F44: =IF(AND(DAY($F$5)=1,MONTH($F$5)=5),$C$8,IF(IF(ResumenIndicadores!$G$9="Ft-1",B44,C44)=0,0,IF(ResumenIndicadores!$G$9="Ft-1",B44,C44))) -> 0.6667 | M44: C.H. Santa Cruz II | Q44: 0 | R44: 0 | S44: 0 | T44: 0 | X44: C.H. Santa Cruz II | AB44: 0 | AC44: 0 | AD44: 0 | AE44: 0 | AI44: C.H. Santa Cruz II | AM44: 0 | AN44: 0 | AO44: 0 | AP44: 0 | AQ44: =CJ44 -> 0.6667 | AT44: C.H. Santa Cruz II | AX44: 0 | AY44: 0 | AZ44: 0 | BA44: 0 | CB44: C.H. Santa Cruz II | CF44: 0 | CG44: 0 | CH44: 0 | CI44: 0 | CJ44: 0.6667 | DI44: C.H. Santa Cruz II | DK44: 0.6667
A45: =Historico!A45 -> C.H. Santa Cruz I | B45: =+Historico!O45 -> 1 | C45: 1 | D45: 0 | F45: =IF(AND(DAY($F$5)=1,MONTH($F$5)=5),$C$8,IF(IF(ResumenIndicadores!$G$9="Ft-1",B45,C45)=0,0,IF(ResumenIndicadores!$G$9="Ft-1",B45,C45))) -> 1 | M45: C.H. Santa Cruz I | Q45: 0 | R45: 0 | S45: 0 | T45: 0 | X45: C.H. Santa Cruz I | AB45: 0 | AC45: 0 | AD45: 0 | AE45: 0 | AI45: C.H. Santa Cruz I | AM45: 0 | AN45: 0 | AO45: 0 | AP45: 0 | AQ45: 1 | AT45: C.H. Santa Cruz I | AX45: 0 | AY45: 0 | AZ45: 0 | BA45: 0 | CB45: C.H. Santa Cruz I | CF45: 0 | CG45: 0 | CH45: 0 | CI45: 0 | CJ45: 1 | DI45: C.H. Santa Cruz I | DK45: 1
A46: =Historico!A46 -> C.H. Poechos 2 | B46: =+Historico!O46 -> 2.25 | C46: 2.25 | D46: 0 | F46: =IF(AND(DAY($F$5)=1,MONTH($F$5)=5),$C$8,IF(IF(ResumenIndicadores!$G$9="Ft-1",B46,C46)=0,0,IF(ResumenIndicadores!$G$9="Ft-1",B46,C46))) -> 2.25 | M46: C.H. Poechos 2 | Q46: 0 | R46: 0 | S46: 0 | T46: 0 | X46: C.H. Poechos 2 | AB46: 0 | AC46: 0 | AD46: 0 | AE46: 0 | AI46: C.H. Poechos 2 | AM46: 0 | AN46: 0 | AO46: 0 | AP46: 0 | AQ46: 2.25 | AT46: C.H. Poechos 2 | AX46: 0 | AY46: 0 | AZ46: 0 | BA46: 0 | CB46: C.H. Poechos 2 | CF46: 0 | CG46: 0 | CH46: 0 | CI46: 0 | CJ46: 2.25 | DI46: C.H. Poechos 2 | DK46: 2.25
A47: =Historico!A47 -> C.H. Roncador | B47: =+Historico!O47 -> 0 | C47: 0 | D47: 0 | F47: =IF(AND(DAY($F$5)=1,MONTH($F$5)=5),$C$8,IF(IF(ResumenIndicadores!$G$9="Ft-1",B47,C47)=0,0,IF(ResumenIndicadores!$G$9="Ft-1",B47,C47))) -> 0 | M47: C.H. Roncador | Q47: 0 | R47: 0 | S47: 0 | T47: 0 | X47: C.H. Roncador | AB47: 0 | AC47: 0 | AD47: 0 | AE47: 0 | AI47: C.H. Roncador | AM47: 0 | AN47: 0 | AO47: 0 | AP47: 0 | AQ47: 0 | AT47: C.H. Roncador | AX47: 0 | AY47: 0 | AZ47: 0 | BA47: 0 | CB47: C.H. Roncador | CF47: 0 | CG47: 0 | CH47: 0 | CI47: 0 | CJ47: 0 | DI47: C.H. Roncador | DK47: 0
A48: =Historico!A48 -> C.H. Carhuaquero IV | B48: =+Historico!O48 -> 0.8333 | C48: =ROUND(AB48*AM48+AC48*AN48+AD48*AO48+AE48*AP48+AQ48,4) -> 0.8333 | D48: 0 | F48: =IF(AND(DAY($F$5)=1,MONTH($F$5)=5),$C$8,IF(IF(ResumenIndicadores!$G$9="Ft-1",B48,C48)=0,0,IF(ResumenIndicadores!$G$9="Ft-1",B48,C48))) -> 0.8333 | M48: C.H. Carhuaquero IV | Q48: 0 | R48: 0 | S48: 0 | T48: 0 | X48: C.H. Carhuaquero IV | AB48: 0 | AC48: 0 | AD48: 0 | AE48: 0 | AI48: C.H. Carhuaquero IV | AM48: 0 | AN48: 0 | AO48: 0 | AP48: 0 | AQ48: 0.8333 | AT48: C.H. Carhuaquero IV | AX48: 0 | AY48: 0 | AZ48: 0 | BA48: 0 | CB48: C.H. Carhuaquero IV | CF48: 0 | CG48: 0 | CH48: 0 | CI48: 0 | CJ48: 0.8333 | DI48: C.H. Carhuaquero IV | DK48: 0.8333
A49: =Historico!A49 -> C.H. Caña Brava | B49: =+Historico!O49 -> 1.6667 | C49: 1.6667 | D49: 0 | F49: =IF(AND(DAY($F$5)=1,MONTH($F$5)=5),$C$8,IF(IF(ResumenIndicadores!$G$9="Ft-1",B49,C49)=0,0,IF(ResumenIndicadores!$G$9="Ft-1",B49,C49))) -> 1.6667 | M49: C.H. Caña Brava | Q49: 0 | R49: 0 | S49: 0 | T49: 0 | X49: C.H. Caña Brava | AB49: 0 | AC49: 0 | AD49: 0 | AE49: 0 | AI49: C.H. Caña Brava | AM49: 0 | AN49: 0 | AO49: 0 | AP49: 0 | AQ49: 1.6667 | AT49: C.H. Caña Brava | AX49: 0 | AY49: 0 | AZ49: 0 | BA49: 0 | CB49: C.H. Caña Brava | CF49: 0 | CG49: 0 | CH49: 0 | CI49: 0 | CJ49: 1.6667 | DI49: C.H. Caña Brava | DK49: 1.6667
A50: =Historico!A50 -> C.H. La Joya | B50: =+Historico!O50 -> 4.3333 | C50: 4.3333 | D50: 0 | F50: =IF(AND(DAY($F$5)=1,MONTH($F$5)=5),$C$8,IF(IF(ResumenIndicadores!$G$9="Ft-1",B50,C50)=0,0,IF(ResumenIndicadores!$G$9="Ft-1",B50,C50))) -> 4.3333 | M50: C.H. La Joya | Q50: 0 | R50: 0 | S50: 0 | T50: 0 | X50: C.H. La Joya | AB50: 0 | AC50: 0 | AD50: 0 | AE50: 0 | AI50: C.H. La Joya | AM50: 0 | AN50: 0 | AO50: 0 | AP50: 0 | AQ50: 4.3333 | AT50: C.H. La Joya | AX50: 0 | AY50: 0 | AZ50: 0 | BA50: 0 | CB50: C.H. La Joya | CF50: 0 | CG50: 0 | CH50: 0 | CI50: 0 | CJ50: 4.3333 | DI50: C.H. La Joya | DK50: 4.3333
A51: =Historico!A51 -> C.T. Huaycoloro | B51: =+Historico!O51 -> 1 | C51: 1 | D51: 0 | F51: =IF(AND(DAY($F$5)=1,MONTH($F$5)=5),$C$8,IF(IF(ResumenIndicadores!$G$9="Ft-1",B51,C51)=0,0,IF(ResumenIndicadores!$G$9="Ft-1",B51,C51))) -> 1 | M51: C.T. Huaycoloro | Q51: 0 | R51: 0 | S51: 0 | T51: 0 | X51: C.T. Huaycoloro | AB51: 0 | AC51: 0 | AD51: 0 | AE51: 0 | AI51: C.T. Huaycoloro | AM51: 0 | AN51: 0 | AO51: 0 | AP51: 0 | AQ51: 1 | AT51: C.T. Huaycoloro | AX51: 0 | AY51: 0 | AZ51: 0 | BA51: 0 | CB51: C.T. Huaycoloro | CF51: 0 | CG51: 0 | CH51: 0 | CI51: 0 | CJ51: 1 | DI51: C.T. Huaycoloro | DK51: 1
A52: =Historico!A52 -> C. H. Purmacana | B52: =+Historico!O52 -> 0 | C52: 0 | D52: 0 | F52: =IF(AND(DAY($F$5)=1,MONTH($F$5)=5),$C$8,IF(IF(ResumenIndicadores!$G$9="Ft-1",B52,C52)=0,0,IF(ResumenIndicadores!$G$9="Ft-1",B52,C52))) -> 0 | M52: C. H. Purmacana | Q52: 0 | R52: 0 | S52: 0 | T52: 0 | X52: C. H. Purmacana | AB52: 0 | AC52: 0 | AD52: 0 | AE52: 0 | AI52: C. H. Purmacana | AM52: 0 | AN52: 0 | AO52: 0 | AP52: 0 | AQ52: 0 | AT52: C. H. Purmacana | AX52: 0 | AY52: 0 | AZ52: 0 | BA52: 0 | CB52: C. H. Purmacana | CF52: 0 | CG52: 0 | CH52: 0 | CI52: 0 | CJ52: 0 | DI52: C. H. Purmacana | DK52: 0
A53: =Historico!A53 -> C.H. Huasahuasi I | B53: =+Historico!O53 -> 1.8 | C53: 1.8 | D53: 0 | F53: =IF(AND(DAY($F$5)=1,MONTH($F$5)=5),$C$8,IF(IF(ResumenIndicadores!$G$9="Ft-1",B53,C53)=0,0,IF(ResumenIndicadores!$G$9="Ft-1",B53,C53))) -> 1.8 | M53: C.H. Huasahuasi I | Q53: 0 | R53: 0 | S53: 0 | T53: 0 | X53: C.H. Huasahuasi I | AB53: 0 | AC53: 0 | AD53: 0 | AE53: 0 | AI53: C.H. Huasahuasi I | AM53: 0 | AN53: 0 | AO53: 0 | AP53: 0 | AQ53: =CJ53 -> 1.8 | AT53: C.H. Huasahuasi I | AX53: 0 | AY53: 0 | AZ53: 0 | BA53: 0 | CB53: C.H. Huasahuasi I | CF53: 0 | CG53: 0 | CH53: 0 | CI53: 0 | CJ53: 1.8 | DI53: C.H. Huasahuasi I | DK53: 1.8
A54: =Historico!A54 -> C.H. Huasahuasi II | B54: =+Historico!O54 -> 1.4 | C54: 1.4 | D54: 0 | F54: =IF(AND(DAY($F$5)=1,MONTH($F$5)=5),$C$8,IF(IF(ResumenIndicadores!$G$9="Ft-1",B54,C54)=0,0,IF(ResumenIndicadores!$G$9="Ft-1",B54,C54))) -> 1.4 | M54: C.H. Huasahuasi II | Q54: 0 | R54: 0 | S54: 0 | T54: 0 | X54: C.H. Huasahuasi II | AB54: 0 | AC54: 0 | AD54: 0 | AE54: 0 | AI54: C.H. Huasahuasi II | AM54: 0 | AN54: 0 | AO54: 0 | AP54: 0 | AQ54: 1.4 | AT54: C.H. Huasahuasi II | AX54: 0 | AY54: 0 | AZ54: 0 | BA54: 0 | CB54: C.H. Huasahuasi II | CF54: 0 | CG54: 0 | CH54: 0 | CI54: 0 | CJ54: 1.4 | DI54: C.H. Huasahuasi II | DK54: 1.4
A55: =Historico!A55 -> C.H. Nuevo Imperial | B55: =+Historico!O55 -> 1.3333 | C55: 1.3333 | D55: 0 | F55: =IF(AND(DAY($F$5)=1,MONTH($F$5)=5),$C$8,IF(IF(ResumenIndicadores!$G$9="Ft-1",B55,C55)=0,0,IF(ResumenIndicadores!$G$9="Ft-1",B55,C55))) -> 1.3333 | M55: C.H. Nuevo Imperial | Q55: 0 | R55: 0 | S55: 0 | T55: 0 | X55: C.H. Nuevo Imperial | AB55: 0 | AC55: 0 | AD55: 0 | AE55: 0 | AI55: C.H. Nuevo Imperial | AM55: 0 | AN55: 0 | AO55: 0 | AP55: 0 | AQ55: 1.3333 | AT55: C.H. Nuevo Imperial | AX55: 0 | AY55: 0 | AZ55: 0 | BA55: 0 | CB55: C.H. Nuevo Imperial | CF55: 0 | CG55: 0 | CH55: 0 | CI55: 0 | CJ55: 1.3333 | DI55: C.H. Nuevo Imperial | DK55: 1.3333
A56: =Historico!A56 -> Cargo Unitario por Generación Adicional | B56: =+Historico!O56 ->  | F56: =IF(AND(DAY($F$5)=1,MONTH($F$5)=5),$C$8,IF(IF(ResumenIndicadores!$G$9="Ft-1",B56,C56)=0,"",IF(ResumenIndicadores!$G$9="Ft-1",B56,C56))) ->  | M56: Cargo Unitario por Generación Adicional | X56: Cargo Unitario por Generación Adicional | AI56: Cargo Unitario por Generación Adicional | AT56: Cargo Unitario por Generación Adicional | CB56: Cargo Unitario por Generación Adicional | DI56: Cargo Unitario por Generación Adicional
A57: =Historico!A57 -> Usuarios Regulados | B57: =+Historico!O57 -> 0.8897 | C57: 0.8897 | D57: 0 | F57: =IF(AND(DAY($F$5)=1,MONTH($F$5)=5),$C$8,IF(IF(ResumenIndicadores!$G$9="Ft-1",B57,C57)=0,0,IF(ResumenIndicadores!$G$9="Ft-1",B57,C57))) -> 0.8897 | M57: Usuarios Regulados | Q57: 0 | R57: 0 | S57: 0 | T57: 0 | X57: Usuarios Regulados | AB57: 0 | AC57: 0 | AD57: 0 | AE57: 0 | AI57: Usuarios Regulados | AM57: 0 | AN57: 0 | AO57: 0 | AP57: 0 | AQ57: =CJ57 -> 0.8897 | AT57: Usuarios Regulados | AX57: 0 | AY57: 0 | AZ57: 0 | BA57: 0 | CB57: Usuarios Regulados | CF57: 0 | CG57: 0 | CH57: 0 | CI57: 0 | CJ57: =DK57 -> 0.8897 | DI57: Usuarios Regulados | DK57: 0.8897
A58: =Historico!A58 -> Cargo por Garantía (SGT) | B58: =+Historico!O58 ->  | F58: =IF(AND(DAY($F$5)=1,MONTH($F$5)=5),$C$8,IF(IF(ResumenIndicadores!$G$9="Ft-1",B58,C58)=0,"",IF(ResumenIndicadores!$G$9="Ft-1",B58,C58))) ->  | M58: Cargo por Garantía (SGT) | X58: Cargo por Garantía (SGT) | AI58: Cargo por Garantía (SGT) | AT58: Cargo por Garantía (SGT) | CB58: Cargo por Garantía (SGT)
A59: =Historico!A59 -> Línea Chilca -Zapallal (Tramos 1 y 2) | B59: =+Historico!O59 -> 0.9663 | C59: =ROUND(AB59*AM59+AC59*AN59+AD59*AO59+AE59*AP59+AQ59,4) -> 0.9704 | D59: =IF(B59=0,0,C59/B59-1) -> 0.00424298872 | F59: =IF(AND(DAY($F$5)=1,MONTH($F$5)=5),$C$8,IF(IF(ResumenIndicadores!$G$9="Ft-1",B59,C59)=0,0,IF(ResumenIndicadores!$G$9="Ft-1",B59,C59))) -> 0.9663 | M59: Línea Chilca -Zapallal (Tramos 1 y 2) | Q59: 1 | R59: 0 | S59: 0 | T59: 0 | X59: Línea Chilca -Zapallal (Tramos 1 y 2) | AB59: 1 | AC59: 0 | AD59: 0 | AE59: 0 | AI59: Línea Chilca -Zapallal (Tramos 1 y 2) | AM59: =AX59/CF59 -> 0.9703898051 | AN59: 0 | AO59: 0 | AP59: 0 | AQ59: 0 | AT59: Línea Chilca -Zapallal (Tramos 1 y 2) | AX59: =DL29 -> 2.589 | AY59: 0 | AZ59: 0 | BA59: 0 | CB59: Línea Chilca -Zapallal (Tramos 1 y 2) | CF59: =DL28 -> 2.668 | CG59: 0 | CH59: 0 | CI59: 0 | CJ59: 0
A60: Línea Zapallal – Trujillo 500 kV | B60: =+Historico!O60 -> 0.9663 | C60: 0.9704 | D60: 0.00424298872 | F60: =IF(AND(DAY($F$5)=1,MONTH($F$5)=5),$C$8,IF(IF(ResumenIndicadores!$G$9="Ft-1",B60,C60)=0,0,IF(ResumenIndicadores!$G$9="Ft-1",B60,C60))) -> 0.9663 | M60: Línea Zapallal – Trujillo 500 kV | Q60: 1 | R60: 0 | S60: 0 | T60: 0 | X60: Línea Zapallal – Trujillo 500 kV | AB60: 1 | AC60: 0 | AD60: 0 | AE60: 0 | AI60: Línea Zapallal – Trujillo 500 kV | AM60: 0.9703898051 | AN60: 0 | AO60: 0 | AP60: 0 | AQ60: 0 | AT60: Línea Zapallal – Trujillo 500 kV | AX60: =DL29 -> 2.589 | AY60: 0 | AZ60: 0 | BA60: 0 | CB60: Línea Zapallal – Trujillo 500 kV | CF60: =DL28 -> 2.668 | CG60: 0 | CH60: 0 | CI60: 0 | CJ60: 0
A61: =Historico!A61 -> Líneas Carhuamayo - Cajamarca 220 kV (Tramos 1, 2, 3 y4) y SVC-Cajamarca | B61: =+Historico!O61 -> 0.9663 | C61: 0.9704 | D61: =+C61/B61-1 -> 0.00424298872 | F61: =IF(AND(DAY($F$5)=1,MONTH($F$5)=5),$C$8,IF(IF(ResumenIndicadores!$G$9="Ft-1",B61,C61)=0,0,IF(ResumenIndicadores!$G$9="Ft-1",B61,C61))) -> 0.9663 | M61: Líneas Carhuamayo - Cajamarca 220 kV (Tramos 1, 2, 3 y4) y SVC-Cajamarca | Q61: 1 | R61: 0 | S61: 0 | T61: 0 | X61: Líneas Carhuamayo - Cajamarca 220 kV (Tramos 1, 2, 3 y4) y SVC-Cajamarca | AB61: 1 | AC61: 0 | AD61: 0 | AE61: 0 | AI61: Líneas Carhuamayo - Cajamarca 220 kV (Tramos 1, 2, 3 y4) y SVC-Cajamarca | AM61: =AX61/CF61 -> 0.9703898051 | AN61: 0 | AO61: 0 | AP61: 0 | AQ61: 0 | AT61: Líneas Carhuamayo - Cajamarca 220 kV (Tramos 1, 2, 3 y4) y SVC-Cajamarca | AX61: =DL29 -> 2.589 | AY61: 0 | AZ61: 0 | BA61: 0 | CB61: Líneas Carhuamayo - Cajamarca 220 kV (Tramos 1, 2, 3 y4) y SVC-Cajamarca | CF61: =DL28 -> 2.668 | CG61: 0 | CH61: 0 | CI61: 0 | CJ61: 0
A62: =Historico!A62 ->  | F62: =IF(AND(DAY($F$5)=1,MONTH($F$5)=5),$C$8,IF(IF(ResumenIndicadores!$G$9="Ft-1",B62,C62)=0,"",IF(ResumenIndicadores!$G$9="Ft-1",B62,C62))) -> 
A63: =Historico!A63 ->  | F63: =IF(AND(DAY($F$5)=1,MONTH($F$5)=5),$C$8,IF(IF(ResumenIndicadores!$G$9="Ft-1",B63,C63)=0,"",IF(ResumenIndicadores!$G$9="Ft-1",B63,C63))) ->  | M63: T.Secundaria (Ponderadores Efectivos) | Q63: FTCts | R63: FPMts | S63: FPCUts | T63: FPALts | X63: T.Secundaria (Ponderadores) | AB63: FTCts | AC63: FPMts | AD63: FPCUts | AE63: FPALts | AI63: T.Secundaria (Componentes) | AM63: FTCts | AN63: FPMts | AO63: FPCUts | AP63: FPALts | AT63: T.Secundaria (V.actuales) | AX63: FTCts | AY63: FPMts | AZ63: FPCUts | BA63: FPALts | CB63: T.Secundaria (V.Resolución) | CF63: FTCts | CG63: FPMts | CH63: FPCUts | CI63: FPALts | DI63: Indicadores Macroeconómicos de la Transmision Secundaria (Parte 2)
A64: =Historico!A64 -> B2. Actualización de Peajes por Áreas de Demanda (Res. N° 184-2009-OS/CD) | B64: =+Historico!O64 ->  | F64: =IF(IF(ResumenIndicadores!$G$10="Ft-1",B64,C64)=0,"",IF(ResumenIndicadores!$G$10="Ft-1",B64,C64)) ->  | Q64: a | R64: b | S64: c | T64: d | AB64: a | AC64: b | AD64: c | AE64: d | AM64: a | AN64: b | AO64: c | AP64: d | AQ64: PUC | AX64: a | AY64: b | AZ64: c | BA64: d | CF64: a | CG64: b | CH64: c | CI64: d | DJ64: Fecha | DK64: IPM | DL64: TC (S/./US$) (*) | DM64: Pco (ctv. US$/lb) | DN64: Pal
A65: =Historico!A65 -> Área de Demanda 1 | B65: =+Historico!O65 -> 1.0378 | C65: =ROUND(AB65*AM65+AC65*AN65+AD65*AO65+AE65*AP65,4) -> 1.0116 | D65: =+C65/B65-1 -> -0.02524571208 | F65: =IF(IF(ResumenIndicadores!$G$10="Ft-1",B65,C65)=0,"",IF(ResumenIndicadores!$G$10="Ft-1",B65,C65)) -> 1.0378 | M65: Áreas de Demanda: Cuadro 4.2 FORMULAS DE ACTUALIZACION | P65: 1 | Q65: 0.2596 | R65: 0.6392 | S65: 0.0365 | T65: 0.0647 | X65: Áreas de Demanda: Cuadro 4.2 FORMULAS DE ACTUALIZACION | AA65: 1 | AB65: 0.2596 | AC65: 0.6392 | AD65: 0.0365 | AE65: 0.0647 | AI65: Áreas de Demanda: Cuadro 4.2 FORMULAS DE ACTUALIZACION | AL65: 1 | AM65: =AX65/CF65 -> 0.8190446061 | AN65: =AY65/CG65 -> 1.082386786 | AO65: =AZ65/CH65 -> 1.350935674 | AP65: =BA65/CI65 -> 0.8927806329 | AQ65: 0 | AT65: Áreas de Demanda: Cuadro 4.2 FORMULAS DE ACTUALIZACION | AW65: 1 | AX65: =DL66 -> 2.589 | AY65: =DK66 -> 207.345341 | AZ65: =DM66 -> 359.3275 | BA65: =DN66 -> 2000.47175 | CB65: Áreas de Demanda: Cuadro 4.2 FORMULAS DE ACTUALIZACION | CE65: 1 | CF65: =DL65 -> 3.161 | CG65: =DK65 -> 191.563075 | CH65: =DM65 -> 265.984167 | CI65: =DN65 -> 2240.72037 | DI65: Valores Base | DJ65: Resolucion Base | DK65: 191.563075 | DL65: 3.161 | DM65: 265.984167 | DN65: 2240.72037
A66: =Historico!A66 -> Área de Demanda 2 | B66: =+Historico!O66 -> 1.049 | C66: 1.0277 | D66: -0.02030505243 | F66: =IF(IF(ResumenIndicadores!$G$10="Ft-1",B66,C66)=0,"",IF(ResumenIndicadores!$G$10="Ft-1",B66,C66)) -> 1.049 | P66: 2 | Q66: 0.2237 | R66: 0.7146 | S66: 0.0347 | T66: 0.027 | AA66: 2 | AB66: 0.2237 | AC66: 0.7146 | AD66: 0.0347 | AE66: 0.027 | AL66: 2 | AM66: 0.8190446061 | AN66: 1.082386786 | AO66: 1.350935674 | AP66: 0.8927806329 | AQ66: 0 | AW66: 2 | AX66: =DL66 -> 2.589 | AY66: =DK66 -> 207.345341 | AZ66: =DM66 -> 359.3275 | BA66: =DN66 -> 2000.47175 | CE66: 2 | CF66: =DL65 -> 3.161 | CG66: =DK65 -> 191.563075 | CH66: =DM65 -> 265.984167 | CI66: =DN65 -> 2240.72037 | DI66: Valores Actuales | DJ66: Indicador actualizado | DK66: =+'ALUMINIO-COBRE-TC-IPM'!G8 -> 207.345341 | DL66: =+'ALUMINIO-COBRE-TC-IPM'!F8 -> 2.589 | DM66: =+'ALUMINIO-COBRE-TC-IPM'!E8 -> 359.3275 | DN66: =+'ALUMINIO-COBRE-TC-IPM'!D8 -> 2000.47175
A67: =Historico!A67 -> Área de Demanda 3 | B67: =+Historico!O67 -> 1.0372 | C67: 1.0136 | D67: -0.0227535673 | F67: =IF(IF(ResumenIndicadores!$G$10="Ft-1",B67,C67)=0,"",IF(ResumenIndicadores!$G$10="Ft-1",B67,C67)) -> 1.0372 | P67: 3 | Q67: 0.2567 | R67: 0.6654 | S67: 0.0297 | T67: 0.0482 | AA67: 3 | AB67: 0.2567 | AC67: 0.6654 | AD67: 0.0297 | AE67: 0.0482 | AL67: 3 | AM67: 0.8190446061 | AN67: 1.082386786 | AO67: 1.350935674 | AP67: 0.8927806329 | AQ67: 0 | AW67: 3 | AX67: =DL66 -> 2.589 | AY67: =DK66 -> 207.345341 | AZ67: =DM66 -> 359.3275 | BA67: =DN66 -> 2000.47175 | CE67: 3 | CF67: =DL65 -> 3.161 | CG67: =DK65 -> 191.563075 | CH67: =DM65 -> 265.984167 | CI67: =DN65 -> 2240.72037
A68: =Historico!A68 -> Área de Demanda 4 | B68: =+Historico!O68 -> 1.0327 | C68: 1.0092 | D68: -0.02275588264 | F68: =IF(IF(ResumenIndicadores!$G$10="Ft-1",B68,C68)=0,"",IF(ResumenIndicadores!$G$10="Ft-1",B68,C68)) -> 1.0327 | P68: 4 | Q68: 0.2527 | R68: 0.6752 | S68: 0.0153 | T68: 0.0568 | AA68: 4 | AB68: 0.2527 | AC68: 0.6752 | AD68: 0.0153 | AE68: 0.0568 | AL68: 4 | AM68: 0.8190446061 | AN68: 1.082386786 | AO68: 1.350935674 | AP68: 0.8927806329 | AQ68: 0 | AW68: 4 | AX68: =DL66 -> 2.589 | AY68: =DK66 -> 207.345341 | AZ68: =DM66 -> 359.3275 | BA68: =DN66 -> 2000.47175 | CE68: 4 | CF68: =DL65 -> 3.161 | CG68: =DK65 -> 191.563075 | CH68: =DM65 -> 265.984167 | CI68: =DN65 -> 2240.72037
A69: =Historico!A69 -> Área de Demanda 5 | B69: =+Historico!O69 -> 1.0196 | C69: 0.9979 | D69: -0.02128285602 | F69: =IF(IF(ResumenIndicadores!$G$10="Ft-1",B69,C69)=0,"",IF(ResumenIndicadores!$G$10="Ft-1",B69,C69)) -> 1.0196 | P69: 5 | Q69: 0.3203 | R69: 0.62 | S69: 0.0244 | T69: 0.0353 | AA69: 5 | AB69: 0.3203 | AC69: 0.62 | AD69: 0.0244 | AE69: 0.0353 | AL69: 5 | AM69: 0.8190446061 | AN69: 1.082386786 | AO69: 1.350935674 | AP69: 0.8927806329 | AQ69: 0 | AW69: 5 | AX69: =DL66 -> 2.589 | AY69: =DK66 -> 207.345341 | AZ69: =DM66 -> 359.3275 | BA69: =DN66 -> 2000.47175 | CE69: 5 | CF69: =DL65 -> 3.161 | CG69: =DK65 -> 191.563075 | CH69: =DM65 -> 265.984167 | CI69: =DN65 -> 2240.72037
A70: =Historico!A70 -> Área de Demanda 6 | B70: =+Historico!O70 -> 1.0044 | C70: 0.9828 | D70: -0.02150537634 | F70: =IF(IF(ResumenIndicadores!$G$10="Ft-1",B70,C70)=0,"",IF(ResumenIndicadores!$G$10="Ft-1",B70,C70)) -> 1.0044 | P70: 6 | Q70: 0.4145 | R70: 0.5192 | S70: 0.0484 | T70: 0.0179 | AA70: 6 | AB70: 0.4145 | AC70: 0.5192 | AD70: 0.0484 | AE70: 0.0179 | AL70: 6 | AM70: 0.8190446061 | AN70: 1.082386786 | AO70: 1.350935674 | AP70: 0.8927806329 | AQ70: 0 | AW70: 6 | AX70: =DL66 -> 2.589 | AY70: =DK66 -> 207.345341 | AZ70: =DM66 -> 359.3275 | BA70: =DN66 -> 2000.47175 | CE70: 6 | CF70: =DL65 -> 3.161 | CG70: =DK65 -> 191.563075 | CH70: =DM65 -> 265.984167 | CI70: =DN65 -> 2240.72037
A71: =Historico!A71 -> Área de Demanda 7 | B71: =+Historico!O71 -> 1.0062 | C71: 0.985 | D71: -0.02106936991 | F71: =IF(IF(ResumenIndicadores!$G$10="Ft-1",B71,C71)=0,"",IF(ResumenIndicadores!$G$10="Ft-1",B71,C71)) -> 1.0062 | P71: 7 | Q71: 0.4071 | R71: 0.5306 | S71: 0.0473 | T71: 0.015 | AA71: 7 | AB71: 0.4071 | AC71: 0.5306 | AD71: 0.0473 | AE71: 0.015 | AL71: 7 | AM71: 0.8190446061 | AN71: 1.082386786 | AO71: 1.350935674 | AP71: 0.8927806329 | AQ71: 0 | AW71: 7 | AX71: =DL66 -> 2.589 | AY71: =DK66 -> 207.345341 | AZ71: =DM66 -> 359.3275 | BA71: =DN66 -> 2000.47175 | CE71: 7 | CF71: =DL65 -> 3.161 | CG71: =DK65 -> 191.563075 | CH71: =DM65 -> 265.984167 | CI71: =DN65 -> 2240.72037
A72: =Historico!A72 -> Área de Demanda 8 | B72: =+Historico!O72 -> 1.0335 | C72: 1.007 | D72: -0.02564102564 | F72: =IF(IF(ResumenIndicadores!$G$10="Ft-1",B72,C72)=0,"",IF(ResumenIndicadores!$G$10="Ft-1",B72,C72)) -> 1.0335 | P72: 8 | Q72: 0.2694 | R72: 0.6291 | S72: 0.0323 | T72: 0.0692 | AA72: 8 | AB72: 0.2694 | AC72: 0.6291 | AD72: 0.0323 | AE72: 0.0692 | AL72: 8 | AM72: 0.8190446061 | AN72: 1.082386786 | AO72: 1.350935674 | AP72: 0.8927806329 | AQ72: 0 | AW72: 8 | AX72: =DL66 -> 2.589 | AY72: =DK66 -> 207.345341 | AZ72: =DM66 -> 359.3275 | BA72: =DN66 -> 2000.47175 | CE72: 8 | CF72: =DL65 -> 3.161 | CG72: =DK65 -> 191.563075 | CH72: =DM65 -> 265.984167 | CI72: =DN65 -> 2240.72037
A73: =Historico!A73 -> Área de Demanda 9 | B73: =+Historico!O73 -> 1.0275 | C73: 1.0043 | D73: -0.02257907543 | F73: =IF(IF(ResumenIndicadores!$G$10="Ft-1",B73,C73)=0,"",IF(ResumenIndicadores!$G$10="Ft-1",B73,C73)) -> 1.0275 | P73: 9 | Q73: 0.3016 | R73: 0.6226 | S73: 0.0343 | T73: 0.0415 | AA73: 9 | AB73: 0.3016 | AC73: 0.6226 | AD73: 0.0343 | AE73: 0.0415 | AL73: 9 | AM73: 0.8190446061 | AN73: 1.082386786 | AO73: 1.350935674 | AP73: 0.8927806329 | AQ73: 0 | AW73: 9 | AX73: =DL66 -> 2.589 | AY73: =DK66 -> 207.345341 | AZ73: =DM66 -> 359.3275 | BA73: =DN66 -> 2000.47175 | CE73: 9 | CF73: =DL65 -> 3.161 | CG73: =DK65 -> 191.563075 | CH73: =DM65 -> 265.984167 | CI73: =DN65 -> 2240.72037
A74: =Historico!A74 -> Área de Demanda 10 | B74: =+Historico!O74 -> 1.0289 | C74: 1.005 | D74: -0.02322869083 | F74: =IF(IF(ResumenIndicadores!$G$10="Ft-1",B74,C74)=0,"",IF(ResumenIndicadores!$G$10="Ft-1",B74,C74)) -> 1.0289 | P74: 10 | Q74: 0.2715 | R74: 0.6526 | S74: 0.0186 | T74: 0.0573 | AA74: 10 | AB74: 0.2715 | AC74: 0.6526 | AD74: 0.0186 | AE74: 0.0573 | AL74: 10 | AM74: 0.8190446061 | AN74: 1.082386786 | AO74: 1.350935674 | AP74: 0.8927806329 | AQ74: 0 | AW74: 10 | AX74: =DL66 -> 2.589 | AY74: =DK66 -> 207.345341 | AZ74: =DM66 -> 359.3275 | BA74: =DN66 -> 2000.47175 | CE74: 10 | CF74: =DL65 -> 3.161 | CG74: =DK65 -> 191.563075 | CH74: =DM65 -> 265.984167 | CI74: =DN65 -> 2240.72037
A75: =Historico!A75 -> Área de Demanda 11 | B75: =+Historico!O75 -> 1.0433 | C75: 1.022 | D75: -0.02041598773 | F75: =IF(IF(ResumenIndicadores!$G$10="Ft-1",B75,C75)=0,"",IF(ResumenIndicadores!$G$10="Ft-1",B75,C75)) -> 1.0433 | P75: 11 | Q75: 0.2379 | R75: 0.7021 | S75: 0.0297 | T75: 0.0303 | AA75: 11 | AB75: 0.2379 | AC75: 0.7021 | AD75: 0.0297 | AE75: 0.0303 | AL75: 11 | AM75: 0.8190446061 | AN75: 1.082386786 | AO75: 1.350935674 | AP75: 0.8927806329 | AQ75: 0 | AW75: 11 | AX75: =DL66 -> 2.589 | AY75: =DK66 -> 207.345341 | AZ75: =DM66 -> 359.3275 | BA75: =DN66 -> 2000.47175 | CE75: 11 | CF75: =DL65 -> 3.161 | CG75: =DK65 -> 191.563075 | CH75: =DM65 -> 265.984167 | CI75: =DN65 -> 2240.72037
A76: =Historico!A76 -> Área de Demanda 12 | B76: =+Historico!O76 -> 0.9748 | C76: 0.9503 | D76: -0.02513336069 | F76: =IF(IF(ResumenIndicadores!$G$10="Ft-1",B76,C76)=0,"",IF(ResumenIndicadores!$G$10="Ft-1",B76,C76)) -> 0.9748 | P76: 12 | Q76: 0.5304 | R76: 0.3806 | S76: 0.0535 | T76: 0.0355 | AA76: 12 | AB76: 0.5304 | AC76: 0.3806 | AD76: 0.0535 | AE76: 0.0355 | AL76: 12 | AM76: 0.8190446061 | AN76: 1.082386786 | AO76: 1.350935674 | AP76: 0.8927806329 | AQ76: 0 | AW76: 12 | AX76: =DL66 -> 2.589 | AY76: =DK66 -> 207.345341 | AZ76: =DM66 -> 359.3275 | BA76: =DN66 -> 2000.47175 | CE76: 12 | CF76: =DL65 -> 3.161 | CG76: =DK65 -> 191.563075 | CH76: =DM65 -> 265.984167 | CI76: =DN65 -> 2240.72037
A77: =Historico!A77 -> Área de Demanda 13 | B77: =+Historico!O77 -> 1.0371 | C77: 1.0141 | D77: -0.02217722495 | F77: =IF(IF(ResumenIndicadores!$G$10="Ft-1",B77,C77)=0,"",IF(ResumenIndicadores!$G$10="Ft-1",B77,C77)) -> 1.0371 | P77: 13 | Q77: 0.2546 | R77: 0.6736 | S77: 0.027 | T77: 0.0448 | AA77: 13 | AB77: 0.2546 | AC77: 0.6736 | AD77: 0.027 | AE77: 0.0448 | AL77: 13 | AM77: 0.8190446061 | AN77: 1.082386786 | AO77: 1.350935674 | AP77: 0.8927806329 | AQ77: 0 | AW77: 13 | AX77: =DL66 -> 2.589 | AY77: =DK66 -> 207.345341 | AZ77: =DM66 -> 359.3275 | BA77: =DN66 -> 2000.47175 | CE77: 13 | CF77: =DL65 -> 3.161 | CG77: =DK65 -> 191.563075 | CH77: =DM65 -> 265.984167 | CI77: =DN65 -> 2240.72037
A78: =Historico!A78 -> Área de Demanda 14 | B78: =+Historico!O78 -> 1.0617 | C78: 1.0395 | D78: -0.02090986154 | F78: =IF(IF(ResumenIndicadores!$G$10="Ft-1",B78,C78)=0,"",IF(ResumenIndicadores!$G$10="Ft-1",B78,C78)) -> 1.0617 | P78: 14 | Q78: 0.1973 | R78: 0.7278 | S78: 0.0508 | T78: 0.0241 | AA78: 14 | AB78: 0.1973 | AC78: 0.7278 | AD78: 0.0508 | AE78: 0.0241 | AL78: 14 | AM78: 0.8190446061 | AN78: 1.082386786 | AO78: 1.350935674 | AP78: 0.8927806329 | AQ78: 0 | AW78: 14 | AX78: =DL66 -> 2.589 | AY78: =DK66 -> 207.345341 | AZ78: =DM66 -> 359.3275 | BA78: =DN66 -> 2000.47175 | CE78: 14 | CF78: =DL65 -> 3.161 | CG78: =DK65 -> 191.563075 | CH78: =DM65 -> 265.984167 | CI78: =DN65 -> 2240.72037
A79: =Historico!A79 -> Área de Demanda 15 | B79: =+Historico!O79 -> 1.0066 | C79: 0.9746 | D79: -0.03179018478 | F79: =IF(IF(ResumenIndicadores!$G$10="Ft-1",B79,C79)=0,"",IF(ResumenIndicadores!$G$10="Ft-1",B79,C79)) -> 1.0066 | P79: 15 | Q79: 0.3143 | R79: 0.5519 | S79: 0.0007 | T79: 0.1331 | AA79: 15 | AB79: 0.3143 | AC79: 0.5519 | AD79: 0.0007 | AE79: 0.1331 | AL79: 15 | AM79: 0.8190446061 | AN79: 1.082386786 | AO79: 1.350935674 | AP79: 0.8927806329 | AQ79: 0 | AW79: 15 | AX79: =DL66 -> 2.589 | AY79: =DK66 -> 207.345341 | AZ79: =DM66 -> 359.3275 | BA79: =DN66 -> 2000.47175 | CE79: 15 | CF79: =DL65 -> 3.161 | CG79: =DK65 -> 191.563075 | CH79: =DM65 -> 265.984167 | CI79: =DN65 -> 2240.72037
A80: =Historico!A80 -> Instalaciones BOOT - Redesur | B80: =+Historico!O80 -> 0.8355 | C80: 0.819 | D80: -0.0197486535 | F80: =IF(IF(ResumenIndicadores!$G$10="Ft-1",B80,C80)=0,"",IF(ResumenIndicadores!$G$10="Ft-1",B80,C80)) -> 0.8355 | M80: Cuadro 5.3.- FORMULAS DE ACTUALIZACION DE LOS SST DE ISA Y REDESUR (BOOT) | N80: Instalac. BOOT | O80: REDESUR | P80: SST Tacna - Transf. 220/66/10 kV; 50 MVA | Q80: 1 | R80: 0 | S80: 0 | T80: 0 | X80: Cuadro 5.3.- FORMULAS DE ACTUALIZACION DE LOS SST DE ISA Y REDESUR (BOOT) | Y80: Instalac. BOOT | Z80: REDESUR | AA80: SST Tacna - Transf. 220/66/10 kV; 50 MVA | AB80: 1 | AC80: 0 | AD80: 0 | AE80: 0 | AI80: Cuadro 5.3.- FORMULAS DE ACTUALIZACION DE LOS SST DE ISA Y REDESUR (BOOT) | AJ80: Instalac. BOOT | AK80: REDESUR | AL80: SST Tacna - Transf. 220/66/10 kV; 50 MVA | AM80: =AX80/CF80 -> 0.8190446061 | AN80: 0 | AO80: 0 | AP80: 0 | AQ80: 0 | AT80: Cuadro 5.3.- FORMULAS DE ACTUALIZACION DE LOS SST DE ISA Y REDESUR (BOOT) | AU80: Instalac. BOOT | AV80: REDESUR | AW80: SST Tacna - Transf. 220/66/10 kV; 50 MVA | AX80: =DL66 -> 2.589 | AY80: 0 | AZ80: 0 | BA80: 0 | CB80: Cuadro 5.3.- FORMULAS DE ACTUALIZACION DE LOS SST DE ISA Y REDESUR (BOOT) | CC80: Instalac. BOOT | CD80: REDESUR | CE80: SST Tacna - Transf. 220/66/10 kV; 50 MVA | CF80: =DL65 -> 3.161 | CG80: 0 | CH80: 0 | CI80: 0
A81: =Historico!A81 -> Instalaciones BOOT - ISA Peru | B81: =+Historico!O81 -> 0.8355 | C81: 0.819 | D81: -0.0197486535 | F81: =IF(IF(ResumenIndicadores!$G$10="Ft-1",B81,C81)=0,"",IF(ResumenIndicadores!$G$10="Ft-1",B81,C81)) -> 0.8355 | O81: ISA-PERÚ | P81: SST Aguaytía – Pucallpa, S.E. Aguaytía 220/60/10kV, S.E. Pucallpa 138/60/10kV, Reactor 8MVAR | Q81: 1 | R81: 0 | S81: 0 | T81: 0 | Z81: ISA-PERÚ | AA81: SST Aguaytía – Pucallpa, S.E. Aguaytía 220/60/10kV, S.E. Pucallpa 138/60/10kV, Reactor 8MVAR | AB81: 1 | AC81: 0 | AD81: 0 | AE81: 0 | AK81: ISA-PERÚ | AL81: SST Aguaytía – Pucallpa, S.E. Aguaytía 220/60/10kV, S.E. Pucallpa 138/60/10kV, Reactor 8MVAR | AM81: 0.8190446061 | AN81: 0 | AO81: 0 | AP81: 0 | AQ81: 0 | AV81: ISA-PERÚ | AW81: SST Aguaytía – Pucallpa, S.E. Aguaytía 220/60/10kV, S.E. Pucallpa 138/60/10kV, Reactor 8MVAR | AX81: =DL66 -> 2.589 | AY81: 0 | AZ81: 0 | BA81: 0 | CD81: ISA-PERÚ | CE81: SST Aguaytía – Pucallpa, S.E. Aguaytía 220/60/10kV, S.E. Pucallpa 138/60/10kV, Reactor 8MVAR | CF81: =DL65 -> 3.161 | CG81: 0 | CH81: 0 | CI81: 0
A82: =Historico!A82 -> Otras Instalaciones- Edegel | B82: =+Historico!O82 -> 0.942 | C82: 0.9263 | D82: -0.01666666667 | F82: =IF(IF(ResumenIndicadores!$G$10="Ft-1",B82,C82)=0,"",IF(ResumenIndicadores!$G$10="Ft-1",B82,C82)) -> 0.942 | M82: Cuadro 5.5.- FORMULAS DE ACTUALIZACION DE LOS SST DE EDEGEL Y CONENHUA | N82: Instalaciones | O82: EDEGEL | P82: SST Celda de Transformación 220 kV - S.E. Cajamarquilla | Q82: 0.5929 | R82: 0.4071 | S82: 0 | T82: 0 | X82: Cuadro 5.5.- FORMULAS DE ACTUALIZACION DE LOS SST DE EDEGEL Y CONENHUA | Y82: Instalaciones | Z82: EDEGEL | AA82: SST Celda de Transformación 220 kV - S.E. Cajamarquilla | AB82: 0.5929 | AC82: 0.4071 | AD82: 0 | AE82: 0 | AI82: Cuadro 5.5.- FORMULAS DE ACTUALIZACION DE LOS SST DE EDEGEL Y CONENHUA | AJ82: Instalaciones | AK82: EDEGEL | AL82: SST Celda de Transformación 220 kV - S.E. Cajamarquilla | AM82: =AX82/CF82 -> 0.8190446061 | AN82: =AY82/CG82 -> 1.082386786 | AO82: 0 | AP82: 0 | AQ82: 0 | AT82: Cuadro 5.5.- FORMULAS DE ACTUALIZACION DE LOS SST DE EDEGEL Y CONENHUA | AU82: Instalaciones | AV82: EDEGEL | AW82: SST Celda de Transformación 220 kV - S.E. Cajamarquilla | AX82: =DL66 -> 2.589 | AY82: =DK66 -> 207.345341 | AZ82: 0 | BA82: 0 | CB82: Cuadro 5.5.- FORMULAS DE ACTUALIZACION DE LOS SST DE EDEGEL Y CONENHUA | CC82: Instalaciones | CD82: EDEGEL | CE82: SST Celda de Transformación 220 kV - S.E. Cajamarquilla | CF82: =DL65 -> 3.161 | CG82: =DK65 -> 191.563075 | CH82: 0 | CI82: 0
A83: =Historico!A83 -> Otras Instalaciones- Conenhua | B83: =+Historico!O83 -> 1.0326 | C83: 1.0065 | D83: =+C83/B83-1 -> -0.02527600232 | F83: =IF(IF(ResumenIndicadores!$G$10="Ft-1",B83,C83)=0,"",IF(ResumenIndicadores!$G$10="Ft-1",B83,C83)) -> 1.0326 | O83: CONENHUA | P83: SST LT Trujillo Norte - Cajamarca Norte 60 kV, Transformador 220/60/10 kV S.E. Cajamarca Norte | Q83: 0.3988 | R83: 0.475 | S83: 0.1159 | T83: 0.0103 | Z83: CONENHUA | AA83: SST LT Trujillo Norte - Cajamarca Norte 60 kV, Transformador 220/60/10 kV S.E. Cajamarca Norte | AB83: 0.3988 | AC83: 0.475 | AD83: 0.1159 | AE83: 0.0103 | AK83: CONENHUA | AL83: SST LT Trujillo Norte - Cajamarca Norte 60 kV, Transformador 220/60/10 kV S.E. Cajamarca Norte | AM83: =AX83/CF83 -> 0.8190446061 | AN83: =AY83/CG83 -> 1.082386786 | AO83: =AZ83/CH83 -> 1.350935674 | AP83: =BA83/CI83 -> 0.8927806329 | AQ83: 0 | AV83: CONENHUA | AW83: SST LT Trujillo Norte - Cajamarca Norte 60 kV, Transformador 220/60/10 kV S.E. Cajamarca Norte | AX83: =DL66 -> 2.589 | AY83: =DK66 -> 207.345341 | AZ83: =DM66 -> 359.3275 | BA83: =DN66 -> 2000.47175 | CD83: CONENHUA | CE83: SST LT Trujillo Norte - Cajamarca Norte 60 kV, Transformador 220/60/10 kV S.E. Cajamarca Norte | CF83: =DL65 -> 3.161 | CG83: =DK65 -> 191.563075 | CH83: =DM65 -> 265.984167 | CI83: =DN65 -> 2240.72037
A84: =Historico!A84 -> SCT de Transmantaro (Linea Independencia - Ica) | B84: =+Historico!O84 -> 0.8355 | C84: 0.819 | D84: -0.0197486535 | F84: =IF(IF(ResumenIndicadores!$G$10="Ft-1",B84,C84)=0,"",IF(ResumenIndicadores!$G$10="Ft-1",B84,C84)) -> 0.8355 | M84: Valores Base en Res. 076-2011-OS/CD, Res. 059-2012-OS/CD. Fórmula de Actualización en Res. 121-2011-OS/CD. | N84: Instalaciones | O84: SCT de Transmantaro | P84: Línea Independencia-Ica | Q84: 1 | R84: 0 | S84: 0 | T84: 0 | X84: Valores Base en Res. 076-2011-OS/CD, Res. 059-2012-OS/CD. Fórmula de Actualización en Res. 121-2011-OS/CD. | Y84: Instalaciones | Z84: SCT de Transmantaro | AA84: Línea Independencia-Ica | AB84: 1 | AC84: 0 | AD84: 0 | AE84: 0 | AI84: Valores Base en Res. 076-2011-OS/CD, Res. 059-2012-OS/CD. Fórmula de Actualización en Res. 121-2011-OS/CD. | AJ84: Instalaciones | AK84: SCT de Transmantaro | AL84: Línea Independencia-Ica | AM84: 0.8190446061 | AN84: 0 | AO84: 0 | AP84: 0 | AQ84: 0 | AT84: Valores Base en Res. 076-2011-OS/CD, Res. 059-2012-OS/CD. Fórmula de Actualización en Res. 121-2011-OS/CD. | AU84: Instalaciones | AV84: SCT de Transmantaro | AW84: Línea Independencia-Ica | AX84: =DL66 -> 2.589 | AY84: 0 | AZ84: 0 | BA84: 0 | CB84: Valores Base en Res. 076-2011-OS/CD, Res. 059-2012-OS/CD. Fórmula de Actualización en Res. 121-2011-OS/CD. | CC84: Instalaciones | CD84: SCT de Transmantaro | CE84: Línea Independencia-Ica | CF84: =DL65 -> 3.161 | CG84: 0 | CH84: 0 | CI84: 0
A85: =Historico!A85 -> Peaje Unitario por Compensación | F85: =IF(IF(ResumenIndicadores!$G$10="Ft-1",B85,C85)=0,"",IF(ResumenIndicadores!$G$10="Ft-1",B85,C85)) ->  | AI85: Peaje Unitario por Compensación | AM85: FA | DI85: Peaje Unitario por Compensación | DK85: FA
A86: =Historico!A86 -> Resolucion del Peaje Unitario de Compensación (PUC) | B86: =+Historico!O86 -> 1.14 | C86: =AM86 -> 1.14 | D86: 0 | F86: =C86 -> 1.14 | AI86: FA_PUC añadido en Áreas SST 6 y 7) | AM86: =DK86 -> 1.14 | DI86: FA_PUC añadido en Áreas SST 6 y 7) | DK86: 1.14
A87: =Historico!A87 ->  | F87: =IF(IF(ResumenIndicadores!$G$10="Ft-1",B87,C87)=0,"",IF(ResumenIndicadores!$G$10="Ft-1",B87,C87)) -> 
A88: =Historico!A88 ->  | F88: =IF(IF(ResumenIndicadores!$G$11="Ft-1",B88,C88)=0,"",IF(ResumenIndicadores!$G$11="Ft-1",B88,C88)) ->  | BE88: Ponderadores | BL88: Tasa arancelaria por partida arancelaria | CM88: Ponderadores | CT88: Tasa arancelaria por partida arancelaria
A89: C.1 DISTRIBUCIÓN - VAD Y CARGOS FIJOS (Res. N° 181-2009-OS/CD) | B89: =+Historico!O89 ->  | F89: =IF(IF(ResumenIndicadores!$G$11="Ft-1",B89,C89)=0,"",IF(ResumenIndicadores!$G$11="Ft-1",B89,C89)) ->  | M89: Distribución (Ponderadores Efectivos) | Q89: IPM / IPMo | R89: [TC/TCo]*[(1+TA)/(1+TAo)] | S89: [IPCu/IPCuo]*[TC/TCo]*[(1+TACu)/(1+TACuo)] | T89: [IPAl/IPAlo]*[TC/TCo]*[(1+TAAl)/(1+TAAlo)] | X89: Distribución (Ponderadores) | AB89: IPM / IPMo | AC89: [TC/TCo]*[(1+TA)/(1+TAo)] | AD89: [IPCu/IPCuo]*[TC/TCo]*[(1+TACu)/(1+TACuo)] | AE89: [IPAl/IPAlo]*[TC/TCo]*[(1+TAAl)/(1+TAAlo)] | AI89: Distribución (Componentes) | AM89: IPM / IPMo | AN89: [TC/TCo]*[(1+TA)/(1+TAo)] | AO89: [IPCu/IPCuo]*[TC/TCo]*[(1+TACu)/(1+TACuo)] | AP89: [IPAl/IPAlo]*[TC/TCo]*[(1+TAAl)/(1+TAAlo)] | AT89: Distribución (V.actuales) | AX89: IPM / IPMo | AY89: [TC/TCo]*[(1+TA)/(1+TAo)] | AZ89: [IPCu/IPCuo]*[TC/TCo]*[(1+TACu)/(1+TACuo)] | BA89: [IPAl/IPAlo]*[TC/TCo]*[(1+TAAl)/(1+TAAlo)] | BD89: TA | BE89: 8471.30.00.00 | BF89: 8504.21.90.00 | BG89: 8517.11.00.00 | BH89: 8535.30.00.00 | BI89: 8539.32.00.00 | BJ89: 8704.21.10.10 | BK89: 9028.30.10.00 | BL89: 8471.30.00.00 | BM89: 8504.21.90.00 | BN89: 8517.11.00.00 | BO89: 8535.30.00.00 | BP89: 8539.32.00.00 | BQ89: 8704.21.10.10 | BR89: 9028.30.10.00 | CB89: Distribución (V.Resolución) | CF89: IPM / IPMo | CG89: [TC/TCo]*[(1+TA)/(1+TAo)] | CH89: [IPCu/IPCuo]*[TC/TCo]*[(1+TACu)/(1+TACuo)] | CI89: [IPAl/IPAlo]*[TC/TCo]*[(1+TAAl)/(1+TAAlo)] | CL89: TAo | CM89: 8471.30.00.00 | CN89: 8504.21.90.00 | CO89: 8517.11.00.00 | CP89: 8535.30.00.00 | CQ89: 8539.32.00.00 | CR89: 8704.21.10.10 | CS89: 9028.30.10.00 | CT89: 8471.30.00.00 | CU89: 8504.21.90.00 | CV89: 8517.11.00.00 | CW89: 8535.30.00.00 | CX89: 8539.32.00.00 | CY89: 8704.21.10.10 | CZ89: 9028.30.10.00 | DI89: Indicadores Macroeconómicos de la Distribucion (Parte 1)
A90: 1. VALOR AGREGADO DE DISTRIBUCIÓN EN MT (FAVADMT) | B90: =+Historico!O90 ->  | F90: =IF(IF(ResumenIndicadores!$G$11="Ft-1",B90,C90)=0,"",IF(ResumenIndicadores!$G$11="Ft-1",B90,C90)) ->  | M90: 1. Media Tensión (MT) | Q90: AMT | R90: BMT | S90: CMT | T90: DMT | X90: 1. Media Tensión (MT) | AB90: AMT | AC90: BMT | AD90: CMT | AE90: DMT | AI90: 1. Media Tensión (MT) | AM90: AMT | AN90: BMT | AO90: CMT | AP90: DMT | AT90: 1. Media Tensión (MT) | AX90: AMT | AY90: BMT | AZ90: CMT | BA90: DMT | BD90: TABMT | CB90: 1. Media Tensión (MT) | CF90: AMT | CG90: BMT | CH90: CMT | CI90: DMT | CL90: TABMT | DJ90: Fecha | DK90: IPM | DL90: TC (S/./US$) | DM90: IPCu (ctv.US$/lb) | DN90: IPAl (US$/tn)
A91: a) Sector 1 | B91: =+Historico!O91 -> 0.9664 | C91: =ROUND(AB91*AM91+AC91*AN91+AD91*AO91+AE91*AP91,4) -> 0.9683 | D91: =+C91/B91-1 -> 0.001966059603 | F91: =IF(IF(ResumenIndicadores!$G$11="Ft-1",B91,C91)=0,"",IF(ResumenIndicadores!$G$11="Ft-1",B91,C91)) -> 0.9664 | M91: Sector 1 | Q91: 0.7697 | R91: 0.0675 | S91: 0.0216 | T91: 0.1412 | X91: Sector 1 | AB91: 0.7697 | AC91: 0.0675 | AD91: 0.0216 | AE91: 0.1412 | AI91: Sector 1 | AM91: =AX91/CF91 -> 1.044345414 | AN91: =AY91/CG91 -> 0.8239974539 | AO91: =AZ91/CH91 -> 0.8609475589 | AP91: =BA91/CI91 -> 0.639076822 | AT91: Sector 1 | AX91: =DK92 -> 207.345341 | AY91: =DL92*(1+BD91) -> 2.589 | AZ91: =DM92*DL92*(1+DL123) -> 930.2988975 | BA91: =DN92*DL92*(1+DL124) -> 5179.221361 | BD91: =BE91*BL91+BF91*BM91+BG91*BN91+BH91*BO91+BI91*BP91+BJ91*BQ91+BK91*BR91 -> 0 | BE91: =DK94 -> 0.1513 | BF91: =DK95 -> 0.0593 | BG91: =DK96 -> 0.0312 | BH91: =DK97 -> 0.7522 | BI91: =DK98 -> 0 | BJ91: =DK99 -> 0.006 | BK91: =DK100 -> 0 | BL91: =DL116 -> 0 | BM91: =DL117 -> 0 | BN91: =DL118 -> 0 | BO91: =DL119 -> 0 | BP91: =DL120 -> 0.06 | BQ91: =DL121 -> 0 | BR91: =DL122 -> 0 | CB91: Sector 1 | CF91: =DK91 -> 198.54096 | CG91: =DL91*(1+CL91) -> 3.142 | CH91: =DM91*DL91*(1+DK123) -> 1080.552338 | CI91: =DN91*DL91*(1+DK124) -> 8104.22344 | CL91: =CM91*CT91+CN91*CU91+CO91*CV91+CP91*CW91+CQ91*CX91+CR91*CY91+CS91*CZ91 -> 0 | CM91: =DK94 -> 0.1513 | CN91: =DK95 -> 0.0593 | CO91: =DK96 -> 0.0312 | CP91: =DK97 -> 0.7522 | CQ91: =DK98 -> 0 | CR91: =DK99 -> 0.006 | CS91: =DK100 -> 0 | CT91: =DK116 -> 0 | CU91: =DK117 -> 0 | CV91: =DK118 -> 0 | CW91: =DK119 -> 0 | CX91: =DK120 -> 0.09 | CY91: =DK121 -> 0 | CZ91: =DK122 -> 0 | DI91: Valores Base | DJ91: Resolucion Base | DK91: 198.54096 | DL91: 3.142 | DM91: 315.51 | DN91: 2579.32
A92: b) Sector 2 | B92: =+Historico!O92 -> 0.995 | C92: 0.9973 | D92: 0.002311557789 | F92: =IF(IF(ResumenIndicadores!$G$11="Ft-1",B92,C92)=0,"",IF(ResumenIndicadores!$G$11="Ft-1",B92,C92)) -> 0.995 | M92: Sector 2 | Q92: 0.8572 | R92: 0.0284 | S92: 0.025 | T92: 0.0894 | X92: Sector 2 | AB92: 0.8572 | AC92: 0.0284 | AD92: 0.025 | AE92: 0.0894 | AI92: Sector 2 | AM92: 1.044345414 | AN92: 0.8239974539 | AO92: =AZ92/CH92 -> 0.8609475589 | AP92: 0.639076822 | AT92: Sector 2 | AX92: =DK92 -> 207.345341 | AY92: =DL92*(1+BD92) -> 2.589 | AZ92: =DM92*DL92*(1+DL123) -> 930.2988975 | BA92: =DN92*DL92*(1+DL124) -> 5179.221361 | BD92: 0 | BE92: =DL94 -> 0.3639 | BF92: =DL95 -> 0 | BG92: =DL96 -> 0.0071 | BH92: =DL97 -> 0.4806 | BI92: =DL98 -> 0 | BJ92: =DL99 -> 0.1484 | BK92: =DL100 -> 0 | BL92: =DL116 -> 0 | BM92: =DL117 -> 0 | BN92: =DL118 -> 0 | BO92: =DL119 -> 0 | BP92: =DL120 -> 0.06 | BQ92: =DL121 -> 0 | BR92: =DL122 -> 0 | CB92: Sector 2 | CF92: =DK91 -> 198.54096 | CG92: =DL91*(1+CL92) -> 3.142 | CH92: =DM91*DL91*(1+DK123) -> 1080.552338 | CI92: =DN91*DL91*(1+DK124) -> 8104.22344 | CL92: 0 | CM92: =DL94 -> 0.3639 | CN92: =DL95 -> 0 | CO92: =DL96 -> 0.0071 | CP92: =DL97 -> 0.4806 | CQ92: =DL98 -> 0 | CR92: =DL99 -> 0.1484 | CS92: =DL100 -> 0 | CT92: =DK116 -> 0 | CU92: =DK117 -> 0 | CV92: =DK118 -> 0 | CW92: =DK119 -> 0 | CX92: =DK120 -> 0.09 | CY92: =DK121 -> 0 | CZ92: =DK122 -> 0 | DI92: Valores Actuales | DJ92: Indicador actualizado | DK92: =+'ALUMINIO-COBRE-TC-IPM'!G8 -> 207.345341 | DL92: =+'ALUMINIO-COBRE-TC-IPM'!F8 -> 2.589 | DM92: =+'ALUMINIO-COBRE-TC-IPM'!E8 -> 359.3275 | DN92: =+'ALUMINIO-COBRE-TC-IPM'!D8 -> 2000.47175
A93: c) Sector 3 | B93: =+Historico!O93 -> 0.9952 | C93: 0.9969 | D93: 0.001708199357 | F93: =IF(IF(ResumenIndicadores!$G$11="Ft-1",B93,C93)=0,"",IF(ResumenIndicadores!$G$11="Ft-1",B93,C93)) -> 0.9952 | M93: Sector 3 | Q93: 0.7534 | R93: 0.0253 | S93: 0.2153 | T93: 0.006 | X93: Sector 3 | AB93: 0.7534 | AC93: 0.0253 | AD93: 0.2153 | AE93: 0.006 | AI93: Sector 3 | AM93: 1.044345414 | AN93: 0.8239974539 | AO93: 0.8609475589 | AP93: 0.639076822 | AT93: Sector 3 | AX93: =DK92 -> 207.345341 | AY93: =DL92*(1+BD93) -> 2.589 | AZ93: =DM92*DL92*(1+DL123) -> 930.2988975 | BA93: =DN92*DL92*(1+DL124) -> 5179.221361 | BD93: 0 | BE93: =DM94 -> 0.3595 | BF93: =DM95 -> 0 | BG93: =DM96 -> 0.0689 | BH93: =DM97 -> 0.407 | BI93: =DM98 -> 0 | BJ93: =DM99 -> 0.1646 | BK93: =DM100 -> 0 | BL93: =DL116 -> 0 | BM93: =DL117 -> 0 | BN93: =DL118 -> 0 | BO93: =DL119 -> 0 | BP93: =DL120 -> 0.06 | BQ93: =DL121 -> 0 | BR93: =DL122 -> 0 | CB93: Sector 3 | CF93: =DK91 -> 198.54096 | CG93: =DL91*(1+CL93) -> 3.142 | CH93: =DM91*DL91*(1+DK123) -> 1080.552338 | CI93: =DN91*DL91*(1+DK124) -> 8104.22344 | CL93: 0 | CM93: =DM94 -> 0.3595 | CN93: =DM95 -> 0 | CO93: =DM96 -> 0.0689 | CP93: =DM97 -> 0.407 | CQ93: =DM98 -> 0 | CR93: =DM99 -> 0.1646 | CS93: =DM100 -> 0 | CT93: =DK116 -> 0 | CU93: =DK117 -> 0 | CV93: =DK118 -> 0 | CW93: =DK119 -> 0 | CX93: =DK120 -> 0.09 | CY93: =DK121 -> 0 | CZ93: =DK122 -> 0 | DJ93: PARTIDA | DK93: Sector 1 | DL93: Sector 2 | DM93: Sector 3 | DN93: Sector 4 | DO93: Sector 5 | DP93: Sector Especial | DQ93: SER 100% Estado Prepago | DR93: SER 100% Estado Convencional | DS93: SER 100% Empresa Prepago | DT93: SER 100% Empresa Convencional
A94: d) Sector 4 | B94: =+Historico!O94 -> 0.9917 | C94: 0.994 | D94: 0.002319249773 | F94: =IF(IF(ResumenIndicadores!$G$11="Ft-1",B94,C94)=0,"",IF(ResumenIndicadores!$G$11="Ft-1",B94,C94)) -> 0.9917 | M94: Sector 4 | Q94: 0.8365 | R94: 0.064 | S94: 0.0183 | T94: 0.0812 | X94: Sector 4 | AB94: 0.8365 | AC94: 0.064 | AD94: 0.0183 | AE94: 0.0812 | AI94: Sector 4 | AM94: 1.044345414 | AN94: 0.8239974539 | AO94: 0.8609475589 | AP94: 0.639076822 | AT94: Sector 4 | AX94: =DK92 -> 207.345341 | AY94: =DL92*(1+BD94) -> 2.589 | AZ94: =DM92*DL92*(1+DL123) -> 930.2988975 | BA94: =DN92*DL92*(1+DL124) -> 5179.221361 | BD94: 0 | BE94: =DN94 -> 0.0113 | BF94: =DN95 -> 0 | BG94: =DN96 -> 0.0052 | BH94: =DN97 -> 0.559 | BI94: =DN98 -> 0 | BJ94: =DN99 -> 0.4245 | BK94: =DN100 -> 0 | BL94: =DL116 -> 0 | BM94: =DL117 -> 0 | BN94: =DL118 -> 0 | BO94: =DL119 -> 0 | BP94: =DL120 -> 0.06 | BQ94: =DL121 -> 0 | BR94: =DL122 -> 0 | CB94: Sector 4 | CF94: =DK91 -> 198.54096 | CG94: =DL91*(1+CL94) -> 3.142 | CH94: =DM91*DL91*(1+DK123) -> 1080.552338 | CI94: =DN91*DL91*(1+DK124) -> 8104.22344 | CL94: 0 | CM94: =DN94 -> 0.0113 | CN94: =DN95 -> 0 | CO94: =DN96 -> 0.0052 | CP94: =DN97 -> 0.559 | CQ94: =DN98 -> 0 | CR94: =DN99 -> 0.4245 | CS94: =DN100 -> 0 | CT94: =DK116 -> 0 | CU94: =DK117 -> 0 | CV94: =DK118 -> 0 | CW94: =DK119 -> 0 | CX94: =DK120 -> 0.09 | CY94: =DK121 -> 0 | CZ94: =DK122 -> 0 | DI94: BMT | DJ94: 8471.30.00.00 | DK94: 0.1513 | DL94: 0.3639 | DM94: 0.3595 | DN94: 0.0113 | DO94: 0.0489 | DP94: 0.3947 | DQ94: 0.1147 | DR94: 0.1147 | DS94: 0.1147 | DT94: 0.1147
A95: e) Sector 5 | B95: =+Historico!O95 -> 0.9968 | C95: 0.9991 | D95: 0.002307383628 | F95: =IF(IF(ResumenIndicadores!$G$11="Ft-1",B95,C95)=0,"",IF(ResumenIndicadores!$G$11="Ft-1",B95,C95)) -> 0.9968 | M95: Sector 5 | Q95: 0.8609 | R95: 0.0363 | S95: 0.0198 | T95: 0.083 | X95: Sector 5 | AB95: 0.8609 | AC95: 0.0363 | AD95: 0.0198 | AE95: 0.083 | AI95: Sector 5 | AM95: 1.044345414 | AN95: 0.8239974539 | AO95: 0.8609475589 | AP95: 0.639076822 | AT95: Sector 5 | AX95: =DK92 -> 207.345341 | AY95: =DL92*(1+BD95) -> 2.589 | AZ95: =DM92*DL92*(1+DL123) -> 930.2988975 | BA95: =DN92*DL92*(1+DL124) -> 5179.221361 | BD95: 0 | BE95: =DO94 -> 0.0489 | BF95: =DO95 -> 0 | BG95: =DO96 -> 0.0031 | BH95: =DO97 -> 0.2487 | BI95: =DO98 -> 0 | BJ95: =DO99 -> 0.6993 | BK95: =DO100 -> 0 | BL95: =DL116 -> 0 | BM95: =DL117 -> 0 | BN95: =DL118 -> 0 | BO95: =DL119 -> 0 | BP95: =DL120 -> 0.06 | BQ95: =DL121 -> 0 | BR95: =DL122 -> 0 | CB95: Sector 5 | CF95: =DK91 -> 198.54096 | CG95: =DL91*(1+CL95) -> 3.142 | CH95: =DM91*DL91*(1+DK123) -> 1080.552338 | CI95: =DN91*DL91*(1+DK124) -> 8104.22344 | CL95: 0 | CM95: =DO94 -> 0.0489 | CN95: =DO95 -> 0 | CO95: =DO96 -> 0.0031 | CP95: =DO97 -> 0.2487 | CQ95: =DO98 -> 0 | CR95: =DO99 -> 0.6993 | CS95: =DO100 -> 0 | CT95: =DK116 -> 0 | CU95: =DK117 -> 0 | CV95: =DK118 -> 0 | CW95: =DK119 -> 0 | CX95: =DK120 -> 0.09 | CY95: =DK121 -> 0 | CZ95: =DK122 -> 0 | DJ95: 8504.21.90.00 | DK95: 0.0593 | DL95: 0 | DM95: 0 | DN95: 0 | DO95: 0 | DP95: 0 | DQ95: 0 | DR95: 0 | DS95: 0 | DT95: 0
A96: f) Sector Especial | B96: =+Historico!O96 -> 1.0046 | C96: 1.007 | D96: 0.002389010551 | F96: =IF(IF(ResumenIndicadores!$G$11="Ft-1",B96,C96)=0,"",IF(ResumenIndicadores!$G$11="Ft-1",B96,C96)) -> 1.0046 | M96: Sector Especial | Q96: 0.8802 | R96: 0.0374 | S96: 0.0193 | T96: 0.0631 | X96: Sector Especial | AB96: 0.8802 | AC96: 0.0374 | AD96: 0.0193 | AE96: 0.0631 | AI96: Sector Especial | AM96: 1.044345414 | AN96: 0.8239974539 | AO96: 0.8609475589 | AP96: 0.639076822 | AT96: Sector Especial | AX96: =DK92 -> 207.345341 | AY96: =DL92*(1+BD96) -> 2.589 | AZ96: =DM92*DL92*(1+DL123) -> 930.2988975 | BA96: =DN92*DL92*(1+DL124) -> 5179.221361 | BD96: 0 | BE96: =DP94 -> 0.3947 | BF96: =DP95 -> 0 | BG96: =DP96 -> 0.1001 | BH96: =DP97 -> 0.1715 | BI96: =DP98 -> 0 | BJ96: =DP99 -> 0.3337 | BK96: =DP100 -> 0 | BL96: =DL116 -> 0 | BM96: =DL117 -> 0 | BN96: =DL118 -> 0 | BO96: =DL119 -> 0 | BP96: =DL120 -> 0.06 | BQ96: =DL121 -> 0 | BR96: =DL122 -> 0 | CB96: Sector Especial | CF96: =DK91 -> 198.54096 | CG96: =DL91*(1+CL96) -> 3.142 | CH96: =DM91*DL91*(1+DK123) -> 1080.552338 | CI96: =DN91*DL91*(1+DK124) -> 8104.22344 | CL96: 0 | CM96: =DP94 -> 0.3947 | CN96: =DP95 -> 0 | CO96: =DP96 -> 0.1001 | CP96: =DP97 -> 0.1715 | CQ96: =DP98 -> 0 | CR96: =DP99 -> 0.3337 | CS96: =DP100 -> 0 | CT96: =DK116 -> 0 | CU96: =DK117 -> 0 | CV96: =DK118 -> 0 | CW96: =DK119 -> 0 | CX96: =DK120 -> 0.09 | CY96: =DK121 -> 0 | CZ96: =DK122 -> 0 | DJ96: 8517.11.00.00 | DK96: 0.0312 | DL96: 0.0071 | DM96: 0.0689 | DN96: 0.0052 | DO96: 0.0031 | DP96: 0.1001 | DQ96: 0.0166 | DR96: 0.0166 | DS96: 0.0166 | DT96: 0.0166
A97: g) VAD SER 100 Estado Prepago | B97: =+Historico!O97 -> 0.9811 | C97: 0.9832 | D97: 0.002140454592 | F97: =IF(IF(ResumenIndicadores!$G$11="Ft-1",B97,C97)=0,"",IF(ResumenIndicadores!$G$11="Ft-1",B97,C97)) -> 0.9811 | M97: 100% Estado | N97: Prepago | Q97: 0.8242 | R97: 0.0454 | S97: 0.0078 | T97: 0.1226 | X97: 100% Estado | Y97: Prepago | AB97: 0.8242 | AC97: 0.0454 | AD97: 0.0078 | AE97: 0.1226 | AI97: 100% Estado | AJ97: Prepago | AM97: 1.044345414 | AN97: 0.8239974539 | AO97: 0.8609475589 | AP97: 0.639076822 | AT97: 100% Estado | AU97: Prepago | AX97: =DK92 -> 207.345341 | AY97: =DL92*(1+BD97) -> 2.589 | AZ97: =DM92*DL92*(1+DL123) -> 930.2988975 | BA97: =DN92*DL92*(1+DL124) -> 5179.221361 | BD97: 0 | BE97: =DQ94 -> 0.1147 | BF97: =DQ95 -> 0 | BG97: =DQ96 -> 0.0166 | BH97: =DQ97 -> 0.3192 | BI97: =DQ98 -> 0 | BJ97: =DQ99 -> 0.5495 | BK97: =DQ100 -> 0 | BL97: =DL116 -> 0 | BM97: =DL117 -> 0 | BN97: =DL118 -> 0 | BO97: =DL119 -> 0 | BP97: =DL120 -> 0.06 | BQ97: =DL121 -> 0 | BR97: =DL122 -> 0 | CB97: 100% Estado | CC97: Prepago | CF97: =DK91 -> 198.54096 | CG97: =DL91*(1+CL97) -> 3.142 | CH97: =DM91*DL91*(1+DK123) -> 1080.552338 | CI97: =DN91*DL91*(1+DK124) -> 8104.22344 | CL97: 0 | CM97: =DQ94 -> 0.1147 | CN97: =DQ95 -> 0 | CO97: =DQ96 -> 0.0166 | CP97: =DQ97 -> 0.3192 | CQ97: =DQ98 -> 0 | CR97: =DQ99 -> 0.5495 | CS97: =DQ100 -> 0 | CT97: =DK116 -> 0 | CU97: =DK117 -> 0 | CV97: =DK118 -> 0 | CW97: =DK119 -> 0 | CX97: =DK120 -> 0.09 | CY97: =DK121 -> 0 | CZ97: =DK122 -> 0 | DJ97: 8535.30.00.00 | DK97: 0.7522 | DL97: 0.4806 | DM97: 0.407 | DN97: 0.559 | DO97: 0.2487 | DP97: 0.1715 | DQ97: 0.3192 | DR97: 0.3192 | DS97: 0.3192 | DT97: 0.3192
A98: h) VAD SER 100 Estado Convencional | B98: =+Historico!O98 -> 0.9822 | C98: 0.9843 | D98: 0.002138057422 | F98: =IF(IF(ResumenIndicadores!$G$11="Ft-1",B98,C98)=0,"",IF(ResumenIndicadores!$G$11="Ft-1",B98,C98)) -> 0.9822 | N98: Convencional | Q98: 0.8272 | R98: 0.0446 | S98: 0.0077 | T98: 0.1205 | Y98: Convencional | AB98: 0.8272 | AC98: 0.0446 | AD98: 0.0077 | AE98: 0.1205 | AJ98: Convencional | AM98: 1.044345414 | AN98: 0.8239974539 | AO98: 0.8609475589 | AP98: 0.639076822 | AU98: Convencional | AX98: =DK92 -> 207.345341 | AY98: =DL92*(1+BD98) -> 2.589 | AZ98: =DM92*DL92*(1+DL123) -> 930.2988975 | BA98: =DN92*DL92*(1+DL124) -> 5179.221361 | BD98: 0 | BE98: =DR94 -> 0.1147 | BF98: =DR95 -> 0 | BG98: =DR96 -> 0.0166 | BH98: =DR97 -> 0.3192 | BI98: =DR98 -> 0 | BJ98: =DR99 -> 0.5495 | BK98: =DR100 -> 0 | BL98: =DL116 -> 0 | BM98: =DL117 -> 0 | BN98: =DL118 -> 0 | BO98: =DL119 -> 0 | BP98: =DL120 -> 0.06 | BQ98: =DL121 -> 0 | BR98: =DL122 -> 0 | CC98: Convencional | CF98: =DK91 -> 198.54096 | CG98: =DL91*(1+CL98) -> 3.142 | CH98: =DM91*DL91*(1+DK123) -> 1080.552338 | CI98: =DN91*DL91*(1+DK124) -> 8104.22344 | CL98: 0 | CM98: =DR94 -> 0.1147 | CN98: =DR95 -> 0 | CO98: =DR96 -> 0.0166 | CP98: =DR97 -> 0.3192 | CQ98: =DR98 -> 0 | CR98: =DR99 -> 0.5495 | CS98: =DR100 -> 0 | CT98: =DK116 -> 0 | CU98: =DK117 -> 0 | CV98: =DK118 -> 0 | CW98: =DK119 -> 0 | CX98: =DK120 -> 0.09 | CY98: =DK121 -> 0 | CZ98: =DK122 -> 0 | DJ98: 8539.32.00.00 | DK98: 0 | DL98: 0 | DM98: 0 | DN98: 0 | DO98: 0 | DP98: 0 | DQ98: 0 | DR98: 0 | DS98: 0 | DT98: 0
A99: i) VAD SER 100 Empresa Prepago | B99: =+Historico!O99 -> 0.9811 | C99: 0.9832 | D99: 0.002140454592 | F99: =IF(IF(ResumenIndicadores!$G$11="Ft-1",B99,C99)=0,"",IF(ResumenIndicadores!$G$11="Ft-1",B99,C99)) -> 0.9811 | M99: 100% Empresa | N99: Prepago | Q99: 0.8242 | R99: 0.0454 | S99: 0.0078 | T99: 0.1226 | X99: 100% Empresa | Y99: Prepago | AB99: 0.8242 | AC99: 0.0454 | AD99: 0.0078 | AE99: 0.1226 | AI99: 100% Empresa | AJ99: Prepago | AM99: 1.044345414 | AN99: 0.8239974539 | AO99: 0.8609475589 | AP99: 0.639076822 | AT99: 100% Empresa | AU99: Prepago | AX99: =DK92 -> 207.345341 | AY99: =DL92*(1+BD99) -> 2.589 | AZ99: =DM92*DL92*(1+DL123) -> 930.2988975 | BA99: =DN92*DL92*(1+DL124) -> 5179.221361 | BD99: 0 | BE99: =DS94 -> 0.1147 | BF99: =DS95 -> 0 | BG99: =DS96 -> 0.0166 | BH99: =DS97 -> 0.3192 | BI99: =DS98 -> 0 | BJ99: =DS99 -> 0.5495 | BK99: =DS100 -> 0 | BL99: =DL116 -> 0 | BM99: =DL117 -> 0 | BN99: =DL118 -> 0 | BO99: =DL119 -> 0 | BP99: =DL120 -> 0.06 | BQ99: =DL121 -> 0 | BR99: =DL122 -> 0 | CB99: 100% Empresa | CC99: Prepago | CF99: =DK91 -> 198.54096 | CG99: =DL91*(1+CL99) -> 3.142 | CH99: =DM91*DL91*(1+DK123) -> 1080.552338 | CI99: =DN91*DL91*(1+DK124) -> 8104.22344 | CL99: 0 | CM99: =DS94 -> 0.1147 | CN99: =DS95 -> 0 | CO99: =DS96 -> 0.0166 | CP99: =DS97 -> 0.3192 | CQ99: =DS98 -> 0 | CR99: =DS99 -> 0.5495 | CS99: =DS100 -> 0 | CT99: =DK116 -> 0 | CU99: =DK117 -> 0 | CV99: =DK118 -> 0 | CW99: =DK119 -> 0 | CX99: =DK120 -> 0.09 | CY99: =DK121 -> 0 | CZ99: =DK122 -> 0 | DJ99: 8704.21.10.10 | DK99: 0.006 | DL99: 0.1484 | DM99: 0.1646 | DN99: 0.4245 | DO99: 0.6993 | DP99: 0.3337 | DQ99: 0.5495 | DR99: 0.5495 | DS99: 0.5495 | DT99: 0.5495
A100: j) VAD SER 100 Empresa Convencional | B100: =+Historico!O100 -> 0.9822 | C100: 0.9843 | D100: 0.002138057422 | F100: =IF(IF(ResumenIndicadores!$G$11="Ft-1",B100,C100)=0,"",IF(ResumenIndicadores!$G$11="Ft-1",B100,C100)) -> 0.9822 | N100: Convencional | Q100: 0.8272 | R100: 0.0446 | S100: 0.0077 | T100: 0.1205 | Y100: Convencional | AB100: 0.8272 | AC100: 0.0446 | AD100: 0.0077 | AE100: 0.1205 | AJ100: Convencional | AM100: 1.044345414 | AN100: 0.8239974539 | AO100: 0.8609475589 | AP100: 0.639076822 | AU100: Convencional | AX100: =DK92 -> 207.345341 | AY100: =DL92*(1+BD100) -> 2.589 | AZ100: =DM92*DL92*(1+DL123) -> 930.2988975 | BA100: =DN92*DL92*(1+DL124) -> 5179.221361 | BD100: 0 | BE100: =DT94 -> 0.1147 | BF100: =DT95 -> 0 | BG100: =DT96 -> 0.0166 | BH100: =DT97 -> 0.3192 | BI100: =DT98 -> 0 | BJ100: =DT99 -> 0.5495 | BK100: =DT100 -> 0 | BL100: =DL116 -> 0 | BM100: =DL117 -> 0 | BN100: =DL118 -> 0 | BO100: =DL119 -> 0 | BP100: =DL120 -> 0.06 | BQ100: =DL121 -> 0 | BR100: =DL122 -> 0 | CC100: Convencional | CF100: =DK91 -> 198.54096 | CG100: =DL91*(1+CL100) -> 3.142 | CH100: =DM91*DL91*(1+DK123) -> 1080.552338 | CI100: =DN91*DL91*(1+DK124) -> 8104.22344 | CL100: 0 | CM100: =DT94 -> 0.1147 | CN100: =DT95 -> 0 | CO100: =DT96 -> 0.0166 | CP100: =DT97 -> 0.3192 | CQ100: =DT98 -> 0 | CR100: =DT99 -> 0.5495 | CS100: =DT100 -> 0 | CT100: =DK116 -> 0 | CU100: =DK117 -> 0 | CV100: =DK118 -> 0 | CW100: =DK119 -> 0 | CX100: =DK120 -> 0.09 | CY100: =DK121 -> 0 | CZ100: =DK122 -> 0 | DJ100: 9028.30.10.00 | DK100: 0 | DL100: 0 | DM100: 0 | DN100: 0 | DO100: 0 | DP100: 0 | DQ100: 0 | DR100: 0 | DS100: 0 | DT100: 0
A101: 2. VALOR AGREGADO DE DISTRIBUCIÓN EN BT (FAVADBT) | B101: =+Historico!O101 ->  | F101: =IF(IF(ResumenIndicadores!$G$11="Ft-1",B101,C101)=0,"",IF(ResumenIndicadores!$G$11="Ft-1",B101,C101)) ->  | M101: 2. Baja Tensión (BT) | Q101: ABT | R101: BBT | S101: CBT | T101: DBT | X101: 2. Baja Tensión (BT) | AB101: ABT | AC101: BBT | AD101: CBT | AE101: DBT | AI101: 2. Baja Tensión (BT) | AM101: ABT | AN101: BBT | AO101: CBT | AP101: DBT | AT101: 2. Baja Tensión (BT) | AX101: ABT | AY101: BBT | AZ101: CBT | BA101: DBT | BD101: TABBT | CB101: 2. Baja Tensión (BT) | CF101: ABT | CG101: BBT | CH101: CBT | CI101: DBT | CL101: TABBT | DI101: BBT | DJ101: 8471.30.00.00 | DK101: 0.1218 | DL101: 0.1627 | DM101: 0.105 | DN101: 0.0061 | DO101: 0.0153 | DP101: 0.0757 | DQ101: 0.0111 | DR101: 0.0192 | DS101: 0.0111 | DT101: 0.0192
A102: a) Sector 1 | B102: =+Historico!O102 -> 0.9736 | C102: =ROUND(AB102*AM102+AC102*AN102+AD102*AO102+AE102*AP102,4) -> 0.9756 | D102: =+C102/B102-1 -> 0.002054231717 | F102: =IF(IF(ResumenIndicadores!$G$11="Ft-1",B102,C102)=0,"",IF(ResumenIndicadores!$G$11="Ft-1",B102,C102)) -> 0.9736 | M102: Sector 1 | Q102: 0.7878 | R102: 0.085 | S102: 0.0087 | T102: 0.1185 | X102: Sector 1 | AB102: 0.7878 | AC102: 0.085 | AD102: 0.0087 | AE102: 0.1185 | AI102: Sector 1 | AM102: =AX102/CF102 -> 1.044345414 | AN102: =AY102/CG102 -> 0.8197505252 | AO102: =AZ102/CH102 -> 0.8609475589 | AP102: =BA102/CI102 -> 0.639076822 | AT102: Sector 1 | AX102: =DK92 -> 207.345341 | AY102: =DL92*(1+BD102) -> 2.61610683 | AZ102: =DM92*DL92*(1+DL123) -> 930.2988975 | BA102: =DN92*DL92*(1+DL124) -> 5179.221361 | BD102: =BE102*BL102+BF102*BM102+BG102*BN102+BH102*BO102+BI102*BP102+BJ102*BQ102+BK102*BR102 -> 0.01047 | BE102: =DK101 -> 0.1218 | BF102: =DK102 -> 0.5893 | BG102: =DK103 -> 0.0254 | BH102: =DK104 -> 0.0843 | BI102: =DK105 -> 0.1745 | BJ102: =DK106 -> 0.0047 | BK102: =DK107 -> 0 | BL102: =DL116 -> 0 | BM102: =DL117 -> 0 | BN102: =DL118 -> 0 | BO102: =DL119 -> 0 | BP102: =DL120 -> 0.06 | BQ102: =DL121 -> 0 | BR102: =DL122 -> 0 | CB102: Sector 1 | CF102: =DK91 -> 198.54096 | CG102: =DL91*(1+CL102) -> 3.19134511 | CH102: =DM91*DL91*(1+DK123) -> 1080.552338 | CI102: =DN91*DL91*(1+DK124) -> 8104.22344 | CL102: =CM102*CT102+CN102*CU102+CO102*CV102+CP102*CW102+CQ102*CX102+CR102*CY102+CS102*CZ102 -> 0.015705 | CM102: =DK101 -> 0.1218 | CN102: =DK102 -> 0.5893 | CO102: =DK103 -> 0.0254 | CP102: =DK104 -> 0.0843 | CQ102: =DK105 -> 0.1745 | CR102: =DK106 -> 0.0047 | CS102: =DK107 -> 0 | CT102: =DK116 -> 0 | CU102: =DK117 -> 0 | CV102: =DK118 -> 0 | CW102: =DK119 -> 0 | CX102: =DK120 -> 0.09 | CY102: =DK121 -> 0 | CZ102: =DK122 -> 0 | DJ102: 8504.21.90.00 | DK102: 0.5893 | DL102: 0.4263 | DM102: 0.4315 | DN102: 0.3604 | DO102: 0.4433 | DP102: 0.8021 | DQ102: 0.2442 | DR102: 0.4219 | DS102: 0.2442 | DT102: 0.4219
A103: b) Sector 2 | B103: =+Historico!O103 -> 0.9878 | C103: 0.99 | D103: 0.002227171492 | F103: =IF(IF(ResumenIndicadores!$G$11="Ft-1",B103,C103)=0,"",IF(ResumenIndicadores!$G$11="Ft-1",B103,C103)) -> 0.9878 | M103: Sector 2 | Q103: 0.8191 | R103: 0.0842 | S103: 0.0182 | T103: 0.0785 | X103: Sector 2 | AB103: 0.8191 | AC103: 0.0842 | AD103: 0.0182 | AE103: 0.0785 | AI103: Sector 2 | AM103: 1.044345414 | AN103: 0.8168209822 | AO103: 0.8609475589 | AP103: 0.639076822 | AT103: Sector 2 | AX103: =DK92 -> 207.345341 | AY103: =DL92*(1+BD103) -> 2.635306854 | AZ103: =DM92*DL92*(1+DL123) -> 930.2988975 | BA103: =DN92*DL92*(1+DL124) -> 5179.221361 | BD103: 0.017886 | BE103: =DL101 -> 0.1627 | BF103: =DL102 -> 0.4263 | BG103: =DL103 -> 0.0036 | BH103: =DL104 -> 0.0428 | BI103: =DL105 -> 0.2981 | BJ103: =DL106 -> 0.0665 | BK103: =DL107 -> 0 | BL103: =DL116 -> 0 | BM103: =DL117 -> 0 | BN103: =DL118 -> 0 | BO103: =DL119 -> 0 | BP103: =DL120 -> 0.06 | BQ103: =DL121 -> 0 | BR103: =DL122 -> 0 | CB103: Sector 2 | CF103: =DK91 -> 198.54096 | CG103: =DL91*(1+CL103) -> 3.226296718 | CH103: =DM91*DL91*(1+DK123) -> 1080.552338 | CI103: =DN91*DL91*(1+DK124) -> 8104.22344 | CL103: 0.026829 | CM103: =DL101 -> 0.1627 | CN103: =DL102 -> 0.4263 | CO103: =DL103 -> 0.0036 | CP103: =DL104 -> 0.0428 | CQ103: =DL105 -> 0.2981 | CR103: =DL106 -> 0.0665 | CS103: =DL107 -> 0 | CT103: =DK116 -> 0 | CU103: =DK117 -> 0 | CV103: =DK118 -> 0 | CW103: =DK119 -> 0 | CX103: =DK120 -> 0.09 | CY103: =DK121 -> 0 | CZ103: =DK122 -> 0 | DJ103: 8517.11.00.00 | DK103: 0.0254 | DL103: 0.0036 | DM103: 0.0201 | DN103: 0.0028 | DO103: 0.001 | DP103: 0.0192 | DQ103: 0.0016 | DR103: 0.0028 | DS103: 0.0016 | DT103: 0.0028
A104: c) Sector 3 | B104: =+Historico!O104 -> 0.9758 | C104: 0.9778 | D104: 0.002049600328 | F104: =IF(IF(ResumenIndicadores!$G$11="Ft-1",B104,C104)=0,"",IF(ResumenIndicadores!$G$11="Ft-1",B104,C104)) -> 0.9758 | M104: Sector 3 | Q104: 0.7891 | R104: 0.0829 | S104: 0.0194 | T104: 0.1086 | X104: Sector 3 | AB104: 0.7891 | AC104: 0.0829 | AD104: 0.0194 | AE104: 0.1086 | AI104: Sector 3 | AM104: 1.044345414 | AN104: 0.815670115 | AO104: 0.8609475589 | AP104: 0.639076822 | AT104: Sector 3 | AX104: =DK92 -> 207.345341 | AY104: =DL92*(1+BD104) -> 2.642965116 | AZ104: =DM92*DL92*(1+DL123) -> 930.2988975 | BA104: =DN92*DL92*(1+DL124) -> 5179.221361 | BD104: 0.020844 | BE104: =DM101 -> 0.105 | BF104: =DM102 -> 0.4315 | BG104: =DM103 -> 0.0201 | BH104: =DM104 -> 0.0479 | BI104: =DM105 -> 0.3474 | BJ104: =DM106 -> 0.0481 | BK104: =DM107 -> 0 | BL104: =DL116 -> 0 | BM104: =DL117 -> 0 | BN104: =DL118 -> 0 | BO104: =DL119 -> 0 | BP104: =DL120 -> 0.06 | BQ104: =DL121 -> 0 | BR104: =DL122 -> 0 | CB104: Sector 3 | CF104: =DK91 -> 198.54096 | CG104: =DL91*(1+CL104) -> 3.240237772 | CH104: =DM91*DL91*(1+DK123) -> 1080.552338 | CI104: =DN91*DL91*(1+DK124) -> 8104.22344 | CL104: 0.031266 | CM104: =DM101 -> 0.105 | CN104: =DM102 -> 0.4315 | CO104: =DM103 -> 0.0201 | CP104: =DM104 -> 0.0479 | CQ104: =DM105 -> 0.3474 | CR104: =DM106 -> 0.0481 | CS104: =DM107 -> 0 | CT104: =DK116 -> 0 | CU104: =DK117 -> 0 | CV104: =DK118 -> 0 | CW104: =DK119 -> 0 | CX104: =DK120 -> 0.09 | CY104: =DK121 -> 0 | CZ104: =DK122 -> 0 | DJ104: 8535.30.00.00 | DK104: 0.0843 | DL104: 0.0428 | DM104: 0.0479 | DN104: 0.0716 | DO104: 0.0512 | DP104: 0.0249 | DQ104: 0.0211 | DR104: 0.0364 | DS104: 0.0211 | DT104: 0.0364
A105: d) Sector 4 | B105: =+Historico!O105 -> 0.9716 | C105: 0.9736 | D105: 0.002058460272 | F105: =IF(IF(ResumenIndicadores!$G$11="Ft-1",B105,C105)=0,"",IF(ResumenIndicadores!$G$11="Ft-1",B105,C105)) -> 0.9716 | M105: Sector 4 | Q105: 0.7661 | R105: 0.1235 | S105: 0.0105 | T105: 0.0999 | X105: Sector 4 | AB105: 0.7661 | AC105: 0.1235 | AD105: 0.0105 | AE105: 0.0999 | AI105: Sector 4 | AM105: 1.044345414 | AN105: 0.8150764021 | AO105: 0.8609475589 | AP105: 0.639076822 | AT105: Sector 4 | AX105: =DK92 -> 207.345341 | AY105: =DL92*(1+BD105) -> 2.64694182 | AZ105: =DM92*DL92*(1+DL123) -> 930.2988975 | BA105: =DN92*DL92*(1+DL124) -> 5179.221361 | BD105: 0.02238 | BE105: =DN101 -> 0.0061 | BF105: =DN102 -> 0.3604 | BG105: =DN103 -> 0.0028 | BH105: =DN104 -> 0.0716 | BI105: =DN105 -> 0.373 | BJ105: =DN106 -> 0.1861 | BK105: =DN107 -> 0 | BL105: =DL116 -> 0 | BM105: =DL117 -> 0 | BN105: =DL118 -> 0 | BO105: =DL119 -> 0 | BP105: =DL120 -> 0.06 | BQ105: =DL121 -> 0 | BR105: =DL122 -> 0 | CB105: Sector 4 | CF105: =DK91 -> 198.54096 | CG105: =DL91*(1+CL105) -> 3.24747694 | CH105: =DM91*DL91*(1+DK123) -> 1080.552338 | CI105: =DN91*DL91*(1+DK124) -> 8104.22344 | CL105: 0.03357 | CM105: =DN101 -> 0.0061 | CN105: =DN102 -> 0.3604 | CO105: =DN103 -> 0.0028 | CP105: =DN104 -> 0.0716 | CQ105: =DN105 -> 0.373 | CR105: =DN106 -> 0.1861 | CS105: =DN107 -> 0 | CT105: =DK116 -> 0 | CU105: =DK117 -> 0 | CV105: =DK118 -> 0 | CW105: =DK119 -> 0 | CX105: =DK120 -> 0.09 | CY105: =DK121 -> 0 | CZ105: =DK122 -> 0 | DJ105: 8539.32.00.00 | DK105: 0.1745 | DL105: 0.2981 | DM105: 0.3474 | DN105: 0.373 | DO105: 0.3215 | DP105: 0.0141 | DQ105: 0.0718 | DR105: 0.124 | DS105: 0.0718 | DT105: 0.124
A106: e) Sector 5 | B106: =+Historico!O106 -> 0.9679 | C106: 0.9699 | D106: 0.002066329166 | F106: =IF(IF(ResumenIndicadores!$G$11="Ft-1",B106,C106)=0,"",IF(ResumenIndicadores!$G$11="Ft-1",B106,C106)) -> 0.9679 | M106: Sector 5 | Q106: 0.7565 | R106: 0.1203 | S106: 0.0131 | T106: 0.1101 | X106: Sector 5 | AB106: 0.7565 | AC106: 0.1203 | AD106: 0.0131 | AE106: 0.1101 | AI106: Sector 5 | AM106: 1.044345414 | AN106: 0.8162734913 | AO106: 0.8609475589 | AP106: 0.639076822 | AT106: Sector 5 | AX106: =DK92 -> 207.345341 | AY106: =DL92*(1+BD106) -> 2.63894181 | AZ106: =DM92*DL92*(1+DL123) -> 930.2988975 | BA106: =DN92*DL92*(1+DL124) -> 5179.221361 | BD106: 0.01929 | BE106: =DO101 -> 0.0153 | BF106: =DO102 -> 0.4433 | BG106: =DO103 -> 0.001 | BH106: =DO104 -> 0.0512 | BI106: =DO105 -> 0.3215 | BJ106: =DO106 -> 0.1677 | BK106: =DO107 -> 0 | BL106: =DL116 -> 0 | BM106: =DL117 -> 0 | BN106: =DL118 -> 0 | BO106: =DL119 -> 0 | BP106: =DL120 -> 0.06 | BQ106: =DL121 -> 0 | BR106: =DL122 -> 0 | CB106: Sector 5 | CF106: =DK91 -> 198.54096 | CG106: =DL91*(1+CL106) -> 3.23291377 | CH106: =DM91*DL91*(1+DK123) -> 1080.552338 | CI106: =DN91*DL91*(1+DK124) -> 8104.22344 | CL106: 0.028935 | CM106: =DO101 -> 0.0153 | CN106: =DO102 -> 0.4433 | CO106: =DO103 -> 0.001 | CP106: =DO104 -> 0.0512 | CQ106: =DO105 -> 0.3215 | CR106: =DO106 -> 0.1677 | CS106: =DO107 -> 0 | CT106: =DK116 -> 0 | CU106: =DK117 -> 0 | CV106: =DK118 -> 0 | CW106: =DK119 -> 0 | CX106: =DK120 -> 0.09 | CY106: =DK121 -> 0 | CZ106: =DK122 -> 0 | DJ106: 8704.21.10.10 | DK106: 0.0047 | DL106: 0.0665 | DM106: 0.0481 | DN106: 0.1861 | DO106: 0.1677 | DP106: 0.064 | DQ106: 0.0906 | DR106: 0.1565 | DS106: 0.0906 | DT106: 0.1565
A107: f) Sector Especial | B107: =+Historico!O107 -> 0.9796 | C107: 0.9815 | D107: 0.00193956717 | F107: =IF(IF(ResumenIndicadores!$G$11="Ft-1",B107,C107)=0,"",IF(ResumenIndicadores!$G$11="Ft-1",B107,C107)) -> 0.9796 | M107: Sector Especial | Q107: 0.715 | R107: 0.1812 | S107: 0.0868 | T107: 0.017 | X107: Sector Especial | AB107: 0.715 | AC107: 0.1812 | AD107: 0.0868 | AE107: 0.017 | AI107: Sector Especial | AM107: 1.044345414 | AN107: 0.8236493447 | AO107: 0.8609475589 | AP107: 0.639076822 | AT107: Sector Especial | AX107: =DK92 -> 207.345341 | AY107: =DL92*(1+BD107) -> 2.591190294 | AZ107: =DM92*DL92*(1+DL123) -> 930.2988975 | BA107: =DN92*DL92*(1+DL124) -> 5179.221361 | BD107: 0.000846 | BE107: =DP101 -> 0.0757 | BF107: =DP102 -> 0.8021 | BG107: =DP103 -> 0.0192 | BH107: =DP104 -> 0.0249 | BI107: =DP105 -> 0.0141 | BJ107: =DP106 -> 0.064 | BK107: =DP107 -> 0 | BL107: =DL116 -> 0 | BM107: =DL117 -> 0 | BN107: =DL118 -> 0 | BO107: =DL119 -> 0 | BP107: =DL120 -> 0.06 | BQ107: =DL121 -> 0 | BR107: =DL122 -> 0 | CB107: Sector Especial | CF107: =DK91 -> 198.54096 | CG107: =DL91*(1+CL107) -> 3.145987198 | CH107: =DM91*DL91*(1+DK123) -> 1080.552338 | CI107: =DN91*DL91*(1+DK124) -> 8104.22344 | CL107: 0.001269 | CM107: =DP101 -> 0.0757 | CN107: =DP102 -> 0.8021 | CO107: =DP103 -> 0.0192 | CP107: =DP104 -> 0.0249 | CQ107: =DP105 -> 0.0141 | CR107: =DP106 -> 0.064 | CS107: =DP107 -> 0 | CT107: =DK116 -> 0 | CU107: =DK117 -> 0 | CV107: =DK118 -> 0 | CW107: =DK119 -> 0 | CX107: =DK120 -> 0.09 | CY107: =DK121 -> 0 | CZ107: =DK122 -> 0 | DJ107: 9028.30.10.00 | DK107: 0 | DL107: 0 | DM107: 0 | DN107: 0 | DO107: 0 | DP107: 0 | DQ107: 0.5596 | DR107: 0.2392 | DS107: 0.5596 | DT107: 0.2392
A108: g) VAD SER 100 Estado Prepago | B108: =+Historico!O108 -> 0.9702 | C108: 0.9723 | D108: 0.002164502165 | F108: =IF(IF(ResumenIndicadores!$G$11="Ft-1",B108,C108)=0,"",IF(ResumenIndicadores!$G$11="Ft-1",B108,C108)) -> 0.9702 | M108: 100% Estado | N108: Prepago | Q108: 0.7038 | R108: 0.2278 | S108: 0.0281 | T108: 0.0403 | X108: 100% Estado | Y108: Prepago | AB108: 0.7038 | AC108: 0.2278 | AD108: 0.0281 | AE108: 0.0403 | AI108: 100% Estado | AJ108: Prepago | AM108: 1.044345414 | AN108: 0.822233959 | AO108: 0.8609475589 | AP108: 0.639076822 | AT108: 100% Estado | AU108: Prepago | AX108: =DK92 -> 207.345341 | AY108: =DL92*(1+BD108) -> 2.600153412 | AZ108: =DM92*DL92*(1+DL123) -> 930.2988975 | BA108: =DN92*DL92*(1+DL124) -> 5179.221361 | BD108: 0.004308 | BE108: =DQ101 -> 0.0111 | BF108: =DQ102 -> 0.2442 | BG108: =DQ103 -> 0.0016 | BH108: =DQ104 -> 0.0211 | BI108: =DQ105 -> 0.0718 | BJ108: =DQ106 -> 0.0906 | BK108: =DQ107 -> 0.5596 | BL108: =DL116 -> 0 | BM108: =DL117 -> 0 | BN108: =DL118 -> 0 | BO108: =DL119 -> 0 | BP108: =DL120 -> 0.06 | BQ108: =DL121 -> 0 | BR108: =DL122 -> 0 | CB108: 100% Estado | CC108: Prepago | CF108: =DK91 -> 198.54096 | CG108: =DL91*(1+CL108) -> 3.162303604 | CH108: =DM91*DL91*(1+DK123) -> 1080.552338 | CI108: =DN91*DL91*(1+DK124) -> 8104.22344 | CL108: 0.006462 | CM108: =DQ101 -> 0.0111 | CN108: =DQ102 -> 0.2442 | CO108: =DQ103 -> 0.0016 | CP108: =DQ104 -> 0.0211 | CQ108: =DQ105 -> 0.0718 | CR108: =DQ106 -> 0.0906 | CS108: =DQ107 -> 0.5596 | CT108: =DK116 -> 0 | CU108: =DK117 -> 0 | CV108: =DK118 -> 0 | CW108: =DK119 -> 0 | CX108: =DK120 -> 0.09 | CY108: =DK121 -> 0 | CZ108: =DK122 -> 0 | DI108: BSED | DJ108: 8471.30.00.00 | DK108: 0.0574 | DL108: 0.0584 | DM108: 0.0367 | DN108: 0.0017 | DO108: 0.0041 | DP108: 0.07 | DQ108: 0.011 | DR108: 0.011 | DS108: 0.011 | DT108: 0.011
A109: h) VAD SER 100 Estado Convencional | B109: =+Historico!O109 -> 0.9813 | C109: 0.9835 | D109: 0.002241923978 | F109: =IF(IF(ResumenIndicadores!$G$11="Ft-1",B109,C109)=0,"",IF(ResumenIndicadores!$G$11="Ft-1",B109,C109)) -> 0.9813 | N109: Convencional | Q109: 0.7606 | R109: 0.1577 | S109: 0.0336 | T109: 0.0481 | Y109: Convencional | AB109: 0.7606 | AC109: 0.1577 | AD109: 0.0336 | AE109: 0.0481 | AJ109: Convencional | AM109: 1.044345414 | AN109: 0.8209660142 | AO109: 0.8609475589 | AP109: 0.639076822 | AU109: Convencional | AX109: =DK92 -> 207.345341 | AY109: =DL92*(1+BD109) -> 2.60826216 | AZ109: =DM92*DL92*(1+DL123) -> 930.2988975 | BA109: =DN92*DL92*(1+DL124) -> 5179.221361 | BD109: 0.00744 | BE109: =DR101 -> 0.0192 | BF109: =DR102 -> 0.4219 | BG109: =DR103 -> 0.0028 | BH109: =DR104 -> 0.0364 | BI109: =DR105 -> 0.124 | BJ109: =DR106 -> 0.1565 | BK109: =DR107 -> 0.2392 | BL109: =DL116 -> 0 | BM109: =DL117 -> 0 | BN109: =DL118 -> 0 | BO109: =DL119 -> 0 | BP109: =DL120 -> 0.06 | BQ109: =DL121 -> 0 | BR109: =DL122 -> 0 | CC109: Convencional | CF109: =DK91 -> 198.54096 | CG109: =DL91*(1+CL109) -> 3.17706472 | CH109: =DM91*DL91*(1+DK123) -> 1080.552338 | CI109: =DN91*DL91*(1+DK124) -> 8104.22344 | CL109: 0.01116 | CM109: =DR101 -> 0.0192 | CN109: =DR102 -> 0.4219 | CO109: =DR103 -> 0.0028 | CP109: =DR104 -> 0.0364 | CQ109: =DR105 -> 0.124 | CR109: =DR106 -> 0.1565 | CS109: =DR107 -> 0.2392 | CT109: =DK116 -> 0 | CU109: =DK117 -> 0 | CV109: =DK118 -> 0 | CW109: =DK119 -> 0 | CX109: =DK120 -> 0.09 | CY109: =DK121 -> 0 | CZ109: =DK122 -> 0 | DJ109: 8504.21.90.00 | DK109: 0.7609 | DL109: 0.8332 | DM109: 0.8456 | DN109: 0.8012 | DO109: 0.8668 | DP109: 0.8275 | DQ109: 0.8758 | DR109: 0.8758 | DS109: 0.8758 | DT109: 0.8758
A110: i) VAD SER 100 Empresa Prepago | B110: =+Historico!O110 -> 0.9702 | C110: 0.9723 | D110: 0.002164502165 | F110: =IF(IF(ResumenIndicadores!$G$11="Ft-1",B110,C110)=0,"",IF(ResumenIndicadores!$G$11="Ft-1",B110,C110)) -> 0.9702 | M110: 100% Empresa | N110: Prepago | Q110: 0.7038 | R110: 0.2278 | S110: 0.0281 | T110: 0.0403 | X110: 100% Empresa | Y110: Prepago | AB110: 0.7038 | AC110: 0.2278 | AD110: 0.0281 | AE110: 0.0403 | AI110: 100% Empresa | AJ110: Prepago | AM110: 1.044345414 | AN110: 0.822233959 | AO110: 0.8609475589 | AP110: 0.639076822 | AT110: 100% Empresa | AU110: Prepago | AX110: =DK92 -> 207.345341 | AY110: =DL92*(1+BD110) -> 2.600153412 | AZ110: =DM92*DL92*(1+DL123) -> 930.2988975 | BA110: =DN92*DL92*(1+DL124) -> 5179.221361 | BD110: 0.004308 | BE110: =DS101 -> 0.0111 | BF110: =DS102 -> 0.2442 | BG110: =DS103 -> 0.0016 | BH110: =DS104 -> 0.0211 | BI110: =DS105 -> 0.0718 | BJ110: =DS106 -> 0.0906 | BK110: =DS107 -> 0.5596 | BL110: =DL116 -> 0 | BM110: =DL117 -> 0 | BN110: =DL118 -> 0 | BO110: =DL119 -> 0 | BP110: =DL120 -> 0.06 | BQ110: =DL121 -> 0 | BR110: =DL122 -> 0 | CB110: 100% Empresa | CC110: Prepago | CF110: =DK91 -> 198.54096 | CG110: =DL91*(1+CL110) -> 3.162303604 | CH110: =DM91*DL91*(1+DK123) -> 1080.552338 | CI110: =DN91*DL91*(1+DK124) -> 8104.22344 | CL110: 0.006462 | CM110: =DS101 -> 0.0111 | CN110: =DS102 -> 0.2442 | CO110: =DS103 -> 0.0016 | CP110: =DS104 -> 0.0211 | CQ110: =DS105 -> 0.0718 | CR110: =DS106 -> 0.0906 | CS110: =DS107 -> 0.5596 | CT110: =DK116 -> 0 | CU110: =DK117 -> 0 | CV110: =DK118 -> 0 | CW110: =DK119 -> 0 | CX110: =DK120 -> 0.09 | CY110: =DK121 -> 0 | CZ110: =DK122 -> 0 | DJ110: 8517.11.00.00 | DK110: 0.012 | DL110: 0.0013 | DM110: 0.007 | DN110: 0.0008 | DO110: 0.0003 | DP110: 0.0177 | DQ110: 0.0016 | DR110: 0.0016 | DS110: 0.0016 | DT110: 0.0016
A111: j) VAD SER 100 Empresa Convencional | B111: =+Historico!O111 -> 0.9813 | C111: 0.9835 | D111: 0.002241923978 | F111: =IF(IF(ResumenIndicadores!$G$11="Ft-1",B111,C111)=0,"",IF(ResumenIndicadores!$G$11="Ft-1",B111,C111)) -> 0.9813 | N111: Convencional | Q111: 0.7606 | R111: 0.1577 | S111: 0.0336 | T111: 0.0481 | Y111: Convencional | AB111: 0.7606 | AC111: 0.1577 | AD111: 0.0336 | AE111: 0.0481 | AJ111: Convencional | AM111: 1.044345414 | AN111: 0.8209660142 | AO111: 0.8609475589 | AP111: 0.639076822 | AU111: Convencional | AX111: =DK92 -> 207.345341 | AY111: =DL92*(1+BD111) -> 2.60826216 | AZ111: =DM92*DL92*(1+DL123) -> 930.2988975 | BA111: =DN92*DL92*(1+DL124) -> 5179.221361 | BD111: 0.00744 | BE111: =DT101 -> 0.0192 | BF111: =DT102 -> 0.4219 | BG111: =DT103 -> 0.0028 | BH111: =DT104 -> 0.0364 | BI111: =DT105 -> 0.124 | BJ111: =DT106 -> 0.1565 | BK111: =DT107 -> 0.2392 | BL111: =DL116 -> 0 | BM111: =DL117 -> 0 | BN111: =DL118 -> 0 | BO111: =DL119 -> 0 | BP111: =DL120 -> 0.06 | BQ111: =DL121 -> 0 | BR111: =DL122 -> 0 | CC111: Convencional | CF111: =DK91 -> 198.54096 | CG111: =DL91*(1+CL111) -> 3.17706472 | CH111: =DM91*DL91*(1+DK123) -> 1080.552338 | CI111: =DN91*DL91*(1+DK124) -> 8104.22344 | CL111: 0.01116 | CM111: =DT101 -> 0.0192 | CN111: =DT102 -> 0.4219 | CO111: =DT103 -> 0.0028 | CP111: =DT104 -> 0.0364 | CQ111: =DT105 -> 0.124 | CR111: =DT106 -> 0.1565 | CS111: =DT107 -> 0.2392 | CT111: =DK116 -> 0 | CU111: =DK117 -> 0 | CV111: =DK118 -> 0 | CW111: =DK119 -> 0 | CX111: =DK120 -> 0.09 | CY111: =DK121 -> 0 | CZ111: =DK122 -> 0 | DJ111: 8535.30.00.00 | DK111: 0.1675 | DL111: 0.0832 | DM111: 0.0939 | DN111: 0.1591 | DO111: 0.1002 | DP111: 0.0256 | DQ111: 0.0755 | DR111: 0.0755 | DS111: 0.0755 | DT111: 0.0755
A112: 3. VALOR AGREGADO DE DISTRIBUCIÓN EN SUBESTACIONES MT/BT (FASED) | B112: =+Historico!O112 ->  | F112: =IF(IF(ResumenIndicadores!$G$11="Ft-1",B112,C112)=0,"",IF(ResumenIndicadores!$G$11="Ft-1",B112,C112)) ->  | M112: 3. Sub Estaciones de Distribución (SED) | Q112: ASED | R112: BSED | S112: CSED | T112: DSED | X112: 3. Sub Estaciones de Distribución (SED) | AB112: ASED | AC112: BSED | AD112: CSED | AE112: DSED | AI112: 3. Sub Estaciones de Distribución (SED) | AM112: ASED | AN112: BSED | AO112: CSED | AP112: DSED | AT112: 3. Sub Estaciones de Distribución (SED) | AX112: ASED | AY112: BSED | AZ112: CSED | BA112: DSED | BD112: TABSED | CB112: 3. Sub Estaciones de Distribución (SED) | CF112: ASED | CG112: BSED | CH112: CSED | CI112: DSED | CL112: TABSED | DJ112: 8539.32.00.00 | DK112: 0 | DL112: 0 | DM112: 0 | DN112: 0 | DO112: 0 | DP112: 0 | DQ112: 0 | DR112: 0 | DS112: 0 | DT112: 0
A113: a) Sector 1 | B113: =+Historico!O113 -> 0.9897 | C113: =ROUND(AB113*AM113+AC113*AN113+AD113*AO113+AE113*AP113,4) -> 0.9919 | D113: =+C113/B113-1 -> 0.002222895827 | F113: =IF(IF(ResumenIndicadores!$G$11="Ft-1",B113,C113)=0,"",IF(ResumenIndicadores!$G$11="Ft-1",B113,C113)) -> 0.9897 | M113: Sector 1 | Q113: 0.7496 | R113: 0.1776 | S113: 0.0728 | T113: 0 | X113: Sector 1 | AB113: 0.7496 | AC113: 0.1776 | AD113: 0.0728 | AE113: 0 | AI113: Sector 1 | AM113: =AX113/CF113 -> 1.044345414 | AN113: =AY113/CG113 -> 0.8239974539 | AO113: =AZ113/CH113 -> 0.8609475589 | AP113: 0 | AT113: Sector 1 | AX113: =DK92 -> 207.345341 | AY113: =DL92*(1+BD113) -> 2.589 | AZ113: =DM92*DL92*(1+DL123) -> 930.2988975 | BA113: 0 | BD113: =BE113*BL113+BF113*BM113+BG113*BN113+BH113*BO113+BI113*BP113+BJ113*BQ113+BK113*BR113 -> 0 | BE113: =DK108 -> 0.0574 | BF113: =DK109 -> 0.7609 | BG113: =DK110 -> 0.012 | BH113: =DK111 -> 0.1675 | BI113: =DK112 -> 0 | BJ113: =DK113 -> 0.0022 | BK113: =DK114 -> 0 | BL113: =DL116 -> 0 | BM113: =DL117 -> 0 | BN113: =DL118 -> 0 | BO113: =DL119 -> 0 | BP113: =DL120 -> 0.06 | BQ113: =DL121 -> 0 | BR113: =DL122 -> 0 | CB113: Sector 1 | CF113: =DK91 -> 198.54096 | CG113: =DL91*(1+CL113) -> 3.142 | CH113: =DM91*DL91*(1+DK123) -> 1080.552338 | CI113: 0 | CL113: =CM113*CT113+CN113*CU113+CO113*CV113+CP113*CW113+CQ113*CX113+CR113*CY113+CS113*CZ113 -> 0 | CM113: =DK108 -> 0.0574 | CN113: =DK109 -> 0.7609 | CO113: =DK110 -> 0.012 | CP113: =DK111 -> 0.1675 | CQ113: =DK112 -> 0 | CR113: =DK113 -> 0.0022 | CS113: =DK114 -> 0 | CT113: =DK116 -> 0 | CU113: =DK117 -> 0 | CV113: =DK118 -> 0 | CW113: =DK119 -> 0 | CX113: =DK120 -> 0.09 | CY113: =DK121 -> 0 | CZ113: =DK122 -> 0 | DJ113: 8704.21.10.10 | DK113: 0.0022 | DL113: 0.0239 | DM113: 0.0168 | DN113: 0.0372 | DO113: 0.0286 | DP113: 0.0592 | DQ113: 0.0361 | DR113: 0.0361 | DS113: 0.0361 | DT113: 0.0361
A114: b) Sector 2 | B114: =+Historico!O114 -> 0.9726 | C114: 0.9744 | D114: 0.001850709439 | F114: =IF(IF(ResumenIndicadores!$G$11="Ft-1",B114,C114)=0,"",IF(ResumenIndicadores!$G$11="Ft-1",B114,C114)) -> 0.9726 | M114: Sector 2 | Q114: 0.6661 | R114: 0.2346 | S114: 0.0993 | T114: 0 | X114: Sector 2 | AB114: 0.6661 | AC114: 0.2346 | AD114: 0.0993 | AE114: 0 | AI114: Sector 2 | AM114: 1.044345414 | AN114: 0.8239974539 | AO114: 0.8609475589 | AP114: 0 | AT114: Sector 2 | AX114: =DK92 -> 207.345341 | AY114: =DL92*(1+BD114) -> 2.589 | AZ114: =DM92*DL92*(1+DL123) -> 930.2988975 | BA114: 0 | BD114: 0 | BE114: =DL108 -> 0.0584 | BF114: =DL109 -> 0.8332 | BG114: =DL110 -> 0.0013 | BH114: =DL111 -> 0.0832 | BI114: =DL112 -> 0 | BJ114: =DL113 -> 0.0239 | BK114: =DL114 -> 0 | BL114: =DL116 -> 0 | BM114: =DL117 -> 0 | BN114: =DL118 -> 0 | BO114: =DL119 -> 0 | BP114: =DL120 -> 0.06 | BQ114: =DL121 -> 0 | BR114: =DL122 -> 0 | CB114: Sector 2 | CF114: =DK91 -> 198.54096 | CG114: =DL91*(1+CL114) -> 3.142 | CH114: =DM91*DL91*(1+DK123) -> 1080.552338 | CI114: 0 | CL114: 0 | CM114: =DL108 -> 0.0584 | CN114: =DL109 -> 0.8332 | CO114: =DL110 -> 0.0013 | CP114: =DL111 -> 0.0832 | CQ114: =DL112 -> 0 | CR114: =DL113 -> 0.0239 | CS114: =DL114 -> 0 | CT114: =DK116 -> 0 | CU114: =DK117 -> 0 | CV114: =DK118 -> 0 | CW114: =DK119 -> 0 | CX114: =DK120 -> 0.09 | CY114: =DK121 -> 0 | CZ114: =DK122 -> 0 | DJ114: 9028.30.10.00 | DK114: 0 | DL114: 0 | DM114: 0 | DN114: 0 | DO114: 0 | DP114: 0 | DQ114: 0 | DR114: 0 | DS114: 0 | DT114: 0
A115: c) Sector 3 | B115: =+Historico!O115 -> 0.9761 | C115: 0.978 | D115: 0.001946521873 | F115: =IF(IF(ResumenIndicadores!$G$11="Ft-1",B115,C115)=0,"",IF(ResumenIndicadores!$G$11="Ft-1",B115,C115)) -> 0.9761 | M115: Sector 3 | Q115: 0.682 | R115: 0.2179 | S115: 0.1001 | T115: 0 | X115: Sector 3 | AB115: 0.682 | AC115: 0.2179 | AD115: 0.1001 | AE115: 0 | AI115: Sector 3 | AM115: 1.044345414 | AN115: 0.8239974539 | AO115: 0.8609475589 | AP115: 0 | AT115: Sector 3 | AX115: =DK92 -> 207.345341 | AY115: =DL92*(1+BD115) -> 2.589 | AZ115: =DM92*DL92*(1+DL123) -> 930.2988975 | BA115: 0 | BD115: 0 | BE115: =DM108 -> 0.0367 | BF115: =DM109 -> 0.8456 | BG115: =DM110 -> 0.007 | BH115: =DM111 -> 0.0939 | BI115: =DM112 -> 0 | BJ115: =DM113 -> 0.0168 | BK115: =DM114 -> 0 | BL115: =DL116 -> 0 | BM115: =DL117 -> 0 | BN115: =DL118 -> 0 | BO115: =DL119 -> 0 | BP115: =DL120 -> 0.06 | BQ115: =DL121 -> 0 | BR115: =DL122 -> 0 | CB115: Sector 3 | CF115: =DK91 -> 198.54096 | CG115: =DL91*(1+CL115) -> 3.142 | CH115: =DM91*DL91*(1+DK123) -> 1080.552338 | CI115: 0 | CL115: 0 | CM115: =DM108 -> 0.0367 | CN115: =DM109 -> 0.8456 | CO115: =DM110 -> 0.007 | CP115: =DM111 -> 0.0939 | CQ115: =DM112 -> 0 | CR115: =DM113 -> 0.0168 | CS115: =DM114 -> 0 | CT115: =DK116 -> 0 | CU115: =DK117 -> 0 | CV115: =DK118 -> 0 | CW115: =DK119 -> 0 | CX115: =DK120 -> 0.09 | CY115: =DK121 -> 0 | CZ115: =DK122 -> 0 | DJ115: PARTIDA | DK115: Valor Base | DL115: Valor actual | DM115: Codigo
A116: d) Sector 4 | B116: =+Historico!O116 -> 0.9626 | C116: 0.9647 | D116: 0.002181591523 | F116: =IF(IF(ResumenIndicadores!$G$11="Ft-1",B116,C116)=0,"",IF(ResumenIndicadores!$G$11="Ft-1",B116,C116)) -> 0.9626 | M116: Sector 4 | Q116: 0.6374 | R116: 0.3556 | S116: 0.007 | T116: 0 | X116: Sector 4 | AB116: 0.6374 | AC116: 0.3556 | AD116: 0.007 | AE116: 0 | AI116: Sector 4 | AM116: 1.044345414 | AN116: 0.8239974539 | AO116: 0.8609475589 | AP116: 0 | AT116: Sector 4 | AX116: =DK92 -> 207.345341 | AY116: =DL92*(1+BD116) -> 2.589 | AZ116: =DM92*DL92*(1+DL123) -> 930.2988975 | BA116: 0 | BD116: 0 | BE116: =DN108 -> 0.0017 | BF116: =DN109 -> 0.8012 | BG116: =DN110 -> 0.0008 | BH116: =DN111 -> 0.1591 | BI116: =DN112 -> 0 | BJ116: =DN113 -> 0.0372 | BK116: =DN114 -> 0 | BL116: =DL116 -> 0 | BM116: =DL117 -> 0 | BN116: =DL118 -> 0 | BO116: =DL119 -> 0 | BP116: =DL120 -> 0.06 | BQ116: =DL121 -> 0 | BR116: =DL122 -> 0 | CB116: Sector 4 | CF116: =DK91 -> 198.54096 | CG116: =DL91*(1+CL116) -> 3.142 | CH116: =DM91*DL91*(1+DK123) -> 1080.552338 | CI116: 0 | CL116: 0 | CM116: =DN108 -> 0.0017 | CN116: =DN109 -> 0.8012 | CO116: =DN110 -> 0.0008 | CP116: =DN111 -> 0.1591 | CQ116: =DN112 -> 0 | CR116: =DN113 -> 0.0372 | CS116: =DN114 -> 0 | CT116: =DK116 -> 0 | CU116: =DK117 -> 0 | CV116: =DK118 -> 0 | CW116: =DK119 -> 0 | CX116: =DK120 -> 0.09 | CY116: =DK121 -> 0 | CZ116: =DK122 -> 0 | DI116: (1) VAD | DJ116: 8471.30.00.00 | DK116: 0 | DL116: =TA_VAD!D11 -> 0 | DM116: 8471300000
A117: e) Sector 5 | B117: =+Historico!O117 -> 0.9582 | C117: 0.9602 | D117: 0.002087246921 | F117: =IF(IF(ResumenIndicadores!$G$11="Ft-1",B117,C117)=0,"",IF(ResumenIndicadores!$G$11="Ft-1",B117,C117)) -> 0.9582 | M117: Sector 5 | Q117: 0.6168 | R117: 0.3748 | S117: 0.0084 | T117: 0 | X117: Sector 5 | AB117: 0.6168 | AC117: 0.3748 | AD117: 0.0084 | AE117: 0 | AI117: Sector 5 | AM117: 1.044345414 | AN117: 0.8239974539 | AO117: 0.8609475589 | AP117: 0 | AT117: Sector 5 | AX117: =DK92 -> 207.345341 | AY117: =DL92*(1+BD117) -> 2.589 | AZ117: =DM92*DL92*(1+DL123) -> 930.2988975 | BA117: 0 | BD117: 0 | BE117: =DO108 -> 0.0041 | BF117: =DO109 -> 0.8668 | BG117: =DO110 -> 0.0003 | BH117: =DO111 -> 0.1002 | BI117: =DO112 -> 0 | BJ117: =DO113 -> 0.0286 | BK117: =DO114 -> 0 | BL117: =DL116 -> 0 | BM117: =DL117 -> 0 | BN117: =DL118 -> 0 | BO117: =DL119 -> 0 | BP117: =DL120 -> 0.06 | BQ117: =DL121 -> 0 | BR117: =DL122 -> 0 | CB117: Sector 5 | CF117: =DK91 -> 198.54096 | CG117: =DL91*(1+CL117) -> 3.142 | CH117: =DM91*DL91*(1+DK123) -> 1080.552338 | CI117: 0 | CL117: 0 | CM117: =DO108 -> 0.0041 | CN117: =DO109 -> 0.8668 | CO117: =DO110 -> 0.0003 | CP117: =DO111 -> 0.1002 | CQ117: =DO112 -> 0 | CR117: =DO113 -> 0.0286 | CS117: =DO114 -> 0 | CT117: =DK116 -> 0 | CU117: =DK117 -> 0 | CV117: =DK118 -> 0 | CW117: =DK119 -> 0 | CX117: =DK120 -> 0.09 | CY117: =DK121 -> 0 | CZ117: =DK122 -> 0 | DI117: (2) VAD | DJ117: 8504.21.90.00 | DK117: 0 | DL117: =TA_VAD!D12 -> 0 | DM117: 8504219000
A118: f) Sector Especial | B118: =+Historico!O118 -> 0.9553 | C118: 0.9568 | D118: 0.001570187376 | F118: =IF(IF(ResumenIndicadores!$G$11="Ft-1",B118,C118)=0,"",IF(ResumenIndicadores!$G$11="Ft-1",B118,C118)) -> 0.9553 | M118: Sector Especial | Q118: 0.5794 | R118: 0.2811 | S118: 0.1395 | T118: 0 | X118: Sector Especial | AB118: 0.5794 | AC118: 0.2811 | AD118: 0.1395 | AE118: 0 | AI118: Sector Especial | AM118: 1.044345414 | AN118: 0.8239974539 | AO118: 0.8609475589 | AP118: 0 | AT118: Sector Especial | AX118: =DK92 -> 207.345341 | AY118: =DL92*(1+BD118) -> 2.589 | AZ118: =DM92*DL92*(1+DL123) -> 930.2988975 | BA118: 0 | BD118: 0 | BE118: =DP108 -> 0.07 | BF118: =DP109 -> 0.8275 | BG118: =DP110 -> 0.0177 | BH118: =DP111 -> 0.0256 | BI118: =DP112 -> 0 | BJ118: =DP113 -> 0.0592 | BK118: =DP114 -> 0 | BL118: =DL116 -> 0 | BM118: =DL117 -> 0 | BN118: =DL118 -> 0 | BO118: =DL119 -> 0 | BP118: =DL120 -> 0.06 | BQ118: =DL121 -> 0 | BR118: =DL122 -> 0 | CB118: Sector Especial | CF118: =DK91 -> 198.54096 | CG118: =DL91*(1+CL118) -> 3.142 | CH118: =DM91*DL91*(1+DK123) -> 1080.552338 | CI118: 0 | CL118: 0 | CM118: =DP108 -> 0.07 | CN118: =DP109 -> 0.8275 | CO118: =DP110 -> 0.0177 | CP118: =DP111 -> 0.0256 | CQ118: =DP112 -> 0 | CR118: =DP113 -> 0.0592 | CS118: =DP114 -> 0 | CT118: =DK116 -> 0 | CU118: =DK117 -> 0 | CV118: =DK118 -> 0 | CW118: =DK119 -> 0 | CX118: =DK120 -> 0.09 | CY118: =DK121 -> 0 | CZ118: =DK122 -> 0 | DI118: (3) VAD | DJ118: 8517.11.00.00 | DK118: 0 | DL118: =TA_VAD!D13 -> 0 | DM118: 8517110000
A119: g) VAD SER 100 Estado Prepago | B119: =+Historico!O119 -> 0.96 | C119: 0.962 | D119: 0.002083333333 | F119: =IF(IF(ResumenIndicadores!$G$11="Ft-1",B119,C119)=0,"",IF(ResumenIndicadores!$G$11="Ft-1",B119,C119)) -> 0.96 | M119: 100% Estado | N119: Prepago | Q119: 0.625 | R119: 0.3668 | S119: 0.0082 | T119: 0 | X119: 100% Estado | Y119: Prepago | AB119: 0.625 | AC119: 0.3668 | AD119: 0.0082 | AE119: 0 | AI119: 100% Estado | AJ119: Prepago | AM119: 1.044345414 | AN119: 0.8239974539 | AO119: 0.8609475589 | AP119: 0 | AT119: 100% Estado | AU119: Prepago | AX119: =DK92 -> 207.345341 | AY119: =DL92*(1+BD119) -> 2.589 | AZ119: =DM92*DL92*(1+DL123) -> 930.2988975 | BA119: 0 | BD119: 0 | BE119: =DQ108 -> 0.011 | BF119: =DQ109 -> 0.8758 | BG119: =DQ110 -> 0.0016 | BH119: =DQ111 -> 0.0755 | BI119: =DQ112 -> 0 | BJ119: =DQ113 -> 0.0361 | BK119: =DQ114 -> 0 | BL119: =DL116 -> 0 | BM119: =DL117 -> 0 | BN119: =DL118 -> 0 | BO119: =DL119 -> 0 | BP119: =DL120 -> 0.06 | BQ119: =DL121 -> 0 | BR119: =DL122 -> 0 | CB119: 100% Estado | CC119: Prepago | CF119: =DK91 -> 198.54096 | CG119: =DL91*(1+CL119) -> 3.142 | CH119: =DM91*DL91*(1+DK123) -> 1080.552338 | CI119: 0 | CL119: 0 | CM119: =DQ108 -> 0.011 | CN119: =DQ109 -> 0.8758 | CO119: =DQ110 -> 0.0016 | CP119: =DQ111 -> 0.0755 | CQ119: =DQ112 -> 0 | CR119: =DQ113 -> 0.0361 | CS119: =DQ114 -> 0 | CT119: =DK116 -> 0 | CU119: =DK117 -> 0 | CV119: =DK118 -> 0 | CW119: =DK119 -> 0 | CX119: =DK120 -> 0.09 | CY119: =DK121 -> 0 | CZ119: =DK122 -> 0 | DI119: (4) VAD | DJ119: 8535.30.00.00 | DK119: 0 | DL119: =TA_VAD!D14 -> 0 | DM119: 8535300000
A120: h) VAD SER 100 Estado Convencional | B120: =+Historico!O120 -> 0.962 | C120: 0.9641 | D120: 0.002182952183 | F120: =IF(IF(ResumenIndicadores!$G$11="Ft-1",B120,C120)=0,"",IF(ResumenIndicadores!$G$11="Ft-1",B120,C120)) -> 0.962 | N120: Convencional | Q120: 0.6345 | R120: 0.3575 | S120: 0.008 | T120: 0 | Y120: Convencional | AB120: 0.6345 | AC120: 0.3575 | AD120: 0.008 | AE120: 0 | AJ120: Convencional | AM120: 1.044345414 | AN120: 0.8239974539 | AO120: 0.8609475589 | AP120: 0 | AU120: Convencional | AX120: =DK92 -> 207.345341 | AY120: =DL92*(1+BD120) -> 2.589 | AZ120: =DM92*DL92*(1+DL123) -> 930.2988975 | BA120: 0 | BD120: 0 | BE120: =DR108 -> 0.011 | BF120: =DR109 -> 0.8758 | BG120: =DR110 -> 0.0016 | BH120: =DR111 -> 0.0755 | BI120: =DR112 -> 0 | BJ120: =DR113 -> 0.0361 | BK120: =DR114 -> 0 | BL120: =DL116 -> 0 | BM120: =DL117 -> 0 | BN120: =DL118 -> 0 | BO120: =DL119 -> 0 | BP120: =DL120 -> 0.06 | BQ120: =DL121 -> 0 | BR120: =DL122 -> 0 | CC120: Convencional | CF120: =DK91 -> 198.54096 | CG120: =DL91*(1+CL120) -> 3.142 | CH120: =DM91*DL91*(1+DK123) -> 1080.552338 | CI120: 0 | CL120: 0 | CM120: =DR108 -> 0.011 | CN120: =DR109 -> 0.8758 | CO120: =DR110 -> 0.0016 | CP120: =DR111 -> 0.0755 | CQ120: =DR112 -> 0 | CR120: =DR113 -> 0.0361 | CS120: =DR114 -> 0 | CT120: =DK116 -> 0 | CU120: =DK117 -> 0 | CV120: =DK118 -> 0 | CW120: =DK119 -> 0 | CX120: =DK120 -> 0.09 | CY120: =DK121 -> 0 | CZ120: =DK122 -> 0 | DI120: (5) VAD | DJ120: 8539.32.00.00 | DK120: 0.09 | DL120: =TA_VAD!D15 -> 0.06 | DM120: 8539320000
A121: i) VAD SER 100 Empresa Prepago | B121: =+Historico!O121 -> 0.96 | C121: 0.962 | D121: 0.002083333333 | F121: =IF(IF(ResumenIndicadores!$G$11="Ft-1",B121,C121)=0,"",IF(ResumenIndicadores!$G$11="Ft-1",B121,C121)) -> 0.96 | M121: 100% Empresa | N121: Prepago | Q121: 0.625 | R121: 0.3668 | S121: 0.0082 | T121: 0 | X121: 100% Empresa | Y121: Prepago | AB121: 0.625 | AC121: 0.3668 | AD121: 0.0082 | AE121: 0 | AI121: 100% Empresa | AJ121: Prepago | AM121: 1.044345414 | AN121: 0.8239974539 | AO121: 0.8609475589 | AP121: 0 | AT121: 100% Empresa | AU121: Prepago | AX121: =DK92 -> 207.345341 | AY121: =DL92*(1+BD121) -> 2.589 | AZ121: =DM92*DL92*(1+DL123) -> 930.2988975 | BA121: 0 | BD121: 0 | BE121: =DS108 -> 0.011 | BF121: =DS109 -> 0.8758 | BG121: =DS110 -> 0.0016 | BH121: =DS111 -> 0.0755 | BI121: =DS112 -> 0 | BJ121: =DS113 -> 0.0361 | BK121: =DS114 -> 0 | BL121: =DL116 -> 0 | BM121: =DL117 -> 0 | BN121: =DL118 -> 0 | BO121: =DL119 -> 0 | BP121: =DL120 -> 0.06 | BQ121: =DL121 -> 0 | BR121: =DL122 -> 0 | CB121: 100% Empresa | CC121: Prepago | CF121: =DK91 -> 198.54096 | CG121: =DL91*(1+CL121) -> 3.142 | CH121: =DM91*DL91*(1+DK123) -> 1080.552338 | CI121: 0 | CL121: 0 | CM121: =DS108 -> 0.011 | CN121: =DS109 -> 0.8758 | CO121: =DS110 -> 0.0016 | CP121: =DS111 -> 0.0755 | CQ121: =DS112 -> 0 | CR121: =DS113 -> 0.0361 | CS121: =DS114 -> 0 | CT121: =DK116 -> 0 | CU121: =DK117 -> 0 | CV121: =DK118 -> 0 | CW121: =DK119 -> 0 | CX121: =DK120 -> 0.09 | CY121: =DK121 -> 0 | CZ121: =DK122 -> 0 | DI121: (6) VAD | DJ121: 8704.21.10.10 | DK121: 0 | DL121: =TA_VAD!D16 -> 0 | DM121: 8704211010
A122: j) VAD SER 100 Empresa Convencional | B122: =+Historico!O122 -> 0.962 | C122: 0.9641 | D122: 0.002182952183 | F122: =IF(IF(ResumenIndicadores!$G$11="Ft-1",B122,C122)=0,"",IF(ResumenIndicadores!$G$11="Ft-1",B122,C122)) -> 0.962 | N122: Convencional | Q122: 0.6345 | R122: 0.3575 | S122: 0.008 | T122: 0 | Y122: Convencional | AB122: 0.6345 | AC122: 0.3575 | AD122: 0.008 | AE122: 0 | AJ122: Convencional | AM122: 1.044345414 | AN122: 0.8239974539 | AO122: 0.8609475589 | AP122: 0 | AU122: Convencional | AX122: =DK92 -> 207.345341 | AY122: =DL92*(1+BD122) -> 2.589 | AZ122: =DM92*DL92*(1+DL123) -> 930.2988975 | BA122: 0 | BD122: 0 | BE122: =DT108 -> 0.011 | BF122: =DT109 -> 0.8758 | BG122: =DT110 -> 0.0016 | BH122: =DT111 -> 0.0755 | BI122: =DT112 -> 0 | BJ122: =DT113 -> 0.0361 | BK122: =DT114 -> 0 | BL122: =DL116 -> 0 | BM122: =DL117 -> 0 | BN122: =DL118 -> 0 | BO122: =DL119 -> 0 | BP122: =DL120 -> 0.06 | BQ122: =DL121 -> 0 | BR122: =DL122 -> 0 | CC122: Convencional | CF122: =DK91 -> 198.54096 | CG122: =DL91*(1+CL122) -> 3.142 | CH122: =DM91*DL91*(1+DK123) -> 1080.552338 | CI122: 0 | CL122: 0 | CM122: =DT108 -> 0.011 | CN122: =DT109 -> 0.8758 | CO122: =DT110 -> 0.0016 | CP122: =DT111 -> 0.0755 | CQ122: =DT112 -> 0 | CR122: =DT113 -> 0.0361 | CS122: =DT114 -> 0 | CT122: =DK116 -> 0 | CU122: =DK117 -> 0 | CV122: =DK118 -> 0 | CW122: =DK119 -> 0 | CX122: =DK120 -> 0.09 | CY122: =DK121 -> 0 | CZ122: =DK122 -> 0 | DI122: (7) VAD | DJ122: 9028.30.10.00 | DK122: 0 | DL122: =TA_VAD!D17 -> 0 | DM122: 9028301000
F123: =IF(IF(ResumenIndicadores!$G$11="Ft-1",B123,C123)=0,"",IF(ResumenIndicadores!$G$11="Ft-1",B123,C123)) ->  | AI123: 4. Cargos Fijos (Componentes) | AM123: IPM / IPMo | AT123: 4. Cargos Fijos (Componentes) | AX123: IPM / IPMo | CB123: 4. Cargos Fijos (Componentes) | CF123: IPM / IPMo | DI123: (8) Cobre | DJ123: 7413.00.00.00 | DK123: 0.09 | DL123: =TA_VAD!D18 -> 0 | DM123: 7413000000
A124: 4. CARGOS FIJOS | B124: =+Historico!O124 -> 1.0414 | C124: =ROUND(AM124,4) -> 1.0443 | D124: 0.002784712886 | F124: =IF(IF(ResumenIndicadores!$G$11="Ft-1",B124,C124)=0,"",IF(ResumenIndicadores!$G$11="Ft-1",B124,C124)) -> 1.0414 | AI124: CARGOS FIJOS | AM124: =AX124/CF124 -> 1.044345414 | AT124: CARGOS FIJOS | AX124: =DK92 -> 207.345341 | CB124: CARGOS FIJOS | CF124: =DK91 -> 198.54096 | DI124: (9) Aluminio | DJ124: 7614.90.00.00 | DK124: 0 | DL124: =TA_VAD!D19 -> 0 | DM124: 7614900000
F125: =IF(IF(ResumenIndicadores!$G$11="Ft-1",B125,C125)=0,"",IF(ResumenIndicadores!$G$11="Ft-1",B125,C125)) ->  | AI125: 5. E.Reactiva (Componentes) | AM125: TC / TCo | AT125: 5. E.Reactiva (Componentes) | AX125: TC / TCo | CB125: 5. E.Reactiva (Componentes) | CF125: TC / TCo | DI125: Indicadores Macroeconómicos de PrePago
A126: 5. ENERGÍA REACTIVA (FACER) | B126: =+Historico!O126 -> 0.8234 | C126: =ROUND(AM126,4) -> 0.824 | D126: 0.0007286859364 | F126: =IF(IF(ResumenIndicadores!$G$11="Ft-1",B126,C126)=0,"",IF(ResumenIndicadores!$G$11="Ft-1",B126,C126)) -> 0.8234 | AI126: ENERGÍA REACTIVA (FACER) | AM126: =AX126/CF126 -> 0.8239974539 | AT126: ENERGÍA REACTIVA (FACER) | AX126: =DL92 -> 2.589 | CB126: ENERGÍA REACTIVA (FACER) | CF126: =DL91 -> 3.142 | DJ126: Fecha | DK126: IPM
F127: =IF(IF(ResumenIndicadores!$G$11="Ft-1",B127,C127)=0,"",IF(ResumenIndicadores!$G$11="Ft-1",B127,C127)) ->  | AI127: 6. PrePago (Componentes) | AM127: IPMprepagod / IPMprepago(o) | AT127: 6. PrePago (Componentes) | AX127: IPMprepagod / IPMprepago(o) | CB127: 6. PrePago (Componentes) | CF127: IPMprepagod / IPMprepago(o) | DI127: Valores Base | DJ127: Resolucion Base | DK127: 172.301372
A128: FACCSP (Cargo Comercial del Servicio Prepago) Res. N° 442-2006-OS/CD | B128: =+Historico!O128 -> 1.1991 | C128: =ROUND(AM128,4) -> 1.2 | D128: 0.0007505629222 | F128: =IF(IF(ResumenIndicadores!$G$11="Ft-1",B128,C128)=0,"",IF(ResumenIndicadores!$G$11="Ft-1",B128,C128)) -> 1.1991 | AI128: FACCSP (Cargo Comercial del Servicio Prepago) Res. 442-2006-OS/CD | AM128: =AX128/CF128 -> 1.200005314 | AT128: FACCSP (Cargo Comercial del Servicio Prepago) Res. 442-2006-OS/CD | AX128: =DK128 -> 206.762562 | CB128: FACCSP (Cargo Comercial del Servicio Prepago) Res. 442-2006-OS/CD | CF128: =DK127 -> 172.301372 | DI128: Valores Actuales | DJ128: Indicador actualizado | DK128: ='ALUMINIO-COBRE-TC-IPM'!H8 -> 206.762562
F129: =IF(IF(ResumenIndicadores!$G$11="Ft-1",B129,C129)=0,"",IF(ResumenIndicadores!$G$11="Ft-1",B129,C129)) ->  | DP129: Ponderadores de las Partida Arancelarias de la Conexión y Mantenimiento
A130: C.2 DISTRIBUCIÓN - PRESUPUESTOS DE CONEXIÓN - Res. Nº 153-2011-OS/CD | B130: =+Historico!O130 ->  | F130: =IF(IF(ResumenIndicadores!$G$11="Ft-1",B130,C130)=0,"",IF(ResumenIndicadores!$G$11="Ft-1",B130,C130)) ->  | M130: Conexión (Ponderadores Efectivos) | Q130: IPM / IPMo | R130: [TC/TCo]*[(1+TA)/(1+TAo)] | S130: [IPCu/IPCuo]*[TC/TCo]*[(1+TACu)/(1+TACuo)] | T130: [IPAl/IPAlo]*[TC/TCo]*[(1+TAAl)/(1+TAAlo)] | X130: Conexión (Ponderadores) | AB130: IPM / IPMo | AC130: [TC/TCo]*[(1+TA)/(1+TAo)] | AD130: [IPCu/IPCuo]*[TC/TCo]*[(1+TACu)/(1+TACuo)] | AE130: [IPAl/IPAlo]*[TC/TCo]*[(1+TAAl)/(1+TAAlo)] | AI130: Conexión (Componentes) | AM130: IPM / IPMo | AN130: [TC/TCo]*[(1+TA)/(1+TAo)] | AO130: [IPCu/IPCuo]*[TC/TCo]*[(1+TACu)/(1+TACuo)] | AP130: [IPAl/IPAlo]*[TC/TCo]*[(1+TAAl)/(1+TAAlo)] | AT130: Conexión (V.actuales) | AX130: IPM / IPMo | AY130: [TC/TCo]*[(1+TA)/(1+TAo)] | AZ130: [IPCu/IPCuo]*[TC/TCo]*[(1+TACu)/(1+TACuo)] | BA130: [IPAl/IPAlo]*[TC/TCo]*[(1+TAAl)/(1+TAAlo)] | BD130: TA / TAo | BE130: Ponderadores | BG130: Tasa arancelaria por partida arancelaria | CB130: Conexión (V.Resolución) | CF130: IPM / IPMo | CG130: [TC/TCo]*[(1+TA)/(1+TAo)] | CH130: [IPCu/IPCuo]*[TC/TCo]*[(1+TACu)/(1+TACuo)] | CI130: [IPAl/IPAlo]*[TC/TCo]*[(1+TAAl)/(1+TAAlo)] | CL130: TA / TAo | CM130: Ponderadores | CO130: Tasa arancelaria por partida arancelaria | DI130: Indicadores Macroeconómicos de Conexión | DP130: 9028.30.90.00 | DQ130: 8535.30.00.00
A131: 1. PRESUPUESTOS Y CARGOS DE REPOSICIÓN DE LA CONEXIÓN | B131: =+Historico!O131 ->  | F131: =IF(IF(ResumenIndicadores!$G$11="Ft-1",B131,C131)=0,"",IF(ResumenIndicadores!$G$11="Ft-1",B131,C131)) ->  | M131: Presupuesto de la conexión | Q131: APC | R131: BPC | S131: CPC | T131: DPC | X131: Presupuesto de la conexión | AB131: APC | AC131: BPC | AD131: CPC | AE131: DPC | AI131: Presupuesto de la conexión | AM131: APC | AN131: BPC | AO131: CPC | AP131: DPC | AT131: Presupuesto de la conexión | AX131: APC | AY131: BPC | AZ131: CPC | BA131: DPC | BD131: TACNX | BE131: 9028.30.90.00 | BF131: 8535.30.00.00 | BG131: 9028.30.90.00 | BH131: 8535.30.00.00 | CB131: Presupuesto de la conexión | CF131: APC | CG131: BPC | CH131: CPC | CI131: DPC | CL131: TACNX | CM131: 9028.30.90.00 | CN131: 8535.30.00.00 | CO131: 9028.30.90.00 | CP131: 8535.30.00.00 | DI131: CONEXIÓN y MANTENIMIENTO
A132: Para conexiones | B132: =+Historico!O132 ->  | F132: =IF(IF(ResumenIndicadores!$G$11="Ft-1",B132,C132)=0,"",IF(ResumenIndicadores!$G$11="Ft-1",B132,C132)) ->  | M132: Para conexiones | X132: Para conexiones | AI132: Para conexiones | AT132: Para conexiones | CB132: Para conexiones | DJ132: Fecha | DK132: TC | DL132: IPM | DM132: IPCu | DN132: IPAl
A133: a) Conexiones en Baja Tensión - C1/C2 | B133: =+Historico!O133 -> 0.9755 | C133: =ROUND(AB133*AM133+AC133*AN133+AD133*AO133+AE133*AP133,4) -> 0.9764 | D133: =+C133/B133-1 -> 0.0009226037929 | F133: =IF(IF(ResumenIndicadores!$G$11="Ft-1",B133,C133)=0,"",IF(ResumenIndicadores!$G$11="Ft-1",B133,C133)) -> 0.9755 | M133: FAPC(1) | N133: a) Conexiones en Baja Tensión - C1/C2 | Q133: 0.3 | R133: 0.56 | S133: 0.12 | T133: 0.02 | X133: FAPC(1) | Y133: a) Conexiones en Baja Tensión - C1/C2 | AB133: 0.3 | AC133: 0.56 | AD133: 0.12 | AE133: 0.02 | AI133: FAPC(1) | AJ133: a) Conexiones en Baja Tensión - C1/C2 | AM133: =AX133/CF133 -> 1.0710185 | AN133: 0.9286226686 | AO133: 0.9752409373 | AP133: 0.9017793103 | AT133: FAPC(1) | AU133: a) Conexiones en Baja Tensión - C1/C2 | AX133: =DL134 -> 207.345341 | AY133: =DK134*(1+BD133) -> 2.589 | AZ133: =DM134*DK134*(1+DL138) -> 930.2988975 | BA133: =DN134*DK134*(1+DL139) -> 5179.221361 | BD133: =BE133*BG133+BF133*BH133 -> 0 | BE133: =DP133 -> 0.98 | BF133: 0.02 | BG133: =DL136 -> 0 | BH133: =DL137 -> 0 | CB133: FAPC(1) | CC133: a) Conexiones en Baja Tensión - C1/C2 | CF133: =DL133 -> 193.596414 | CG133: =DK133*(1+CL133) -> 2.788 | CH133: =DM133*DK133*(1+DK138) -> 953.916988 | CI133: =DN133*DK133*(1+DL139) -> 5743.33576 | CL133: =CM133*CO133+CN133*CP133 -> 0 | CM133: =DP133 -> 0.98 | CN133: 0.02 | CO133: =DK136 -> 0 | CP133: =DK137 -> 0 | DI133: Valores Base | DJ133: Resolucion Base | DK133: 2.788 | DL133: 193.596414 | DM133: 313.9 | DN133: 2060.02 | DO133: FAPC(1) | DP133: 0.98 | DQ133: 0.02
A134: b) Conexiones en Baja Tensión - C3/C4 | B134: =+Historico!O134 -> 0.9805 | C134: 0.9809 | D134: =+C134/B134-1 -> 0.0004079551249 | F134: =IF(IF(ResumenIndicadores!$G$11="Ft-1",B134,C134)=0,"",IF(ResumenIndicadores!$G$11="Ft-1",B134,C134)) -> 0.9805 | M134: FAPC(2) | N134: b) Conexiones en Baja Tensión - C3/C4 | Q134: 0.31 | R134: 0.42 | S134: 0.21 | T134: 0.06 | X134: FAPC(2) | Y134: b) Conexiones en Baja Tensión - C3/C4 | AB134: 0.31 | AC134: 0.42 | AD134: 0.21 | AE134: 0.06 | AI134: FAPC(2) | AJ134: b) Conexiones en Baja Tensión - C3/C4 | AM134: 1.0710185 | AN134: 0.9286226686 | AO134: 0.9752409373 | AP134: 0.9017793103 | AT134: FAPC(2) | AU134: b) Conexiones en Baja Tensión - C3/C4 | AX134: =DL134 -> 207.345341 | AY134: =DK134*(1+BD134) -> 2.589 | AZ134: =DM134*DK134*(1+DL138) -> 930.2988975 | BA134: =DN134*DK134*(1+DL139) -> 5179.221361 | BD134: =BE134*BG134+BF134*BH134 -> 0 | BE134: 0.92 | BF134: 0.08 | BG134: =DL136 -> 0 | BH134: =DL137 -> 0 | CB134: FAPC(2) | CC134: b) Conexiones en Baja Tensión - C3/C4 | CF134: =DL133 -> 193.596414 | CG134: =DK133*(1+CL134) -> 2.788 | CH134: =DM133*DK133*(1+DK138) -> 953.916988 | CI134: =DN133*DK133*(1+DL139) -> 5743.33576 | CL134: =CM134*CO134+CN134*CP134 -> 0 | CM134: 0.92 | CN134: 0.08 | CO134: =DK136 -> 0 | CP134: =DK137 -> 0 | DI134: Valores Actuales | DJ134: Indicador aplicable | DK134: =+'ALUMINIO-COBRE-TC-IPM'!F8 -> 2.589 | DL134: =+'ALUMINIO-COBRE-TC-IPM'!G8 -> 207.345341 | DM134: =+'ALUMINIO-COBRE-TC-IPM'!E8 -> 359.3275 | DN134: =+'ALUMINIO-COBRE-TC-IPM'!D8 -> 2000.47175 | DO134: FAPC(2) | DP134: 0.92 | DQ134: 0.08
A135: c) Conexiones Básicas en Media Tensión (PMI y Celda) - C5 | B135: =+Historico!O135 -> 0.9517 | C135: 0.9528 | D135: =+C135/B135-1 -> 0.001155826416 | F135: =IF(IF(ResumenIndicadores!$G$11="Ft-1",B135,C135)=0,"",IF(ResumenIndicadores!$G$11="Ft-1",B135,C135)) -> 0.9517 | M135: FAPC(3) | N135: c) Conexiones Básicas en Media Tensión (PMI y Celda) - C5 | Q135: 0.17 | R135: 0.83 | S135: 0 | T135: 0 | X135: FAPC(3) | Y135: c) Conexiones Básicas en Media Tensión (PMI y Celda) - C5 | AB135: 0.17 | AC135: 0.83 | AD135: 0 | AE135: 0 | AI135: FAPC(3) | AJ135: c) Conexiones Básicas en Media Tensión (PMI y Celda) - C5 | AM135: =AX135/CF135 -> 1.0710185 | AN135: =AY135/CG135 -> 0.9286226686 | AO135: 0 | AP135: 0 | AT135: FAPC(3) | AU135: c) Conexiones Básicas en Media Tensión (PMI y Celda) - C5 | AX135: =DL134 -> 207.345341 | AY135: =DK134*(1+BD135) -> 2.589 | AZ135: 0 | BA135: 0 | BD135: =BE135*BG135+BF135*BH135 -> 0 | BE135: 1 | BF135: 0 | BG135: =DL136 -> 0 | BH135: =DL137 -> 0 | CB135: FAPC(3) | CC135: c) Conexiones Básicas en Media Tensión (PMI y Celda) - C5 | CF135: =DL133 -> 193.596414 | CG135: =DK133*(1+CL135) -> 2.788 | CH135: 0 | CI135: 0 | CL135: =CM135*CO135+CN135*CP135 -> 0 | CM135: 1 | CN135: 0 | CO135: =DK136 -> 0 | CP135: =DK137 -> 0 | DJ135: PARTIDA | DK135: Valor Base | DL135: Valor actual | DM135: Codigo | DO135: FAPC(3) | DP135: 1 | DQ135: 0
A136: d) Otros Elementos Electromecánicos en Media Tensión - C5 | B136: =+Historico!O136 -> 0.9981 | C136: 0.9986 | D136: =+C136/B136-1 -> 0.0005009518084 | F136: =IF(IF(ResumenIndicadores!$G$11="Ft-1",B136,C136)=0,"",IF(ResumenIndicadores!$G$11="Ft-1",B136,C136)) -> 0.9981 | M136: FAPC(4) | N136: d) Otros Elementos Electromecánicos en Media Tensión - C5 | Q136: 0.39 | R136: 0.3 | S136: 0.31 | T136: 0 | X136: FAPC(4) | Y136: d) Otros Elementos Electromecánicos en Media Tensión - C5 | AB136: 0.39 | AC136: 0.3 | AD136: 0.31 | AE136: 0 | AI136: FAPC(4) | AJ136: d) Otros Elementos Electromecánicos en Media Tensión - C5 | AM136: =AX136/CF136 -> 1.0710185 | AN136: =AY136/CG136 -> 0.9286226686 | AO136: =AZ136/CH136 -> 0.9752409373 | AP136: 0 | AT136: FAPC(4) | AU136: d) Otros Elementos Electromecánicos en Media Tensión - C5 | AX136: =DL134 -> 207.345341 | AY136: =DK134*(1+BD136) -> 2.589 | AZ136: =DM134*DK134*(1+DL138) -> 930.2988975 | BA136: 0 | BD136: =BE136*BG136+BF136*BH136 -> 0 | BE136: 0 | BF136: 1 | BG136: =DL136 -> 0 | BH136: =DL137 -> 0 | CB136: FAPC(4) | CC136: d) Otros Elementos Electromecánicos en Media Tensión - C5 | CF136: =DL133 -> 193.596414 | CG136: =DK133*(1+CL136) -> 2.788 | CH136: =DM133*DK133*(1+DK138) -> 953.916988 | CI136: 0 | CL136: =CM136*CO136+CN136*CP136 -> 0 | CM136: 0 | CN136: 1 | CO136: =DK136 -> 0 | CP136: =DK137 -> 0 | DI136: (10) Conexión 1 | DJ136: 9028.30.90.00 | DK136: 0 | DL136: =TA_VAD!D20 -> 0 | DM136: 9028309000 | DO136: FAPC(4) | DP136: 0 | DQ136: 1
A137: e) Vereda, Murete, Mástil y Protección de Estructuras - C1/C2/C3/C4/C5 | B137: =+Historico!O137 -> 1.068 | C137: 1.071 | D137: =+C137/B137-1 -> 0.002808988764 | F137: =IF(IF(ResumenIndicadores!$G$11="Ft-1",B137,C137)=0,"",IF(ResumenIndicadores!$G$11="Ft-1",B137,C137)) -> 1.068 | M137: FAPC(5) | N137: e) Vereda, Murete, Mástil y Protección de Estructuras - C1/C2/C3/C4/C5 | Q137: 1 | R137: 0 | S137: 0 | T137: 0 | X137: FAPC(5) | Y137: e) Vereda, Murete, Mástil y Protección de Estructuras - C1/C2/C3/C4/C5 | AB137: 1 | AC137: 0 | AD137: 0 | AE137: 0 | AI137: FAPC(5) | AJ137: e) Vereda, Murete, Mástil y Protección de Estructuras - C1/C2/C3/C4/C5 | AM137: =AX137/CF137 -> 1.0710185 | AN137: 0 | AO137: 0 | AP137: 0 | AT137: FAPC(5) | AU137: e) Vereda, Murete, Mástil y Protección de Estructuras - C1/C2/C3/C4/C5 | AX137: =DL134 -> 207.345341 | AY137: 0 | AZ137: 0 | BA137: 0 | BD137: =BE137*BG137+BF137*BH137 -> 0 | BE137: 0 | BF137: 1 | BG137: =DL136 -> 0 | BH137: =DL137 -> 0 | CB137: FAPC(5) | CC137: e) Vereda, Murete, Mástil y Protección de Estructuras - C1/C2/C3/C4/C5 | CF137: =DL133 -> 193.596414 | CG137: 0 | CH137: 0 | CI137: 0 | CL137: =CM137*CO137+CN137*CP137 -> 0 | CM137: 0 | CN137: 1 | CO137: =DK136 -> 0 | CP137: =DK137 -> 0 | DI137: (11) Conexión 2 | DJ137: 8535.30.00.00 | DK137: 0 | DL137: =TA_VAD!D21 -> 0 | DM137: 8535300000 | DO137: FAPC(5) | DP137: 0 | DQ137: 1
A138: Para cambio a conexión prepago | B138: =+Historico!O138 ->  | F138: =IF(IF(ResumenIndicadores!$G$11="Ft-1",B138,C138)=0,"",IF(ResumenIndicadores!$G$11="Ft-1",B138,C138)) ->  | M138: Para cambio a conexión prepago | X138: Para cambio a conexión prepago | AI138: Para cambio a conexión prepago | AT138: Para cambio a conexión prepago | CB138: Para cambio a conexión prepago | DI138: (8) Cobre | DJ138: 7413.00.00.00 | DK138: 0.09 | DL138: =TA_VAD!D18 -> 0 | DM138: 7413000000
A139: a) Conexiones en Baja Tensión - C1/C2 | B139: =+Historico!O139 -> 0.9675 | C139: 0.9683 | D139: =+C139/B139-1 -> 0.000826873385 | F139: =IF(IF(ResumenIndicadores!$G$11="Ft-1",B139,C139)=0,"",IF(ResumenIndicadores!$G$11="Ft-1",B139,C139)) -> 0.9675 | M139: FAPC(6) | N139: a) Conexiones en Baja Tensión - C1/C2 | Q139: 0.25 | R139: 0.63 | S139: 0.1 | T139: 0.02 | X139: FAPC(6) | Y139: a) Conexiones en Baja Tensión - C1/C2 | AB139: 0.25 | AC139: 0.63 | AD139: 0.1 | AE139: 0.02 | AI139: FAPC(6) | AJ139: a) Conexiones en Baja Tensión - C1/C2 | AM139: =AX139/CF139 -> 1.0710185 | AN139: =AY139/CG139 -> 0.9286226686 | AO139: =AZ139/CH139 -> 0.9752409373 | AP139: =BA139/CI139 -> 0.9017793103 | AT139: FAPC(6) | AU139: a) Conexiones en Baja Tensión - C1/C2 | AX139: =DL134 -> 207.345341 | AY139: =DK134*(1+BD139) -> 2.589 | AZ139: =DM134*DK134*(1+DL138) -> 930.2988975 | BA139: =DN134*DK134*(1+DL139) -> 5179.221361 | BD139: =BE139*BG139+BF139*BH139 -> 0 | BE139: =DP139 -> 0.98 | BF139: =DQ139 -> 0.02 | BG139: =DL136 -> 0 | BH139: =DL137 -> 0 | CB139: FAPC(6) | CC139: a) Conexiones en Baja Tensión - C1/C2 | CF139: =DL133 -> 193.596414 | CG139: =DK133*(1+CL139) -> 2.788 | CH139: =DM133*DK133*(1+DK138) -> 953.916988 | CI139: =DN133*DK133*(1+DL139) -> 5743.33576 | CL139: =CM139*CO139+CN139*CP139 -> 0 | CM139: =DP139 -> 0.98 | CN139: =DQ139 -> 0.02 | CO139: =DK136 -> 0 | CP139: =DK137 -> 0 | DI139: (9) Aluminio | DJ139: 7614.90.00.00 | DK139: 0 | DL139: =TA_VAD!D19 -> 0 | DM139: 7614900000 | DO139: FAPC(6) | DP139: 0.98 | DQ139: 0.02
A140: Para costos por metro de cable | B140: =+Historico!O140 ->  | F140: =IF(IF(ResumenIndicadores!$G$11="Ft-1",B140,C140)=0,"",IF(ResumenIndicadores!$G$11="Ft-1",B140,C140)) ->  | M140: Para costos por metro de cable | X140: Para costos por metro de cable | AI140: Para costos por metro de cable | AT140: Para costos por metro de cable | CB140: Para costos por metro de cable
A141: a) Conexiones en Baja Tensión - C1/C2 | B141: =+Historico!O141 -> 1.0015 | C141: 1.0001 | D141: =+C141/B141-1 -> -0.001397903145 | F141: =IF(IF(ResumenIndicadores!$G$11="Ft-1",B141,C141)=0,"",IF(ResumenIndicadores!$G$11="Ft-1",B141,C141)) -> 1.0015 | M141: FAPC(7) | N141: a) Conexiones en Baja Tensión - C1/C2 | Q141: 0.26 | R141: 0 | S141: 0.74 | T141: 0 | X141: FAPC(7) | Y141: a) Conexiones en Baja Tensión - C1/C2 | AB141: 0.26 | AC141: 0 | AD141: 0.74 | AE141: 0 | AI141: FAPC(7) | AJ141: a) Conexiones en Baja Tensión - C1/C2 | AM141: =AX141/CF141 -> 1.0710185 | AN141: 0 | AO141: =AZ141/CH141 -> 0.9752409373 | AP141: 0 | AT141: FAPC(7) | AU141: a) Conexiones en Baja Tensión - C1/C2 | AX141: =DL134 -> 207.345341 | AY141: 0 | AZ141: =DM134*DK134*(1+DL138) -> 930.2988975 | BA141: 0 | BD141: =BE141*BG141+BF141*BH141 -> 0 | BE141: =DP141 -> 0 | BF141: =DQ141 -> 1 | BG141: =DL136 -> 0 | BH141: =DL137 -> 0 | CB141: FAPC(7) | CC141: a) Conexiones en Baja Tensión - C1/C2 | CF141: =DL133 -> 193.596414 | CG141: 0 | CH141: =DM133*DK133*(1+DK138) -> 953.916988 | CI141: 0 | CL141: =CM141*CO141+CN141*CP141 -> 0 | CM141: =DP141 -> 0 | CN141: =DQ141 -> 1 | CO141: =DK136 -> 0 | CP141: =DK137 -> 0 | DO141: FAPC(7) | DP141: 0 | DQ141: 1
A142: 2. MANTENIMIENTO DE LA CONEXIÓN | B142: =+Historico!O142 ->  | F142: =IF(IF(ResumenIndicadores!$G$11="Ft-1",B142,C142)=0,"",IF(ResumenIndicadores!$G$11="Ft-1",B142,C142)) ->  | M142: Reposición y Mantenimiento | Q142: ACM | R142: BCM | S142: CCM | T142: DCM | X142: Reposición y Mantenimiento | AB142: ACM | AC142: BCM | AD142: CCM | AE142: DCM | AI142: Reposición y Mantenimiento | AM142: ACM | AN142: BCM | AO142: CCM | AP142: DCM | AT142: Reposición y Mantenimiento | AX142: ACM | AY142: BCM | AZ142: CCM | BA142: DCM | CB142: Reposición y Mantenimiento | CF142: ACM | CG142: BCM | CH142: CCM | CI142: DCM
A143: a) Conexiones en Baja Tensión - C1/C2 | B143: =+Historico!O143 -> 1.0512 | C143: =ROUND(AB143*AM143+AC143*AN143+AD143*AO143+AE143*AP143,4) -> 1.0539 | D143: =+C143/B143-1 -> 0.002568493151 | F143: =IF(IF(ResumenIndicadores!$G$11="Ft-1",B143,C143)=0,"",IF(ResumenIndicadores!$G$11="Ft-1",B143,C143)) -> 1.0512 | M143: FACM(1) | N143: a) Conexiones en Baja Tensión - C1/C2 (Conexiones Aéreas, Subterráneas, Subterráneas Múltiples y Mixtas en Baja Tensión) | Q143: 0.88 | R143: 0.12 | S143: 0 | T143: 0 | X143: FACM(1) | Y143: a) Conexiones en Baja Tensión - C1/C2 (Conexiones Aéreas, Subterráneas, Subterráneas Múltiples y Mixtas en Baja Tensión) | AB143: 0.88 | AC143: 0.12 | AD143: 0 | AE143: 0 | AI143: FACM(1) | AJ143: a) Conexiones en Baja Tensión - C1/C2 (Conexiones Aéreas, Subterráneas, Subterráneas Múltiples y Mixtas en Baja Tensión) | AM143: =AX143/CF143 -> 1.0710185 | AN143: =AY143/CG143 -> 0.9286226686 | AO143: 0 | AP143: 0 | AT143: FACM(1) | AU143: a) Conexiones en Baja Tensión - C1/C2 (Conexiones Aéreas, Subterráneas, Subterráneas Múltiples y Mixtas en Baja Tensión) | AX143: =DL134 -> 207.345341 | AY143: =DK134*(1+BD143) -> 2.589 | AZ143: 0 | BA143: 0 | BD143: =BE143*BG143+BF143*BH143 -> 0 | BE143: =DP143 -> 0.93 | BF143: =DQ143 -> 0.07 | BG143: =DL136 -> 0 | BH143: =DL137 -> 0 | CB143: FACM(1) | CC143: a) Conexiones en Baja Tensión - C1/C2 (Conexiones Aéreas, Subterráneas, Subterráneas Múltiples y Mixtas en Baja Tensión) | CF143: =DL133 -> 193.596414 | CG143: =DK133*(1+CL143) -> 2.788 | CH143: 0 | CI143: 0 | CL143: =CM143*CO143+CN143*CP143 -> 0 | CM143: =DP143 -> 0.93 | CN143: =DQ143 -> 0.07 | CO143: =DK136 -> 0 | CP143: =DK137 -> 0 | DO143: FACM(1) | DP143: 0.93 | DQ143: 0.07
A144: b) Conexiones en Baja y Media Tensión (PMI y Celda) - C3/C4/C5 | B144: =+Historico!O144 -> 1.0596 | C144: 1.0625 | D144: =+C144/B144-1 -> 0.002736881842 | F144: =IF(IF(ResumenIndicadores!$G$11="Ft-1",B144,C144)=0,"",IF(ResumenIndicadores!$G$11="Ft-1",B144,C144)) -> 1.0596 | M144: FACM(2) | N144: b) Conexiones en Baja y Media Tensión (PMI y Celda) - C3/C4/C5 (Conexiones Aéreas, Mixtas y Subterráneas en Baja Tensión Conexiones en Media Tensión (PMI y Celda)) | Q144: 0.94 | R144: 0.06 | S144: 0 | T144: 0 | X144: FACM(2) | Y144: b) Conexiones en Baja y Media Tensión (PMI y Celda) - C3/C4/C5 (Conexiones Aéreas, Mixtas y Subterráneas en Baja Tensión Conexiones en Media Tensión (PMI y Celda)) | AB144: 0.94 | AC144: 0.06 | AD144: 0 | AE144: 0 | AI144: FACM(2) | AJ144: b) Conexiones en Baja y Media Tensión (PMI y Celda) - C3/C4/C5 (Conexiones Aéreas, Mixtas y Subterráneas en Baja Tensión Conexiones en Media Tensión (PMI y Celda)) | AM144: =AX144/CF144 -> 1.0710185 | AN144: =AY144/CG144 -> 0.9286226686 | AO144: 0 | AP144: 0 | AT144: FACM(2) | AU144: b) Conexiones en Baja y Media Tensión (PMI y Celda) - C3/C4/C5 (Conexiones Aéreas, Mixtas y Subterráneas en Baja Tensión Conexiones en Media Tensión (PMI y Celda)) | AX144: =DL134 -> 207.345341 | AY144: =DK134*(1+BD144) -> 2.589 | AZ144: 0 | BA144: 0 | BD144: =BE144*BG144+BF144*BH144 -> 0 | BE144: =DP144 -> 0.95 | BF144: =DQ144 -> 0.05 | BG144: =DL136 -> 0 | BH144: =DL137 -> 0 | CB144: FACM(2) | CC144: b) Conexiones en Baja y Media Tensión (PMI y Celda) - C3/C4/C5 (Conexiones Aéreas, Mixtas y Subterráneas en Baja Tensión Conexiones en Media Tensión (PMI y Celda)) | CF144: =DL133 -> 193.596414 | CG144: =DK133*(1+CL144) -> 2.788 | CH144: 0 | CI144: 0 | CL144: =CM144*CO144+CN144*CP144 -> 0 | CM144: =DP144 -> 0.95 | CN144: =DQ144 -> 0.05 | CO144: =DK136 -> 0 | CP144: =DK137 -> 0 | DO144: FACM(2) | DP144: 0.95 | DQ144: 0.05
F145: =IF(IF(ResumenIndicadores!$G$11="Ft-1",B145,C145)=0,"",IF(ResumenIndicadores!$G$11="Ft-1",B145,C145)) -> 
F146: =IF(IF(ResumenIndicadores!$G$11="Ft-1",B146,C146)=0,"",IF(ResumenIndicadores!$G$11="Ft-1",B146,C146)) ->  | M146: Corte y Reconexión (Ponderadores Efectivos) | X146: Corte y Reconexión (Ponderadores) | AI146: Corte y Reconexión (Componentes) | AT146: Corte y Reconexión (V.actuales) | CB146: Corte y Reconexión (V.Resolución) | DI146: Indicadores Macroeconómicos de Corte y Reconexión
A147: C.3. DISTRIBUCIÓN - CORTE Y RECONEXIÓN (FAIM) - Res. Nº 159-2011-OS/CD | B147: =+Historico!O147 ->  | F147: =IF(IF(ResumenIndicadores!$G$11="Ft-1",B147,C147)=0,"",IF(ResumenIndicadores!$G$11="Ft-1",B147,C147)) ->  | DJ147: Fecha | DK147: IPM
F148: =IF(IF(ResumenIndicadores!$G$11="Ft-1",B148,C148)=0,"",IF(ResumenIndicadores!$G$11="Ft-1",B148,C148)) ->  | AI148: Corte y Reconexión | AM148: IPM / IPMo | AT148: Corte y Reconexión | AX148: IPM / IPMo | CB148: Corte y Reconexión | CF148: IPM / IPMo | DI148: Valores Base | DJ148: Resolucion Base | DK148: 199.037811
A149: a) Corte y Reconexión | B149: =+Historico!O149 -> 1.0388 | C149: =+ROUND(AM149,4) -> 1.0417 | D149: =+C149/B149-1 -> 0.002791682711 | F149: =IF(IF(ResumenIndicadores!$G$11="Ft-1",B149,C149)=0,"",IF(ResumenIndicadores!$G$11="Ft-1",B149,C149)) -> 1.0388 | AI149: FAIM(1) | AJ149: a) Corte y Reconexión | AM149: =AX149/CF149 -> 1.041738451 | AT149: FAIM(1) | AU149: a) Corte y Reconexión | AX149: =DK149 -> 207.345341 | CB149: FAIM(1) | CC149: a) Corte y Reconexión | CF149: =DK148 -> 199.037811 | DI149: Valores Actuales | DJ149: Indicador actualizado | DK149: =+'ALUMINIO-COBRE-TC-IPM'!G8 -> 207.345341
C151: Factor que motiva ajuste

Sheet Historico
A1: HISTÓRICO DE LOS FACTORES DE ACTUALIZACIÓN TARIFARIA
A5: Descripción | B5: 1 | C5: =IF(OR(AND(MONTH(D5)=5,DAY(D5)=4),AND(MONTH(D5)=11,DAY(D5)=4)),DATE(YEAR(D5),MONTH(D5),DAY(D5)-3),IF(OR(AND(MONTH(D5)=5,DAY(D5)=1),AND(MONTH(D5)=11,DAY(D5)=1)),DATE(YEAR(D5),MONTH(D5)-1,DAY(D5)+3),DATE(YEAR(D5),MONTH(D5)-1,DAY(D5)))) -> 2012-05-01 | D5: =IF(OR(AND(MONTH(E5)=5,DAY(E5)=4),AND(MONTH(E5)=11,DAY(E5)=4)),DATE(YEAR(E5),MONTH(E5),DAY(E5)-3),IF(OR(AND(MONTH(E5)=5,DAY(E5)=1),AND(MONTH(E5)=11,DAY(E5)=1)),DATE(YEAR(E5),MONTH(E5)-1,DAY(E5)+3),DATE(YEAR(E5),MONTH(E5)-1,DAY(E5)))) -> 2012-05-04 | E5: =IF(OR(AND(MONTH(F5)=5,DAY(F5)=4),AND(MONTH(F5)=11,DAY(F5)=4)),DATE(YEAR(F5),MONTH(F5),DAY(F5)-3),IF(OR(AND(MONTH(F5)=5,DAY(F5)=1),AND(MONTH(F5)=11,DAY(F5)=1)),DATE(YEAR(F5),MONTH(F5)-1,DAY(F5)+3),DATE(YEAR(F5),MONTH(F5)-1,DAY(F5)))) -> 2012-06-04 | F5: =IF(OR(AND(MONTH(G5)=5,DAY(G5)=4),AND(MONTH(G5)=11,DAY(G5)=4)),DATE(YEAR(G5),MONTH(G5),DAY(G5)-3),IF(OR(AND(MONTH(G5)=5,DAY(G5)=1),AND(MONTH(G5)=11,DAY(G5)=1)),DATE(YEAR(G5),MONTH(G5)-1,DAY(G5)+3),DATE(YEAR(G5),MONTH(G5)-1,DAY(G5)))) -> 2012-07-04 | G5: =IF(OR(AND(MONTH(H5)=5,DAY(H5)=4),AND(MONTH(H5)=11,DAY(H5)=4)),DATE(YEAR(H5),MONTH(H5),DAY(H5)-3),IF(OR(AND(MONTH(H5)=5,DAY(H5)=1),AND(MONTH(H5)=11,DAY(H5)=1)),DATE(YEAR(H5),MONTH(H5)-1,DAY(H5)+3),DATE(YEAR(H5),MONTH(H5)-1,DAY(H5)))) -> 2012-08-04 | H5: =IF(OR(AND(MONTH(I5)=5,DAY(I5)=4),AND(MONTH(I5)=11,DAY(I5)=4)),DATE(YEAR(I5),MONTH(I5),DAY(I5)-3),IF(OR(AND(MONTH(I5)=5,DAY(I5)=1),AND(MONTH(I5)=11,DAY(I5)=1)),DATE(YEAR(I5),MONTH(I5)-1,DAY(I5)+3),DATE(YEAR(I5),MONTH(I5)-1,DAY(I5)))) -> 2012-09-04 | I5: =IF(OR(AND(MONTH(J5)=5,DAY(J5)=4),AND(MONTH(J5)=11,DAY(J5)=4)),DATE(YEAR(J5),MONTH(J5),DAY(J5)-3),IF(OR(AND(MONTH(J5)=5,DAY(J5)=1),AND(MONTH(J5)=11,DAY(J5)=1)),DATE(YEAR(J5),MONTH(J5)-1,DAY(J5)+3),DATE(YEAR(J5),MONTH(J5)-1,DAY(J5)))) -> 2012-10-04 | J5: =IF(OR(AND(MONTH(K5)=5,DAY(K5)=4),AND(MONTH(K5)=11,DAY(K5)=4)),DATE(YEAR(K5),MONTH(K5),DAY(K5)-3),IF(OR(AND(MONTH(K5)=5,DAY(K5)=1),AND(MONTH(K5)=11,DAY(K5)=1)),DATE(YEAR(K5),MONTH(K5)-1,DAY(K5)+3),DATE(YEAR(K5),MONTH(K5)-1,DAY(K5)))) -> 2012-11-01 | K5: =IF(OR(AND(MONTH(L5)=5,DAY(L5)=4),AND(MONTH(L5)=11,DAY(L5)=4)),DATE(YEAR(L5),MONTH(L5),DAY(L5)-3),IF(OR(AND(MONTH(L5)=5,DAY(L5)=1),AND(MONTH(L5)=11,DAY(L5)=1)),DATE(YEAR(L5),MONTH(L5)-1,DAY(L5)+3),DATE(YEAR(L5),MONTH(L5)-1,DAY(L5)))) -> 2012-11-04 | L5: =IF(OR(AND(MONTH(M5)=5,DAY(M5)=4),AND(MONTH(M5)=11,DAY(M5)=4)),DATE(YEAR(M5),MONTH(M5),DAY(M5)-3),IF(OR(AND(MONTH(M5)=5,DAY(M5)=1),AND(MONTH(M5)=11,DAY(M5)=1)),DATE(YEAR(M5),MONTH(M5)-1,DAY(M5)+3),DATE(YEAR(M5),MONTH(M5)-1,DAY(M5)))) -> 2012-12-04 | M5: =IF(OR(AND(MONTH(N5)=5,DAY(N5)=4),AND(MONTH(N5)=11,DAY(N5)=4)),DATE(YEAR(N5),MONTH(N5),DAY(N5)-3),IF(OR(AND(MONTH(N5)=5,DAY(N5)=1),AND(MONTH(N5)=11,DAY(N5)=1)),DATE(YEAR(N5),MONTH(N5)-1,DAY(N5)+3),DATE(YEAR(N5),MONTH(N5)-1,DAY(N5)))) -> 2013-01-04 | N5: =IF(OR(AND(MONTH(O5)=5,DAY(O5)=4),AND(MONTH(O5)=11,DAY(O5)=4)),DATE(YEAR(O5),MONTH(O5),DAY(O5)-3),IF(OR(AND(MONTH(O5)=5,DAY(O5)=1),AND(MONTH(O5)=11,DAY(O5)=1)),DATE(YEAR(O5),MONTH(O5)-1,DAY(O5)+3),DATE(YEAR(O5),MONTH(O5)-1,DAY(O5)))) -> 2013-02-04 | O5: 2013-03-04 | P5: =Condiciones!C3 -> 2013-04-04
A6: A. GENERACIÓN - TARIFAS EN BARRA (Res. N° 057-2012-OS/CD) | C6: =IF($B6="","",VLOOKUP(C$5,BBDD!$7:$1048576,$B6,FALSE)) ->  | D6: =IF($B6="","",VLOOKUP(D$5,BBDD!$7:$1048576,$B6,FALSE)) ->  | E6: =IF($B6="","",VLOOKUP(E$5,BBDD!$7:$1048576,$B6,FALSE)) ->  | F6: =IF($B6="","",VLOOKUP(F$5,BBDD!$7:$1048576,$B6,FALSE)) ->  | G6: =IF($B6="","",VLOOKUP(G$5,BBDD!$7:$1048576,$B6,FALSE)) ->  | H6: =IF($B6="","",VLOOKUP(H$5,BBDD!$7:$1048576,$B6,FALSE)) ->  | I6: =IF($B6="","",VLOOKUP(I$5,BBDD!$7:$1048576,$B6,FALSE)) ->  | J6: =IF($B6="","",VLOOKUP(J$5,BBDD!$7:$1048576,$B6,FALSE)) ->  | K6: =IF($B6="","",VLOOKUP(K$5,BBDD!$7:$1048576,$B6,FALSE)) ->  | L6: =IF($B6="","",VLOOKUP(L$5,BBDD!$7:$1048576,$B6,FALSE)) ->  | M6: =IF($B6="","",VLOOKUP(M$5,BBDD!$7:$1048576,$B6,FALSE)) ->  | N6: =IF($B6="","",VLOOKUP(N$5,BBDD!$7:$1048576,$B6,FALSE)) ->  | O6: =IF($B6="","",VLOOKUP(O$5,BBDD!$7:$1048576,$B6,FALSE)) ->  | P6: =+Factores!F6 -> 
A7: 1. POTENCIA (FAPPM) | C7: =IF($B7="","",VLOOKUP(C$5,BBDD!$7:$1048576,$B7,FALSE)) ->  | D7: =IF($B7="","",VLOOKUP(D$5,BBDD!$7:$1048576,$B7,FALSE)) ->  | E7: =IF($B7="","",VLOOKUP(E$5,BBDD!$7:$1048576,$B7,FALSE)) ->  | F7: =IF($B7="","",VLOOKUP(F$5,BBDD!$7:$1048576,$B7,FALSE)) ->  | G7: =IF($B7="","",VLOOKUP(G$5,BBDD!$7:$1048576,$B7,FALSE)) ->  | H7: =IF($B7="","",VLOOKUP(H$5,BBDD!$7:$1048576,$B7,FALSE)) ->  | I7: =IF($B7="","",VLOOKUP(I$5,BBDD!$7:$1048576,$B7,FALSE)) ->  | J7: =IF($B7="","",VLOOKUP(J$5,BBDD!$7:$1048576,$B7,FALSE)) ->  | K7: =IF($B7="","",VLOOKUP(K$5,BBDD!$7:$1048576,$B7,FALSE)) ->  | L7: =IF($B7="","",VLOOKUP(L$5,BBDD!$7:$1048576,$B7,FALSE)) ->  | M7: =IF($B7="","",VLOOKUP(M$5,BBDD!$7:$1048576,$B7,FALSE)) ->  | N7: =IF($B7="","",VLOOKUP(N$5,BBDD!$7:$1048576,$B7,FALSE)) ->  | O7: =IF($B7="","",VLOOKUP(O$5,BBDD!$7:$1048576,$B7,FALSE)) ->  | P7: =+Factores!F7 -> 
A8: Sistema Eléctrico Interconectado Nacional (SEIN) | B8: 2 | C8: =IF($B8="","",VLOOKUP(C$5,BBDD!$7:$1048576,$B8,FALSE)) -> 1 | D8: =IF($B8="","",VLOOKUP(D$5,BBDD!$7:$1048576,$B8,FALSE)) -> 0.9926 | E8: =IF($B8="","",VLOOKUP(E$5,BBDD!$7:$1048576,$B8,FALSE)) -> 0.9926 | F8: =IF($B8="","",VLOOKUP(F$5,BBDD!$7:$1048576,$B8,FALSE)) -> 0.9926 | G8: =IF($B8="","",VLOOKUP(G$5,BBDD!$7:$1048576,$B8,FALSE)) -> 0.9926 | H8: =IF($B8="","",VLOOKUP(H$5,BBDD!$7:$1048576,$B8,FALSE)) -> 0.9926 | I8: =IF($B8="","",VLOOKUP(I$5,BBDD!$7:$1048576,$B8,FALSE)) -> 0.9788 | J8: =IF($B8="","",VLOOKUP(J$5,BBDD!$7:$1048576,$B8,FALSE)) -> 0.9788 | K8: =IF($B8="","",VLOOKUP(K$5,BBDD!$7:$1048576,$B8,FALSE)) -> 0.9772 | L8: =IF($B8="","",VLOOKUP(L$5,BBDD!$7:$1048576,$B8,FALSE)) -> 0.9772 | M8: =IF($B8="","",VLOOKUP(M$5,BBDD!$7:$1048576,$B8,FALSE)) -> 0.9772 | N8: =IF($B8="","",VLOOKUP(N$5,BBDD!$7:$1048576,$B8,FALSE)) -> 0.9705 | O8: =IF($B8="","",VLOOKUP(O$5,BBDD!$7:$1048576,$B8,FALSE)) -> 0.9705 | P8: =+Factores!F8 -> 0.9705
A9: 2. ENERGÍA (FAPEM) | C9: =IF($B9="","",VLOOKUP(C$5,BBDD!$7:$1048576,$B9,FALSE)) ->  | D9: =IF($B9="","",VLOOKUP(D$5,BBDD!$7:$1048576,$B9,FALSE)) ->  | E9: =IF($B9="","",VLOOKUP(E$5,BBDD!$7:$1048576,$B9,FALSE)) ->  | F9: =IF($B9="","",VLOOKUP(F$5,BBDD!$7:$1048576,$B9,FALSE)) ->  | G9: =IF($B9="","",VLOOKUP(G$5,BBDD!$7:$1048576,$B9,FALSE)) ->  | H9: =IF($B9="","",VLOOKUP(H$5,BBDD!$7:$1048576,$B9,FALSE)) ->  | I9: =IF($B9="","",VLOOKUP(I$5,BBDD!$7:$1048576,$B9,FALSE)) ->  | J9: =IF($B9="","",VLOOKUP(J$5,BBDD!$7:$1048576,$B9,FALSE)) ->  | K9: =IF($B9="","",VLOOKUP(K$5,BBDD!$7:$1048576,$B9,FALSE)) ->  | L9: =IF($B9="","",VLOOKUP(L$5,BBDD!$7:$1048576,$B9,FALSE)) ->  | M9: =IF($B9="","",VLOOKUP(M$5,BBDD!$7:$1048576,$B9,FALSE)) ->  | N9: =IF($B9="","",VLOOKUP(N$5,BBDD!$7:$1048576,$B9,FALSE)) ->  | O9: =IF($B9="","",VLOOKUP(O$5,BBDD!$7:$1048576,$B9,FALSE)) ->  | P9: =+Factores!F9 -> 
A10: Sistema Eléctrico Interconectado Nacional (SEIN) | B10: 3 | C10: =IF($B10="","",VLOOKUP(C$5,BBDD!$7:$1048576,$B10,FALSE)) -> 1 | D10: =IF($B10="","",VLOOKUP(D$5,BBDD!$7:$1048576,$B10,FALSE)) -> 0.987 | E10: =IF($B10="","",VLOOKUP(E$5,BBDD!$7:$1048576,$B10,FALSE)) -> 0.987 | F10: =IF($B10="","",VLOOKUP(F$5,BBDD!$7:$1048576,$B10,FALSE)) -> 0.987 | G10: =IF($B10="","",VLOOKUP(G$5,BBDD!$7:$1048576,$B10,FALSE)) -> 0.987 | H10: =IF($B10="","",VLOOKUP(H$5,BBDD!$7:$1048576,$B10,FALSE)) -> 0.987 | I10: =IF($B10="","",VLOOKUP(I$5,BBDD!$7:$1048576,$B10,FALSE)) -> 0.9869 | J10: =IF($B10="","",VLOOKUP(J$5,BBDD!$7:$1048576,$B10,FALSE)) -> 0.9869 | K10: =IF($B10="","",VLOOKUP(K$5,BBDD!$7:$1048576,$B10,FALSE)) -> 0.9836 | L10: =IF($B10="","",VLOOKUP(L$5,BBDD!$7:$1048576,$B10,FALSE)) -> 0.9836 | M10: =IF($B10="","",VLOOKUP(M$5,BBDD!$7:$1048576,$B10,FALSE)) -> 0.9836 | N10: =IF($B10="","",VLOOKUP(N$5,BBDD!$7:$1048576,$B10,FALSE)) -> 0.9912 | O10: =IF($B10="","",VLOOKUP(O$5,BBDD!$7:$1048576,$B10,FALSE)) -> 0.9912 | P10: =+Factores!F10 -> 0.9912
A11: Sistemas Aislados | C11: =IF($B11="","",VLOOKUP(C$5,BBDD!$7:$1048576,$B11,FALSE)) ->  | D11: =IF($B11="","",VLOOKUP(D$5,BBDD!$7:$1048576,$B11,FALSE)) ->  | E11: =IF($B11="","",VLOOKUP(E$5,BBDD!$7:$1048576,$B11,FALSE)) ->  | F11: =IF($B11="","",VLOOKUP(F$5,BBDD!$7:$1048576,$B11,FALSE)) ->  | G11: =IF($B11="","",VLOOKUP(G$5,BBDD!$7:$1048576,$B11,FALSE)) ->  | H11: =IF($B11="","",VLOOKUP(H$5,BBDD!$7:$1048576,$B11,FALSE)) ->  | I11: =IF($B11="","",VLOOKUP(I$5,BBDD!$7:$1048576,$B11,FALSE)) ->  | J11: =IF($B11="","",VLOOKUP(J$5,BBDD!$7:$1048576,$B11,FALSE)) ->  | K11: =IF($B11="","",VLOOKUP(K$5,BBDD!$7:$1048576,$B11,FALSE)) ->  | L11: =IF($B11="","",VLOOKUP(L$5,BBDD!$7:$1048576,$B11,FALSE)) ->  | M11: =IF($B11="","",VLOOKUP(M$5,BBDD!$7:$1048576,$B11,FALSE)) ->  | N11: =IF($B11="","",VLOOKUP(N$5,BBDD!$7:$1048576,$B11,FALSE)) ->  | O11: =IF($B11="","",VLOOKUP(O$5,BBDD!$7:$1048576,$B11,FALSE)) ->  | P11: =+Factores!F11 -> 
A12: Adinelsa | B12: 4 | C12: =IF($B12="","",VLOOKUP(C$5,BBDD!$7:$1048576,$B12,FALSE)) -> 1 | D12: =IF($B12="","",VLOOKUP(D$5,BBDD!$7:$1048576,$B12,FALSE)) -> 0.9994 | E12: =IF($B12="","",VLOOKUP(E$5,BBDD!$7:$1048576,$B12,FALSE)) -> 0.9994 | F12: =IF($B12="","",VLOOKUP(F$5,BBDD!$7:$1048576,$B12,FALSE)) -> 0.9978 | G12: =IF($B12="","",VLOOKUP(G$5,BBDD!$7:$1048576,$B12,FALSE)) -> 0.9978 | H12: =IF($B12="","",VLOOKUP(H$5,BBDD!$7:$1048576,$B12,FALSE)) -> 0.9891 | I12: =IF($B12="","",VLOOKUP(I$5,BBDD!$7:$1048576,$B12,FALSE)) -> 0.9891 | J12: =IF($B12="","",VLOOKUP(J$5,BBDD!$7:$1048576,$B12,FALSE)) -> 0.9891 | K12: =IF($B12="","",VLOOKUP(K$5,BBDD!$7:$1048576,$B12,FALSE)) -> 0.9915 | L12: =IF($B12="","",VLOOKUP(L$5,BBDD!$7:$1048576,$B12,FALSE)) -> 0.9915 | M12: =IF($B12="","",VLOOKUP(M$5,BBDD!$7:$1048576,$B12,FALSE)) -> 0.9862 | N12: =IF($B12="","",VLOOKUP(N$5,BBDD!$7:$1048576,$B12,FALSE)) -> 0.9862 | O12: =IF($B12="","",VLOOKUP(O$5,BBDD!$7:$1048576,$B12,FALSE)) -> 0.9862 | P12: =+Factores!F12 -> 0.9862
A13: Chavimochic | B13: 5 | C13: =IF($B13="","",VLOOKUP(C$5,BBDD!$7:$1048576,$B13,FALSE)) -> 1 | D13: =IF($B13="","",VLOOKUP(D$5,BBDD!$7:$1048576,$B13,FALSE)) -> 0.9994 | E13: =IF($B13="","",VLOOKUP(E$5,BBDD!$7:$1048576,$B13,FALSE)) -> 0.9994 | F13: =IF($B13="","",VLOOKUP(F$5,BBDD!$7:$1048576,$B13,FALSE)) -> 0.9978 | G13: =IF($B13="","",VLOOKUP(G$5,BBDD!$7:$1048576,$B13,FALSE)) -> 0.9978 | H13: =IF($B13="","",VLOOKUP(H$5,BBDD!$7:$1048576,$B13,FALSE)) -> 0.9891 | I13: =IF($B13="","",VLOOKUP(I$5,BBDD!$7:$1048576,$B13,FALSE)) -> 0.9891 | J13: =IF($B13="","",VLOOKUP(J$5,BBDD!$7:$1048576,$B13,FALSE)) -> 0.9891 | K13: =IF($B13="","",VLOOKUP(K$5,BBDD!$7:$1048576,$B13,FALSE)) -> 0.9915 | L13: =IF($B13="","",VLOOKUP(L$5,BBDD!$7:$1048576,$B13,FALSE)) -> 0.9915 | M13: =IF($B13="","",VLOOKUP(M$5,BBDD!$7:$1048576,$B13,FALSE)) -> 0.9862 | N13: =IF($B13="","",VLOOKUP(N$5,BBDD!$7:$1048576,$B13,FALSE)) -> 0.9862 | O13: =IF($B13="","",VLOOKUP(O$5,BBDD!$7:$1048576,$B13,FALSE)) -> 0.9862 | P13: =+Factores!F13 -> 0.9862
A14: Edelnor | B14: 6 | C14: =IF($B14="","",VLOOKUP(C$5,BBDD!$7:$1048576,$B14,FALSE)) -> 1 | D14: =IF($B14="","",VLOOKUP(D$5,BBDD!$7:$1048576,$B14,FALSE)) -> 0.9994 | E14: =IF($B14="","",VLOOKUP(E$5,BBDD!$7:$1048576,$B14,FALSE)) -> 0.9994 | F14: =IF($B14="","",VLOOKUP(F$5,BBDD!$7:$1048576,$B14,FALSE)) -> 0.9978 | G14: =IF($B14="","",VLOOKUP(G$5,BBDD!$7:$1048576,$B14,FALSE)) -> 0.9978 | H14: =IF($B14="","",VLOOKUP(H$5,BBDD!$7:$1048576,$B14,FALSE)) -> 0.9891 | I14: =IF($B14="","",VLOOKUP(I$5,BBDD!$7:$1048576,$B14,FALSE)) -> 0.9891 | J14: =IF($B14="","",VLOOKUP(J$5,BBDD!$7:$1048576,$B14,FALSE)) -> 0.9891 | K14: =IF($B14="","",VLOOKUP(K$5,BBDD!$7:$1048576,$B14,FALSE)) -> 0.9915 | L14: =IF($B14="","",VLOOKUP(L$5,BBDD!$7:$1048576,$B14,FALSE)) -> 0.9915 | M14: =IF($B14="","",VLOOKUP(M$5,BBDD!$7:$1048576,$B14,FALSE)) -> 0.9862 | N14: =IF($B14="","",VLOOKUP(N$5,BBDD!$7:$1048576,$B14,FALSE)) -> 0.9862 | O14: =IF($B14="","",VLOOKUP(O$5,BBDD!$7:$1048576,$B14,FALSE)) -> 0.9862 | P14: =+Factores!F14 -> 0.9862
A15: Eilhicha | B15: 7 | C15: =IF($B15="","",VLOOKUP(C$5,BBDD!$7:$1048576,$B15,FALSE)) -> 1 | D15: =IF($B15="","",VLOOKUP(D$5,BBDD!$7:$1048576,$B15,FALSE)) -> 0.9994 | E15: =IF($B15="","",VLOOKUP(E$5,BBDD!$7:$1048576,$B15,FALSE)) -> 0.9994 | F15: =IF($B15="","",VLOOKUP(F$5,BBDD!$7:$1048576,$B15,FALSE)) -> 0.9978 | G15: =IF($B15="","",VLOOKUP(G$5,BBDD!$7:$1048576,$B15,FALSE)) -> 0.9978 | H15: =IF($B15="","",VLOOKUP(H$5,BBDD!$7:$1048576,$B15,FALSE)) -> 0.9891 | I15: =IF($B15="","",VLOOKUP(I$5,BBDD!$7:$1048576,$B15,FALSE)) -> 0.9891 | J15: =IF($B15="","",VLOOKUP(J$5,BBDD!$7:$1048576,$B15,FALSE)) -> 0.9891 | K15: =IF($B15="","",VLOOKUP(K$5,BBDD!$7:$1048576,$B15,FALSE)) -> 0.9915 | L15: =IF($B15="","",VLOOKUP(L$5,BBDD!$7:$1048576,$B15,FALSE)) -> 0.9915 | M15: =IF($B15="","",VLOOKUP(M$5,BBDD!$7:$1048576,$B15,FALSE)) -> 0.9862 | N15: =IF($B15="","",VLOOKUP(N$5,BBDD!$7:$1048576,$B15,FALSE)) -> 0.9862 | O15: =IF($B15="","",VLOOKUP(O$5,BBDD!$7:$1048576,$B15,FALSE)) -> 0.9862 | P15: =+Factores!F15 -> 0.9862
A16: Electro Oriente | B16: 8 | C16: =IF($B16="","",VLOOKUP(C$5,BBDD!$7:$1048576,$B16,FALSE)) -> 1 | D16: =IF($B16="","",VLOOKUP(D$5,BBDD!$7:$1048576,$B16,FALSE)) -> 1.0252 | E16: =IF($B16="","",VLOOKUP(E$5,BBDD!$7:$1048576,$B16,FALSE)) -> 1.0252 | F16: =IF($B16="","",VLOOKUP(F$5,BBDD!$7:$1048576,$B16,FALSE)) -> 0.9979 | G16: =IF($B16="","",VLOOKUP(G$5,BBDD!$7:$1048576,$B16,FALSE)) -> 0.9979 | H16: =IF($B16="","",VLOOKUP(H$5,BBDD!$7:$1048576,$B16,FALSE)) -> 0.9993 | I16: =IF($B16="","",VLOOKUP(I$5,BBDD!$7:$1048576,$B16,FALSE)) -> 0.9993 | J16: =IF($B16="","",VLOOKUP(J$5,BBDD!$7:$1048576,$B16,FALSE)) -> 0.9993 | K16: =IF($B16="","",VLOOKUP(K$5,BBDD!$7:$1048576,$B16,FALSE)) -> 0.9719 | L16: =IF($B16="","",VLOOKUP(L$5,BBDD!$7:$1048576,$B16,FALSE)) -> 0.9719 | M16: =IF($B16="","",VLOOKUP(M$5,BBDD!$7:$1048576,$B16,FALSE)) -> 0.9545 | N16: =IF($B16="","",VLOOKUP(N$5,BBDD!$7:$1048576,$B16,FALSE)) -> 0.9545 | O16: =IF($B16="","",VLOOKUP(O$5,BBDD!$7:$1048576,$B16,FALSE)) -> 0.9545 | P16: =+Factores!F16 -> 0.9545
A17: Electro Sur Este | B17: 9 | C17: =IF($B17="","",VLOOKUP(C$5,BBDD!$7:$1048576,$B17,FALSE)) -> 1 | D17: =IF($B17="","",VLOOKUP(D$5,BBDD!$7:$1048576,$B17,FALSE)) -> 1.0139 | E17: =IF($B17="","",VLOOKUP(E$5,BBDD!$7:$1048576,$B17,FALSE)) -> 1.0139 | F17: =IF($B17="","",VLOOKUP(F$5,BBDD!$7:$1048576,$B17,FALSE)) -> 0.9998 | G17: =IF($B17="","",VLOOKUP(G$5,BBDD!$7:$1048576,$B17,FALSE)) -> 0.9998 | H17: =IF($B17="","",VLOOKUP(H$5,BBDD!$7:$1048576,$B17,FALSE)) -> 1.0184 | I17: =IF($B17="","",VLOOKUP(I$5,BBDD!$7:$1048576,$B17,FALSE)) -> 1.0184 | J17: =IF($B17="","",VLOOKUP(J$5,BBDD!$7:$1048576,$B17,FALSE)) -> 1.0184 | K17: =IF($B17="","",VLOOKUP(K$5,BBDD!$7:$1048576,$B17,FALSE)) -> 1.0185 | L17: =IF($B17="","",VLOOKUP(L$5,BBDD!$7:$1048576,$B17,FALSE)) -> 1.0185 | M17: =IF($B17="","",VLOOKUP(M$5,BBDD!$7:$1048576,$B17,FALSE)) -> 1.026 | N17: =IF($B17="","",VLOOKUP(N$5,BBDD!$7:$1048576,$B17,FALSE)) -> 1.026 | O17: =IF($B17="","",VLOOKUP(O$5,BBDD!$7:$1048576,$B17,FALSE)) -> 1.026 | P17: =+Factores!F17 -> 1.026
A18: Electro Ucayali | B18: 10 | C18: =IF($B18="","",VLOOKUP(C$5,BBDD!$7:$1048576,$B18,FALSE)) -> 1 | D18: =IF($B18="","",VLOOKUP(D$5,BBDD!$7:$1048576,$B18,FALSE)) -> 0.9994 | E18: =IF($B18="","",VLOOKUP(E$5,BBDD!$7:$1048576,$B18,FALSE)) -> 0.9994 | F18: =IF($B18="","",VLOOKUP(F$5,BBDD!$7:$1048576,$B18,FALSE)) -> 0.9978 | G18: =IF($B18="","",VLOOKUP(G$5,BBDD!$7:$1048576,$B18,FALSE)) -> 0.9978 | H18: =IF($B18="","",VLOOKUP(H$5,BBDD!$7:$1048576,$B18,FALSE)) -> 0.9891 | I18: =IF($B18="","",VLOOKUP(I$5,BBDD!$7:$1048576,$B18,FALSE)) -> 0.9891 | J18: =IF($B18="","",VLOOKUP(J$5,BBDD!$7:$1048576,$B18,FALSE)) -> 0.9891 | K18: =IF($B18="","",VLOOKUP(K$5,BBDD!$7:$1048576,$B18,FALSE)) -> 0.9915 | L18: =IF($B18="","",VLOOKUP(L$5,BBDD!$7:$1048576,$B18,FALSE)) -> 0.9915 | M18: =IF($B18="","",VLOOKUP(M$5,BBDD!$7:$1048576,$B18,FALSE)) -> 0.9862 | N18: =IF($B18="","",VLOOKUP(N$5,BBDD!$7:$1048576,$B18,FALSE)) -> 0.9862 | O18: =IF($B18="","",VLOOKUP(O$5,BBDD!$7:$1048576,$B18,FALSE)) -> 0.9862 | P18: =+Factores!F18 -> 0.9862
A19: Electrocentro | B19: 11 | C19: =IF($B19="","",VLOOKUP(C$5,BBDD!$7:$1048576,$B19,FALSE)) -> 1 | D19: =IF($B19="","",VLOOKUP(D$5,BBDD!$7:$1048576,$B19,FALSE)) -> 0.9994 | E19: =IF($B19="","",VLOOKUP(E$5,BBDD!$7:$1048576,$B19,FALSE)) -> 0.9994 | F19: =IF($B19="","",VLOOKUP(F$5,BBDD!$7:$1048576,$B19,FALSE)) -> 0.9978 | G19: =IF($B19="","",VLOOKUP(G$5,BBDD!$7:$1048576,$B19,FALSE)) -> 0.9978 | H19: =IF($B19="","",VLOOKUP(H$5,BBDD!$7:$1048576,$B19,FALSE)) -> 0.9891 | I19: =IF($B19="","",VLOOKUP(I$5,BBDD!$7:$1048576,$B19,FALSE)) -> 0.9891 | J19: =IF($B19="","",VLOOKUP(J$5,BBDD!$7:$1048576,$B19,FALSE)) -> 0.9891 | K19: =IF($B19="","",VLOOKUP(K$5,BBDD!$7:$1048576,$B19,FALSE)) -> 0.9915 | L19: =IF($B19="","",VLOOKUP(L$5,BBDD!$7:$1048576,$B19,FALSE)) -> 0.9915 | M19: =IF($B19="","",VLOOKUP(M$5,BBDD!$7:$1048576,$B19,FALSE)) -> 0.9862 | N19: =IF($B19="","",VLOOKUP(N$5,BBDD!$7:$1048576,$B19,FALSE)) -> 0.9862 | O19: =IF($B19="","",VLOOKUP(O$5,BBDD!$7:$1048576,$B19,FALSE)) -> 0.9862 | P19: =+Factores!F19 -> 0.9862
A20: Electronorte | B20: 12 | C20: =IF($B20="","",VLOOKUP(C$5,BBDD!$7:$1048576,$B20,FALSE)) -> 1 | D20: =IF($B20="","",VLOOKUP(D$5,BBDD!$7:$1048576,$B20,FALSE)) -> 1.0005 | E20: =IF($B20="","",VLOOKUP(E$5,BBDD!$7:$1048576,$B20,FALSE)) -> 1.0005 | F20: =IF($B20="","",VLOOKUP(F$5,BBDD!$7:$1048576,$B20,FALSE)) -> 0.9979 | G20: =IF($B20="","",VLOOKUP(G$5,BBDD!$7:$1048576,$B20,FALSE)) -> 0.9979 | H20: =IF($B20="","",VLOOKUP(H$5,BBDD!$7:$1048576,$B20,FALSE)) -> 0.9909 | I20: =IF($B20="","",VLOOKUP(I$5,BBDD!$7:$1048576,$B20,FALSE)) -> 0.9909 | J20: =IF($B20="","",VLOOKUP(J$5,BBDD!$7:$1048576,$B20,FALSE)) -> 0.9909 | K20: =IF($B20="","",VLOOKUP(K$5,BBDD!$7:$1048576,$B20,FALSE)) -> 0.9932 | L20: =IF($B20="","",VLOOKUP(L$5,BBDD!$7:$1048576,$B20,FALSE)) -> 0.9932 | M20: =IF($B20="","",VLOOKUP(M$5,BBDD!$7:$1048576,$B20,FALSE)) -> 0.9886 | N20: =IF($B20="","",VLOOKUP(N$5,BBDD!$7:$1048576,$B20,FALSE)) -> 0.9886 | O20: =IF($B20="","",VLOOKUP(O$5,BBDD!$7:$1048576,$B20,FALSE)) -> 0.9886 | P20: =+Factores!F20 -> 0.9886
A21: Hidrandina | B21: 13 | C21: =IF($B21="","",VLOOKUP(C$5,BBDD!$7:$1048576,$B21,FALSE)) -> 1 | D21: =IF($B21="","",VLOOKUP(D$5,BBDD!$7:$1048576,$B21,FALSE)) -> 1.0003 | E21: =IF($B21="","",VLOOKUP(E$5,BBDD!$7:$1048576,$B21,FALSE)) -> 1.0003 | F21: =IF($B21="","",VLOOKUP(F$5,BBDD!$7:$1048576,$B21,FALSE)) -> 0.9979 | G21: =IF($B21="","",VLOOKUP(G$5,BBDD!$7:$1048576,$B21,FALSE)) -> 0.9979 | H21: =IF($B21="","",VLOOKUP(H$5,BBDD!$7:$1048576,$B21,FALSE)) -> 0.9905 | I21: =IF($B21="","",VLOOKUP(I$5,BBDD!$7:$1048576,$B21,FALSE)) -> 0.9905 | J21: =IF($B21="","",VLOOKUP(J$5,BBDD!$7:$1048576,$B21,FALSE)) -> 0.9905 | K21: =IF($B21="","",VLOOKUP(K$5,BBDD!$7:$1048576,$B21,FALSE)) -> 0.9928 | L21: =IF($B21="","",VLOOKUP(L$5,BBDD!$7:$1048576,$B21,FALSE)) -> 0.9928 | M21: =IF($B21="","",VLOOKUP(M$5,BBDD!$7:$1048576,$B21,FALSE)) -> 0.9881 | N21: =IF($B21="","",VLOOKUP(N$5,BBDD!$7:$1048576,$B21,FALSE)) -> 0.9881 | O21: =IF($B21="","",VLOOKUP(O$5,BBDD!$7:$1048576,$B21,FALSE)) -> 0.9881 | P21: =+Factores!F21 -> 0.9881
A22: Seal | B22: 14 | C22: =IF($B22="","",VLOOKUP(C$5,BBDD!$7:$1048576,$B22,FALSE)) -> 1 | D22: =IF($B22="","",VLOOKUP(D$5,BBDD!$7:$1048576,$B22,FALSE)) -> 1.0081 | E22: =IF($B22="","",VLOOKUP(E$5,BBDD!$7:$1048576,$B22,FALSE)) -> 1.0081 | F22: =IF($B22="","",VLOOKUP(F$5,BBDD!$7:$1048576,$B22,FALSE)) -> 0.999 | G22: =IF($B22="","",VLOOKUP(G$5,BBDD!$7:$1048576,$B22,FALSE)) -> 0.999 | H22: =IF($B22="","",VLOOKUP(H$5,BBDD!$7:$1048576,$B22,FALSE)) -> 1.0033 | I22: =IF($B22="","",VLOOKUP(I$5,BBDD!$7:$1048576,$B22,FALSE)) -> 1.0033 | J22: =IF($B22="","",VLOOKUP(J$5,BBDD!$7:$1048576,$B22,FALSE)) -> 1.0033 | K22: =IF($B22="","",VLOOKUP(K$5,BBDD!$7:$1048576,$B22,FALSE)) -> 1.0044 | L22: =IF($B22="","",VLOOKUP(L$5,BBDD!$7:$1048576,$B22,FALSE)) -> 1.0044 | M22: =IF($B22="","",VLOOKUP(M$5,BBDD!$7:$1048576,$B22,FALSE)) -> 1.0051 | N22: =IF($B22="","",VLOOKUP(N$5,BBDD!$7:$1048576,$B22,FALSE)) -> 1.0051 | O22: =IF($B22="","",VLOOKUP(O$5,BBDD!$7:$1048576,$B22,FALSE)) -> 1.0051 | P22: =+Factores!F22 -> 1.0051
A23: FA_PNG (Res. 008-2013-OS/CD) | B23: 15 | C23: =IF($B23="","",VLOOKUP(C$5,BBDD!$7:$1048576,$B23,FALSE)) -> 1 | D23: =IF($B23="","",VLOOKUP(D$5,BBDD!$7:$1048576,$B23,FALSE)) -> 1 | E23: =IF($B23="","",VLOOKUP(E$5,BBDD!$7:$1048576,$B23,FALSE)) -> 1 | F23: =IF($B23="","",VLOOKUP(F$5,BBDD!$7:$1048576,$B23,FALSE)) -> 1 | G23: =IF($B23="","",VLOOKUP(G$5,BBDD!$7:$1048576,$B23,FALSE)) -> 1 | H23: =IF($B23="","",VLOOKUP(H$5,BBDD!$7:$1048576,$B23,FALSE)) -> 1 | I23: =IF($B23="","",VLOOKUP(I$5,BBDD!$7:$1048576,$B23,FALSE)) -> 1 | J23: =IF($B23="","",VLOOKUP(J$5,BBDD!$7:$1048576,$B23,FALSE)) -> 1 | K23: =IF($B23="","",VLOOKUP(K$5,BBDD!$7:$1048576,$B23,FALSE)) -> 1 | L23: =IF($B23="","",VLOOKUP(L$5,BBDD!$7:$1048576,$B23,FALSE)) -> 0.9816 | M23: =IF($B23="","",VLOOKUP(M$5,BBDD!$7:$1048576,$B23,FALSE)) -> 0.9926 | N23: =IF($B23="","",VLOOKUP(N$5,BBDD!$7:$1048576,$B23,FALSE)) -> 1.0277 | O23: =IF($B23="","",VLOOKUP(O$5,BBDD!$7:$1048576,$B23,FALSE)) -> 1.0277 | P23: =+Factores!F23 -> 1.0277
A24: FIGV (Resoluciones OSINERGMIN N° 182-2009-OS/CD) | B24: 16 | C24: =IF($B24="","",VLOOKUP(C$5,BBDD!$7:$1048576,$B24,FALSE)) -> 1.18 | D24: =IF($B24="","",VLOOKUP(D$5,BBDD!$7:$1048576,$B24,FALSE)) -> 1.18 | E24: =IF($B24="","",VLOOKUP(E$5,BBDD!$7:$1048576,$B24,FALSE)) -> 1.18 | F24: =IF($B24="","",VLOOKUP(F$5,BBDD!$7:$1048576,$B24,FALSE)) -> 1.18 | G24: =IF($B24="","",VLOOKUP(G$5,BBDD!$7:$1048576,$B24,FALSE)) -> 1.18 | H24: =IF($B24="","",VLOOKUP(H$5,BBDD!$7:$1048576,$B24,FALSE)) -> 1.18 | I24: =IF($B24="","",VLOOKUP(I$5,BBDD!$7:$1048576,$B24,FALSE)) -> 1.18 | J24: =IF($B24="","",VLOOKUP(J$5,BBDD!$7:$1048576,$B24,FALSE)) -> 1.18 | K24: =IF($B24="","",VLOOKUP(K$5,BBDD!$7:$1048576,$B24,FALSE)) -> 1.18 | L24: =IF($B24="","",VLOOKUP(L$5,BBDD!$7:$1048576,$B24,FALSE)) -> 1.18 | M24: =IF($B24="","",VLOOKUP(M$5,BBDD!$7:$1048576,$B24,FALSE)) -> 1.18 | N24: =IF($B24="","",VLOOKUP(N$5,BBDD!$7:$1048576,$B24,FALSE)) -> 1.18 | O24: =IF($B24="","",VLOOKUP(O$5,BBDD!$7:$1048576,$B24,FALSE)) -> 1.18 | P24: =+Factores!F24 -> 1.18
C25: =IF($B25="","",VLOOKUP(C$5,BBDD!$7:$1048576,$B25,FALSE)) ->  | D25: =IF($B25="","",VLOOKUP(D$5,BBDD!$7:$1048576,$B25,FALSE)) ->  | E25: =IF($B25="","",VLOOKUP(E$5,BBDD!$7:$1048576,$B25,FALSE)) ->  | F25: =IF($B25="","",VLOOKUP(F$5,BBDD!$7:$1048576,$B25,FALSE)) ->  | G25: =IF($B25="","",VLOOKUP(G$5,BBDD!$7:$1048576,$B25,FALSE)) ->  | H25: =IF($B25="","",VLOOKUP(H$5,BBDD!$7:$1048576,$B25,FALSE)) ->  | I25: =IF($B25="","",VLOOKUP(I$5,BBDD!$7:$1048576,$B25,FALSE)) ->  | J25: =IF($B25="","",VLOOKUP(J$5,BBDD!$7:$1048576,$B25,FALSE)) ->  | K25: =IF($B25="","",VLOOKUP(K$5,BBDD!$7:$1048576,$B25,FALSE)) ->  | L25: =IF($B25="","",VLOOKUP(L$5,BBDD!$7:$1048576,$B25,FALSE)) ->  | M25: =IF($B25="","",VLOOKUP(M$5,BBDD!$7:$1048576,$B25,FALSE)) ->  | N25: =IF($B25="","",VLOOKUP(N$5,BBDD!$7:$1048576,$B25,FALSE)) ->  | O25: =IF($B25="","",VLOOKUP(O$5,BBDD!$7:$1048576,$B25,FALSE)) ->  | P25: =+Factores!F25 -> 
A26: B1. TRANSMISIÓN PRINCIPAL - PEAJES (Res. N° 057-2012-OS/CD) | C26: =IF($B26="","",VLOOKUP(C$5,BBDD!$7:$1048576,$B26,FALSE)) ->  | D26: =IF($B26="","",VLOOKUP(D$5,BBDD!$7:$1048576,$B26,FALSE)) ->  | E26: =IF($B26="","",VLOOKUP(E$5,BBDD!$7:$1048576,$B26,FALSE)) ->  | F26: =IF($B26="","",VLOOKUP(F$5,BBDD!$7:$1048576,$B26,FALSE)) ->  | G26: =IF($B26="","",VLOOKUP(G$5,BBDD!$7:$1048576,$B26,FALSE)) ->  | H26: =IF($B26="","",VLOOKUP(H$5,BBDD!$7:$1048576,$B26,FALSE)) ->  | I26: =IF($B26="","",VLOOKUP(I$5,BBDD!$7:$1048576,$B26,FALSE)) ->  | J26: =IF($B26="","",VLOOKUP(J$5,BBDD!$7:$1048576,$B26,FALSE)) ->  | K26: =IF($B26="","",VLOOKUP(K$5,BBDD!$7:$1048576,$B26,FALSE)) ->  | L26: =IF($B26="","",VLOOKUP(L$5,BBDD!$7:$1048576,$B26,FALSE)) ->  | M26: =IF($B26="","",VLOOKUP(M$5,BBDD!$7:$1048576,$B26,FALSE)) ->  | N26: =IF($B26="","",VLOOKUP(N$5,BBDD!$7:$1048576,$B26,FALSE)) ->  | O26: =IF($B26="","",VLOOKUP(O$5,BBDD!$7:$1048576,$B26,FALSE)) ->  | P26: =+Factores!F26 -> 
A27: Sistema Principal de Transmisión | C27: =IF($B27="","",VLOOKUP(C$5,BBDD!$7:$1048576,$B27,FALSE)) ->  | D27: =IF($B27="","",VLOOKUP(D$5,BBDD!$7:$1048576,$B27,FALSE)) ->  | E27: =IF($B27="","",VLOOKUP(E$5,BBDD!$7:$1048576,$B27,FALSE)) ->  | F27: =IF($B27="","",VLOOKUP(F$5,BBDD!$7:$1048576,$B27,FALSE)) ->  | G27: =IF($B27="","",VLOOKUP(G$5,BBDD!$7:$1048576,$B27,FALSE)) ->  | H27: =IF($B27="","",VLOOKUP(H$5,BBDD!$7:$1048576,$B27,FALSE)) ->  | I27: =IF($B27="","",VLOOKUP(I$5,BBDD!$7:$1048576,$B27,FALSE)) ->  | J27: =IF($B27="","",VLOOKUP(J$5,BBDD!$7:$1048576,$B27,FALSE)) ->  | K27: =IF($B27="","",VLOOKUP(K$5,BBDD!$7:$1048576,$B27,FALSE)) ->  | L27: =IF($B27="","",VLOOKUP(L$5,BBDD!$7:$1048576,$B27,FALSE)) ->  | M27: =IF($B27="","",VLOOKUP(M$5,BBDD!$7:$1048576,$B27,FALSE)) ->  | N27: =IF($B27="","",VLOOKUP(N$5,BBDD!$7:$1048576,$B27,FALSE)) ->  | O27: =IF($B27="","",VLOOKUP(O$5,BBDD!$7:$1048576,$B27,FALSE)) -> 
A28: SPT de REP | B28: 17 | C28: =IF($B28="","",VLOOKUP(C$5,BBDD!$7:$1048576,$B28,FALSE)) -> 1 | D28: =IF($B28="","",VLOOKUP(D$5,BBDD!$7:$1048576,$B28,FALSE)) -> 0.9899 | E28: =IF($B28="","",VLOOKUP(E$5,BBDD!$7:$1048576,$B28,FALSE)) -> 0.9899 | F28: =IF($B28="","",VLOOKUP(F$5,BBDD!$7:$1048576,$B28,FALSE)) -> 0.9899 | G28: =IF($B28="","",VLOOKUP(G$5,BBDD!$7:$1048576,$B28,FALSE)) -> 0.9899 | H28: =IF($B28="","",VLOOKUP(H$5,BBDD!$7:$1048576,$B28,FALSE)) -> 0.9899 | I28: =IF($B28="","",VLOOKUP(I$5,BBDD!$7:$1048576,$B28,FALSE)) -> 0.9738 | J28: =IF($B28="","",VLOOKUP(J$5,BBDD!$7:$1048576,$B28,FALSE)) -> 0.9738 | K28: =IF($B28="","",VLOOKUP(K$5,BBDD!$7:$1048576,$B28,FALSE)) -> 0.9715 | L28: =IF($B28="","",VLOOKUP(L$5,BBDD!$7:$1048576,$B28,FALSE)) -> 0.9715 | M28: =IF($B28="","",VLOOKUP(M$5,BBDD!$7:$1048576,$B28,FALSE)) -> 0.9715 | N28: =IF($B28="","",VLOOKUP(N$5,BBDD!$7:$1048576,$B28,FALSE)) -> 0.9663 | O28: =IF($B28="","",VLOOKUP(O$5,BBDD!$7:$1048576,$B28,FALSE)) -> 0.9663 | P28: =+Factores!F28 -> 0.9663
A29: SPT de San Gabán | B29: 18 | C29: =IF($B29="","",VLOOKUP(C$5,BBDD!$7:$1048576,$B29,FALSE)) -> 1 | D29: =IF($B29="","",VLOOKUP(D$5,BBDD!$7:$1048576,$B29,FALSE)) -> 0.9956 | E29: =IF($B29="","",VLOOKUP(E$5,BBDD!$7:$1048576,$B29,FALSE)) -> 0.9956 | F29: =IF($B29="","",VLOOKUP(F$5,BBDD!$7:$1048576,$B29,FALSE)) -> 0.9956 | G29: =IF($B29="","",VLOOKUP(G$5,BBDD!$7:$1048576,$B29,FALSE)) -> 0.9956 | H29: =IF($B29="","",VLOOKUP(H$5,BBDD!$7:$1048576,$B29,FALSE)) -> 0.9956 | I29: =IF($B29="","",VLOOKUP(I$5,BBDD!$7:$1048576,$B29,FALSE)) -> 0.9843 | J29: =IF($B29="","",VLOOKUP(J$5,BBDD!$7:$1048576,$B29,FALSE)) -> 0.9843 | K29: =IF($B29="","",VLOOKUP(K$5,BBDD!$7:$1048576,$B29,FALSE)) -> 0.9832 | L29: =IF($B29="","",VLOOKUP(L$5,BBDD!$7:$1048576,$B29,FALSE)) -> 0.9832 | M29: =IF($B29="","",VLOOKUP(M$5,BBDD!$7:$1048576,$B29,FALSE)) -> 0.9832 | N29: =IF($B29="","",VLOOKUP(N$5,BBDD!$7:$1048576,$B29,FALSE)) -> 0.9752 | O29: =IF($B29="","",VLOOKUP(O$5,BBDD!$7:$1048576,$B29,FALSE)) -> 0.9752 | P29: =+Factores!F29 -> 0.9752
A30: SPT de Antamina | B30: 19 | C30: =IF($B30="","",VLOOKUP(C$5,BBDD!$7:$1048576,$B30,FALSE)) -> 1 | D30: =IF($B30="","",VLOOKUP(D$5,BBDD!$7:$1048576,$B30,FALSE)) -> 0.9965 | E30: =IF($B30="","",VLOOKUP(E$5,BBDD!$7:$1048576,$B30,FALSE)) -> 0.9965 | F30: =IF($B30="","",VLOOKUP(F$5,BBDD!$7:$1048576,$B30,FALSE)) -> 0.9965 | G30: =IF($B30="","",VLOOKUP(G$5,BBDD!$7:$1048576,$B30,FALSE)) -> 0.9965 | H30: =IF($B30="","",VLOOKUP(H$5,BBDD!$7:$1048576,$B30,FALSE)) -> 0.9965 | I30: =IF($B30="","",VLOOKUP(I$5,BBDD!$7:$1048576,$B30,FALSE)) -> 0.985 | J30: =IF($B30="","",VLOOKUP(J$5,BBDD!$7:$1048576,$B30,FALSE)) -> 0.985 | K30: =IF($B30="","",VLOOKUP(K$5,BBDD!$7:$1048576,$B30,FALSE)) -> 0.984 | L30: =IF($B30="","",VLOOKUP(L$5,BBDD!$7:$1048576,$B30,FALSE)) -> 0.984 | M30: =IF($B30="","",VLOOKUP(M$5,BBDD!$7:$1048576,$B30,FALSE)) -> 0.984 | N30: =IF($B30="","",VLOOKUP(N$5,BBDD!$7:$1048576,$B30,FALSE)) -> 0.976 | O30: =IF($B30="","",VLOOKUP(O$5,BBDD!$7:$1048576,$B30,FALSE)) -> 0.976 | P30: =+Factores!F30 -> 0.976
A31: SPT de Eteselva | B31: 20 | C31: =IF($B31="","",VLOOKUP(C$5,BBDD!$7:$1048576,$B31,FALSE)) -> 1 | D31: =IF($B31="","",VLOOKUP(D$5,BBDD!$7:$1048576,$B31,FALSE)) -> 1.104 | E31: =IF($B31="","",VLOOKUP(E$5,BBDD!$7:$1048576,$B31,FALSE)) -> 1.104 | F31: =IF($B31="","",VLOOKUP(F$5,BBDD!$7:$1048576,$B31,FALSE)) -> 1.104 | G31: =IF($B31="","",VLOOKUP(G$5,BBDD!$7:$1048576,$B31,FALSE)) -> 1.104 | H31: =IF($B31="","",VLOOKUP(H$5,BBDD!$7:$1048576,$B31,FALSE)) -> 1.104 | I31: =IF($B31="","",VLOOKUP(I$5,BBDD!$7:$1048576,$B31,FALSE)) -> 1.041 | J31: =IF($B31="","",VLOOKUP(J$5,BBDD!$7:$1048576,$B31,FALSE)) -> 1.041 | K31: =IF($B31="","",VLOOKUP(K$5,BBDD!$7:$1048576,$B31,FALSE)) -> 1.0341 | L31: =IF($B31="","",VLOOKUP(L$5,BBDD!$7:$1048576,$B31,FALSE)) -> 1.0341 | M31: =IF($B31="","",VLOOKUP(M$5,BBDD!$7:$1048576,$B31,FALSE)) -> 1.0341 | N31: =IF($B31="","",VLOOKUP(N$5,BBDD!$7:$1048576,$B31,FALSE)) -> 1.0245 | O31: =IF($B31="","",VLOOKUP(O$5,BBDD!$7:$1048576,$B31,FALSE)) -> 1.0245 | P31: =+Factores!F31 -> 1.0245
A32: SPT de Redesur | B32: 21 | C32: =IF($B32="","",VLOOKUP(C$5,BBDD!$7:$1048576,$B32,FALSE)) -> 1 | D32: =IF($B32="","",VLOOKUP(D$5,BBDD!$7:$1048576,$B32,FALSE)) -> 0.9899 | E32: =IF($B32="","",VLOOKUP(E$5,BBDD!$7:$1048576,$B32,FALSE)) -> 0.9899 | F32: =IF($B32="","",VLOOKUP(F$5,BBDD!$7:$1048576,$B32,FALSE)) -> 0.9899 | G32: =IF($B32="","",VLOOKUP(G$5,BBDD!$7:$1048576,$B32,FALSE)) -> 0.9899 | H32: =IF($B32="","",VLOOKUP(H$5,BBDD!$7:$1048576,$B32,FALSE)) -> 0.9899 | I32: =IF($B32="","",VLOOKUP(I$5,BBDD!$7:$1048576,$B32,FALSE)) -> 0.9738 | J32: =IF($B32="","",VLOOKUP(J$5,BBDD!$7:$1048576,$B32,FALSE)) -> 0.9738 | K32: =IF($B32="","",VLOOKUP(K$5,BBDD!$7:$1048576,$B32,FALSE)) -> 0.9715 | L32: =IF($B32="","",VLOOKUP(L$5,BBDD!$7:$1048576,$B32,FALSE)) -> 0.9715 | M32: =IF($B32="","",VLOOKUP(M$5,BBDD!$7:$1048576,$B32,FALSE)) -> 0.9715 | N32: =IF($B32="","",VLOOKUP(N$5,BBDD!$7:$1048576,$B32,FALSE)) -> 0.9663 | O32: =IF($B32="","",VLOOKUP(O$5,BBDD!$7:$1048576,$B32,FALSE)) -> 0.9663 | P32: =+Factores!F32 -> 0.9663
A33: SPT de Transmantaro | B33: 22 | C33: =IF($B33="","",VLOOKUP(C$5,BBDD!$7:$1048576,$B33,FALSE)) -> 1 | D33: =IF($B33="","",VLOOKUP(D$5,BBDD!$7:$1048576,$B33,FALSE)) -> 0.9899 | E33: =IF($B33="","",VLOOKUP(E$5,BBDD!$7:$1048576,$B33,FALSE)) -> 0.9899 | F33: =IF($B33="","",VLOOKUP(F$5,BBDD!$7:$1048576,$B33,FALSE)) -> 0.9899 | G33: =IF($B33="","",VLOOKUP(G$5,BBDD!$7:$1048576,$B33,FALSE)) -> 0.9899 | H33: =IF($B33="","",VLOOKUP(H$5,BBDD!$7:$1048576,$B33,FALSE)) -> 0.9899 | I33: =IF($B33="","",VLOOKUP(I$5,BBDD!$7:$1048576,$B33,FALSE)) -> 0.9738 | J33: =IF($B33="","",VLOOKUP(J$5,BBDD!$7:$1048576,$B33,FALSE)) -> 0.9738 | K33: =IF($B33="","",VLOOKUP(K$5,BBDD!$7:$1048576,$B33,FALSE)) -> 0.9715 | L33: =IF($B33="","",VLOOKUP(L$5,BBDD!$7:$1048576,$B33,FALSE)) -> 0.9715 | M33: =IF($B33="","",VLOOKUP(M$5,BBDD!$7:$1048576,$B33,FALSE)) -> 0.9715 | N33: =IF($B33="","",VLOOKUP(N$5,BBDD!$7:$1048576,$B33,FALSE)) -> 0.9663 | O33: =IF($B33="","",VLOOKUP(O$5,BBDD!$7:$1048576,$B33,FALSE)) -> 0.9663 | P33: =+Factores!F33 -> 0.9663
A34: SPT de ISA | B34: 23 | C34: =IF($B34="","",VLOOKUP(C$5,BBDD!$7:$1048576,$B34,FALSE)) -> 1 | D34: =IF($B34="","",VLOOKUP(D$5,BBDD!$7:$1048576,$B34,FALSE)) -> 0.9899 | E34: =IF($B34="","",VLOOKUP(E$5,BBDD!$7:$1048576,$B34,FALSE)) -> 0.9899 | F34: =IF($B34="","",VLOOKUP(F$5,BBDD!$7:$1048576,$B34,FALSE)) -> 0.9899 | G34: =IF($B34="","",VLOOKUP(G$5,BBDD!$7:$1048576,$B34,FALSE)) -> 0.9899 | H34: =IF($B34="","",VLOOKUP(H$5,BBDD!$7:$1048576,$B34,FALSE)) -> 0.9899 | I34: =IF($B34="","",VLOOKUP(I$5,BBDD!$7:$1048576,$B34,FALSE)) -> 0.9738 | J34: =IF($B34="","",VLOOKUP(J$5,BBDD!$7:$1048576,$B34,FALSE)) -> 0.9738 | K34: =IF($B34="","",VLOOKUP(K$5,BBDD!$7:$1048576,$B34,FALSE)) -> 0.9715 | L34: =IF($B34="","",VLOOKUP(L$5,BBDD!$7:$1048576,$B34,FALSE)) -> 0.9715 | M34: =IF($B34="","",VLOOKUP(M$5,BBDD!$7:$1048576,$B34,FALSE)) -> 0.9715 | N34: =IF($B34="","",VLOOKUP(N$5,BBDD!$7:$1048576,$B34,FALSE)) -> 0.9663 | O34: =IF($B34="","",VLOOKUP(O$5,BBDD!$7:$1048576,$B34,FALSE)) -> 0.9663 | P34: =+Factores!F34 -> 0.9663
C35: =IF($B35="","",VLOOKUP(C$5,BBDD!$7:$1048576,$B35,FALSE)) ->  | D35: =IF($B35="","",VLOOKUP(D$5,BBDD!$7:$1048576,$B35,FALSE)) ->  | E35: =IF($B35="","",VLOOKUP(E$5,BBDD!$7:$1048576,$B35,FALSE)) ->  | F35: =IF($B35="","",VLOOKUP(F$5,BBDD!$7:$1048576,$B35,FALSE)) ->  | G35: =IF($B35="","",VLOOKUP(G$5,BBDD!$7:$1048576,$B35,FALSE)) ->  | H35: =IF($B35="","",VLOOKUP(H$5,BBDD!$7:$1048576,$B35,FALSE)) ->  | I35: =IF($B35="","",VLOOKUP(I$5,BBDD!$7:$1048576,$B35,FALSE)) ->  | J35: =IF($B35="","",VLOOKUP(J$5,BBDD!$7:$1048576,$B35,FALSE)) ->  | K35: =IF($B35="","",VLOOKUP(K$5,BBDD!$7:$1048576,$B35,FALSE)) ->  | L35: =IF($B35="","",VLOOKUP(L$5,BBDD!$7:$1048576,$B35,FALSE)) ->  | M35: =IF($B35="","",VLOOKUP(M$5,BBDD!$7:$1048576,$B35,FALSE)) ->  | N35: =IF($B35="","",VLOOKUP(N$5,BBDD!$7:$1048576,$B35,FALSE)) ->  | O35: =IF($B35="","",VLOOKUP(O$5,BBDD!$7:$1048576,$B35,FALSE)) ->  | P35: =+Factores!F35 -> 
A36: Cargo Unitario por Compensación por Seguridad de Suministro (CUCSS) | C36: =IF($B36="","",VLOOKUP(C$5,BBDD!$7:$1048576,$B36,FALSE)) ->  | D36: =IF($B36="","",VLOOKUP(D$5,BBDD!$7:$1048576,$B36,FALSE)) ->  | E36: =IF($B36="","",VLOOKUP(E$5,BBDD!$7:$1048576,$B36,FALSE)) ->  | F36: =IF($B36="","",VLOOKUP(F$5,BBDD!$7:$1048576,$B36,FALSE)) ->  | G36: =IF($B36="","",VLOOKUP(G$5,BBDD!$7:$1048576,$B36,FALSE)) ->  | H36: =IF($B36="","",VLOOKUP(H$5,BBDD!$7:$1048576,$B36,FALSE)) ->  | I36: =IF($B36="","",VLOOKUP(I$5,BBDD!$7:$1048576,$B36,FALSE)) ->  | J36: =IF($B36="","",VLOOKUP(J$5,BBDD!$7:$1048576,$B36,FALSE)) ->  | K36: =IF($B36="","",VLOOKUP(K$5,BBDD!$7:$1048576,$B36,FALSE)) ->  | L36: =IF($B36="","",VLOOKUP(L$5,BBDD!$7:$1048576,$B36,FALSE)) ->  | M36: =IF($B36="","",VLOOKUP(M$5,BBDD!$7:$1048576,$B36,FALSE)) ->  | N36: =IF($B36="","",VLOOKUP(N$5,BBDD!$7:$1048576,$B36,FALSE)) ->  | O36: =IF($B36="","",VLOOKUP(O$5,BBDD!$7:$1048576,$B36,FALSE)) ->  | P36: =+Factores!F36 -> 
A37: Cargo Unitario por Compensación por Seguridad de Suministro | B37: 24 | C37: =IF($B37="","",VLOOKUP(C$5,BBDD!$7:$1048576,$B37,FALSE)) -> 1 | D37: =IF($B37="","",VLOOKUP(D$5,BBDD!$7:$1048576,$B37,FALSE)) -> 0.9926 | E37: =IF($B37="","",VLOOKUP(E$5,BBDD!$7:$1048576,$B37,FALSE)) -> 0.9926 | F37: =IF($B37="","",VLOOKUP(F$5,BBDD!$7:$1048576,$B37,FALSE)) -> 0.9926 | G37: =IF($B37="","",VLOOKUP(G$5,BBDD!$7:$1048576,$B37,FALSE)) -> 0.9926 | H37: =IF($B37="","",VLOOKUP(H$5,BBDD!$7:$1048576,$B37,FALSE)) -> 0.9926 | I37: =IF($B37="","",VLOOKUP(I$5,BBDD!$7:$1048576,$B37,FALSE)) -> 0.9788 | J37: =IF($B37="","",VLOOKUP(J$5,BBDD!$7:$1048576,$B37,FALSE)) -> 0.9788 | K37: =IF($B37="","",VLOOKUP(K$5,BBDD!$7:$1048576,$B37,FALSE)) -> 0.9772 | L37: =IF($B37="","",VLOOKUP(L$5,BBDD!$7:$1048576,$B37,FALSE)) -> 0.9772 | M37: =IF($B37="","",VLOOKUP(M$5,BBDD!$7:$1048576,$B37,FALSE)) -> 0.9772 | N37: =IF($B37="","",VLOOKUP(N$5,BBDD!$7:$1048576,$B37,FALSE)) -> 0.9705 | O37: =IF($B37="","",VLOOKUP(O$5,BBDD!$7:$1048576,$B37,FALSE)) -> 0.9705 | P37: =+Factores!F37 -> 0.9705
C38: =IF($B38="","",VLOOKUP(C$5,BBDD!$7:$1048576,$B38,FALSE)) ->  | D38: =IF($B38="","",VLOOKUP(D$5,BBDD!$7:$1048576,$B38,FALSE)) ->  | E38: =IF($B38="","",VLOOKUP(E$5,BBDD!$7:$1048576,$B38,FALSE)) ->  | F38: =IF($B38="","",VLOOKUP(F$5,BBDD!$7:$1048576,$B38,FALSE)) ->  | G38: =IF($B38="","",VLOOKUP(G$5,BBDD!$7:$1048576,$B38,FALSE)) ->  | H38: =IF($B38="","",VLOOKUP(H$5,BBDD!$7:$1048576,$B38,FALSE)) ->  | I38: =IF($B38="","",VLOOKUP(I$5,BBDD!$7:$1048576,$B38,FALSE)) ->  | J38: =IF($B38="","",VLOOKUP(J$5,BBDD!$7:$1048576,$B38,FALSE)) ->  | K38: =IF($B38="","",VLOOKUP(K$5,BBDD!$7:$1048576,$B38,FALSE)) ->  | L38: =IF($B38="","",VLOOKUP(L$5,BBDD!$7:$1048576,$B38,FALSE)) ->  | M38: =IF($B38="","",VLOOKUP(M$5,BBDD!$7:$1048576,$B38,FALSE)) ->  | N38: =IF($B38="","",VLOOKUP(N$5,BBDD!$7:$1048576,$B38,FALSE)) ->  | O38: =IF($B38="","",VLOOKUP(O$5,BBDD!$7:$1048576,$B38,FALSE)) ->  | P38: =+Factores!F38 -> 
A39: Costos Variables de Operación Adicional en Generación | C39: =IF($B39="","",VLOOKUP(C$5,BBDD!$7:$1048576,$B39,FALSE)) ->  | D39: =IF($B39="","",VLOOKUP(D$5,BBDD!$7:$1048576,$B39,FALSE)) ->  | E39: =IF($B39="","",VLOOKUP(E$5,BBDD!$7:$1048576,$B39,FALSE)) ->  | F39: =IF($B39="","",VLOOKUP(F$5,BBDD!$7:$1048576,$B39,FALSE)) ->  | G39: =IF($B39="","",VLOOKUP(G$5,BBDD!$7:$1048576,$B39,FALSE)) ->  | H39: =IF($B39="","",VLOOKUP(H$5,BBDD!$7:$1048576,$B39,FALSE)) ->  | I39: =IF($B39="","",VLOOKUP(I$5,BBDD!$7:$1048576,$B39,FALSE)) ->  | J39: =IF($B39="","",VLOOKUP(J$5,BBDD!$7:$1048576,$B39,FALSE)) ->  | K39: =IF($B39="","",VLOOKUP(K$5,BBDD!$7:$1048576,$B39,FALSE)) ->  | L39: =IF($B39="","",VLOOKUP(L$5,BBDD!$7:$1048576,$B39,FALSE)) ->  | M39: =IF($B39="","",VLOOKUP(M$5,BBDD!$7:$1048576,$B39,FALSE)) ->  | N39: =IF($B39="","",VLOOKUP(N$5,BBDD!$7:$1048576,$B39,FALSE)) ->  | O39: =IF($B39="","",VLOOKUP(O$5,BBDD!$7:$1048576,$B39,FALSE)) ->  | P39: =+Factores!F39 -> 
A40: Cargo Unitario por CVOA-CMg | B40: 25 | C40: =IF($B40="","",VLOOKUP(C$5,BBDD!$7:$1048576,$B40,FALSE)) -> 1 | D40: =IF($B40="","",VLOOKUP(D$5,BBDD!$7:$1048576,$B40,FALSE)) -> 1 | E40: =IF($B40="","",VLOOKUP(E$5,BBDD!$7:$1048576,$B40,FALSE)) -> 1 | F40: =IF($B40="","",VLOOKUP(F$5,BBDD!$7:$1048576,$B40,FALSE)) -> 1 | G40: =IF($B40="","",VLOOKUP(G$5,BBDD!$7:$1048576,$B40,FALSE)) -> 1.0972 | H40: =IF($B40="","",VLOOKUP(H$5,BBDD!$7:$1048576,$B40,FALSE)) -> 1.0972 | I40: =IF($B40="","",VLOOKUP(I$5,BBDD!$7:$1048576,$B40,FALSE)) -> 1.0972 | J40: =IF($B40="","",VLOOKUP(J$5,BBDD!$7:$1048576,$B40,FALSE)) -> 1.0972 | K40: =IF($B40="","",VLOOKUP(K$5,BBDD!$7:$1048576,$B40,FALSE)) -> 1.7132 | L40: =IF($B40="","",VLOOKUP(L$5,BBDD!$7:$1048576,$B40,FALSE)) -> 1.7132 | M40: =IF($B40="","",VLOOKUP(M$5,BBDD!$7:$1048576,$B40,FALSE)) -> 1.7132 | N40: =IF($B40="","",VLOOKUP(N$5,BBDD!$7:$1048576,$B40,FALSE)) -> 2.1572 | O40: =IF($B40="","",VLOOKUP(O$5,BBDD!$7:$1048576,$B40,FALSE)) -> 2.1572 | P40: =+Factores!F40 -> 2.1572
A41: Cargo Unitario por CVOA-RSC | B41: 26 | C41: =IF($B41="","",VLOOKUP(C$5,BBDD!$7:$1048576,$B41,FALSE)) -> 1 | D41: =IF($B41="","",VLOOKUP(D$5,BBDD!$7:$1048576,$B41,FALSE)) -> 1 | E41: =IF($B41="","",VLOOKUP(E$5,BBDD!$7:$1048576,$B41,FALSE)) -> 1 | F41: =IF($B41="","",VLOOKUP(F$5,BBDD!$7:$1048576,$B41,FALSE)) -> 1 | G41: =IF($B41="","",VLOOKUP(G$5,BBDD!$7:$1048576,$B41,FALSE)) -> 0 | H41: =IF($B41="","",VLOOKUP(H$5,BBDD!$7:$1048576,$B41,FALSE)) -> 0 | I41: =IF($B41="","",VLOOKUP(I$5,BBDD!$7:$1048576,$B41,FALSE)) -> 0 | J41: =IF($B41="","",VLOOKUP(J$5,BBDD!$7:$1048576,$B41,FALSE)) -> 0 | K41: =IF($B41="","",VLOOKUP(K$5,BBDD!$7:$1048576,$B41,FALSE)) -> 0 | L41: =IF($B41="","",VLOOKUP(L$5,BBDD!$7:$1048576,$B41,FALSE)) -> 0 | M41: =IF($B41="","",VLOOKUP(M$5,BBDD!$7:$1048576,$B41,FALSE)) -> 0 | N41: =IF($B41="","",VLOOKUP(N$5,BBDD!$7:$1048576,$B41,FALSE)) -> 0 | O41: =IF($B41="","",VLOOKUP(O$5,BBDD!$7:$1048576,$B41,FALSE)) -> 0 | P41: =+Factores!F41 -> 0
A42: Cargo por Prima | C42: =IF($B42="","",VLOOKUP(C$5,BBDD!$7:$1048576,$B42,FALSE)) ->  | D42: =IF($B42="","",VLOOKUP(D$5,BBDD!$7:$1048576,$B42,FALSE)) ->  | E42: =IF($B42="","",VLOOKUP(E$5,BBDD!$7:$1048576,$B42,FALSE)) ->  | F42: =IF($B42="","",VLOOKUP(F$5,BBDD!$7:$1048576,$B42,FALSE)) ->  | G42: =IF($B42="","",VLOOKUP(G$5,BBDD!$7:$1048576,$B42,FALSE)) ->  | H42: =IF($B42="","",VLOOKUP(H$5,BBDD!$7:$1048576,$B42,FALSE)) ->  | I42: =IF($B42="","",VLOOKUP(I$5,BBDD!$7:$1048576,$B42,FALSE)) ->  | J42: =IF($B42="","",VLOOKUP(J$5,BBDD!$7:$1048576,$B42,FALSE)) ->  | K42: =IF($B42="","",VLOOKUP(K$5,BBDD!$7:$1048576,$B42,FALSE)) ->  | L42: =IF($B42="","",VLOOKUP(L$5,BBDD!$7:$1048576,$B42,FALSE)) ->  | M42: =IF($B42="","",VLOOKUP(M$5,BBDD!$7:$1048576,$B42,FALSE)) ->  | N42: =IF($B42="","",VLOOKUP(N$5,BBDD!$7:$1048576,$B42,FALSE)) ->  | O42: =IF($B42="","",VLOOKUP(O$5,BBDD!$7:$1048576,$B42,FALSE)) ->  | P42: =+Factores!F42 -> 
A43: Cogeneración Paramonga | B43: 27 | C43: =IF($B43="","",VLOOKUP(C$5,BBDD!$7:$1048576,$B43,FALSE)) -> 1 | D43: =IF($B43="","",VLOOKUP(D$5,BBDD!$7:$1048576,$B43,FALSE)) -> 1 | E43: =IF($B43="","",VLOOKUP(E$5,BBDD!$7:$1048576,$B43,FALSE)) -> 1 | F43: =IF($B43="","",VLOOKUP(F$5,BBDD!$7:$1048576,$B43,FALSE)) -> 1 | G43: =IF($B43="","",VLOOKUP(G$5,BBDD!$7:$1048576,$B43,FALSE)) -> 0 | H43: =IF($B43="","",VLOOKUP(H$5,BBDD!$7:$1048576,$B43,FALSE)) -> 0 | I43: =IF($B43="","",VLOOKUP(I$5,BBDD!$7:$1048576,$B43,FALSE)) -> 0 | J43: =IF($B43="","",VLOOKUP(J$5,BBDD!$7:$1048576,$B43,FALSE)) -> 0 | K43: =IF($B43="","",VLOOKUP(K$5,BBDD!$7:$1048576,$B43,FALSE)) -> 0 | L43: =IF($B43="","",VLOOKUP(L$5,BBDD!$7:$1048576,$B43,FALSE)) -> 0 | M43: =IF($B43="","",VLOOKUP(M$5,BBDD!$7:$1048576,$B43,FALSE)) -> 0 | N43: =IF($B43="","",VLOOKUP(N$5,BBDD!$7:$1048576,$B43,FALSE)) -> 1.5 | O43: =IF($B43="","",VLOOKUP(O$5,BBDD!$7:$1048576,$B43,FALSE)) -> 1.5 | P43: =+Factores!F43 -> 1.5
A44: C.H. Santa Cruz II | B44: 28 | C44: =IF($B44="","",VLOOKUP(C$5,BBDD!$7:$1048576,$B44,FALSE)) -> 1 | D44: =IF($B44="","",VLOOKUP(D$5,BBDD!$7:$1048576,$B44,FALSE)) -> 1 | E44: =IF($B44="","",VLOOKUP(E$5,BBDD!$7:$1048576,$B44,FALSE)) -> 1 | F44: =IF($B44="","",VLOOKUP(F$5,BBDD!$7:$1048576,$B44,FALSE)) -> 1 | G44: =IF($B44="","",VLOOKUP(G$5,BBDD!$7:$1048576,$B44,FALSE)) -> 1 | H44: =IF($B44="","",VLOOKUP(H$5,BBDD!$7:$1048576,$B44,FALSE)) -> 1 | I44: =IF($B44="","",VLOOKUP(I$5,BBDD!$7:$1048576,$B44,FALSE)) -> 1 | J44: =IF($B44="","",VLOOKUP(J$5,BBDD!$7:$1048576,$B44,FALSE)) -> 1 | K44: =IF($B44="","",VLOOKUP(K$5,BBDD!$7:$1048576,$B44,FALSE)) -> 1 | L44: =IF($B44="","",VLOOKUP(L$5,BBDD!$7:$1048576,$B44,FALSE)) -> 1 | M44: =IF($B44="","",VLOOKUP(M$5,BBDD!$7:$1048576,$B44,FALSE)) -> 1 | N44: =IF($B44="","",VLOOKUP(N$5,BBDD!$7:$1048576,$B44,FALSE)) -> 0.6667 | O44: =IF($B44="","",VLOOKUP(O$5,BBDD!$7:$1048576,$B44,FALSE)) -> 0.6667 | P44: =+Factores!F44 -> 0.6667
A45: C.H. Santa Cruz I | B45: 29 | C45: =IF($B45="","",VLOOKUP(C$5,BBDD!$7:$1048576,$B45,FALSE)) -> 1 | D45: =IF($B45="","",VLOOKUP(D$5,BBDD!$7:$1048576,$B45,FALSE)) -> 1 | E45: =IF($B45="","",VLOOKUP(E$5,BBDD!$7:$1048576,$B45,FALSE)) -> 1 | F45: =IF($B45="","",VLOOKUP(F$5,BBDD!$7:$1048576,$B45,FALSE)) -> 1 | G45: =IF($B45="","",VLOOKUP(G$5,BBDD!$7:$1048576,$B45,FALSE)) -> 1 | H45: =IF($B45="","",VLOOKUP(H$5,BBDD!$7:$1048576,$B45,FALSE)) -> 1 | I45: =IF($B45="","",VLOOKUP(I$5,BBDD!$7:$1048576,$B45,FALSE)) -> 1 | J45: =IF($B45="","",VLOOKUP(J$5,BBDD!$7:$1048576,$B45,FALSE)) -> 1 | K45: =IF($B45="","",VLOOKUP(K$5,BBDD!$7:$1048576,$B45,FALSE)) -> 1 | L45: =IF($B45="","",VLOOKUP(L$5,BBDD!$7:$1048576,$B45,FALSE)) -> 1 | M45: =IF($B45="","",VLOOKUP(M$5,BBDD!$7:$1048576,$B45,FALSE)) -> 1 | N45: =IF($B45="","",VLOOKUP(N$5,BBDD!$7:$1048576,$B45,FALSE)) -> 1 | O45: =IF($B45="","",VLOOKUP(O$5,BBDD!$7:$1048576,$B45,FALSE)) -> 1 | P45: =+Factores!F45 -> 1
A46: C.H. Poechos 2 | B46: 30 | C46: =IF($B46="","",VLOOKUP(C$5,BBDD!$7:$1048576,$B46,FALSE)) -> 1 | D46: =IF($B46="","",VLOOKUP(D$5,BBDD!$7:$1048576,$B46,FALSE)) -> 1 | E46: =IF($B46="","",VLOOKUP(E$5,BBDD!$7:$1048576,$B46,FALSE)) -> 1 | F46: =IF($B46="","",VLOOKUP(F$5,BBDD!$7:$1048576,$B46,FALSE)) -> 1 | G46: =IF($B46="","",VLOOKUP(G$5,BBDD!$7:$1048576,$B46,FALSE)) -> 1.25 | H46: =IF($B46="","",VLOOKUP(H$5,BBDD!$7:$1048576,$B46,FALSE)) -> 1.25 | I46: =IF($B46="","",VLOOKUP(I$5,BBDD!$7:$1048576,$B46,FALSE)) -> 1.25 | J46: =IF($B46="","",VLOOKUP(J$5,BBDD!$7:$1048576,$B46,FALSE)) -> 1.25 | K46: =IF($B46="","",VLOOKUP(K$5,BBDD!$7:$1048576,$B46,FALSE)) -> 1.25 | L46: =IF($B46="","",VLOOKUP(L$5,BBDD!$7:$1048576,$B46,FALSE)) -> 1.25 | M46: =IF($B46="","",VLOOKUP(M$5,BBDD!$7:$1048576,$B46,FALSE)) -> 1.25 | N46: =IF($B46="","",VLOOKUP(N$5,BBDD!$7:$1048576,$B46,FALSE)) -> 2.25 | O46: =IF($B46="","",VLOOKUP(O$5,BBDD!$7:$1048576,$B46,FALSE)) -> 2.25 | P46: =+Factores!F46 -> 2.25
A47: C.H. Roncador | B47: 31 | C47: =IF($B47="","",VLOOKUP(C$5,BBDD!$7:$1048576,$B47,FALSE)) -> 1 | D47: =IF($B47="","",VLOOKUP(D$5,BBDD!$7:$1048576,$B47,FALSE)) -> 1 | E47: =IF($B47="","",VLOOKUP(E$5,BBDD!$7:$1048576,$B47,FALSE)) -> 1 | F47: =IF($B47="","",VLOOKUP(F$5,BBDD!$7:$1048576,$B47,FALSE)) -> 1 | G47: =IF($B47="","",VLOOKUP(G$5,BBDD!$7:$1048576,$B47,FALSE)) -> 0 | H47: =IF($B47="","",VLOOKUP(H$5,BBDD!$7:$1048576,$B47,FALSE)) -> 0 | I47: =IF($B47="","",VLOOKUP(I$5,BBDD!$7:$1048576,$B47,FALSE)) -> 0 | J47: =IF($B47="","",VLOOKUP(J$5,BBDD!$7:$1048576,$B47,FALSE)) -> 0 | K47: =IF($B47="","",VLOOKUP(K$5,BBDD!$7:$1048576,$B47,FALSE)) -> 0.5 | L47: =IF($B47="","",VLOOKUP(L$5,BBDD!$7:$1048576,$B47,FALSE)) -> 0.5 | M47: =IF($B47="","",VLOOKUP(M$5,BBDD!$7:$1048576,$B47,FALSE)) -> 0.5 | N47: =IF($B47="","",VLOOKUP(N$5,BBDD!$7:$1048576,$B47,FALSE)) -> 0 | O47: =IF($B47="","",VLOOKUP(O$5,BBDD!$7:$1048576,$B47,FALSE)) -> 0 | P47: =+Factores!F47 -> 0
A48: C.H. Carhuaquero IV | B48: 32 | C48: =IF($B48="","",VLOOKUP(C$5,BBDD!$7:$1048576,$B48,FALSE)) -> 1 | D48: =IF($B48="","",VLOOKUP(D$5,BBDD!$7:$1048576,$B48,FALSE)) -> 1 | E48: =IF($B48="","",VLOOKUP(E$5,BBDD!$7:$1048576,$B48,FALSE)) -> 1 | F48: =IF($B48="","",VLOOKUP(F$5,BBDD!$7:$1048576,$B48,FALSE)) -> 1 | G48: =IF($B48="","",VLOOKUP(G$5,BBDD!$7:$1048576,$B48,FALSE)) -> 1 | H48: =IF($B48="","",VLOOKUP(H$5,BBDD!$7:$1048576,$B48,FALSE)) -> 1 | I48: =IF($B48="","",VLOOKUP(I$5,BBDD!$7:$1048576,$B48,FALSE)) -> 1 | J48: =IF($B48="","",VLOOKUP(J$5,BBDD!$7:$1048576,$B48,FALSE)) -> 1 | K48: =IF($B48="","",VLOOKUP(K$5,BBDD!$7:$1048576,$B48,FALSE)) -> 1 | L48: =IF($B48="","",VLOOKUP(L$5,BBDD!$7:$1048576,$B48,FALSE)) -> 1 | M48: =IF($B48="","",VLOOKUP(M$5,BBDD!$7:$1048576,$B48,FALSE)) -> 1 | N48: =IF($B48="","",VLOOKUP(N$5,BBDD!$7:$1048576,$B48,FALSE)) -> 0.8333 | O48: =IF($B48="","",VLOOKUP(O$5,BBDD!$7:$1048576,$B48,FALSE)) -> 0.8333 | P48: =+Factores!F48 -> 0.8333
A49: C.H. Caña Brava | B49: 33 | C49: =IF($B49="","",VLOOKUP(C$5,BBDD!$7:$1048576,$B49,FALSE)) -> 1 | D49: =IF($B49="","",VLOOKUP(D$5,BBDD!$7:$1048576,$B49,FALSE)) -> 1 | E49: =IF($B49="","",VLOOKUP(E$5,BBDD!$7:$1048576,$B49,FALSE)) -> 1 | F49: =IF($B49="","",VLOOKUP(F$5,BBDD!$7:$1048576,$B49,FALSE)) -> 1 | G49: =IF($B49="","",VLOOKUP(G$5,BBDD!$7:$1048576,$B49,FALSE)) -> 1 | H49: =IF($B49="","",VLOOKUP(H$5,BBDD!$7:$1048576,$B49,FALSE)) -> 1 | I49: =IF($B49="","",VLOOKUP(I$5,BBDD!$7:$1048576,$B49,FALSE)) -> 1 | J49: =IF($B49="","",VLOOKUP(J$5,BBDD!$7:$1048576,$B49,FALSE)) -> 1 | K49: =IF($B49="","",VLOOKUP(K$5,BBDD!$7:$1048576,$B49,FALSE)) -> 1 | L49: =IF($B49="","",VLOOKUP(L$5,BBDD!$7:$1048576,$B49,FALSE)) -> 1 | M49: =IF($B49="","",VLOOKUP(M$5,BBDD!$7:$1048576,$B49,FALSE)) -> 1 | N49: =IF($B49="","",VLOOKUP(N$5,BBDD!$7:$1048576,$B49,FALSE)) -> 1.6667 | O49: =IF($B49="","",VLOOKUP(O$5,BBDD!$7:$1048576,$B49,FALSE)) -> 1.6667 | P49: =+Factores!F49 -> 1.6667
A50: C.H. La Joya | B50: 34 | C50: =IF($B50="","",VLOOKUP(C$5,BBDD!$7:$1048576,$B50,FALSE)) -> 1 | D50: =IF($B50="","",VLOOKUP(D$5,BBDD!$7:$1048576,$B50,FALSE)) -> 1 | E50: =IF($B50="","",VLOOKUP(E$5,BBDD!$7:$1048576,$B50,FALSE)) -> 1 | F50: =IF($B50="","",VLOOKUP(F$5,BBDD!$7:$1048576,$B50,FALSE)) -> 1 | G50: =IF($B50="","",VLOOKUP(G$5,BBDD!$7:$1048576,$B50,FALSE)) -> 2.3333 | H50: =IF($B50="","",VLOOKUP(H$5,BBDD!$7:$1048576,$B50,FALSE)) -> 2.3333 | I50: =IF($B50="","",VLOOKUP(I$5,BBDD!$7:$1048576,$B50,FALSE)) -> 2.3333 | J50: =IF($B50="","",VLOOKUP(J$5,BBDD!$7:$1048576,$B50,FALSE)) -> 2.3333 | K50: =IF($B50="","",VLOOKUP(K$5,BBDD!$7:$1048576,$B50,FALSE)) -> 1.6667 | L50: =IF($B50="","",VLOOKUP(L$5,BBDD!$7:$1048576,$B50,FALSE)) -> 1.6667 | M50: =IF($B50="","",VLOOKUP(M$5,BBDD!$7:$1048576,$B50,FALSE)) -> 1.6667 | N50: =IF($B50="","",VLOOKUP(N$5,BBDD!$7:$1048576,$B50,FALSE)) -> 4.3333 | O50: =IF($B50="","",VLOOKUP(O$5,BBDD!$7:$1048576,$B50,FALSE)) -> 4.3333 | P50: =+Factores!F50 -> 4.3333
A51: C.T. Huaycoloro | B51: 35 | C51: =IF($B51="","",VLOOKUP(C$5,BBDD!$7:$1048576,$B51,FALSE)) -> 1 | D51: =IF($B51="","",VLOOKUP(D$5,BBDD!$7:$1048576,$B51,FALSE)) -> 1 | E51: =IF($B51="","",VLOOKUP(E$5,BBDD!$7:$1048576,$B51,FALSE)) -> 1 | F51: =IF($B51="","",VLOOKUP(F$5,BBDD!$7:$1048576,$B51,FALSE)) -> 1 | G51: =IF($B51="","",VLOOKUP(G$5,BBDD!$7:$1048576,$B51,FALSE)) -> 0.9286 | H51: =IF($B51="","",VLOOKUP(H$5,BBDD!$7:$1048576,$B51,FALSE)) -> 0.9286 | I51: =IF($B51="","",VLOOKUP(I$5,BBDD!$7:$1048576,$B51,FALSE)) -> 0.9286 | J51: =IF($B51="","",VLOOKUP(J$5,BBDD!$7:$1048576,$B51,FALSE)) -> 0.9286 | K51: =IF($B51="","",VLOOKUP(K$5,BBDD!$7:$1048576,$B51,FALSE)) -> 0.9286 | L51: =IF($B51="","",VLOOKUP(L$5,BBDD!$7:$1048576,$B51,FALSE)) -> 0.9286 | M51: =IF($B51="","",VLOOKUP(M$5,BBDD!$7:$1048576,$B51,FALSE)) -> 0.9286 | N51: =IF($B51="","",VLOOKUP(N$5,BBDD!$7:$1048576,$B51,FALSE)) -> 1 | O51: =IF($B51="","",VLOOKUP(O$5,BBDD!$7:$1048576,$B51,FALSE)) -> 1 | P51: =+Factores!F51 -> 1
A52: C. H. Purmacana | B52: 36 | C52: =IF($B52="","",VLOOKUP(C$5,BBDD!$7:$1048576,$B52,FALSE)) -> 1 | D52: =IF($B52="","",VLOOKUP(D$5,BBDD!$7:$1048576,$B52,FALSE)) -> 1 | E52: =IF($B52="","",VLOOKUP(E$5,BBDD!$7:$1048576,$B52,FALSE)) -> 1 | F52: =IF($B52="","",VLOOKUP(F$5,BBDD!$7:$1048576,$B52,FALSE)) -> 1 | G52: =IF($B52="","",VLOOKUP(G$5,BBDD!$7:$1048576,$B52,FALSE)) -> 0 | H52: =IF($B52="","",VLOOKUP(H$5,BBDD!$7:$1048576,$B52,FALSE)) -> 0 | I52: =IF($B52="","",VLOOKUP(I$5,BBDD!$7:$1048576,$B52,FALSE)) -> 0 | J52: =IF($B52="","",VLOOKUP(J$5,BBDD!$7:$1048576,$B52,FALSE)) -> 0 | K52: =IF($B52="","",VLOOKUP(K$5,BBDD!$7:$1048576,$B52,FALSE)) -> 0 | L52: =IF($B52="","",VLOOKUP(L$5,BBDD!$7:$1048576,$B52,FALSE)) -> 0 | M52: =IF($B52="","",VLOOKUP(M$5,BBDD!$7:$1048576,$B52,FALSE)) -> 0 | N52: =IF($B52="","",VLOOKUP(N$5,BBDD!$7:$1048576,$B52,FALSE)) -> 0 | O52: =IF($B52="","",VLOOKUP(O$5,BBDD!$7:$1048576,$B52,FALSE)) -> 0 | P52: =+Factores!F52 -> 0
A53: C.H. Huasahuasi I | B53: 37 | C53: =IF($B53="","",VLOOKUP(C$5,BBDD!$7:$1048576,$B53,FALSE)) -> 1 | D53: =IF($B53="","",VLOOKUP(D$5,BBDD!$7:$1048576,$B53,FALSE)) -> 1 | E53: =IF($B53="","",VLOOKUP(E$5,BBDD!$7:$1048576,$B53,FALSE)) -> 1 | F53: =IF($B53="","",VLOOKUP(F$5,BBDD!$7:$1048576,$B53,FALSE)) -> 1 | G53: =IF($B53="","",VLOOKUP(G$5,BBDD!$7:$1048576,$B53,FALSE)) -> 0.8 | H53: =IF($B53="","",VLOOKUP(H$5,BBDD!$7:$1048576,$B53,FALSE)) -> 0.8 | I53: =IF($B53="","",VLOOKUP(I$5,BBDD!$7:$1048576,$B53,FALSE)) -> 0.8 | J53: =IF($B53="","",VLOOKUP(J$5,BBDD!$7:$1048576,$B53,FALSE)) -> 0.8 | K53: =IF($B53="","",VLOOKUP(K$5,BBDD!$7:$1048576,$B53,FALSE)) -> 1 | L53: =IF($B53="","",VLOOKUP(L$5,BBDD!$7:$1048576,$B53,FALSE)) -> 1 | M53: =IF($B53="","",VLOOKUP(M$5,BBDD!$7:$1048576,$B53,FALSE)) -> 1 | N53: =IF($B53="","",VLOOKUP(N$5,BBDD!$7:$1048576,$B53,FALSE)) -> 1.8 | O53: =IF($B53="","",VLOOKUP(O$5,BBDD!$7:$1048576,$B53,FALSE)) -> 1.8 | P53: =+Factores!F53 -> 1.8
A54: C.H. Huasahuasi II | B54: 38 | C54: =IF($B54="","",VLOOKUP(C$5,BBDD!$7:$1048576,$B54,FALSE)) -> 1 | D54: =IF($B54="","",VLOOKUP(D$5,BBDD!$7:$1048576,$B54,FALSE)) -> 1 | E54: =IF($B54="","",VLOOKUP(E$5,BBDD!$7:$1048576,$B54,FALSE)) -> 1 | F54: =IF($B54="","",VLOOKUP(F$5,BBDD!$7:$1048576,$B54,FALSE)) -> 1 | G54: =IF($B54="","",VLOOKUP(G$5,BBDD!$7:$1048576,$B54,FALSE)) -> 0.8 | H54: =IF($B54="","",VLOOKUP(H$5,BBDD!$7:$1048576,$B54,FALSE)) -> 0.8 | I54: =IF($B54="","",VLOOKUP(I$5,BBDD!$7:$1048576,$B54,FALSE)) -> 0.8 | J54: =IF($B54="","",VLOOKUP(J$5,BBDD!$7:$1048576,$B54,FALSE)) -> 0.8 | K54: =IF($B54="","",VLOOKUP(K$5,BBDD!$7:$1048576,$B54,FALSE)) -> 1 | L54: =IF($B54="","",VLOOKUP(L$5,BBDD!$7:$1048576,$B54,FALSE)) -> 1 | M54: =IF($B54="","",VLOOKUP(M$5,BBDD!$7:$1048576,$B54,FALSE)) -> 1 | N54: =IF($B54="","",VLOOKUP(N$5,BBDD!$7:$1048576,$B54,FALSE)) -> 1.4 | O54: =IF($B54="","",VLOOKUP(O$5,BBDD!$7:$1048576,$B54,FALSE)) -> 1.4 | P54: =+Factores!F54 -> 1.4
A55: C.H. Nuevo Imperial | B55: 39 | C55: =IF($B55="","",VLOOKUP(C$5,BBDD!$7:$1048576,$B55,FALSE)) -> 1 | D55: =IF($B55="","",VLOOKUP(D$5,BBDD!$7:$1048576,$B55,FALSE)) -> 1 | E55: =IF($B55="","",VLOOKUP(E$5,BBDD!$7:$1048576,$B55,FALSE)) -> 1 | F55: =IF($B55="","",VLOOKUP(F$5,BBDD!$7:$1048576,$B55,FALSE)) -> 1 | G55: =IF($B55="","",VLOOKUP(G$5,BBDD!$7:$1048576,$B55,FALSE)) -> 0.6667 | H55: =IF($B55="","",VLOOKUP(H$5,BBDD!$7:$1048576,$B55,FALSE)) -> 0.6667 | I55: =IF($B55="","",VLOOKUP(I$5,BBDD!$7:$1048576,$B55,FALSE)) -> 0.6667 | J55: =IF($B55="","",VLOOKUP(J$5,BBDD!$7:$1048576,$B55,FALSE)) -> 0.6667 | K55: =IF($B55="","",VLOOKUP(K$5,BBDD!$7:$1048576,$B55,FALSE)) -> 0.3333 | L55: =IF($B55="","",VLOOKUP(L$5,BBDD!$7:$1048576,$B55,FALSE)) -> 0.3333 | M55: =IF($B55="","",VLOOKUP(M$5,BBDD!$7:$1048576,$B55,FALSE)) -> 0.3333 | N55: =IF($B55="","",VLOOKUP(N$5,BBDD!$7:$1048576,$B55,FALSE)) -> 1.3333 | O55: =IF($B55="","",VLOOKUP(O$5,BBDD!$7:$1048576,$B55,FALSE)) -> 1.3333 | P55: =+Factores!F55 -> 1.3333
A56: Cargo Unitario por Generación Adicional | C56: =IF($B56="","",VLOOKUP(C$5,BBDD!$7:$1048576,$B56,FALSE)) ->  | D56: =IF($B56="","",VLOOKUP(D$5,BBDD!$7:$1048576,$B56,FALSE)) ->  | E56: =IF($B56="","",VLOOKUP(E$5,BBDD!$7:$1048576,$B56,FALSE)) ->  | F56: =IF($B56="","",VLOOKUP(F$5,BBDD!$7:$1048576,$B56,FALSE)) ->  | G56: =IF($B56="","",VLOOKUP(G$5,BBDD!$7:$1048576,$B56,FALSE)) ->  | H56: =IF($B56="","",VLOOKUP(H$5,BBDD!$7:$1048576,$B56,FALSE)) ->  | I56: =IF($B56="","",VLOOKUP(I$5,BBDD!$7:$1048576,$B56,FALSE)) ->  | J56: =IF($B56="","",VLOOKUP(J$5,BBDD!$7:$1048576,$B56,FALSE)) ->  | K56: =IF($B56="","",VLOOKUP(K$5,BBDD!$7:$1048576,$B56,FALSE)) ->  | L56: =IF($B56="","",VLOOKUP(L$5,BBDD!$7:$1048576,$B56,FALSE)) ->  | M56: =IF($B56="","",VLOOKUP(M$5,BBDD!$7:$1048576,$B56,FALSE)) ->  | N56: =IF($B56="","",VLOOKUP(N$5,BBDD!$7:$1048576,$B56,FALSE)) ->  | O56: =IF($B56="","",VLOOKUP(O$5,BBDD!$7:$1048576,$B56,FALSE)) ->  | P56: =+Factores!F56 -> 
A57: Usuarios Regulados | B57: 40 | C57: =IF($B57="","",VLOOKUP(C$5,BBDD!$7:$1048576,$B57,FALSE)) -> 1 | D57: =IF($B57="","",VLOOKUP(D$5,BBDD!$7:$1048576,$B57,FALSE)) -> 1 | E57: =IF($B57="","",VLOOKUP(E$5,BBDD!$7:$1048576,$B57,FALSE)) -> 1 | F57: =IF($B57="","",VLOOKUP(F$5,BBDD!$7:$1048576,$B57,FALSE)) -> 1 | G57: =IF($B57="","",VLOOKUP(G$5,BBDD!$7:$1048576,$B57,FALSE)) -> 0.9724 | H57: =IF($B57="","",VLOOKUP(H$5,BBDD!$7:$1048576,$B57,FALSE)) -> 0.9724 | I57: =IF($B57="","",VLOOKUP(I$5,BBDD!$7:$1048576,$B57,FALSE)) -> 0.9724 | J57: =IF($B57="","",VLOOKUP(J$5,BBDD!$7:$1048576,$B57,FALSE)) -> 0.9724 | K57: =IF($B57="","",VLOOKUP(K$5,BBDD!$7:$1048576,$B57,FALSE)) -> 0.9862 | L57: =IF($B57="","",VLOOKUP(L$5,BBDD!$7:$1048576,$B57,FALSE)) -> 0.9862 | M57: =IF($B57="","",VLOOKUP(M$5,BBDD!$7:$1048576,$B57,FALSE)) -> 0.9862 | N57: =IF($B57="","",VLOOKUP(N$5,BBDD!$7:$1048576,$B57,FALSE)) -> 0.8897 | O57: =IF($B57="","",VLOOKUP(O$5,BBDD!$7:$1048576,$B57,FALSE)) -> 0.8897 | P57: =+Factores!F57 -> 0.8897
A58: Cargo por Garantía (SGT) | C58: =IF($B58="","",VLOOKUP(C$5,BBDD!$7:$1048576,$B58,FALSE)) ->  | D58: =IF($B58="","",VLOOKUP(D$5,BBDD!$7:$1048576,$B58,FALSE)) ->  | E58: =IF($B58="","",VLOOKUP(E$5,BBDD!$7:$1048576,$B58,FALSE)) ->  | F58: =IF($B58="","",VLOOKUP(F$5,BBDD!$7:$1048576,$B58,FALSE)) ->  | G58: =IF($B58="","",VLOOKUP(G$5,BBDD!$7:$1048576,$B58,FALSE)) ->  | H58: =IF($B58="","",VLOOKUP(H$5,BBDD!$7:$1048576,$B58,FALSE)) ->  | I58: =IF($B58="","",VLOOKUP(I$5,BBDD!$7:$1048576,$B58,FALSE)) ->  | J58: =IF($B58="","",VLOOKUP(J$5,BBDD!$7:$1048576,$B58,FALSE)) ->  | K58: =IF($B58="","",VLOOKUP(K$5,BBDD!$7:$1048576,$B58,FALSE)) ->  | L58: =IF($B58="","",VLOOKUP(L$5,BBDD!$7:$1048576,$B58,FALSE)) ->  | M58: =IF($B58="","",VLOOKUP(M$5,BBDD!$7:$1048576,$B58,FALSE)) ->  | N58: =IF($B58="","",VLOOKUP(N$5,BBDD!$7:$1048576,$B58,FALSE)) ->  | O58: =IF($B58="","",VLOOKUP(O$5,BBDD!$7:$1048576,$B58,FALSE)) ->  | P58: =+Factores!F58 -> 
A59: Línea Chilca -Zapallal (Tramos 1 y 2) | B59: 41 | C59: =IF($B59="","",VLOOKUP(C$5,BBDD!$7:$1048576,$B59,FALSE)) -> 1 | D59: =IF($B59="","",VLOOKUP(D$5,BBDD!$7:$1048576,$B59,FALSE)) -> 0.9899 | E59: =IF($B59="","",VLOOKUP(E$5,BBDD!$7:$1048576,$B59,FALSE)) -> 0.9899 | F59: =IF($B59="","",VLOOKUP(F$5,BBDD!$7:$1048576,$B59,FALSE)) -> 0.9899 | G59: =IF($B59="","",VLOOKUP(G$5,BBDD!$7:$1048576,$B59,FALSE)) -> 0.9899 | H59: =IF($B59="","",VLOOKUP(H$5,BBDD!$7:$1048576,$B59,FALSE)) -> 0.9899 | I59: =IF($B59="","",VLOOKUP(I$5,BBDD!$7:$1048576,$B59,FALSE)) -> 0.9738 | J59: =IF($B59="","",VLOOKUP(J$5,BBDD!$7:$1048576,$B59,FALSE)) -> 0.9738 | K59: =IF($B59="","",VLOOKUP(K$5,BBDD!$7:$1048576,$B59,FALSE)) -> 0.9715 | L59: =IF($B59="","",VLOOKUP(L$5,BBDD!$7:$1048576,$B59,FALSE)) -> 0.9715 | M59: =IF($B59="","",VLOOKUP(M$5,BBDD!$7:$1048576,$B59,FALSE)) -> 0.9715 | N59: =IF($B59="","",VLOOKUP(N$5,BBDD!$7:$1048576,$B59,FALSE)) -> 0.9663 | O59: =IF($B59="","",VLOOKUP(O$5,BBDD!$7:$1048576,$B59,FALSE)) -> 0.9663 | P59: =+Factores!F59 -> 0.9663
A60: Línea Zapallal – Trujillo 500 kV | B60: 243 | C60: =IF($B60="","",VLOOKUP(C$5,BBDD!$7:$1048576,$B60,FALSE)) -> 0 | D60: =IF($B60="","",VLOOKUP(D$5,BBDD!$7:$1048576,$B60,FALSE)) -> 0 | E60: =IF($B60="","",VLOOKUP(E$5,BBDD!$7:$1048576,$B60,FALSE)) -> 0 | F60: =IF($B60="","",VLOOKUP(F$5,BBDD!$7:$1048576,$B60,FALSE)) -> 0 | G60: =IF($B60="","",VLOOKUP(G$5,BBDD!$7:$1048576,$B60,FALSE)) -> 0 | H60: =IF($B60="","",VLOOKUP(H$5,BBDD!$7:$1048576,$B60,FALSE)) -> 0 | I60: =IF($B60="","",VLOOKUP(I$5,BBDD!$7:$1048576,$B60,FALSE)) -> 0 | J60: =IF($B60="","",VLOOKUP(J$5,BBDD!$7:$1048576,$B60,FALSE)) -> 0 | K60: =IF($B60="","",VLOOKUP(K$5,BBDD!$7:$1048576,$B60,FALSE)) -> 0 | L60: =IF($B60="","",VLOOKUP(L$5,BBDD!$7:$1048576,$B60,FALSE)) -> 0 | M60: =IF($B60="","",VLOOKUP(M$5,BBDD!$7:$1048576,$B60,FALSE)) -> 0 | N60: =IF($B60="","",VLOOKUP(N$5,BBDD!$7:$1048576,$B60,FALSE)) -> 0.9663 | O60: =IF($B60="","",VLOOKUP(O$5,BBDD!$7:$1048576,$B60,FALSE)) -> 0.9663 | P60: =+Factores!F60 -> 0.9663
A61: Líneas Carhuamayo - Cajamarca 220 kV (Tramos 1, 2, 3 y4) y SVC-Cajamarca | B61: 42 | C61: =IF($B61="","",VLOOKUP(C$5,BBDD!$7:$1048576,$B61,FALSE)) -> 1 | D61: =IF($B61="","",VLOOKUP(D$5,BBDD!$7:$1048576,$B61,FALSE)) -> 0.9899 | E61: =IF($B61="","",VLOOKUP(E$5,BBDD!$7:$1048576,$B61,FALSE)) -> 0.9899 | F61: =IF($B61="","",VLOOKUP(F$5,BBDD!$7:$1048576,$B61,FALSE)) -> 0.9899 | G61: =IF($B61="","",VLOOKUP(G$5,BBDD!$7:$1048576,$B61,FALSE)) -> 0.9899 | H61: =IF($B61="","",VLOOKUP(H$5,BBDD!$7:$1048576,$B61,FALSE)) -> 0.9899 | I61: =IF($B61="","",VLOOKUP(I$5,BBDD!$7:$1048576,$B61,FALSE)) -> 0.9738 | J61: =IF($B61="","",VLOOKUP(J$5,BBDD!$7:$1048576,$B61,FALSE)) -> 0.9738 | K61: =IF($B61="","",VLOOKUP(K$5,BBDD!$7:$1048576,$B61,FALSE)) -> 0.9715 | L61: =IF($B61="","",VLOOKUP(L$5,BBDD!$7:$1048576,$B61,FALSE)) -> 0.9715 | M61: =IF($B61="","",VLOOKUP(M$5,BBDD!$7:$1048576,$B61,FALSE)) -> 0.9715 | N61: =IF($B61="","",VLOOKUP(N$5,BBDD!$7:$1048576,$B61,FALSE)) -> 0.9663 | O61: =IF($B61="","",VLOOKUP(O$5,BBDD!$7:$1048576,$B61,FALSE)) -> 0.9663 | P61: =+Factores!F61 -> 0.9663
C62: =IF($B62="","",VLOOKUP(C$5,BBDD!$7:$1048576,$B62,FALSE)) ->  | D62: =IF($B62="","",VLOOKUP(D$5,BBDD!$7:$1048576,$B62,FALSE)) ->  | E62: =IF($B62="","",VLOOKUP(E$5,BBDD!$7:$1048576,$B62,FALSE)) ->  | F62: =IF($B62="","",VLOOKUP(F$5,BBDD!$7:$1048576,$B62,FALSE)) ->  | G62: =IF($B62="","",VLOOKUP(G$5,BBDD!$7:$1048576,$B62,FALSE)) ->  | H62: =IF($B62="","",VLOOKUP(H$5,BBDD!$7:$1048576,$B62,FALSE)) ->  | I62: =IF($B62="","",VLOOKUP(I$5,BBDD!$7:$1048576,$B62,FALSE)) ->  | J62: =IF($B62="","",VLOOKUP(J$5,BBDD!$7:$1048576,$B62,FALSE)) ->  | K62: =IF($B62="","",VLOOKUP(K$5,BBDD!$7:$1048576,$B62,FALSE)) ->  | L62: =IF($B62="","",VLOOKUP(L$5,BBDD!$7:$1048576,$B62,FALSE)) ->  | M62: =IF($B62="","",VLOOKUP(M$5,BBDD!$7:$1048576,$B62,FALSE)) ->  | N62: =IF($B62="","",VLOOKUP(N$5,BBDD!$7:$1048576,$B62,FALSE)) ->  | O62: =IF($B62="","",VLOOKUP(O$5,BBDD!$7:$1048576,$B62,FALSE)) ->  | P62: =+Factores!F62 -> 
C63: =IF($B63="","",VLOOKUP(C$5,BBDD!$7:$1048576,$B63,FALSE)) ->  | D63: =IF($B63="","",VLOOKUP(D$5,BBDD!$7:$1048576,$B63,FALSE)) ->  | E63: =IF($B63="","",VLOOKUP(E$5,BBDD!$7:$1048576,$B63,FALSE)) ->  | F63: =IF($B63="","",VLOOKUP(F$5,BBDD!$7:$1048576,$B63,FALSE)) ->  | G63: =IF($B63="","",VLOOKUP(G$5,BBDD!$7:$1048576,$B63,FALSE)) ->  | H63: =IF($B63="","",VLOOKUP(H$5,BBDD!$7:$1048576,$B63,FALSE)) ->  | I63: =IF($B63="","",VLOOKUP(I$5,BBDD!$7:$1048576,$B63,FALSE)) ->  | J63: =IF($B63="","",VLOOKUP(J$5,BBDD!$7:$1048576,$B63,FALSE)) ->  | K63: =IF($B63="","",VLOOKUP(K$5,BBDD!$7:$1048576,$B63,FALSE)) ->  | L63: =IF($B63="","",VLOOKUP(L$5,BBDD!$7:$1048576,$B63,FALSE)) ->  | M63: =IF($B63="","",VLOOKUP(M$5,BBDD!$7:$1048576,$B63,FALSE)) ->  | N63: =IF($B63="","",VLOOKUP(N$5,BBDD!$7:$1048576,$B63,FALSE)) ->  | O63: =IF($B63="","",VLOOKUP(O$5,BBDD!$7:$1048576,$B63,FALSE)) ->  | P63: =+Factores!F63 -> 
A64: B2. Actualización de Peajes por Áreas de Demanda (Res. N° 184-2009-OS/CD) | C64: =IF($B64="","",VLOOKUP(C$5,BBDD!$7:$1048576,$B64,FALSE)) ->  | D64: =IF($B64="","",VLOOKUP(D$5,BBDD!$7:$1048576,$B64,FALSE)) ->  | E64: =IF($B64="","",VLOOKUP(E$5,BBDD!$7:$1048576,$B64,FALSE)) ->  | F64: =IF($B64="","",VLOOKUP(F$5,BBDD!$7:$1048576,$B64,FALSE)) ->  | G64: =IF($B64="","",VLOOKUP(G$5,BBDD!$7:$1048576,$B64,FALSE)) ->  | H64: =IF($B64="","",VLOOKUP(H$5,BBDD!$7:$1048576,$B64,FALSE)) ->  | I64: =IF($B64="","",VLOOKUP(I$5,BBDD!$7:$1048576,$B64,FALSE)) ->  | J64: =IF($B64="","",VLOOKUP(J$5,BBDD!$7:$1048576,$B64,FALSE)) ->  | K64: =IF($B64="","",VLOOKUP(K$5,BBDD!$7:$1048576,$B64,FALSE)) ->  | L64: =IF($B64="","",VLOOKUP(L$5,BBDD!$7:$1048576,$B64,FALSE)) ->  | M64: =IF($B64="","",VLOOKUP(M$5,BBDD!$7:$1048576,$B64,FALSE)) ->  | N64: =IF($B64="","",VLOOKUP(N$5,BBDD!$7:$1048576,$B64,FALSE)) ->  | O64: =IF($B64="","",VLOOKUP(O$5,BBDD!$7:$1048576,$B64,FALSE)) ->  | P64: =+Factores!F64 -> 
A65: Área de Demanda 1 | B65: 43 | C65: =IF($B65="","",VLOOKUP(C$5,BBDD!$7:$1048576,$B65,FALSE)) -> 1.037 | D65: =IF($B65="","",VLOOKUP(D$5,BBDD!$7:$1048576,$B65,FALSE)) -> 1.0378 | E65: =IF($B65="","",VLOOKUP(E$5,BBDD!$7:$1048576,$B65,FALSE)) -> 1.0378 | F65: =IF($B65="","",VLOOKUP(F$5,BBDD!$7:$1048576,$B65,FALSE)) -> 1.0378 | G65: =IF($B65="","",VLOOKUP(G$5,BBDD!$7:$1048576,$B65,FALSE)) -> 1.0378 | H65: =IF($B65="","",VLOOKUP(H$5,BBDD!$7:$1048576,$B65,FALSE)) -> 1.0378 | I65: =IF($B65="","",VLOOKUP(I$5,BBDD!$7:$1048576,$B65,FALSE)) -> 1.0378 | J65: =IF($B65="","",VLOOKUP(J$5,BBDD!$7:$1048576,$B65,FALSE)) -> 1.0378 | K65: =IF($B65="","",VLOOKUP(K$5,BBDD!$7:$1048576,$B65,FALSE)) -> 1.0378 | L65: =IF($B65="","",VLOOKUP(L$5,BBDD!$7:$1048576,$B65,FALSE)) -> 1.0378 | M65: =IF($B65="","",VLOOKUP(M$5,BBDD!$7:$1048576,$B65,FALSE)) -> 1.0378 | N65: =IF($B65="","",VLOOKUP(N$5,BBDD!$7:$1048576,$B65,FALSE)) -> 1.0378 | O65: =IF($B65="","",VLOOKUP(O$5,BBDD!$7:$1048576,$B65,FALSE)) -> 1.0378 | P65: =+Factores!F65 -> 1.0378
A66: Área de Demanda 2 | B66: 44 | C66: =IF($B66="","",VLOOKUP(C$5,BBDD!$7:$1048576,$B66,FALSE)) -> 1.048 | D66: =IF($B66="","",VLOOKUP(D$5,BBDD!$7:$1048576,$B66,FALSE)) -> 1.049 | E66: =IF($B66="","",VLOOKUP(E$5,BBDD!$7:$1048576,$B66,FALSE)) -> 1.049 | F66: =IF($B66="","",VLOOKUP(F$5,BBDD!$7:$1048576,$B66,FALSE)) -> 1.049 | G66: =IF($B66="","",VLOOKUP(G$5,BBDD!$7:$1048576,$B66,FALSE)) -> 1.049 | H66: =IF($B66="","",VLOOKUP(H$5,BBDD!$7:$1048576,$B66,FALSE)) -> 1.049 | I66: =IF($B66="","",VLOOKUP(I$5,BBDD!$7:$1048576,$B66,FALSE)) -> 1.049 | J66: =IF($B66="","",VLOOKUP(J$5,BBDD!$7:$1048576,$B66,FALSE)) -> 1.049 | K66: =IF($B66="","",VLOOKUP(K$5,BBDD!$7:$1048576,$B66,FALSE)) -> 1.049 | L66: =IF($B66="","",VLOOKUP(L$5,BBDD!$7:$1048576,$B66,FALSE)) -> 1.049 | M66: =IF($B66="","",VLOOKUP(M$5,BBDD!$7:$1048576,$B66,FALSE)) -> 1.049 | N66: =IF($B66="","",VLOOKUP(N$5,BBDD!$7:$1048576,$B66,FALSE)) -> 1.049 | O66: =IF($B66="","",VLOOKUP(O$5,BBDD!$7:$1048576,$B66,FALSE)) -> 1.049 | P66: =+Factores!F66 -> 1.049
A67: Área de Demanda 3 | B67: 45 | C67: =IF($B67="","",VLOOKUP(C$5,BBDD!$7:$1048576,$B67,FALSE)) -> 1.0364 | D67: =IF($B67="","",VLOOKUP(D$5,BBDD!$7:$1048576,$B67,FALSE)) -> 1.0372 | E67: =IF($B67="","",VLOOKUP(E$5,BBDD!$7:$1048576,$B67,FALSE)) -> 1.0372 | F67: =IF($B67="","",VLOOKUP(F$5,BBDD!$7:$1048576,$B67,FALSE)) -> 1.0372 | G67: =IF($B67="","",VLOOKUP(G$5,BBDD!$7:$1048576,$B67,FALSE)) -> 1.0372 | H67: =IF($B67="","",VLOOKUP(H$5,BBDD!$7:$1048576,$B67,FALSE)) -> 1.0372 | I67: =IF($B67="","",VLOOKUP(I$5,BBDD!$7:$1048576,$B67,FALSE)) -> 1.0372 | J67: =IF($B67="","",VLOOKUP(J$5,BBDD!$7:$1048576,$B67,FALSE)) -> 1.0372 | K67: =IF($B67="","",VLOOKUP(K$5,BBDD!$7:$1048576,$B67,FALSE)) -> 1.0372 | L67: =IF($B67="","",VLOOKUP(L$5,BBDD!$7:$1048576,$B67,FALSE)) -> 1.0372 | M67: =IF($B67="","",VLOOKUP(M$5,BBDD!$7:$1048576,$B67,FALSE)) -> 1.0372 | N67: =IF($B67="","",VLOOKUP(N$5,BBDD!$7:$1048576,$B67,FALSE)) -> 1.0372 | O67: =IF($B67="","",VLOOKUP(O$5,BBDD!$7:$1048576,$B67,FALSE)) -> 1.0372 | P67: =+Factores!F67 -> 1.0372
A68: Área de Demanda 4 | B68: 46 | C68: =IF($B68="","",VLOOKUP(C$5,BBDD!$7:$1048576,$B68,FALSE)) -> 1.0318 | D68: =IF($B68="","",VLOOKUP(D$5,BBDD!$7:$1048576,$B68,FALSE)) -> 1.0327 | E68: =IF($B68="","",VLOOKUP(E$5,BBDD!$7:$1048576,$B68,FALSE)) -> 1.0327 | F68: =IF($B68="","",VLOOKUP(F$5,BBDD!$7:$1048576,$B68,FALSE)) -> 1.0327 | G68: =IF($B68="","",VLOOKUP(G$5,BBDD!$7:$1048576,$B68,FALSE)) -> 1.0327 | H68: =IF($B68="","",VLOOKUP(H$5,BBDD!$7:$1048576,$B68,FALSE)) -> 1.0327 | I68: =IF($B68="","",VLOOKUP(I$5,BBDD!$7:$1048576,$B68,FALSE)) -> 1.0327 | J68: =IF($B68="","",VLOOKUP(J$5,BBDD!$7:$1048576,$B68,FALSE)) -> 1.0327 | K68: =IF($B68="","",VLOOKUP(K$5,BBDD!$7:$1048576,$B68,FALSE)) -> 1.0327 | L68: =IF($B68="","",VLOOKUP(L$5,BBDD!$7:$1048576,$B68,FALSE)) -> 1.0327 | M68: =IF($B68="","",VLOOKUP(M$5,BBDD!$7:$1048576,$B68,FALSE)) -> 1.0327 | N68: =IF($B68="","",VLOOKUP(N$5,BBDD!$7:$1048576,$B68,FALSE)) -> 1.0327 | O68: =IF($B68="","",VLOOKUP(O$5,BBDD!$7:$1048576,$B68,FALSE)) -> 1.0327 | P68: =+Factores!F68 -> 1.0327
A69: Área de Demanda 5 | B69: 47 | C69: =IF($B69="","",VLOOKUP(C$5,BBDD!$7:$1048576,$B69,FALSE)) -> 1.0188 | D69: =IF($B69="","",VLOOKUP(D$5,BBDD!$7:$1048576,$B69,FALSE)) -> 1.0196 | E69: =IF($B69="","",VLOOKUP(E$5,BBDD!$7:$1048576,$B69,FALSE)) -> 1.0196 | F69: =IF($B69="","",VLOOKUP(F$5,BBDD!$7:$1048576,$B69,FALSE)) -> 1.0196 | G69: =IF($B69="","",VLOOKUP(G$5,BBDD!$7:$1048576,$B69,FALSE)) -> 1.0196 | H69: =IF($B69="","",VLOOKUP(H$5,BBDD!$7:$1048576,$B69,FALSE)) -> 1.0196 | I69: =IF($B69="","",VLOOKUP(I$5,BBDD!$7:$1048576,$B69,FALSE)) -> 1.0196 | J69: =IF($B69="","",VLOOKUP(J$5,BBDD!$7:$1048576,$B69,FALSE)) -> 1.0196 | K69: =IF($B69="","",VLOOKUP(K$5,BBDD!$7:$1048576,$B69,FALSE)) -> 1.0196 | L69: =IF($B69="","",VLOOKUP(L$5,BBDD!$7:$1048576,$B69,FALSE)) -> 1.0196 | M69: =IF($B69="","",VLOOKUP(M$5,BBDD!$7:$1048576,$B69,FALSE)) -> 1.0196 | N69: =IF($B69="","",VLOOKUP(N$5,BBDD!$7:$1048576,$B69,FALSE)) -> 1.0196 | O69: =IF($B69="","",VLOOKUP(O$5,BBDD!$7:$1048576,$B69,FALSE)) -> 1.0196 | P69: =+Factores!F69 -> 1.0196
A70: Área de Demanda 6 | B70: 48 | C70: =IF($B70="","",VLOOKUP(C$5,BBDD!$7:$1048576,$B70,FALSE)) -> 1.0038 | D70: =IF($B70="","",VLOOKUP(D$5,BBDD!$7:$1048576,$B70,FALSE)) -> 1.0044 | E70: =IF($B70="","",VLOOKUP(E$5,BBDD!$7:$1048576,$B70,FALSE)) -> 1.0044 | F70: =IF($B70="","",VLOOKUP(F$5,BBDD!$7:$1048576,$B70,FALSE)) -> 1.0044 | G70: =IF($B70="","",VLOOKUP(G$5,BBDD!$7:$1048576,$B70,FALSE)) -> 1.0044 | H70: =IF($B70="","",VLOOKUP(H$5,BBDD!$7:$1048576,$B70,FALSE)) -> 1.0044 | I70: =IF($B70="","",VLOOKUP(I$5,BBDD!$7:$1048576,$B70,FALSE)) -> 1.0044 | J70: =IF($B70="","",VLOOKUP(J$5,BBDD!$7:$1048576,$B70,FALSE)) -> 1.0044 | K70: =IF($B70="","",VLOOKUP(K$5,BBDD!$7:$1048576,$B70,FALSE)) -> 1.0044 | L70: =IF($B70="","",VLOOKUP(L$5,BBDD!$7:$1048576,$B70,FALSE)) -> 1.0044 | M70: =IF($B70="","",VLOOKUP(M$5,BBDD!$7:$1048576,$B70,FALSE)) -> 1.0044 | N70: =IF($B70="","",VLOOKUP(N$5,BBDD!$7:$1048576,$B70,FALSE)) -> 1.0044 | O70: =IF($B70="","",VLOOKUP(O$5,BBDD!$7:$1048576,$B70,FALSE)) -> 1.0044 | P70: =+Factores!F70 -> 1.0044
A71: Área de Demanda 7 | B71: 49 | C71: =IF($B71="","",VLOOKUP(C$5,BBDD!$7:$1048576,$B71,FALSE)) -> 1.0055 | D71: =IF($B71="","",VLOOKUP(D$5,BBDD!$7:$1048576,$B71,FALSE)) -> 1.0062 | E71: =IF($B71="","",VLOOKUP(E$5,BBDD!$7:$1048576,$B71,FALSE)) -> 1.0062 | F71: =IF($B71="","",VLOOKUP(F$5,BBDD!$7:$1048576,$B71,FALSE)) -> 1.0062 | G71: =IF($B71="","",VLOOKUP(G$5,BBDD!$7:$1048576,$B71,FALSE)) -> 1.0062 | H71: =IF($B71="","",VLOOKUP(H$5,BBDD!$7:$1048576,$B71,FALSE)) -> 1.0062 | I71: =IF($B71="","",VLOOKUP(I$5,BBDD!$7:$1048576,$B71,FALSE)) -> 1.0062 | J71: =IF($B71="","",VLOOKUP(J$5,BBDD!$7:$1048576,$B71,FALSE)) -> 1.0062 | K71: =IF($B71="","",VLOOKUP(K$5,BBDD!$7:$1048576,$B71,FALSE)) -> 1.0062 | L71: =IF($B71="","",VLOOKUP(L$5,BBDD!$7:$1048576,$B71,FALSE)) -> 1.0062 | M71: =IF($B71="","",VLOOKUP(M$5,BBDD!$7:$1048576,$B71,FALSE)) -> 1.0062 | N71: =IF($B71="","",VLOOKUP(N$5,BBDD!$7:$1048576,$B71,FALSE)) -> 1.0062 | O71: =IF($B71="","",VLOOKUP(O$5,BBDD!$7:$1048576,$B71,FALSE)) -> 1.0062 | P71: =+Factores!F71 -> 1.0062
A72: Área de Demanda 8 | B72: 50 | C72: =IF($B72="","",VLOOKUP(C$5,BBDD!$7:$1048576,$B72,FALSE)) -> 1.0327 | D72: =IF($B72="","",VLOOKUP(D$5,BBDD!$7:$1048576,$B72,FALSE)) -> 1.0335 | E72: =IF($B72="","",VLOOKUP(E$5,BBDD!$7:$1048576,$B72,FALSE)) -> 1.0335 | F72: =IF($B72="","",VLOOKUP(F$5,BBDD!$7:$1048576,$B72,FALSE)) -> 1.0335 | G72: =IF($B72="","",VLOOKUP(G$5,BBDD!$7:$1048576,$B72,FALSE)) -> 1.0335 | H72: =IF($B72="","",VLOOKUP(H$5,BBDD!$7:$1048576,$B72,FALSE)) -> 1.0335 | I72: =IF($B72="","",VLOOKUP(I$5,BBDD!$7:$1048576,$B72,FALSE)) -> 1.0335 | J72: =IF($B72="","",VLOOKUP(J$5,BBDD!$7:$1048576,$B72,FALSE)) -> 1.0335 | K72: =IF($B72="","",VLOOKUP(K$5,BBDD!$7:$1048576,$B72,FALSE)) -> 1.0335 | L72: =IF($B72="","",VLOOKUP(L$5,BBDD!$7:$1048576,$B72,FALSE)) -> 1.0335 | M72: =IF($B72="","",VLOOKUP(M$5,BBDD!$7:$1048576,$B72,FALSE)) -> 1.0335 | N72: =IF($B72="","",VLOOKUP(N$5,BBDD!$7:$1048576,$B72,FALSE)) -> 1.0335 | O72: =IF($B72="","",VLOOKUP(O$5,BBDD!$7:$1048576,$B72,FALSE)) -> 1.0335 | P72: =+Factores!F72 -> 1.0335
A73: Área de Demanda 9 | B73: 51 | C73: =IF($B73="","",VLOOKUP(C$5,BBDD!$7:$1048576,$B73,FALSE)) -> 1.0267 | D73: =IF($B73="","",VLOOKUP(D$5,BBDD!$7:$1048576,$B73,FALSE)) -> 1.0275 | E73: =IF($B73="","",VLOOKUP(E$5,BBDD!$7:$1048576,$B73,FALSE)) -> 1.0275 | F73: =IF($B73="","",VLOOKUP(F$5,BBDD!$7:$1048576,$B73,FALSE)) -> 1.0275 | G73: =IF($B73="","",VLOOKUP(G$5,BBDD!$7:$1048576,$B73,FALSE)) -> 1.0275 | H73: =IF($B73="","",VLOOKUP(H$5,BBDD!$7:$1048576,$B73,FALSE)) -> 1.0275 | I73: =IF($B73="","",VLOOKUP(I$5,BBDD!$7:$1048576,$B73,FALSE)) -> 1.0275 | J73: =IF($B73="","",VLOOKUP(J$5,BBDD!$7:$1048576,$B73,FALSE)) -> 1.0275 | K73: =IF($B73="","",VLOOKUP(K$5,BBDD!$7:$1048576,$B73,FALSE)) -> 1.0275 | L73: =IF($B73="","",VLOOKUP(L$5,BBDD!$7:$1048576,$B73,FALSE)) -> 1.0275 | M73: =IF($B73="","",VLOOKUP(M$5,BBDD!$7:$1048576,$B73,FALSE)) -> 1.0275 | N73: =IF($B73="","",VLOOKUP(N$5,BBDD!$7:$1048576,$B73,FALSE)) -> 1.0275 | O73: =IF($B73="","",VLOOKUP(O$5,BBDD!$7:$1048576,$B73,FALSE)) -> 1.0275 | P73: =+Factores!F73 -> 1.0275
A74: Área de Demanda 10 | B74: 52 | C74: =IF($B74="","",VLOOKUP(C$5,BBDD!$7:$1048576,$B74,FALSE)) -> 1.0281 | D74: =IF($B74="","",VLOOKUP(D$5,BBDD!$7:$1048576,$B74,FALSE)) -> 1.0289 | E74: =IF($B74="","",VLOOKUP(E$5,BBDD!$7:$1048576,$B74,FALSE)) -> 1.0289 | F74: =IF($B74="","",VLOOKUP(F$5,BBDD!$7:$1048576,$B74,FALSE)) -> 1.0289 | G74: =IF($B74="","",VLOOKUP(G$5,BBDD!$7:$1048576,$B74,FALSE)) -> 1.0289 | H74: =IF($B74="","",VLOOKUP(H$5,BBDD!$7:$1048576,$B74,FALSE)) -> 1.0289 | I74: =IF($B74="","",VLOOKUP(I$5,BBDD!$7:$1048576,$B74,FALSE)) -> 1.0289 | J74: =IF($B74="","",VLOOKUP(J$5,BBDD!$7:$1048576,$B74,FALSE)) -> 1.0289 | K74: =IF($B74="","",VLOOKUP(K$5,BBDD!$7:$1048576,$B74,FALSE)) -> 1.0289 | L74: =IF($B74="","",VLOOKUP(L$5,BBDD!$7:$1048576,$B74,FALSE)) -> 1.0289 | M74: =IF($B74="","",VLOOKUP(M$5,BBDD!$7:$1048576,$B74,FALSE)) -> 1.0289 | N74: =IF($B74="","",VLOOKUP(N$5,BBDD!$7:$1048576,$B74,FALSE)) -> 1.0289 | O74: =IF($B74="","",VLOOKUP(O$5,BBDD!$7:$1048576,$B74,FALSE)) -> 1.0289 | P74: =+Factores!F74 -> 1.0289
A75: Área de Demanda 11 | B75: 53 | C75: =IF($B75="","",VLOOKUP(C$5,BBDD!$7:$1048576,$B75,FALSE)) -> 1.0424 | D75: =IF($B75="","",VLOOKUP(D$5,BBDD!$7:$1048576,$B75,FALSE)) -> 1.0433 | E75: =IF($B75="","",VLOOKUP(E$5,BBDD!$7:$1048576,$B75,FALSE)) -> 1.0433 | F75: =IF($B75="","",VLOOKUP(F$5,BBDD!$7:$1048576,$B75,FALSE)) -> 1.0433 | G75: =IF($B75="","",VLOOKUP(G$5,BBDD!$7:$1048576,$B75,FALSE)) -> 1.0433 | H75: =IF($B75="","",VLOOKUP(H$5,BBDD!$7:$1048576,$B75,FALSE)) -> 1.0433 | I75: =IF($B75="","",VLOOKUP(I$5,BBDD!$7:$1048576,$B75,FALSE)) -> 1.0433 | J75: =IF($B75="","",VLOOKUP(J$5,BBDD!$7:$1048576,$B75,FALSE)) -> 1.0433 | K75: =IF($B75="","",VLOOKUP(K$5,BBDD!$7:$1048576,$B75,FALSE)) -> 1.0433 | L75: =IF($B75="","",VLOOKUP(L$5,BBDD!$7:$1048576,$B75,FALSE)) -> 1.0433 | M75: =IF($B75="","",VLOOKUP(M$5,BBDD!$7:$1048576,$B75,FALSE)) -> 1.0433 | N75: =IF($B75="","",VLOOKUP(N$5,BBDD!$7:$1048576,$B75,FALSE)) -> 1.0433 | O75: =IF($B75="","",VLOOKUP(O$5,BBDD!$7:$1048576,$B75,FALSE)) -> 1.0433 | P75: =+Factores!F75 -> 1.0433
A76: Área de Demanda 12 | B76: 54 | C76: =IF($B76="","",VLOOKUP(C$5,BBDD!$7:$1048576,$B76,FALSE)) -> 0.9743 | D76: =IF($B76="","",VLOOKUP(D$5,BBDD!$7:$1048576,$B76,FALSE)) -> 0.9748 | E76: =IF($B76="","",VLOOKUP(E$5,BBDD!$7:$1048576,$B76,FALSE)) -> 0.9748 | F76: =IF($B76="","",VLOOKUP(F$5,BBDD!$7:$1048576,$B76,FALSE)) -> 0.9748 | G76: =IF($B76="","",VLOOKUP(G$5,BBDD!$7:$1048576,$B76,FALSE)) -> 0.9748 | H76: =IF($B76="","",VLOOKUP(H$5,BBDD!$7:$1048576,$B76,FALSE)) -> 0.9748 | I76: =IF($B76="","",VLOOKUP(I$5,BBDD!$7:$1048576,$B76,FALSE)) -> 0.9748 | J76: =IF($B76="","",VLOOKUP(J$5,BBDD!$7:$1048576,$B76,FALSE)) -> 0.9748 | K76: =IF($B76="","",VLOOKUP(K$5,BBDD!$7:$1048576,$B76,FALSE)) -> 0.9748 | L76: =IF($B76="","",VLOOKUP(L$5,BBDD!$7:$1048576,$B76,FALSE)) -> 0.9748 | M76: =IF($B76="","",VLOOKUP(M$5,BBDD!$7:$1048576,$B76,FALSE)) -> 0.9748 | N76: =IF($B76="","",VLOOKUP(N$5,BBDD!$7:$1048576,$B76,FALSE)) -> 0.9748 | O76: =IF($B76="","",VLOOKUP(O$5,BBDD!$7:$1048576,$B76,FALSE)) -> 0.9748 | P76: =+Factores!F76 -> 0.9748
A77: Área de Demanda 13 | B77: 55 | C77: =IF($B77="","",VLOOKUP(C$5,BBDD!$7:$1048576,$B77,FALSE)) -> 1.0362 | D77: =IF($B77="","",VLOOKUP(D$5,BBDD!$7:$1048576,$B77,FALSE)) -> 1.0371 | E77: =IF($B77="","",VLOOKUP(E$5,BBDD!$7:$1048576,$B77,FALSE)) -> 1.0371 | F77: =IF($B77="","",VLOOKUP(F$5,BBDD!$7:$1048576,$B77,FALSE)) -> 1.0371 | G77: =IF($B77="","",VLOOKUP(G$5,BBDD!$7:$1048576,$B77,FALSE)) -> 1.0371 | H77: =IF($B77="","",VLOOKUP(H$5,BBDD!$7:$1048576,$B77,FALSE)) -> 1.0371 | I77: =IF($B77="","",VLOOKUP(I$5,BBDD!$7:$1048576,$B77,FALSE)) -> 1.0371 | J77: =IF($B77="","",VLOOKUP(J$5,BBDD!$7:$1048576,$B77,FALSE)) -> 1.0371 | K77: =IF($B77="","",VLOOKUP(K$5,BBDD!$7:$1048576,$B77,FALSE)) -> 1.0371 | L77: =IF($B77="","",VLOOKUP(L$5,BBDD!$7:$1048576,$B77,FALSE)) -> 1.0371 | M77: =IF($B77="","",VLOOKUP(M$5,BBDD!$7:$1048576,$B77,FALSE)) -> 1.0371 | N77: =IF($B77="","",VLOOKUP(N$5,BBDD!$7:$1048576,$B77,FALSE)) -> 1.0371 | O77: =IF($B77="","",VLOOKUP(O$5,BBDD!$7:$1048576,$B77,FALSE)) -> 1.0371 | P77: =+Factores!F77 -> 1.0371
A78: Área de Demanda 14 | B78: 56 | C78: =IF($B78="","",VLOOKUP(C$5,BBDD!$7:$1048576,$B78,FALSE)) -> 1.0608 | D78: =IF($B78="","",VLOOKUP(D$5,BBDD!$7:$1048576,$B78,FALSE)) -> 1.0617 | E78: =IF($B78="","",VLOOKUP(E$5,BBDD!$7:$1048576,$B78,FALSE)) -> 1.0617 | F78: =IF($B78="","",VLOOKUP(F$5,BBDD!$7:$1048576,$B78,FALSE)) -> 1.0617 | G78: =IF($B78="","",VLOOKUP(G$5,BBDD!$7:$1048576,$B78,FALSE)) -> 1.0617 | H78: =IF($B78="","",VLOOKUP(H$5,BBDD!$7:$1048576,$B78,FALSE)) -> 1.0617 | I78: =IF($B78="","",VLOOKUP(I$5,BBDD!$7:$1048576,$B78,FALSE)) -> 1.0617 | J78: =IF($B78="","",VLOOKUP(J$5,BBDD!$7:$1048576,$B78,FALSE)) -> 1.0617 | K78: =IF($B78="","",VLOOKUP(K$5,BBDD!$7:$1048576,$B78,FALSE)) -> 1.0617 | L78: =IF($B78="","",VLOOKUP(L$5,BBDD!$7:$1048576,$B78,FALSE)) -> 1.0617 | M78: =IF($B78="","",VLOOKUP(M$5,BBDD!$7:$1048576,$B78,FALSE)) -> 1.0617 | N78: =IF($B78="","",VLOOKUP(N$5,BBDD!$7:$1048576,$B78,FALSE)) -> 1.0617 | O78: =IF($B78="","",VLOOKUP(O$5,BBDD!$7:$1048576,$B78,FALSE)) -> 1.0617 | P78: =+Factores!F78 -> 1.0617
A79: Área de Demanda 15 | B79: 57 | C79: =IF($B79="","",VLOOKUP(C$5,BBDD!$7:$1048576,$B79,FALSE)) -> 1.0059 | D79: =IF($B79="","",VLOOKUP(D$5,BBDD!$7:$1048576,$B79,FALSE)) -> 1.0066 | E79: =IF($B79="","",VLOOKUP(E$5,BBDD!$7:$1048576,$B79,FALSE)) -> 1.0066 | F79: =IF($B79="","",VLOOKUP(F$5,BBDD!$7:$1048576,$B79,FALSE)) -> 1.0066 | G79: =IF($B79="","",VLOOKUP(G$5,BBDD!$7:$1048576,$B79,FALSE)) -> 1.0066 | H79: =IF($B79="","",VLOOKUP(H$5,BBDD!$7:$1048576,$B79,FALSE)) -> 1.0066 | I79: =IF($B79="","",VLOOKUP(I$5,BBDD!$7:$1048576,$B79,FALSE)) -> 1.0066 | J79: =IF($B79="","",VLOOKUP(J$5,BBDD!$7:$1048576,$B79,FALSE)) -> 1.0066 | K79: =IF($B79="","",VLOOKUP(K$5,BBDD!$7:$1048576,$B79,FALSE)) -> 1.0066 | L79: =IF($B79="","",VLOOKUP(L$5,BBDD!$7:$1048576,$B79,FALSE)) -> 1.0066 | M79: =IF($B79="","",VLOOKUP(M$5,BBDD!$7:$1048576,$B79,FALSE)) -> 1.0066 | N79: =IF($B79="","",VLOOKUP(N$5,BBDD!$7:$1048576,$B79,FALSE)) -> 1.0066 | O79: =IF($B79="","",VLOOKUP(O$5,BBDD!$7:$1048576,$B79,FALSE)) -> 1.0066 | P79: =+Factores!F79 -> 1.0066
A80: Instalaciones BOOT - Redesur | B80: 58 | C80: =IF($B80="","",VLOOKUP(C$5,BBDD!$7:$1048576,$B80,FALSE)) -> 0.8355 | D80: =IF($B80="","",VLOOKUP(D$5,BBDD!$7:$1048576,$B80,FALSE)) -> 0.8355 | E80: =IF($B80="","",VLOOKUP(E$5,BBDD!$7:$1048576,$B80,FALSE)) -> 0.8355 | F80: =IF($B80="","",VLOOKUP(F$5,BBDD!$7:$1048576,$B80,FALSE)) -> 0.8355 | G80: =IF($B80="","",VLOOKUP(G$5,BBDD!$7:$1048576,$B80,FALSE)) -> 0.8355 | H80: =IF($B80="","",VLOOKUP(H$5,BBDD!$7:$1048576,$B80,FALSE)) -> 0.8355 | I80: =IF($B80="","",VLOOKUP(I$5,BBDD!$7:$1048576,$B80,FALSE)) -> 0.8355 | J80: =IF($B80="","",VLOOKUP(J$5,BBDD!$7:$1048576,$B80,FALSE)) -> 0.8355 | K80: =IF($B80="","",VLOOKUP(K$5,BBDD!$7:$1048576,$B80,FALSE)) -> 0.8355 | L80: =IF($B80="","",VLOOKUP(L$5,BBDD!$7:$1048576,$B80,FALSE)) -> 0.8355 | M80: =IF($B80="","",VLOOKUP(M$5,BBDD!$7:$1048576,$B80,FALSE)) -> 0.8355 | N80: =IF($B80="","",VLOOKUP(N$5,BBDD!$7:$1048576,$B80,FALSE)) -> 0.8355 | O80: =IF($B80="","",VLOOKUP(O$5,BBDD!$7:$1048576,$B80,FALSE)) -> 0.8355 | P80: =+Factores!F80 -> 0.8355
A81: Instalaciones BOOT - ISA Peru | B81: 59 | C81: =IF($B81="","",VLOOKUP(C$5,BBDD!$7:$1048576,$B81,FALSE)) -> 0.8355 | D81: =IF($B81="","",VLOOKUP(D$5,BBDD!$7:$1048576,$B81,FALSE)) -> 0.8355 | E81: =IF($B81="","",VLOOKUP(E$5,BBDD!$7:$1048576,$B81,FALSE)) -> 0.8355 | F81: =IF($B81="","",VLOOKUP(F$5,BBDD!$7:$1048576,$B81,FALSE)) -> 0.8355 | G81: =IF($B81="","",VLOOKUP(G$5,BBDD!$7:$1048576,$B81,FALSE)) -> 0.8355 | H81: =IF($B81="","",VLOOKUP(H$5,BBDD!$7:$1048576,$B81,FALSE)) -> 0.8355 | I81: =IF($B81="","",VLOOKUP(I$5,BBDD!$7:$1048576,$B81,FALSE)) -> 0.8355 | J81: =IF($B81="","",VLOOKUP(J$5,BBDD!$7:$1048576,$B81,FALSE)) -> 0.8355 | K81: =IF($B81="","",VLOOKUP(K$5,BBDD!$7:$1048576,$B81,FALSE)) -> 0.8355 | L81: =IF($B81="","",VLOOKUP(L$5,BBDD!$7:$1048576,$B81,FALSE)) -> 0.8355 | M81: =IF($B81="","",VLOOKUP(M$5,BBDD!$7:$1048576,$B81,FALSE)) -> 0.8355 | N81: =IF($B81="","",VLOOKUP(N$5,BBDD!$7:$1048576,$B81,FALSE)) -> 0.8355 | O81: =IF($B81="","",VLOOKUP(O$5,BBDD!$7:$1048576,$B81,FALSE)) -> 0.8355 | P81: =+Factores!F81 -> 0.8355
A82: Otras Instalaciones- Edegel | B82: 60 | C82: =IF($B82="","",VLOOKUP(C$5,BBDD!$7:$1048576,$B82,FALSE)) -> 0.9415 | D82: =IF($B82="","",VLOOKUP(D$5,BBDD!$7:$1048576,$B82,FALSE)) -> 0.942 | E82: =IF($B82="","",VLOOKUP(E$5,BBDD!$7:$1048576,$B82,FALSE)) -> 0.942 | F82: =IF($B82="","",VLOOKUP(F$5,BBDD!$7:$1048576,$B82,FALSE)) -> 0.942 | G82: =IF($B82="","",VLOOKUP(G$5,BBDD!$7:$1048576,$B82,FALSE)) -> 0.942 | H82: =IF($B82="","",VLOOKUP(H$5,BBDD!$7:$1048576,$B82,FALSE)) -> 0.942 | I82: =IF($B82="","",VLOOKUP(I$5,BBDD!$7:$1048576,$B82,FALSE)) -> 0.942 | J82: =IF($B82="","",VLOOKUP(J$5,BBDD!$7:$1048576,$B82,FALSE)) -> 0.942 | K82: =IF($B82="","",VLOOKUP(K$5,BBDD!$7:$1048576,$B82,FALSE)) -> 0.942 | L82: =IF($B82="","",VLOOKUP(L$5,BBDD!$7:$1048576,$B82,FALSE)) -> 0.942 | M82: =IF($B82="","",VLOOKUP(M$5,BBDD!$7:$1048576,$B82,FALSE)) -> 0.942 | N82: =IF($B82="","",VLOOKUP(N$5,BBDD!$7:$1048576,$B82,FALSE)) -> 0.942 | O82: =IF($B82="","",VLOOKUP(O$5,BBDD!$7:$1048576,$B82,FALSE)) -> 0.942 | P82: =+Factores!F82 -> 0.942
A83: Otras Instalaciones- Conenhua | B83: 61 | C83: =IF($B83="","",VLOOKUP(C$5,BBDD!$7:$1048576,$B83,FALSE)) -> 1.032 | D83: =IF($B83="","",VLOOKUP(D$5,BBDD!$7:$1048576,$B83,FALSE)) -> 1.0326 | E83: =IF($B83="","",VLOOKUP(E$5,BBDD!$7:$1048576,$B83,FALSE)) -> 1.0326 | F83: =IF($B83="","",VLOOKUP(F$5,BBDD!$7:$1048576,$B83,FALSE)) -> 1.0326 | G83: =IF($B83="","",VLOOKUP(G$5,BBDD!$7:$1048576,$B83,FALSE)) -> 1.0326 | H83: =IF($B83="","",VLOOKUP(H$5,BBDD!$7:$1048576,$B83,FALSE)) -> 1.0326 | I83: =IF($B83="","",VLOOKUP(I$5,BBDD!$7:$1048576,$B83,FALSE)) -> 1.0326 | J83: =IF($B83="","",VLOOKUP(J$5,BBDD!$7:$1048576,$B83,FALSE)) -> 1.0326 | K83: =IF($B83="","",VLOOKUP(K$5,BBDD!$7:$1048576,$B83,FALSE)) -> 1.0326 | L83: =IF($B83="","",VLOOKUP(L$5,BBDD!$7:$1048576,$B83,FALSE)) -> 1.0326 | M83: =IF($B83="","",VLOOKUP(M$5,BBDD!$7:$1048576,$B83,FALSE)) -> 1.0326 | N83: =IF($B83="","",VLOOKUP(N$5,BBDD!$7:$1048576,$B83,FALSE)) -> 1.0326 | O83: =IF($B83="","",VLOOKUP(O$5,BBDD!$7:$1048576,$B83,FALSE)) -> 1.0326 | P83: =+Factores!F83 -> 1.0326
A84: SCT de Transmantaro (Linea Independencia - Ica) | B84: 62 | C84: =IF($B84="","",VLOOKUP(C$5,BBDD!$7:$1048576,$B84,FALSE)) -> 0.8355 | D84: =IF($B84="","",VLOOKUP(D$5,BBDD!$7:$1048576,$B84,FALSE)) -> 0.8355 | E84: =IF($B84="","",VLOOKUP(E$5,BBDD!$7:$1048576,$B84,FALSE)) -> 0.8355 | F84: =IF($B84="","",VLOOKUP(F$5,BBDD!$7:$1048576,$B84,FALSE)) -> 0.8355 | G84: =IF($B84="","",VLOOKUP(G$5,BBDD!$7:$1048576,$B84,FALSE)) -> 0.8355 | H84: =IF($B84="","",VLOOKUP(H$5,BBDD!$7:$1048576,$B84,FALSE)) -> 0.8355 | I84: =IF($B84="","",VLOOKUP(I$5,BBDD!$7:$1048576,$B84,FALSE)) -> 0.8355 | J84: =IF($B84="","",VLOOKUP(J$5,BBDD!$7:$1048576,$B84,FALSE)) -> 0.8355 | K84: =IF($B84="","",VLOOKUP(K$5,BBDD!$7:$1048576,$B84,FALSE)) -> 0.8355 | L84: =IF($B84="","",VLOOKUP(L$5,BBDD!$7:$1048576,$B84,FALSE)) -> 0.8355 | M84: =IF($B84="","",VLOOKUP(M$5,BBDD!$7:$1048576,$B84,FALSE)) -> 0.8355 | N84: =IF($B84="","",VLOOKUP(N$5,BBDD!$7:$1048576,$B84,FALSE)) -> 0.8355 | O84: =IF($B84="","",VLOOKUP(O$5,BBDD!$7:$1048576,$B84,FALSE)) -> 0.8355 | P84: =+Factores!F84 -> 0.8355
A85: Peaje Unitario por Compensación | C85: =IF($B85="","",VLOOKUP(C$5,BBDD!$7:$1048576,$B85,FALSE)) ->  | D85: =IF($B85="","",VLOOKUP(D$5,BBDD!$7:$1048576,$B85,FALSE)) ->  | E85: =IF($B85="","",VLOOKUP(E$5,BBDD!$7:$1048576,$B85,FALSE)) ->  | F85: =IF($B85="","",VLOOKUP(F$5,BBDD!$7:$1048576,$B85,FALSE)) ->  | G85: =IF($B85="","",VLOOKUP(G$5,BBDD!$7:$1048576,$B85,FALSE)) ->  | H85: =IF($B85="","",VLOOKUP(H$5,BBDD!$7:$1048576,$B85,FALSE)) ->  | I85: =IF($B85="","",VLOOKUP(I$5,BBDD!$7:$1048576,$B85,FALSE)) ->  | J85: =IF($B85="","",VLOOKUP(J$5,BBDD!$7:$1048576,$B85,FALSE)) ->  | K85: =IF($B85="","",VLOOKUP(K$5,BBDD!$7:$1048576,$B85,FALSE)) ->  | L85: =IF($B85="","",VLOOKUP(L$5,BBDD!$7:$1048576,$B85,FALSE)) ->  | M85: =IF($B85="","",VLOOKUP(M$5,BBDD!$7:$1048576,$B85,FALSE)) ->  | N85: =IF($B85="","",VLOOKUP(N$5,BBDD!$7:$1048576,$B85,FALSE)) ->  | O85: =IF($B85="","",VLOOKUP(O$5,BBDD!$7:$1048576,$B85,FALSE)) ->  | P85: =+Factores!F85 -> 
A86: Resolucion del Peaje Unitario de Compensación (PUC) | B86: 63 | C86: =IF($B86="","",VLOOKUP(C$5,BBDD!$7:$1048576,$B86,FALSE)) -> 1 | D86: =IF($B86="","",VLOOKUP(D$5,BBDD!$7:$1048576,$B86,FALSE)) -> 1 | E86: =IF($B86="","",VLOOKUP(E$5,BBDD!$7:$1048576,$B86,FALSE)) -> 1 | F86: =IF($B86="","",VLOOKUP(F$5,BBDD!$7:$1048576,$B86,FALSE)) -> 1 | G86: =IF($B86="","",VLOOKUP(G$5,BBDD!$7:$1048576,$B86,FALSE)) -> 1.1016 | H86: =IF($B86="","",VLOOKUP(H$5,BBDD!$7:$1048576,$B86,FALSE)) -> 1.1016 | I86: =IF($B86="","",VLOOKUP(I$5,BBDD!$7:$1048576,$B86,FALSE)) -> 1.1016 | J86: =IF($B86="","",VLOOKUP(J$5,BBDD!$7:$1048576,$B86,FALSE)) -> 1.1016 | K86: =IF($B86="","",VLOOKUP(K$5,BBDD!$7:$1048576,$B86,FALSE)) -> 1.1667 | L86: =IF($B86="","",VLOOKUP(L$5,BBDD!$7:$1048576,$B86,FALSE)) -> 1.1667 | M86: =IF($B86="","",VLOOKUP(M$5,BBDD!$7:$1048576,$B86,FALSE)) -> 1.1667 | N86: =IF($B86="","",VLOOKUP(N$5,BBDD!$7:$1048576,$B86,FALSE)) -> 1.14 | O86: =IF($B86="","",VLOOKUP(O$5,BBDD!$7:$1048576,$B86,FALSE)) -> 1.14 | P86: =+Factores!F86 -> 1.14
C87: =IF($B87="","",VLOOKUP(C$5,BBDD!$7:$1048576,$B87,FALSE)) ->  | D87: =IF($B87="","",VLOOKUP(D$5,BBDD!$7:$1048576,$B87,FALSE)) ->  | E87: =IF($B87="","",VLOOKUP(E$5,BBDD!$7:$1048576,$B87,FALSE)) ->  | F87: =IF($B87="","",VLOOKUP(F$5,BBDD!$7:$1048576,$B87,FALSE)) ->  | G87: =IF($B87="","",VLOOKUP(G$5,BBDD!$7:$1048576,$B87,FALSE)) ->  | H87: =IF($B87="","",VLOOKUP(H$5,BBDD!$7:$1048576,$B87,FALSE)) ->  | I87: =IF($B87="","",VLOOKUP(I$5,BBDD!$7:$1048576,$B87,FALSE)) ->  | J87: =IF($B87="","",VLOOKUP(J$5,BBDD!$7:$1048576,$B87,FALSE)) ->  | K87: =IF($B87="","",VLOOKUP(K$5,BBDD!$7:$1048576,$B87,FALSE)) ->  | L87: =IF($B87="","",VLOOKUP(L$5,BBDD!$7:$1048576,$B87,FALSE)) ->  | M87: =IF($B87="","",VLOOKUP(M$5,BBDD!$7:$1048576,$B87,FALSE)) ->  | N87: =IF($B87="","",VLOOKUP(N$5,BBDD!$7:$1048576,$B87,FALSE)) ->  | O87: =IF($B87="","",VLOOKUP(O$5,BBDD!$7:$1048576,$B87,FALSE)) ->  | P87: =+Factores!F87 -> 
C88: =IF($B88="","",VLOOKUP(C$5,BBDD!$7:$1048576,$B88,FALSE)) ->  | D88: =IF($B88="","",VLOOKUP(D$5,BBDD!$7:$1048576,$B88,FALSE)) ->  | E88: =IF($B88="","",VLOOKUP(E$5,BBDD!$7:$1048576,$B88,FALSE)) ->  | F88: =IF($B88="","",VLOOKUP(F$5,BBDD!$7:$1048576,$B88,FALSE)) ->  | G88: =IF($B88="","",VLOOKUP(G$5,BBDD!$7:$1048576,$B88,FALSE)) ->  | H88: =IF($B88="","",VLOOKUP(H$5,BBDD!$7:$1048576,$B88,FALSE)) ->  | I88: =IF($B88="","",VLOOKUP(I$5,BBDD!$7:$1048576,$B88,FALSE)) ->  | J88: =IF($B88="","",VLOOKUP(J$5,BBDD!$7:$1048576,$B88,FALSE)) ->  | K88: =IF($B88="","",VLOOKUP(K$5,BBDD!$7:$1048576,$B88,FALSE)) ->  | L88: =IF($B88="","",VLOOKUP(L$5,BBDD!$7:$1048576,$B88,FALSE)) ->  | M88: =IF($B88="","",VLOOKUP(M$5,BBDD!$7:$1048576,$B88,FALSE)) ->  | N88: =IF($B88="","",VLOOKUP(N$5,BBDD!$7:$1048576,$B88,FALSE)) ->  | O88: =IF($B88="","",VLOOKUP(O$5,BBDD!$7:$1048576,$B88,FALSE)) ->  | P88: =+Factores!F88 -> 
A89: C.1 DISTRIBUCIÓN - VAD Y CARGOS FIJOS (Res. N° 181-2009-OS/CD) | C89: =IF($B89="","",VLOOKUP(C$5,BBDD!$7:$1048576,$B89,FALSE)) ->  | D89: =IF($B89="","",VLOOKUP(D$5,BBDD!$7:$1048576,$B89,FALSE)) ->  | E89: =IF($B89="","",VLOOKUP(E$5,BBDD!$7:$1048576,$B89,FALSE)) ->  | F89: =IF($B89="","",VLOOKUP(F$5,BBDD!$7:$1048576,$B89,FALSE)) ->  | G89: =IF($B89="","",VLOOKUP(G$5,BBDD!$7:$1048576,$B89,FALSE)) ->  | H89: =IF($B89="","",VLOOKUP(H$5,BBDD!$7:$1048576,$B89,FALSE)) ->  | I89: =IF($B89="","",VLOOKUP(I$5,BBDD!$7:$1048576,$B89,FALSE)) ->  | J89: =IF($B89="","",VLOOKUP(J$5,BBDD!$7:$1048576,$B89,FALSE)) ->  | K89: =IF($B89="","",VLOOKUP(K$5,BBDD!$7:$1048576,$B89,FALSE)) ->  | L89: =IF($B89="","",VLOOKUP(L$5,BBDD!$7:$1048576,$B89,FALSE)) ->  | M89: =IF($B89="","",VLOOKUP(M$5,BBDD!$7:$1048576,$B89,FALSE)) ->  | N89: =IF($B89="","",VLOOKUP(N$5,BBDD!$7:$1048576,$B89,FALSE)) ->  | O89: =IF($B89="","",VLOOKUP(O$5,BBDD!$7:$1048576,$B89,FALSE)) ->  | P89: =+Factores!F89 -> 
A90: 1. VALOR AGREGADO DE DISTRIBUCIÓN EN MT (FAVADMT) | C90: =IF($B90="","",VLOOKUP(C$5,BBDD!$7:$1048576,$B90,FALSE)) ->  | D90: =IF($B90="","",VLOOKUP(D$5,BBDD!$7:$1048576,$B90,FALSE)) ->  | E90: =IF($B90="","",VLOOKUP(E$5,BBDD!$7:$1048576,$B90,FALSE)) ->  | F90: =IF($B90="","",VLOOKUP(F$5,BBDD!$7:$1048576,$B90,FALSE)) ->  | G90: =IF($B90="","",VLOOKUP(G$5,BBDD!$7:$1048576,$B90,FALSE)) ->  | H90: =IF($B90="","",VLOOKUP(H$5,BBDD!$7:$1048576,$B90,FALSE)) ->  | I90: =IF($B90="","",VLOOKUP(I$5,BBDD!$7:$1048576,$B90,FALSE)) ->  | J90: =IF($B90="","",VLOOKUP(J$5,BBDD!$7:$1048576,$B90,FALSE)) ->  | K90: =IF($B90="","",VLOOKUP(K$5,BBDD!$7:$1048576,$B90,FALSE)) ->  | L90: =IF($B90="","",VLOOKUP(L$5,BBDD!$7:$1048576,$B90,FALSE)) ->  | M90: =IF($B90="","",VLOOKUP(M$5,BBDD!$7:$1048576,$B90,FALSE)) ->  | N90: =IF($B90="","",VLOOKUP(N$5,BBDD!$7:$1048576,$B90,FALSE)) ->  | O90: =IF($B90="","",VLOOKUP(O$5,BBDD!$7:$1048576,$B90,FALSE)) ->  | P90: =+Factores!F90 -> 
A91: a) Sector 1 | B91: 64 | C91: =IF($B91="","",VLOOKUP(C$5,BBDD!$7:$1048576,$B91,FALSE)) -> 0.9974 | D91: =IF($B91="","",VLOOKUP(D$5,BBDD!$7:$1048576,$B91,FALSE)) -> 0.9983 | E91: =IF($B91="","",VLOOKUP(E$5,BBDD!$7:$1048576,$B91,FALSE)) -> 0.9983 | F91: =IF($B91="","",VLOOKUP(F$5,BBDD!$7:$1048576,$B91,FALSE)) -> 0.9923 | G91: =IF($B91="","",VLOOKUP(G$5,BBDD!$7:$1048576,$B91,FALSE)) -> 0.9923 | H91: =IF($B91="","",VLOOKUP(H$5,BBDD!$7:$1048576,$B91,FALSE)) -> 0.9775 | I91: =IF($B91="","",VLOOKUP(I$5,BBDD!$7:$1048576,$B91,FALSE)) -> 0.9777 | J91: =IF($B91="","",VLOOKUP(J$5,BBDD!$7:$1048576,$B91,FALSE)) -> 0.9777 | K91: =IF($B91="","",VLOOKUP(K$5,BBDD!$7:$1048576,$B91,FALSE)) -> 0.9762 | L91: =IF($B91="","",VLOOKUP(L$5,BBDD!$7:$1048576,$B91,FALSE)) -> 0.9762 | M91: =IF($B91="","",VLOOKUP(M$5,BBDD!$7:$1048576,$B91,FALSE)) -> 0.9698 | N91: =IF($B91="","",VLOOKUP(N$5,BBDD!$7:$1048576,$B91,FALSE)) -> 0.9655 | O91: =IF($B91="","",VLOOKUP(O$5,BBDD!$7:$1048576,$B91,FALSE)) -> 0.9664 | P91: =+Factores!F91 -> 0.9664
A92: b) Sector 2 | B92: 65 | C92: =IF($B92="","",VLOOKUP(C$5,BBDD!$7:$1048576,$B92,FALSE)) -> 1.0211 | D92: =IF($B92="","",VLOOKUP(D$5,BBDD!$7:$1048576,$B92,FALSE)) -> 1.0222 | E92: =IF($B92="","",VLOOKUP(E$5,BBDD!$7:$1048576,$B92,FALSE)) -> 1.0222 | F92: =IF($B92="","",VLOOKUP(F$5,BBDD!$7:$1048576,$B92,FALSE)) -> 1.0166 | G92: =IF($B92="","",VLOOKUP(G$5,BBDD!$7:$1048576,$B92,FALSE)) -> 1.0166 | H92: =IF($B92="","",VLOOKUP(H$5,BBDD!$7:$1048576,$B92,FALSE)) -> 1.0045 | I92: =IF($B92="","",VLOOKUP(I$5,BBDD!$7:$1048576,$B92,FALSE)) -> 1.006 | J92: =IF($B92="","",VLOOKUP(J$5,BBDD!$7:$1048576,$B92,FALSE)) -> 1.006 | K92: =IF($B92="","",VLOOKUP(K$5,BBDD!$7:$1048576,$B92,FALSE)) -> 1.0052 | L92: =IF($B92="","",VLOOKUP(L$5,BBDD!$7:$1048576,$B92,FALSE)) -> 1.0052 | M92: =IF($B92="","",VLOOKUP(M$5,BBDD!$7:$1048576,$B92,FALSE)) -> 0.9999 | N92: =IF($B92="","",VLOOKUP(N$5,BBDD!$7:$1048576,$B92,FALSE)) -> 0.9942 | O92: =IF($B92="","",VLOOKUP(O$5,BBDD!$7:$1048576,$B92,FALSE)) -> 0.995 | P92: =+Factores!F92 -> 0.995
A93: c) Sector 3 | B93: 66 | C93: =IF($B93="","",VLOOKUP(C$5,BBDD!$7:$1048576,$B93,FALSE)) -> 1.0248 | D93: =IF($B93="","",VLOOKUP(D$5,BBDD!$7:$1048576,$B93,FALSE)) -> 1.0258 | E93: =IF($B93="","",VLOOKUP(E$5,BBDD!$7:$1048576,$B93,FALSE)) -> 1.0258 | F93: =IF($B93="","",VLOOKUP(F$5,BBDD!$7:$1048576,$B93,FALSE)) -> 1.0205 | G93: =IF($B93="","",VLOOKUP(G$5,BBDD!$7:$1048576,$B93,FALSE)) -> 1.0205 | H93: =IF($B93="","",VLOOKUP(H$5,BBDD!$7:$1048576,$B93,FALSE)) -> 1.0032 | I93: =IF($B93="","",VLOOKUP(I$5,BBDD!$7:$1048576,$B93,FALSE)) -> 1.0022 | J93: =IF($B93="","",VLOOKUP(J$5,BBDD!$7:$1048576,$B93,FALSE)) -> 1.0022 | K93: =IF($B93="","",VLOOKUP(K$5,BBDD!$7:$1048576,$B93,FALSE)) -> 1.0014 | L93: =IF($B93="","",VLOOKUP(L$5,BBDD!$7:$1048576,$B93,FALSE)) -> 1.0014 | M93: =IF($B93="","",VLOOKUP(M$5,BBDD!$7:$1048576,$B93,FALSE)) -> 0.997 | N93: =IF($B93="","",VLOOKUP(N$5,BBDD!$7:$1048576,$B93,FALSE)) -> 0.9938 | O93: =IF($B93="","",VLOOKUP(O$5,BBDD!$7:$1048576,$B93,FALSE)) -> 0.9952 | P93: =+Factores!F93 -> 0.9952
A94: d) Sector 4 | B94: 67 | C94: =IF($B94="","",VLOOKUP(C$5,BBDD!$7:$1048576,$B94,FALSE)) -> 1.0167 | D94: =IF($B94="","",VLOOKUP(D$5,BBDD!$7:$1048576,$B94,FALSE)) -> 1.0177 | E94: =IF($B94="","",VLOOKUP(E$5,BBDD!$7:$1048576,$B94,FALSE)) -> 1.0177 | F94: =IF($B94="","",VLOOKUP(F$5,BBDD!$7:$1048576,$B94,FALSE)) -> 1.0128 | G94: =IF($B94="","",VLOOKUP(G$5,BBDD!$7:$1048576,$B94,FALSE)) -> 1.0128 | H94: =IF($B94="","",VLOOKUP(H$5,BBDD!$7:$1048576,$B94,FALSE)) -> 1.0009 | I94: =IF($B94="","",VLOOKUP(I$5,BBDD!$7:$1048576,$B94,FALSE)) -> 1.0025 | J94: =IF($B94="","",VLOOKUP(J$5,BBDD!$7:$1048576,$B94,FALSE)) -> 1.0025 | K94: =IF($B94="","",VLOOKUP(K$5,BBDD!$7:$1048576,$B94,FALSE)) -> 1.0017 | L94: =IF($B94="","",VLOOKUP(L$5,BBDD!$7:$1048576,$B94,FALSE)) -> 1.0017 | M94: =IF($B94="","",VLOOKUP(M$5,BBDD!$7:$1048576,$B94,FALSE)) -> 0.9962 | N94: =IF($B94="","",VLOOKUP(N$5,BBDD!$7:$1048576,$B94,FALSE)) -> 0.9908 | O94: =IF($B94="","",VLOOKUP(O$5,BBDD!$7:$1048576,$B94,FALSE)) -> 0.9917 | P94: =+Factores!F94 -> 0.9917
A95: e) Sector 5 | B95: 68 | C95: =IF($B95="","",VLOOKUP(C$5,BBDD!$7:$1048576,$B95,FALSE)) -> 1.022 | D95: =IF($B95="","",VLOOKUP(D$5,BBDD!$7:$1048576,$B95,FALSE)) -> 1.023 | E95: =IF($B95="","",VLOOKUP(E$5,BBDD!$7:$1048576,$B95,FALSE)) -> 1.023 | F95: =IF($B95="","",VLOOKUP(F$5,BBDD!$7:$1048576,$B95,FALSE)) -> 1.0177 | G95: =IF($B95="","",VLOOKUP(G$5,BBDD!$7:$1048576,$B95,FALSE)) -> 1.0177 | H95: =IF($B95="","",VLOOKUP(H$5,BBDD!$7:$1048576,$B95,FALSE)) -> 1.006 | I95: =IF($B95="","",VLOOKUP(I$5,BBDD!$7:$1048576,$B95,FALSE)) -> 1.0077 | J95: =IF($B95="","",VLOOKUP(J$5,BBDD!$7:$1048576,$B95,FALSE)) -> 1.0077 | K95: =IF($B95="","",VLOOKUP(K$5,BBDD!$7:$1048576,$B95,FALSE)) -> 1.0069 | L95: =IF($B95="","",VLOOKUP(L$5,BBDD!$7:$1048576,$B95,FALSE)) -> 1.0069 | M95: =IF($B95="","",VLOOKUP(M$5,BBDD!$7:$1048576,$B95,FALSE)) -> 1.0017 | N95: =IF($B95="","",VLOOKUP(N$5,BBDD!$7:$1048576,$B95,FALSE)) -> 0.9959 | O95: =IF($B95="","",VLOOKUP(O$5,BBDD!$7:$1048576,$B95,FALSE)) -> 0.9968 | P95: =+Factores!F95 -> 0.9968
A96: f) Sector Especial | B96: 69 | C96: =IF($B96="","",VLOOKUP(C$5,BBDD!$7:$1048576,$B96,FALSE)) -> 1.0278 | D96: =IF($B96="","",VLOOKUP(D$5,BBDD!$7:$1048576,$B96,FALSE)) -> 1.0289 | E96: =IF($B96="","",VLOOKUP(E$5,BBDD!$7:$1048576,$B96,FALSE)) -> 1.0289 | F96: =IF($B96="","",VLOOKUP(F$5,BBDD!$7:$1048576,$B96,FALSE)) -> 1.0239 | G96: =IF($B96="","",VLOOKUP(G$5,BBDD!$7:$1048576,$B96,FALSE)) -> 1.0239 | H96: =IF($B96="","",VLOOKUP(H$5,BBDD!$7:$1048576,$B96,FALSE)) -> 1.0132 | I96: =IF($B96="","",VLOOKUP(I$5,BBDD!$7:$1048576,$B96,FALSE)) -> 1.0153 | J96: =IF($B96="","",VLOOKUP(J$5,BBDD!$7:$1048576,$B96,FALSE)) -> 1.0153 | K96: =IF($B96="","",VLOOKUP(K$5,BBDD!$7:$1048576,$B96,FALSE)) -> 1.0148 | L96: =IF($B96="","",VLOOKUP(L$5,BBDD!$7:$1048576,$B96,FALSE)) -> 1.0148 | M96: =IF($B96="","",VLOOKUP(M$5,BBDD!$7:$1048576,$B96,FALSE)) -> 1.0098 | N96: =IF($B96="","",VLOOKUP(N$5,BBDD!$7:$1048576,$B96,FALSE)) -> 1.0037 | O96: =IF($B96="","",VLOOKUP(O$5,BBDD!$7:$1048576,$B96,FALSE)) -> 1.0046 | P96: =+Factores!F96 -> 1.0046
A97: g) VAD SER 100 Estado Prepago | B97: 70 | C97: =IF($B97="","",VLOOKUP(C$5,BBDD!$7:$1048576,$B97,FALSE)) -> 1.0094 | D97: =IF($B97="","",VLOOKUP(D$5,BBDD!$7:$1048576,$B97,FALSE)) -> 1.0104 | E97: =IF($B97="","",VLOOKUP(E$5,BBDD!$7:$1048576,$B97,FALSE)) -> 1.0104 | F97: =IF($B97="","",VLOOKUP(F$5,BBDD!$7:$1048576,$B97,FALSE)) -> 1.0046 | G97: =IF($B97="","",VLOOKUP(G$5,BBDD!$7:$1048576,$B97,FALSE)) -> 1.0046 | H97: =IF($B97="","",VLOOKUP(H$5,BBDD!$7:$1048576,$B97,FALSE)) -> 0.9915 | I97: =IF($B97="","",VLOOKUP(I$5,BBDD!$7:$1048576,$B97,FALSE)) -> 0.9926 | J97: =IF($B97="","",VLOOKUP(J$5,BBDD!$7:$1048576,$B97,FALSE)) -> 0.9926 | K97: =IF($B97="","",VLOOKUP(K$5,BBDD!$7:$1048576,$B97,FALSE)) -> 0.9914 | L97: =IF($B97="","",VLOOKUP(L$5,BBDD!$7:$1048576,$B97,FALSE)) -> 0.9914 | M97: =IF($B97="","",VLOOKUP(M$5,BBDD!$7:$1048576,$B97,FALSE)) -> 0.9855 | N97: =IF($B97="","",VLOOKUP(N$5,BBDD!$7:$1048576,$B97,FALSE)) -> 0.9803 | O97: =IF($B97="","",VLOOKUP(O$5,BBDD!$7:$1048576,$B97,FALSE)) -> 0.9811 | P97: =+Factores!F97 -> 0.9811
A98: h) VAD SER 100 Estado Convencional | B98: 71 | C98: =IF($B98="","",VLOOKUP(C$5,BBDD!$7:$1048576,$B98,FALSE)) -> 1.0102 | D98: =IF($B98="","",VLOOKUP(D$5,BBDD!$7:$1048576,$B98,FALSE)) -> 1.0113 | E98: =IF($B98="","",VLOOKUP(E$5,BBDD!$7:$1048576,$B98,FALSE)) -> 1.0113 | F98: =IF($B98="","",VLOOKUP(F$5,BBDD!$7:$1048576,$B98,FALSE)) -> 1.0054 | G98: =IF($B98="","",VLOOKUP(G$5,BBDD!$7:$1048576,$B98,FALSE)) -> 1.0054 | H98: =IF($B98="","",VLOOKUP(H$5,BBDD!$7:$1048576,$B98,FALSE)) -> 0.9925 | I98: =IF($B98="","",VLOOKUP(I$5,BBDD!$7:$1048576,$B98,FALSE)) -> 0.9936 | J98: =IF($B98="","",VLOOKUP(J$5,BBDD!$7:$1048576,$B98,FALSE)) -> 0.9936 | K98: =IF($B98="","",VLOOKUP(K$5,BBDD!$7:$1048576,$B98,FALSE)) -> 0.9925 | L98: =IF($B98="","",VLOOKUP(L$5,BBDD!$7:$1048576,$B98,FALSE)) -> 0.9925 | M98: =IF($B98="","",VLOOKUP(M$5,BBDD!$7:$1048576,$B98,FALSE)) -> 0.9866 | N98: =IF($B98="","",VLOOKUP(N$5,BBDD!$7:$1048576,$B98,FALSE)) -> 0.9813 | O98: =IF($B98="","",VLOOKUP(O$5,BBDD!$7:$1048576,$B98,FALSE)) -> 0.9822 | P98: =+Factores!F98 -> 0.9822
A99: i) VAD SER 100 Empresa Prepago | B99: 72 | C99: =IF($B99="","",VLOOKUP(C$5,BBDD!$7:$1048576,$B99,FALSE)) -> 1.0094 | D99: =IF($B99="","",VLOOKUP(D$5,BBDD!$7:$1048576,$B99,FALSE)) -> 1.0104 | E99: =IF($B99="","",VLOOKUP(E$5,BBDD!$7:$1048576,$B99,FALSE)) -> 1.0104 | F99: =IF($B99="","",VLOOKUP(F$5,BBDD!$7:$1048576,$B99,FALSE)) -> 1.0046 | G99: =IF($B99="","",VLOOKUP(G$5,BBDD!$7:$1048576,$B99,FALSE)) -> 1.0046 | H99: =IF($B99="","",VLOOKUP(H$5,BBDD!$7:$1048576,$B99,FALSE)) -> 0.9915 | I99: =IF($B99="","",VLOOKUP(I$5,BBDD!$7:$1048576,$B99,FALSE)) -> 0.9926 | J99: =IF($B99="","",VLOOKUP(J$5,BBDD!$7:$1048576,$B99,FALSE)) -> 0.9926 | K99: =IF($B99="","",VLOOKUP(K$5,BBDD!$7:$1048576,$B99,FALSE)) -> 0.9914 | L99: =IF($B99="","",VLOOKUP(L$5,BBDD!$7:$1048576,$B99,FALSE)) -> 0.9914 | M99: =IF($B99="","",VLOOKUP(M$5,BBDD!$7:$1048576,$B99,FALSE)) -> 0.9855 | N99: =IF($B99="","",VLOOKUP(N$5,BBDD!$7:$1048576,$B99,FALSE)) -> 0.9803 | O99: =IF($B99="","",VLOOKUP(O$5,BBDD!$7:$1048576,$B99,FALSE)) -> 0.9811 | P99: =+Factores!F99 -> 0.9811
A100: j) VAD SER 100 Empresa Convencional | B100: 73 | C100: =IF($B100="","",VLOOKUP(C$5,BBDD!$7:$1048576,$B100,FALSE)) -> 1.0102 | D100: =IF($B100="","",VLOOKUP(D$5,BBDD!$7:$1048576,$B100,FALSE)) -> 1.0113 | E100: =IF($B100="","",VLOOKUP(E$5,BBDD!$7:$1048576,$B100,FALSE)) -> 1.0113 | F100: =IF($B100="","",VLOOKUP(F$5,BBDD!$7:$1048576,$B100,FALSE)) -> 1.0054 | G100: =IF($B100="","",VLOOKUP(G$5,BBDD!$7:$1048576,$B100,FALSE)) -> 1.0054 | H100: =IF($B100="","",VLOOKUP(H$5,BBDD!$7:$1048576,$B100,FALSE)) -> 0.9925 | I100: =IF($B100="","",VLOOKUP(I$5,BBDD!$7:$1048576,$B100,FALSE)) -> 0.9936 | J100: =IF($B100="","",VLOOKUP(J$5,BBDD!$7:$1048576,$B100,FALSE)) -> 0.9936 | K100: =IF($B100="","",VLOOKUP(K$5,BBDD!$7:$1048576,$B100,FALSE)) -> 0.9925 | L100: =IF($B100="","",VLOOKUP(L$5,BBDD!$7:$1048576,$B100,FALSE)) -> 0.9925 | M100: =IF($B100="","",VLOOKUP(M$5,BBDD!$7:$1048576,$B100,FALSE)) -> 0.9866 | N100: =IF($B100="","",VLOOKUP(N$5,BBDD!$7:$1048576,$B100,FALSE)) -> 0.9813 | O100: =IF($B100="","",VLOOKUP(O$5,BBDD!$7:$1048576,$B100,FALSE)) -> 0.9822 | P100: =+Factores!F100 -> 0.9822
A101: 2. VALOR AGREGADO DE DISTRIBUCIÓN EN BT (FAVADBT) | C101: =IF($B101="","",VLOOKUP(C$5,BBDD!$7:$1048576,$B101,FALSE)) ->  | D101: =IF($B101="","",VLOOKUP(D$5,BBDD!$7:$1048576,$B101,FALSE)) ->  | E101: =IF($B101="","",VLOOKUP(E$5,BBDD!$7:$1048576,$B101,FALSE)) ->  | F101: =IF($B101="","",VLOOKUP(F$5,BBDD!$7:$1048576,$B101,FALSE)) ->  | G101: =IF($B101="","",VLOOKUP(G$5,BBDD!$7:$1048576,$B101,FALSE)) ->  | H101: =IF($B101="","",VLOOKUP(H$5,BBDD!$7:$1048576,$B101,FALSE)) ->  | I101: =IF($B101="","",VLOOKUP(I$5,BBDD!$7:$1048576,$B101,FALSE)) ->  | J101: =IF($B101="","",VLOOKUP(J$5,BBDD!$7:$1048576,$B101,FALSE)) ->  | K101: =IF($B101="","",VLOOKUP(K$5,BBDD!$7:$1048576,$B101,FALSE)) ->  | L101: =IF($B101="","",VLOOKUP(L$5,BBDD!$7:$1048576,$B101,FALSE)) ->  | M101: =IF($B101="","",VLOOKUP(M$5,BBDD!$7:$1048576,$B101,FALSE)) ->  | N101: =IF($B101="","",VLOOKUP(N$5,BBDD!$7:$1048576,$B101,FALSE)) ->  | O101: =IF($B101="","",VLOOKUP(O$5,BBDD!$7:$1048576,$B101,FALSE)) ->  | P101: =+Factores!F101 -> 
A102: a) Sector 1 | B102: 74 | C102: =IF($B102="","",VLOOKUP(C$5,BBDD!$7:$1048576,$B102,FALSE)) -> 1.0016 | D102: =IF($B102="","",VLOOKUP(D$5,BBDD!$7:$1048576,$B102,FALSE)) -> 1.0026 | E102: =IF($B102="","",VLOOKUP(E$5,BBDD!$7:$1048576,$B102,FALSE)) -> 1.0026 | F102: =IF($B102="","",VLOOKUP(F$5,BBDD!$7:$1048576,$B102,FALSE)) -> 0.9973 | G102: =IF($B102="","",VLOOKUP(G$5,BBDD!$7:$1048576,$B102,FALSE)) -> 0.9973 | H102: =IF($B102="","",VLOOKUP(H$5,BBDD!$7:$1048576,$B102,FALSE)) -> 0.9839 | I102: =IF($B102="","",VLOOKUP(I$5,BBDD!$7:$1048576,$B102,FALSE)) -> 0.9848 | J102: =IF($B102="","",VLOOKUP(J$5,BBDD!$7:$1048576,$B102,FALSE)) -> 0.9848 | K102: =IF($B102="","",VLOOKUP(K$5,BBDD!$7:$1048576,$B102,FALSE)) -> 0.9835 | L102: =IF($B102="","",VLOOKUP(L$5,BBDD!$7:$1048576,$B102,FALSE)) -> 0.9835 | M102: =IF($B102="","",VLOOKUP(M$5,BBDD!$7:$1048576,$B102,FALSE)) -> 0.9773 | N102: =IF($B102="","",VLOOKUP(N$5,BBDD!$7:$1048576,$B102,FALSE)) -> 0.9727 | O102: =IF($B102="","",VLOOKUP(O$5,BBDD!$7:$1048576,$B102,FALSE)) -> 0.9736 | P102: =+Factores!F102 -> 0.9736
A103: b) Sector 2 | B103: 75 | C103: =IF($B103="","",VLOOKUP(C$5,BBDD!$7:$1048576,$B103,FALSE)) -> 1.0125 | D103: =IF($B103="","",VLOOKUP(D$5,BBDD!$7:$1048576,$B103,FALSE)) -> 1.0135 | E103: =IF($B103="","",VLOOKUP(E$5,BBDD!$7:$1048576,$B103,FALSE)) -> 1.0135 | F103: =IF($B103="","",VLOOKUP(F$5,BBDD!$7:$1048576,$B103,FALSE)) -> 1.0089 | G103: =IF($B103="","",VLOOKUP(G$5,BBDD!$7:$1048576,$B103,FALSE)) -> 1.0089 | H103: =IF($B103="","",VLOOKUP(H$5,BBDD!$7:$1048576,$B103,FALSE)) -> 0.997 | I103: =IF($B103="","",VLOOKUP(I$5,BBDD!$7:$1048576,$B103,FALSE)) -> 0.9984 | J103: =IF($B103="","",VLOOKUP(J$5,BBDD!$7:$1048576,$B103,FALSE)) -> 0.9984 | K103: =IF($B103="","",VLOOKUP(K$5,BBDD!$7:$1048576,$B103,FALSE)) -> 0.9976 | L103: =IF($B103="","",VLOOKUP(L$5,BBDD!$7:$1048576,$B103,FALSE)) -> 0.9976 | M103: =IF($B103="","",VLOOKUP(M$5,BBDD!$7:$1048576,$B103,FALSE)) -> 0.9919 | N103: =IF($B103="","",VLOOKUP(N$5,BBDD!$7:$1048576,$B103,FALSE)) -> 0.9869 | O103: =IF($B103="","",VLOOKUP(O$5,BBDD!$7:$1048576,$B103,FALSE)) -> 0.9878 | P103: =+Factores!F103 -> 0.9878
A104: c) Sector 3 | B104: 76 | C104: =IF($B104="","",VLOOKUP(C$5,BBDD!$7:$1048576,$B104,FALSE)) -> 1.0035 | D104: =IF($B104="","",VLOOKUP(D$5,BBDD!$7:$1048576,$B104,FALSE)) -> 1.0044 | E104: =IF($B104="","",VLOOKUP(E$5,BBDD!$7:$1048576,$B104,FALSE)) -> 1.0044 | F104: =IF($B104="","",VLOOKUP(F$5,BBDD!$7:$1048576,$B104,FALSE)) -> 0.9993 | G104: =IF($B104="","",VLOOKUP(G$5,BBDD!$7:$1048576,$B104,FALSE)) -> 0.9993 | H104: =IF($B104="","",VLOOKUP(H$5,BBDD!$7:$1048576,$B104,FALSE)) -> 0.9859 | I104: =IF($B104="","",VLOOKUP(I$5,BBDD!$7:$1048576,$B104,FALSE)) -> 0.9867 | J104: =IF($B104="","",VLOOKUP(J$5,BBDD!$7:$1048576,$B104,FALSE)) -> 0.9867 | K104: =IF($B104="","",VLOOKUP(K$5,BBDD!$7:$1048576,$B104,FALSE)) -> 0.9855 | L104: =IF($B104="","",VLOOKUP(L$5,BBDD!$7:$1048576,$B104,FALSE)) -> 0.9855 | M104: =IF($B104="","",VLOOKUP(M$5,BBDD!$7:$1048576,$B104,FALSE)) -> 0.9794 | N104: =IF($B104="","",VLOOKUP(N$5,BBDD!$7:$1048576,$B104,FALSE)) -> 0.9749 | O104: =IF($B104="","",VLOOKUP(O$5,BBDD!$7:$1048576,$B104,FALSE)) -> 0.9758 | P104: =+Factores!F104 -> 0.9758
A105: d) Sector 4 | B105: 77 | C105: =IF($B105="","",VLOOKUP(C$5,BBDD!$7:$1048576,$B105,FALSE)) -> 0.9979 | D105: =IF($B105="","",VLOOKUP(D$5,BBDD!$7:$1048576,$B105,FALSE)) -> 0.9989 | E105: =IF($B105="","",VLOOKUP(E$5,BBDD!$7:$1048576,$B105,FALSE)) -> 0.9989 | F105: =IF($B105="","",VLOOKUP(F$5,BBDD!$7:$1048576,$B105,FALSE)) -> 0.9944 | G105: =IF($B105="","",VLOOKUP(G$5,BBDD!$7:$1048576,$B105,FALSE)) -> 0.9944 | H105: =IF($B105="","",VLOOKUP(H$5,BBDD!$7:$1048576,$B105,FALSE)) -> 0.9814 | I105: =IF($B105="","",VLOOKUP(I$5,BBDD!$7:$1048576,$B105,FALSE)) -> 0.9822 | J105: =IF($B105="","",VLOOKUP(J$5,BBDD!$7:$1048576,$B105,FALSE)) -> 0.9822 | K105: =IF($B105="","",VLOOKUP(K$5,BBDD!$7:$1048576,$B105,FALSE)) -> 0.9811 | L105: =IF($B105="","",VLOOKUP(L$5,BBDD!$7:$1048576,$B105,FALSE)) -> 0.9811 | M105: =IF($B105="","",VLOOKUP(M$5,BBDD!$7:$1048576,$B105,FALSE)) -> 0.9748 | N105: =IF($B105="","",VLOOKUP(N$5,BBDD!$7:$1048576,$B105,FALSE)) -> 0.9706 | O105: =IF($B105="","",VLOOKUP(O$5,BBDD!$7:$1048576,$B105,FALSE)) -> 0.9716 | P105: =+Factores!F105 -> 0.9716
A106: e) Sector 5 | B106: 78 | C106: =IF($B106="","",VLOOKUP(C$5,BBDD!$7:$1048576,$B106,FALSE)) -> 0.9954 | D106: =IF($B106="","",VLOOKUP(D$5,BBDD!$7:$1048576,$B106,FALSE)) -> 0.9963 | E106: =IF($B106="","",VLOOKUP(E$5,BBDD!$7:$1048576,$B106,FALSE)) -> 0.9963 | F106: =IF($B106="","",VLOOKUP(F$5,BBDD!$7:$1048576,$B106,FALSE)) -> 0.9917 | G106: =IF($B106="","",VLOOKUP(G$5,BBDD!$7:$1048576,$B106,FALSE)) -> 0.9917 | H106: =IF($B106="","",VLOOKUP(H$5,BBDD!$7:$1048576,$B106,FALSE)) -> 0.978 | I106: =IF($B106="","",VLOOKUP(I$5,BBDD!$7:$1048576,$B106,FALSE)) -> 0.9787 | J106: =IF($B106="","",VLOOKUP(J$5,BBDD!$7:$1048576,$B106,FALSE)) -> 0.9787 | K106: =IF($B106="","",VLOOKUP(K$5,BBDD!$7:$1048576,$B106,FALSE)) -> 0.9774 | L106: =IF($B106="","",VLOOKUP(L$5,BBDD!$7:$1048576,$B106,FALSE)) -> 0.9774 | M106: =IF($B106="","",VLOOKUP(M$5,BBDD!$7:$1048576,$B106,FALSE)) -> 0.971 | N106: =IF($B106="","",VLOOKUP(N$5,BBDD!$7:$1048576,$B106,FALSE)) -> 0.9669 | O106: =IF($B106="","",VLOOKUP(O$5,BBDD!$7:$1048576,$B106,FALSE)) -> 0.9679 | P106: =+Factores!F106 -> 0.9679
A107: f) Sector Especial | B107: 79 | C107: =IF($B107="","",VLOOKUP(C$5,BBDD!$7:$1048576,$B107,FALSE)) -> 1.0027 | D107: =IF($B107="","",VLOOKUP(D$5,BBDD!$7:$1048576,$B107,FALSE)) -> 1.0035 | E107: =IF($B107="","",VLOOKUP(E$5,BBDD!$7:$1048576,$B107,FALSE)) -> 1.0035 | F107: =IF($B107="","",VLOOKUP(F$5,BBDD!$7:$1048576,$B107,FALSE)) -> 1.001 | G107: =IF($B107="","",VLOOKUP(G$5,BBDD!$7:$1048576,$B107,FALSE)) -> 1.001 | H107: =IF($B107="","",VLOOKUP(H$5,BBDD!$7:$1048576,$B107,FALSE)) -> 0.9873 | I107: =IF($B107="","",VLOOKUP(I$5,BBDD!$7:$1048576,$B107,FALSE)) -> 0.9877 | J107: =IF($B107="","",VLOOKUP(J$5,BBDD!$7:$1048576,$B107,FALSE)) -> 0.9877 | K107: =IF($B107="","",VLOOKUP(K$5,BBDD!$7:$1048576,$B107,FALSE)) -> 0.987 | L107: =IF($B107="","",VLOOKUP(L$5,BBDD!$7:$1048576,$B107,FALSE)) -> 0.987 | M107: =IF($B107="","",VLOOKUP(M$5,BBDD!$7:$1048576,$B107,FALSE)) -> 0.9813 | N107: =IF($B107="","",VLOOKUP(N$5,BBDD!$7:$1048576,$B107,FALSE)) -> 0.9782 | O107: =IF($B107="","",VLOOKUP(O$5,BBDD!$7:$1048576,$B107,FALSE)) -> 0.9796 | P107: =+Factores!F107 -> 0.9796
A108: g) VAD SER 100 Estado Prepago | B108: 80 | C108: =IF($B108="","",VLOOKUP(C$5,BBDD!$7:$1048576,$B108,FALSE)) -> 0.992 | D108: =IF($B108="","",VLOOKUP(D$5,BBDD!$7:$1048576,$B108,FALSE)) -> 0.9929 | E108: =IF($B108="","",VLOOKUP(E$5,BBDD!$7:$1048576,$B108,FALSE)) -> 0.9929 | F108: =IF($B108="","",VLOOKUP(F$5,BBDD!$7:$1048576,$B108,FALSE)) -> 0.9909 | G108: =IF($B108="","",VLOOKUP(G$5,BBDD!$7:$1048576,$B108,FALSE)) -> 0.9909 | H108: =IF($B108="","",VLOOKUP(H$5,BBDD!$7:$1048576,$B108,FALSE)) -> 0.9783 | I108: =IF($B108="","",VLOOKUP(I$5,BBDD!$7:$1048576,$B108,FALSE)) -> 0.9792 | J108: =IF($B108="","",VLOOKUP(J$5,BBDD!$7:$1048576,$B108,FALSE)) -> 0.9792 | K108: =IF($B108="","",VLOOKUP(K$5,BBDD!$7:$1048576,$B108,FALSE)) -> 0.9784 | L108: =IF($B108="","",VLOOKUP(L$5,BBDD!$7:$1048576,$B108,FALSE)) -> 0.9784 | M108: =IF($B108="","",VLOOKUP(M$5,BBDD!$7:$1048576,$B108,FALSE)) -> 0.972 | N108: =IF($B108="","",VLOOKUP(N$5,BBDD!$7:$1048576,$B108,FALSE)) -> 0.9689 | O108: =IF($B108="","",VLOOKUP(O$5,BBDD!$7:$1048576,$B108,FALSE)) -> 0.9702 | P108: =+Factores!F108 -> 0.9702
A109: h) VAD SER 100 Estado Convencional | B109: 81 | C109: =IF($B109="","",VLOOKUP(C$5,BBDD!$7:$1048576,$B109,FALSE)) -> 1.0041 | D109: =IF($B109="","",VLOOKUP(D$5,BBDD!$7:$1048576,$B109,FALSE)) -> 1.0051 | E109: =IF($B109="","",VLOOKUP(E$5,BBDD!$7:$1048576,$B109,FALSE)) -> 1.0051 | F109: =IF($B109="","",VLOOKUP(F$5,BBDD!$7:$1048576,$B109,FALSE)) -> 1.0019 | G109: =IF($B109="","",VLOOKUP(G$5,BBDD!$7:$1048576,$B109,FALSE)) -> 1.0019 | H109: =IF($B109="","",VLOOKUP(H$5,BBDD!$7:$1048576,$B109,FALSE)) -> 0.9897 | I109: =IF($B109="","",VLOOKUP(I$5,BBDD!$7:$1048576,$B109,FALSE)) -> 0.9908 | J109: =IF($B109="","",VLOOKUP(J$5,BBDD!$7:$1048576,$B109,FALSE)) -> 0.9908 | K109: =IF($B109="","",VLOOKUP(K$5,BBDD!$7:$1048576,$B109,FALSE)) -> 0.9901 | L109: =IF($B109="","",VLOOKUP(L$5,BBDD!$7:$1048576,$B109,FALSE)) -> 0.9901 | M109: =IF($B109="","",VLOOKUP(M$5,BBDD!$7:$1048576,$B109,FALSE)) -> 0.9842 | N109: =IF($B109="","",VLOOKUP(N$5,BBDD!$7:$1048576,$B109,FALSE)) -> 0.9802 | O109: =IF($B109="","",VLOOKUP(O$5,BBDD!$7:$1048576,$B109,FALSE)) -> 0.9813 | P109: =+Factores!F109 -> 0.9813
A110: i) VAD SER 100 Empresa Prepago | B110: 82 | C110: =IF($B110="","",VLOOKUP(C$5,BBDD!$7:$1048576,$B110,FALSE)) -> 0.992 | D110: =IF($B110="","",VLOOKUP(D$5,BBDD!$7:$1048576,$B110,FALSE)) -> 0.9929 | E110: =IF($B110="","",VLOOKUP(E$5,BBDD!$7:$1048576,$B110,FALSE)) -> 0.9929 | F110: =IF($B110="","",VLOOKUP(F$5,BBDD!$7:$1048576,$B110,FALSE)) -> 0.9909 | G110: =IF($B110="","",VLOOKUP(G$5,BBDD!$7:$1048576,$B110,FALSE)) -> 0.9909 | H110: =IF($B110="","",VLOOKUP(H$5,BBDD!$7:$1048576,$B110,FALSE)) -> 0.9783 | I110: =IF($B110="","",VLOOKUP(I$5,BBDD!$7:$1048576,$B110,FALSE)) -> 0.9792 | J110: =IF($B110="","",VLOOKUP(J$5,BBDD!$7:$1048576,$B110,FALSE)) -> 0.9792 | K110: =IF($B110="","",VLOOKUP(K$5,BBDD!$7:$1048576,$B110,FALSE)) -> 0.9784 | L110: =IF($B110="","",VLOOKUP(L$5,BBDD!$7:$1048576,$B110,FALSE)) -> 0.9784 | M110: =IF($B110="","",VLOOKUP(M$5,BBDD!$7:$1048576,$B110,FALSE)) -> 0.972 | N110: =IF($B110="","",VLOOKUP(N$5,BBDD!$7:$1048576,$B110,FALSE)) -> 0.9689 | O110: =IF($B110="","",VLOOKUP(O$5,BBDD!$7:$1048576,$B110,FALSE)) -> 0.9702 | P110: =+Factores!F110 -> 0.9702
A111: j) VAD SER 100 Empresa Convencional | B111: 83 | C111: =IF($B111="","",VLOOKUP(C$5,BBDD!$7:$1048576,$B111,FALSE)) -> 1.0041 | D111: =IF($B111="","",VLOOKUP(D$5,BBDD!$7:$1048576,$B111,FALSE)) -> 1.0051 | E111: =IF($B111="","",VLOOKUP(E$5,BBDD!$7:$1048576,$B111,FALSE)) -> 1.0051 | F111: =IF($B111="","",VLOOKUP(F$5,BBDD!$7:$1048576,$B111,FALSE)) -> 1.0019 | G111: =IF($B111="","",VLOOKUP(G$5,BBDD!$7:$1048576,$B111,FALSE)) -> 1.0019 | H111: =IF($B111="","",VLOOKUP(H$5,BBDD!$7:$1048576,$B111,FALSE)) -> 0.9897 | I111: =IF($B111="","",VLOOKUP(I$5,BBDD!$7:$1048576,$B111,FALSE)) -> 0.9908 | J111: =IF($B111="","",VLOOKUP(J$5,BBDD!$7:$1048576,$B111,FALSE)) -> 0.9908 | K111: =IF($B111="","",VLOOKUP(K$5,BBDD!$7:$1048576,$B111,FALSE)) -> 0.9901 | L111: =IF($B111="","",VLOOKUP(L$5,BBDD!$7:$1048576,$B111,FALSE)) -> 0.9901 | M111: =IF($B111="","",VLOOKUP(M$5,BBDD!$7:$1048576,$B111,FALSE)) -> 0.9842 | N111: =IF($B111="","",VLOOKUP(N$5,BBDD!$7:$1048576,$B111,FALSE)) -> 0.9802 | O111: =IF($B111="","",VLOOKUP(O$5,BBDD!$7:$1048576,$B111,FALSE)) -> 0.9813 | P111: =+Factores!F111 -> 0.9813
A112: 3. VALOR AGREGADO DE DISTRIBUCIÓN EN SUBESTACIONES MT/BT (FASED) | C112: =IF($B112="","",VLOOKUP(C$5,BBDD!$7:$1048576,$B112,FALSE)) ->  | D112: =IF($B112="","",VLOOKUP(D$5,BBDD!$7:$1048576,$B112,FALSE)) ->  | E112: =IF($B112="","",VLOOKUP(E$5,BBDD!$7:$1048576,$B112,FALSE)) ->  | F112: =IF($B112="","",VLOOKUP(F$5,BBDD!$7:$1048576,$B112,FALSE)) ->  | G112: =IF($B112="","",VLOOKUP(G$5,BBDD!$7:$1048576,$B112,FALSE)) ->  | H112: =IF($B112="","",VLOOKUP(H$5,BBDD!$7:$1048576,$B112,FALSE)) ->  | I112: =IF($B112="","",VLOOKUP(I$5,BBDD!$7:$1048576,$B112,FALSE)) ->  | J112: =IF($B112="","",VLOOKUP(J$5,BBDD!$7:$1048576,$B112,FALSE)) ->  | K112: =IF($B112="","",VLOOKUP(K$5,BBDD!$7:$1048576,$B112,FALSE)) ->  | L112: =IF($B112="","",VLOOKUP(L$5,BBDD!$7:$1048576,$B112,FALSE)) ->  | M112: =IF($B112="","",VLOOKUP(M$5,BBDD!$7:$1048576,$B112,FALSE)) ->  | N112: =IF($B112="","",VLOOKUP(N$5,BBDD!$7:$1048576,$B112,FALSE)) ->  | O112: =IF($B112="","",VLOOKUP(O$5,BBDD!$7:$1048576,$B112,FALSE)) ->  | P112: =+Factores!F112 -> 
A113: a) Sector 1 | B113: 84 | C113: =IF($B113="","",VLOOKUP(C$5,BBDD!$7:$1048576,$B113,FALSE)) -> 1.0103 | D113: =IF($B113="","",VLOOKUP(D$5,BBDD!$7:$1048576,$B113,FALSE)) -> 1.0112 | E113: =IF($B113="","",VLOOKUP(E$5,BBDD!$7:$1048576,$B113,FALSE)) -> 1.0112 | F113: =IF($B113="","",VLOOKUP(F$5,BBDD!$7:$1048576,$B113,FALSE)) -> 1.009 | G113: =IF($B113="","",VLOOKUP(G$5,BBDD!$7:$1048576,$B113,FALSE)) -> 1.009 | H113: =IF($B113="","",VLOOKUP(H$5,BBDD!$7:$1048576,$B113,FALSE)) -> 0.9968 | I113: =IF($B113="","",VLOOKUP(I$5,BBDD!$7:$1048576,$B113,FALSE)) -> 0.998 | J113: =IF($B113="","",VLOOKUP(J$5,BBDD!$7:$1048576,$B113,FALSE)) -> 0.998 | K113: =IF($B113="","",VLOOKUP(K$5,BBDD!$7:$1048576,$B113,FALSE)) -> 0.9975 | L113: =IF($B113="","",VLOOKUP(L$5,BBDD!$7:$1048576,$B113,FALSE)) -> 0.9975 | M113: =IF($B113="","",VLOOKUP(M$5,BBDD!$7:$1048576,$B113,FALSE)) -> 0.9921 | N113: =IF($B113="","",VLOOKUP(N$5,BBDD!$7:$1048576,$B113,FALSE)) -> 0.9884 | O113: =IF($B113="","",VLOOKUP(O$5,BBDD!$7:$1048576,$B113,FALSE)) -> 0.9897 | P113: =+Factores!F113 -> 0.9897
A114: b) Sector 2 | B114: 85 | C114: =IF($B114="","",VLOOKUP(C$5,BBDD!$7:$1048576,$B114,FALSE)) -> 0.9948 | D114: =IF($B114="","",VLOOKUP(D$5,BBDD!$7:$1048576,$B114,FALSE)) -> 0.9957 | E114: =IF($B114="","",VLOOKUP(E$5,BBDD!$7:$1048576,$B114,FALSE)) -> 0.9957 | F114: =IF($B114="","",VLOOKUP(F$5,BBDD!$7:$1048576,$B114,FALSE)) -> 0.9941 | G114: =IF($B114="","",VLOOKUP(G$5,BBDD!$7:$1048576,$B114,FALSE)) -> 0.9941 | H114: =IF($B114="","",VLOOKUP(H$5,BBDD!$7:$1048576,$B114,FALSE)) -> 0.9799 | I114: =IF($B114="","",VLOOKUP(I$5,BBDD!$7:$1048576,$B114,FALSE)) -> 0.98 | J114: =IF($B114="","",VLOOKUP(J$5,BBDD!$7:$1048576,$B114,FALSE)) -> 0.98 | K114: =IF($B114="","",VLOOKUP(K$5,BBDD!$7:$1048576,$B114,FALSE)) -> 0.9793 | L114: =IF($B114="","",VLOOKUP(L$5,BBDD!$7:$1048576,$B114,FALSE)) -> 0.9793 | M114: =IF($B114="","",VLOOKUP(M$5,BBDD!$7:$1048576,$B114,FALSE)) -> 0.9732 | N114: =IF($B114="","",VLOOKUP(N$5,BBDD!$7:$1048576,$B114,FALSE)) -> 0.9711 | O114: =IF($B114="","",VLOOKUP(O$5,BBDD!$7:$1048576,$B114,FALSE)) -> 0.9726 | P114: =+Factores!F114 -> 0.9726
A115: c) Sector 3 | B115: 86 | C115: =IF($B115="","",VLOOKUP(C$5,BBDD!$7:$1048576,$B115,FALSE)) -> 0.9984 | D115: =IF($B115="","",VLOOKUP(D$5,BBDD!$7:$1048576,$B115,FALSE)) -> 0.9992 | E115: =IF($B115="","",VLOOKUP(E$5,BBDD!$7:$1048576,$B115,FALSE)) -> 0.9992 | F115: =IF($B115="","",VLOOKUP(F$5,BBDD!$7:$1048576,$B115,FALSE)) -> 0.9974 | G115: =IF($B115="","",VLOOKUP(G$5,BBDD!$7:$1048576,$B115,FALSE)) -> 0.9974 | H115: =IF($B115="","",VLOOKUP(H$5,BBDD!$7:$1048576,$B115,FALSE)) -> 0.9833 | I115: =IF($B115="","",VLOOKUP(I$5,BBDD!$7:$1048576,$B115,FALSE)) -> 0.9836 | J115: =IF($B115="","",VLOOKUP(J$5,BBDD!$7:$1048576,$B115,FALSE)) -> 0.9836 | K115: =IF($B115="","",VLOOKUP(K$5,BBDD!$7:$1048576,$B115,FALSE)) -> 0.9829 | L115: =IF($B115="","",VLOOKUP(L$5,BBDD!$7:$1048576,$B115,FALSE)) -> 0.9829 | M115: =IF($B115="","",VLOOKUP(M$5,BBDD!$7:$1048576,$B115,FALSE)) -> 0.977 | N115: =IF($B115="","",VLOOKUP(N$5,BBDD!$7:$1048576,$B115,FALSE)) -> 0.9746 | O115: =IF($B115="","",VLOOKUP(O$5,BBDD!$7:$1048576,$B115,FALSE)) -> 0.9761 | P115: =+Factores!F115 -> 0.9761
A116: d) Sector 4 | B116: 87 | C116: =IF($B116="","",VLOOKUP(C$5,BBDD!$7:$1048576,$B116,FALSE)) -> 0.9794 | D116: =IF($B116="","",VLOOKUP(D$5,BBDD!$7:$1048576,$B116,FALSE)) -> 0.9802 | E116: =IF($B116="","",VLOOKUP(E$5,BBDD!$7:$1048576,$B116,FALSE)) -> 0.9802 | F116: =IF($B116="","",VLOOKUP(F$5,BBDD!$7:$1048576,$B116,FALSE)) -> 0.9808 | G116: =IF($B116="","",VLOOKUP(G$5,BBDD!$7:$1048576,$B116,FALSE)) -> 0.9808 | H116: =IF($B116="","",VLOOKUP(H$5,BBDD!$7:$1048576,$B116,FALSE)) -> 0.9694 | I116: =IF($B116="","",VLOOKUP(I$5,BBDD!$7:$1048576,$B116,FALSE)) -> 0.9706 | J116: =IF($B116="","",VLOOKUP(J$5,BBDD!$7:$1048576,$B116,FALSE)) -> 0.9706 | K116: =IF($B116="","",VLOOKUP(K$5,BBDD!$7:$1048576,$B116,FALSE)) -> 0.9701 | L116: =IF($B116="","",VLOOKUP(L$5,BBDD!$7:$1048576,$B116,FALSE)) -> 0.9701 | M116: =IF($B116="","",VLOOKUP(M$5,BBDD!$7:$1048576,$B116,FALSE)) -> 0.9631 | N116: =IF($B116="","",VLOOKUP(N$5,BBDD!$7:$1048576,$B116,FALSE)) -> 0.9611 | O116: =IF($B116="","",VLOOKUP(O$5,BBDD!$7:$1048576,$B116,FALSE)) -> 0.9626 | P116: =+Factores!F116 -> 0.9626
A117: e) Sector 5 | B117: 88 | C117: =IF($B117="","",VLOOKUP(C$5,BBDD!$7:$1048576,$B117,FALSE)) -> 0.9751 | D117: =IF($B117="","",VLOOKUP(D$5,BBDD!$7:$1048576,$B117,FALSE)) -> 0.9758 | E117: =IF($B117="","",VLOOKUP(E$5,BBDD!$7:$1048576,$B117,FALSE)) -> 0.9758 | F117: =IF($B117="","",VLOOKUP(F$5,BBDD!$7:$1048576,$B117,FALSE)) -> 0.9767 | G117: =IF($B117="","",VLOOKUP(G$5,BBDD!$7:$1048576,$B117,FALSE)) -> 0.9767 | H117: =IF($B117="","",VLOOKUP(H$5,BBDD!$7:$1048576,$B117,FALSE)) -> 0.965 | I117: =IF($B117="","",VLOOKUP(I$5,BBDD!$7:$1048576,$B117,FALSE)) -> 0.966 | J117: =IF($B117="","",VLOOKUP(J$5,BBDD!$7:$1048576,$B117,FALSE)) -> 0.966 | K117: =IF($B117="","",VLOOKUP(K$5,BBDD!$7:$1048576,$B117,FALSE)) -> 0.9655 | L117: =IF($B117="","",VLOOKUP(L$5,BBDD!$7:$1048576,$B117,FALSE)) -> 0.9655 | M117: =IF($B117="","",VLOOKUP(M$5,BBDD!$7:$1048576,$B117,FALSE)) -> 0.9583 | N117: =IF($B117="","",VLOOKUP(N$5,BBDD!$7:$1048576,$B117,FALSE)) -> 0.9566 | O117: =IF($B117="","",VLOOKUP(O$5,BBDD!$7:$1048576,$B117,FALSE)) -> 0.9582 | P117: =+Factores!F117 -> 0.9582
A118: f) Sector Especial | B118: 89 | C118: =IF($B118="","",VLOOKUP(C$5,BBDD!$7:$1048576,$B118,FALSE)) -> 0.9801 | D118: =IF($B118="","",VLOOKUP(D$5,BBDD!$7:$1048576,$B118,FALSE)) -> 0.9808 | E118: =IF($B118="","",VLOOKUP(E$5,BBDD!$7:$1048576,$B118,FALSE)) -> 0.9808 | F118: =IF($B118="","",VLOOKUP(F$5,BBDD!$7:$1048576,$B118,FALSE)) -> 0.9796 | G118: =IF($B118="","",VLOOKUP(G$5,BBDD!$7:$1048576,$B118,FALSE)) -> 0.9796 | H118: =IF($B118="","",VLOOKUP(H$5,BBDD!$7:$1048576,$B118,FALSE)) -> 0.9628 | I118: =IF($B118="","",VLOOKUP(I$5,BBDD!$7:$1048576,$B118,FALSE)) -> 0.9617 | J118: =IF($B118="","",VLOOKUP(J$5,BBDD!$7:$1048576,$B118,FALSE)) -> 0.9617 | K118: =IF($B118="","",VLOOKUP(K$5,BBDD!$7:$1048576,$B118,FALSE)) -> 0.9607 | L118: =IF($B118="","",VLOOKUP(L$5,BBDD!$7:$1048576,$B118,FALSE)) -> 0.9607 | M118: =IF($B118="","",VLOOKUP(M$5,BBDD!$7:$1048576,$B118,FALSE)) -> 0.9542 | N118: =IF($B118="","",VLOOKUP(N$5,BBDD!$7:$1048576,$B118,FALSE)) -> 0.9536 | O118: =IF($B118="","",VLOOKUP(O$5,BBDD!$7:$1048576,$B118,FALSE)) -> 0.9553 | P118: =+Factores!F118 -> 0.9553
A119: g) VAD SER 100 Estado Prepago | B119: 90 | C119: =IF($B119="","",VLOOKUP(C$5,BBDD!$7:$1048576,$B119,FALSE)) -> 0.9768 | D119: =IF($B119="","",VLOOKUP(D$5,BBDD!$7:$1048576,$B119,FALSE)) -> 0.9776 | E119: =IF($B119="","",VLOOKUP(E$5,BBDD!$7:$1048576,$B119,FALSE)) -> 0.9776 | F119: =IF($B119="","",VLOOKUP(F$5,BBDD!$7:$1048576,$B119,FALSE)) -> 0.9783 | G119: =IF($B119="","",VLOOKUP(G$5,BBDD!$7:$1048576,$B119,FALSE)) -> 0.9783 | H119: =IF($B119="","",VLOOKUP(H$5,BBDD!$7:$1048576,$B119,FALSE)) -> 0.9668 | I119: =IF($B119="","",VLOOKUP(I$5,BBDD!$7:$1048576,$B119,FALSE)) -> 0.9679 | J119: =IF($B119="","",VLOOKUP(J$5,BBDD!$7:$1048576,$B119,FALSE)) -> 0.9679 | K119: =IF($B119="","",VLOOKUP(K$5,BBDD!$7:$1048576,$B119,FALSE)) -> 0.9673 | L119: =IF($B119="","",VLOOKUP(L$5,BBDD!$7:$1048576,$B119,FALSE)) -> 0.9673 | M119: =IF($B119="","",VLOOKUP(M$5,BBDD!$7:$1048576,$B119,FALSE)) -> 0.9602 | N119: =IF($B119="","",VLOOKUP(N$5,BBDD!$7:$1048576,$B119,FALSE)) -> 0.9584 | O119: =IF($B119="","",VLOOKUP(O$5,BBDD!$7:$1048576,$B119,FALSE)) -> 0.96 | P119: =+Factores!F119 -> 0.96
A120: h) VAD SER 100 Estado Convencional | B120: 91 | C120: =IF($B120="","",VLOOKUP(C$5,BBDD!$7:$1048576,$B120,FALSE)) -> 0.9789 | D120: =IF($B120="","",VLOOKUP(D$5,BBDD!$7:$1048576,$B120,FALSE)) -> 0.9796 | E120: =IF($B120="","",VLOOKUP(E$5,BBDD!$7:$1048576,$B120,FALSE)) -> 0.9796 | F120: =IF($B120="","",VLOOKUP(F$5,BBDD!$7:$1048576,$B120,FALSE)) -> 0.9803 | G120: =IF($B120="","",VLOOKUP(G$5,BBDD!$7:$1048576,$B120,FALSE)) -> 0.9803 | H120: =IF($B120="","",VLOOKUP(H$5,BBDD!$7:$1048576,$B120,FALSE)) -> 0.9689 | I120: =IF($B120="","",VLOOKUP(I$5,BBDD!$7:$1048576,$B120,FALSE)) -> 0.97 | J120: =IF($B120="","",VLOOKUP(J$5,BBDD!$7:$1048576,$B120,FALSE)) -> 0.97 | K120: =IF($B120="","",VLOOKUP(K$5,BBDD!$7:$1048576,$B120,FALSE)) -> 0.9695 | L120: =IF($B120="","",VLOOKUP(L$5,BBDD!$7:$1048576,$B120,FALSE)) -> 0.9695 | M120: =IF($B120="","",VLOOKUP(M$5,BBDD!$7:$1048576,$B120,FALSE)) -> 0.9625 | N120: =IF($B120="","",VLOOKUP(N$5,BBDD!$7:$1048576,$B120,FALSE)) -> 0.9605 | O120: =IF($B120="","",VLOOKUP(O$5,BBDD!$7:$1048576,$B120,FALSE)) -> 0.962 | P120: =+Factores!F120 -> 0.962
A121: i) VAD SER 100 Empresa Prepago | B121: 92 | C121: =IF($B121="","",VLOOKUP(C$5,BBDD!$7:$1048576,$B121,FALSE)) -> 0.9768 | D121: =IF($B121="","",VLOOKUP(D$5,BBDD!$7:$1048576,$B121,FALSE)) -> 0.9776 | E121: =IF($B121="","",VLOOKUP(E$5,BBDD!$7:$1048576,$B121,FALSE)) -> 0.9776 | F121: =IF($B121="","",VLOOKUP(F$5,BBDD!$7:$1048576,$B121,FALSE)) -> 0.9783 | G121: =IF($B121="","",VLOOKUP(G$5,BBDD!$7:$1048576,$B121,FALSE)) -> 0.9783 | H121: =IF($B121="","",VLOOKUP(H$5,BBDD!$7:$1048576,$B121,FALSE)) -> 0.9668 | I121: =IF($B121="","",VLOOKUP(I$5,BBDD!$7:$1048576,$B121,FALSE)) -> 0.9679 | J121: =IF($B121="","",VLOOKUP(J$5,BBDD!$7:$1048576,$B121,FALSE)) -> 0.9679 | K121: =IF($B121="","",VLOOKUP(K$5,BBDD!$7:$1048576,$B121,FALSE)) -> 0.9673 | L121: =IF($B121="","",VLOOKUP(L$5,BBDD!$7:$1048576,$B121,FALSE)) -> 0.9673 | M121: =IF($B121="","",VLOOKUP(M$5,BBDD!$7:$1048576,$B121,FALSE)) -> 0.9602 | N121: =IF($B121="","",VLOOKUP(N$5,BBDD!$7:$1048576,$B121,FALSE)) -> 0.9584 | O121: =IF($B121="","",VLOOKUP(O$5,BBDD!$7:$1048576,$B121,FALSE)) -> 0.96 | P121: =+Factores!F121 -> 0.96
A122: j) VAD SER 100 Empresa Convencional | B122: 93 | C122: =IF($B122="","",VLOOKUP(C$5,BBDD!$7:$1048576,$B122,FALSE)) -> 0.9789 | D122: =IF($B122="","",VLOOKUP(D$5,BBDD!$7:$1048576,$B122,FALSE)) -> 0.9796 | E122: =IF($B122="","",VLOOKUP(E$5,BBDD!$7:$1048576,$B122,FALSE)) -> 0.9796 | F122: =IF($B122="","",VLOOKUP(F$5,BBDD!$7:$1048576,$B122,FALSE)) -> 0.9803 | G122: =IF($B122="","",VLOOKUP(G$5,BBDD!$7:$1048576,$B122,FALSE)) -> 0.9803 | H122: =IF($B122="","",VLOOKUP(H$5,BBDD!$7:$1048576,$B122,FALSE)) -> 0.9689 | I122: =IF($B122="","",VLOOKUP(I$5,BBDD!$7:$1048576,$B122,FALSE)) -> 0.97 | J122: =IF($B122="","",VLOOKUP(J$5,BBDD!$7:$1048576,$B122,FALSE)) -> 0.97 | K122: =IF($B122="","",VLOOKUP(K$5,BBDD!$7:$1048576,$B122,FALSE)) -> 0.9695 | L122: =IF($B122="","",VLOOKUP(L$5,BBDD!$7:$1048576,$B122,FALSE)) -> 0.9695 | M122: =IF($B122="","",VLOOKUP(M$5,BBDD!$7:$1048576,$B122,FALSE)) -> 0.9625 | N122: =IF($B122="","",VLOOKUP(N$5,BBDD!$7:$1048576,$B122,FALSE)) -> 0.9605 | O122: =IF($B122="","",VLOOKUP(O$5,BBDD!$7:$1048576,$B122,FALSE)) -> 0.962 | P122: =+Factores!F122 -> 0.962
C123: =IF($B123="","",VLOOKUP(C$5,BBDD!$7:$1048576,$B123,FALSE)) ->  | D123: =IF($B123="","",VLOOKUP(D$5,BBDD!$7:$1048576,$B123,FALSE)) ->  | E123: =IF($B123="","",VLOOKUP(E$5,BBDD!$7:$1048576,$B123,FALSE)) ->  | F123: =IF($B123="","",VLOOKUP(F$5,BBDD!$7:$1048576,$B123,FALSE)) ->  | G123: =IF($B123="","",VLOOKUP(G$5,BBDD!$7:$1048576,$B123,FALSE)) ->  | H123: =IF($B123="","",VLOOKUP(H$5,BBDD!$7:$1048576,$B123,FALSE)) ->  | I123: =IF($B123="","",VLOOKUP(I$5,BBDD!$7:$1048576,$B123,FALSE)) ->  | J123: =IF($B123="","",VLOOKUP(J$5,BBDD!$7:$1048576,$B123,FALSE)) ->  | K123: =IF($B123="","",VLOOKUP(K$5,BBDD!$7:$1048576,$B123,FALSE)) ->  | L123: =IF($B123="","",VLOOKUP(L$5,BBDD!$7:$1048576,$B123,FALSE)) ->  | M123: =IF($B123="","",VLOOKUP(M$5,BBDD!$7:$1048576,$B123,FALSE)) ->  | N123: =IF($B123="","",VLOOKUP(N$5,BBDD!$7:$1048576,$B123,FALSE)) ->  | O123: =IF($B123="","",VLOOKUP(O$5,BBDD!$7:$1048576,$B123,FALSE)) ->  | P123: =+Factores!F123 -> 
A124: 4. CARGOS FIJOS | B124: 94 | C124: =IF($B124="","",VLOOKUP(C$5,BBDD!$7:$1048576,$B124,FALSE)) -> 1.0573 | D124: =IF($B124="","",VLOOKUP(D$5,BBDD!$7:$1048576,$B124,FALSE)) -> 1.0585 | E124: =IF($B124="","",VLOOKUP(E$5,BBDD!$7:$1048576,$B124,FALSE)) -> 1.0585 | F124: =IF($B124="","",VLOOKUP(F$5,BBDD!$7:$1048576,$B124,FALSE)) -> 1.0542 | G124: =IF($B124="","",VLOOKUP(G$5,BBDD!$7:$1048576,$B124,FALSE)) -> 1.0542 | H124: =IF($B124="","",VLOOKUP(H$5,BBDD!$7:$1048576,$B124,FALSE)) -> 1.0479 | I124: =IF($B124="","",VLOOKUP(I$5,BBDD!$7:$1048576,$B124,FALSE)) -> 1.0521 | J124: =IF($B124="","",VLOOKUP(J$5,BBDD!$7:$1048576,$B124,FALSE)) -> 1.0521 | K124: =IF($B124="","",VLOOKUP(K$5,BBDD!$7:$1048576,$B124,FALSE)) -> 1.0523 | L124: =IF($B124="","",VLOOKUP(L$5,BBDD!$7:$1048576,$B124,FALSE)) -> 1.0523 | M124: =IF($B124="","",VLOOKUP(M$5,BBDD!$7:$1048576,$B124,FALSE)) -> 1.0488 | N124: =IF($B124="","",VLOOKUP(N$5,BBDD!$7:$1048576,$B124,FALSE)) -> 1.0406 | O124: =IF($B124="","",VLOOKUP(O$5,BBDD!$7:$1048576,$B124,FALSE)) -> 1.0414 | P124: =+Factores!F124 -> 1.0414
C125: =IF($B125="","",VLOOKUP(C$5,BBDD!$7:$1048576,$B125,FALSE)) ->  | D125: =IF($B125="","",VLOOKUP(D$5,BBDD!$7:$1048576,$B125,FALSE)) ->  | E125: =IF($B125="","",VLOOKUP(E$5,BBDD!$7:$1048576,$B125,FALSE)) ->  | F125: =IF($B125="","",VLOOKUP(F$5,BBDD!$7:$1048576,$B125,FALSE)) ->  | G125: =IF($B125="","",VLOOKUP(G$5,BBDD!$7:$1048576,$B125,FALSE)) ->  | H125: =IF($B125="","",VLOOKUP(H$5,BBDD!$7:$1048576,$B125,FALSE)) ->  | I125: =IF($B125="","",VLOOKUP(I$5,BBDD!$7:$1048576,$B125,FALSE)) ->  | J125: =IF($B125="","",VLOOKUP(J$5,BBDD!$7:$1048576,$B125,FALSE)) ->  | K125: =IF($B125="","",VLOOKUP(K$5,BBDD!$7:$1048576,$B125,FALSE)) ->  | L125: =IF($B125="","",VLOOKUP(L$5,BBDD!$7:$1048576,$B125,FALSE)) ->  | M125: =IF($B125="","",VLOOKUP(M$5,BBDD!$7:$1048576,$B125,FALSE)) ->  | N125: =IF($B125="","",VLOOKUP(N$5,BBDD!$7:$1048576,$B125,FALSE)) ->  | O125: =IF($B125="","",VLOOKUP(O$5,BBDD!$7:$1048576,$B125,FALSE)) ->  | P125: =+Factores!F125 -> 
A126: 5. ENERGÍA REACTIVA (FACER) | B126: 95 | C126: =IF($B126="","",VLOOKUP(C$5,BBDD!$7:$1048576,$B126,FALSE)) -> 0.8405 | D126: =IF($B126="","",VLOOKUP(D$5,BBDD!$7:$1048576,$B126,FALSE)) -> 0.8405 | E126: =IF($B126="","",VLOOKUP(E$5,BBDD!$7:$1048576,$B126,FALSE)) -> 0.8405 | F126: =IF($B126="","",VLOOKUP(F$5,BBDD!$7:$1048576,$B126,FALSE)) -> 0.8501 | G126: =IF($B126="","",VLOOKUP(G$5,BBDD!$7:$1048576,$B126,FALSE)) -> 0.8501 | H126: =IF($B126="","",VLOOKUP(H$5,BBDD!$7:$1048576,$B126,FALSE)) -> 0.8307 | I126: =IF($B126="","",VLOOKUP(I$5,BBDD!$7:$1048576,$B126,FALSE)) -> 0.8269 | J126: =IF($B126="","",VLOOKUP(J$5,BBDD!$7:$1048576,$B126,FALSE)) -> 0.8269 | K126: =IF($B126="","",VLOOKUP(K$5,BBDD!$7:$1048576,$B126,FALSE)) -> 0.825 | L126: =IF($B126="","",VLOOKUP(L$5,BBDD!$7:$1048576,$B126,FALSE)) -> 0.825 | M126: =IF($B126="","",VLOOKUP(M$5,BBDD!$7:$1048576,$B126,FALSE)) -> 0.8119 | N126: =IF($B126="","",VLOOKUP(N$5,BBDD!$7:$1048576,$B126,FALSE)) -> 0.8205 | O126: =IF($B126="","",VLOOKUP(O$5,BBDD!$7:$1048576,$B126,FALSE)) -> 0.8234 | P126: =+Factores!F126 -> 0.8234
C127: =IF($B127="","",VLOOKUP(C$5,BBDD!$7:$1048576,$B127,FALSE)) ->  | D127: =IF($B127="","",VLOOKUP(D$5,BBDD!$7:$1048576,$B127,FALSE)) ->  | E127: =IF($B127="","",VLOOKUP(E$5,BBDD!$7:$1048576,$B127,FALSE)) ->  | F127: =IF($B127="","",VLOOKUP(F$5,BBDD!$7:$1048576,$B127,FALSE)) ->  | G127: =IF($B127="","",VLOOKUP(G$5,BBDD!$7:$1048576,$B127,FALSE)) ->  | H127: =IF($B127="","",VLOOKUP(H$5,BBDD!$7:$1048576,$B127,FALSE)) ->  | I127: =IF($B127="","",VLOOKUP(I$5,BBDD!$7:$1048576,$B127,FALSE)) ->  | J127: =IF($B127="","",VLOOKUP(J$5,BBDD!$7:$1048576,$B127,FALSE)) ->  | K127: =IF($B127="","",VLOOKUP(K$5,BBDD!$7:$1048576,$B127,FALSE)) ->  | L127: =IF($B127="","",VLOOKUP(L$5,BBDD!$7:$1048576,$B127,FALSE)) ->  | M127: =IF($B127="","",VLOOKUP(M$5,BBDD!$7:$1048576,$B127,FALSE)) ->  | N127: =IF($B127="","",VLOOKUP(N$5,BBDD!$7:$1048576,$B127,FALSE)) ->  | O127: =IF($B127="","",VLOOKUP(O$5,BBDD!$7:$1048576,$B127,FALSE)) ->  | P127: =+Factores!F127 -> 
A128: FACCSP (Cargo Comercial del Servicio Prepago) Res. N° 442-2006-OS/CD | B128: 96 | C128: =IF($B128="","",VLOOKUP(C$5,BBDD!$7:$1048576,$B128,FALSE)) -> 1.2183 | D128: =IF($B128="","",VLOOKUP(D$5,BBDD!$7:$1048576,$B128,FALSE)) -> 1.2183 | E128: =IF($B128="","",VLOOKUP(E$5,BBDD!$7:$1048576,$B128,FALSE)) -> 1.2183 | F128: =IF($B128="","",VLOOKUP(F$5,BBDD!$7:$1048576,$B128,FALSE)) -> 1.2156 | G128: =IF($B128="","",VLOOKUP(G$5,BBDD!$7:$1048576,$B128,FALSE)) -> 1.2156 | H128: =IF($B128="","",VLOOKUP(H$5,BBDD!$7:$1048576,$B128,FALSE)) -> 1.2046 | I128: =IF($B128="","",VLOOKUP(I$5,BBDD!$7:$1048576,$B128,FALSE)) -> 1.2075 | J128: =IF($B128="","",VLOOKUP(J$5,BBDD!$7:$1048576,$B128,FALSE)) -> 1.2075 | K128: =IF($B128="","",VLOOKUP(K$5,BBDD!$7:$1048576,$B128,FALSE)) -> 1.2123 | L128: =IF($B128="","",VLOOKUP(L$5,BBDD!$7:$1048576,$B128,FALSE)) -> 1.2123 | M128: =IF($B128="","",VLOOKUP(M$5,BBDD!$7:$1048576,$B128,FALSE)) -> 1.2099 | N128: =IF($B128="","",VLOOKUP(N$5,BBDD!$7:$1048576,$B128,FALSE)) -> 1.2085 | O128: =IF($B128="","",VLOOKUP(O$5,BBDD!$7:$1048576,$B128,FALSE)) -> 1.1991 | P128: =+Factores!F128 -> 1.1991
C129: =IF($B129="","",VLOOKUP(C$5,BBDD!$7:$1048576,$B129,FALSE)) ->  | D129: =IF($B129="","",VLOOKUP(D$5,BBDD!$7:$1048576,$B129,FALSE)) ->  | E129: =IF($B129="","",VLOOKUP(E$5,BBDD!$7:$1048576,$B129,FALSE)) ->  | F129: =IF($B129="","",VLOOKUP(F$5,BBDD!$7:$1048576,$B129,FALSE)) ->  | G129: =IF($B129="","",VLOOKUP(G$5,BBDD!$7:$1048576,$B129,FALSE)) ->  | H129: =IF($B129="","",VLOOKUP(H$5,BBDD!$7:$1048576,$B129,FALSE)) ->  | I129: =IF($B129="","",VLOOKUP(I$5,BBDD!$7:$1048576,$B129,FALSE)) ->  | J129: =IF($B129="","",VLOOKUP(J$5,BBDD!$7:$1048576,$B129,FALSE)) ->  | K129: =IF($B129="","",VLOOKUP(K$5,BBDD!$7:$1048576,$B129,FALSE)) ->  | L129: =IF($B129="","",VLOOKUP(L$5,BBDD!$7:$1048576,$B129,FALSE)) ->  | M129: =IF($B129="","",VLOOKUP(M$5,BBDD!$7:$1048576,$B129,FALSE)) ->  | N129: =IF($B129="","",VLOOKUP(N$5,BBDD!$7:$1048576,$B129,FALSE)) ->  | O129: =IF($B129="","",VLOOKUP(O$5,BBDD!$7:$1048576,$B129,FALSE)) ->  | P129: =+Factores!F129 -> 
A130: C.2 DISTRIBUCIÓN - PRESUPUESTOS DE CONEXIÓN - Res. Nº 153-2011-OS/CD | C130: =IF($B130="","",VLOOKUP(C$5,BBDD!$7:$1048576,$B130,FALSE)) ->  | D130: =IF($B130="","",VLOOKUP(D$5,BBDD!$7:$1048576,$B130,FALSE)) ->  | E130: =IF($B130="","",VLOOKUP(E$5,BBDD!$7:$1048576,$B130,FALSE)) ->  | F130: =IF($B130="","",VLOOKUP(F$5,BBDD!$7:$1048576,$B130,FALSE)) ->  | G130: =IF($B130="","",VLOOKUP(G$5,BBDD!$7:$1048576,$B130,FALSE)) ->  | H130: =IF($B130="","",VLOOKUP(H$5,BBDD!$7:$1048576,$B130,FALSE)) ->  | I130: =IF($B130="","",VLOOKUP(I$5,BBDD!$7:$1048576,$B130,FALSE)) ->  | J130: =IF($B130="","",VLOOKUP(J$5,BBDD!$7:$1048576,$B130,FALSE)) ->  | K130: =IF($B130="","",VLOOKUP(K$5,BBDD!$7:$1048576,$B130,FALSE)) ->  | L130: =IF($B130="","",VLOOKUP(L$5,BBDD!$7:$1048576,$B130,FALSE)) ->  | M130: =IF($B130="","",VLOOKUP(M$5,BBDD!$7:$1048576,$B130,FALSE)) ->  | N130: =IF($B130="","",VLOOKUP(N$5,BBDD!$7:$1048576,$B130,FALSE)) ->  | O130: =IF($B130="","",VLOOKUP(O$5,BBDD!$7:$1048576,$B130,FALSE)) ->  | P130: =+Factores!F130 -> 
A131: 1. PRESUPUESTOS Y CARGOS DE REPOSICIÓN DE LA CONEXIÓN | C131: =IF($B131="","",VLOOKUP(C$5,BBDD!$7:$1048576,$B131,FALSE)) ->  | D131: =IF($B131="","",VLOOKUP(D$5,BBDD!$7:$1048576,$B131,FALSE)) ->  | E131: =IF($B131="","",VLOOKUP(E$5,BBDD!$7:$1048576,$B131,FALSE)) ->  | F131: =IF($B131="","",VLOOKUP(F$5,BBDD!$7:$1048576,$B131,FALSE)) ->  | G131: =IF($B131="","",VLOOKUP(G$5,BBDD!$7:$1048576,$B131,FALSE)) ->  | H131: =IF($B131="","",VLOOKUP(H$5,BBDD!$7:$1048576,$B131,FALSE)) ->  | I131: =IF($B131="","",VLOOKUP(I$5,BBDD!$7:$1048576,$B131,FALSE)) ->  | J131: =IF($B131="","",VLOOKUP(J$5,BBDD!$7:$1048576,$B131,FALSE)) ->  | K131: =IF($B131="","",VLOOKUP(K$5,BBDD!$7:$1048576,$B131,FALSE)) ->  | L131: =IF($B131="","",VLOOKUP(L$5,BBDD!$7:$1048576,$B131,FALSE)) ->  | M131: =IF($B131="","",VLOOKUP(M$5,BBDD!$7:$1048576,$B131,FALSE)) ->  | N131: =IF($B131="","",VLOOKUP(N$5,BBDD!$7:$1048576,$B131,FALSE)) ->  | O131: =IF($B131="","",VLOOKUP(O$5,BBDD!$7:$1048576,$B131,FALSE)) ->  | P131: =+Factores!F131 -> 
A132: Para conexiones | C132: =IF($B132="","",VLOOKUP(C$5,BBDD!$7:$1048576,$B132,FALSE)) ->  | D132: =IF($B132="","",VLOOKUP(D$5,BBDD!$7:$1048576,$B132,FALSE)) ->  | E132: =IF($B132="","",VLOOKUP(E$5,BBDD!$7:$1048576,$B132,FALSE)) ->  | F132: =IF($B132="","",VLOOKUP(F$5,BBDD!$7:$1048576,$B132,FALSE)) ->  | G132: =IF($B132="","",VLOOKUP(G$5,BBDD!$7:$1048576,$B132,FALSE)) ->  | H132: =IF($B132="","",VLOOKUP(H$5,BBDD!$7:$1048576,$B132,FALSE)) ->  | I132: =IF($B132="","",VLOOKUP(I$5,BBDD!$7:$1048576,$B132,FALSE)) ->  | J132: =IF($B132="","",VLOOKUP(J$5,BBDD!$7:$1048576,$B132,FALSE)) ->  | K132: =IF($B132="","",VLOOKUP(K$5,BBDD!$7:$1048576,$B132,FALSE)) ->  | L132: =IF($B132="","",VLOOKUP(L$5,BBDD!$7:$1048576,$B132,FALSE)) ->  | M132: =IF($B132="","",VLOOKUP(M$5,BBDD!$7:$1048576,$B132,FALSE)) ->  | N132: =IF($B132="","",VLOOKUP(N$5,BBDD!$7:$1048576,$B132,FALSE)) ->  | O132: =IF($B132="","",VLOOKUP(O$5,BBDD!$7:$1048576,$B132,FALSE)) ->  | P132: =+Factores!F132 -> 
A133: a) Conexiones en Baja Tensión - C1/C2 | B133: 97 | C133: =IF($B133="","",VLOOKUP(C$5,BBDD!$7:$1048576,$B133,FALSE)) -> 1.0049 | D133: =IF($B133="","",VLOOKUP(D$5,BBDD!$7:$1048576,$B133,FALSE)) -> 1.0053 | E133: =IF($B133="","",VLOOKUP(E$5,BBDD!$7:$1048576,$B133,FALSE)) -> 1.0053 | F133: =IF($B133="","",VLOOKUP(F$5,BBDD!$7:$1048576,$B133,FALSE)) -> 1.008 | G133: =IF($B133="","",VLOOKUP(G$5,BBDD!$7:$1048576,$B133,FALSE)) -> 1.008 | H133: =IF($B133="","",VLOOKUP(H$5,BBDD!$7:$1048576,$B133,FALSE)) -> 0.9849 | I133: =IF($B133="","",VLOOKUP(I$5,BBDD!$7:$1048576,$B133,FALSE)) -> 0.9808 | J133: =IF($B133="","",VLOOKUP(J$5,BBDD!$7:$1048576,$B133,FALSE)) -> 0.9808 | K133: =IF($B133="","",VLOOKUP(K$5,BBDD!$7:$1048576,$B133,FALSE)) -> 0.9788 | L133: =IF($B133="","",VLOOKUP(L$5,BBDD!$7:$1048576,$B133,FALSE)) -> 0.9788 | M133: =IF($B133="","",VLOOKUP(M$5,BBDD!$7:$1048576,$B133,FALSE)) -> 0.9682 | N133: =IF($B133="","",VLOOKUP(N$5,BBDD!$7:$1048576,$B133,FALSE)) -> 0.973 | O133: =IF($B133="","",VLOOKUP(O$5,BBDD!$7:$1048576,$B133,FALSE)) -> 0.9755 | P133: =+Factores!F133 -> 0.9755
A134: b) Conexiones en Baja Tensión - C3/C4 | B134: 98 | C134: =IF($B134="","",VLOOKUP(C$5,BBDD!$7:$1048576,$B134,FALSE)) -> 1.0216 | D134: =IF($B134="","",VLOOKUP(D$5,BBDD!$7:$1048576,$B134,FALSE)) -> 1.022 | E134: =IF($B134="","",VLOOKUP(E$5,BBDD!$7:$1048576,$B134,FALSE)) -> 1.022 | F134: =IF($B134="","",VLOOKUP(F$5,BBDD!$7:$1048576,$B134,FALSE)) -> 1.0209 | G134: =IF($B134="","",VLOOKUP(G$5,BBDD!$7:$1048576,$B134,FALSE)) -> 1.0209 | H134: =IF($B134="","",VLOOKUP(H$5,BBDD!$7:$1048576,$B134,FALSE)) -> 0.9922 | I134: =IF($B134="","",VLOOKUP(I$5,BBDD!$7:$1048576,$B134,FALSE)) -> 0.986 | J134: =IF($B134="","",VLOOKUP(J$5,BBDD!$7:$1048576,$B134,FALSE)) -> 0.986 | K134: =IF($B134="","",VLOOKUP(K$5,BBDD!$7:$1048576,$B134,FALSE)) -> 0.9833 | L134: =IF($B134="","",VLOOKUP(L$5,BBDD!$7:$1048576,$B134,FALSE)) -> 0.9833 | M134: =IF($B134="","",VLOOKUP(M$5,BBDD!$7:$1048576,$B134,FALSE)) -> 0.973 | N134: =IF($B134="","",VLOOKUP(N$5,BBDD!$7:$1048576,$B134,FALSE)) -> 0.9781 | O134: =IF($B134="","",VLOOKUP(O$5,BBDD!$7:$1048576,$B134,FALSE)) -> 0.9805 | P134: =+Factores!F134 -> 0.9805
A135: c) Conexiones Básicas en Media Tensión (PMI y Celda) - C5 | B135: 99 | C135: =IF($B135="","",VLOOKUP(C$5,BBDD!$7:$1048576,$B135,FALSE)) -> 0.9706 | D135: =IF($B135="","",VLOOKUP(D$5,BBDD!$7:$1048576,$B135,FALSE)) -> 0.9708 | E135: =IF($B135="","",VLOOKUP(E$5,BBDD!$7:$1048576,$B135,FALSE)) -> 0.9708 | F135: =IF($B135="","",VLOOKUP(F$5,BBDD!$7:$1048576,$B135,FALSE)) -> 0.979 | G135: =IF($B135="","",VLOOKUP(G$5,BBDD!$7:$1048576,$B135,FALSE)) -> 0.979 | H135: =IF($B135="","",VLOOKUP(H$5,BBDD!$7:$1048576,$B135,FALSE)) -> 0.9597 | I135: =IF($B135="","",VLOOKUP(I$5,BBDD!$7:$1048576,$B135,FALSE)) -> 0.9569 | J135: =IF($B135="","",VLOOKUP(J$5,BBDD!$7:$1048576,$B135,FALSE)) -> 0.9569 | K135: =IF($B135="","",VLOOKUP(K$5,BBDD!$7:$1048576,$B135,FALSE)) -> 0.9551 | L135: =IF($B135="","",VLOOKUP(L$5,BBDD!$7:$1048576,$B135,FALSE)) -> 0.9551 | M135: =IF($B135="","",VLOOKUP(M$5,BBDD!$7:$1048576,$B135,FALSE)) -> 0.9423 | N135: =IF($B135="","",VLOOKUP(N$5,BBDD!$7:$1048576,$B135,FALSE)) -> 0.9489 | O135: =IF($B135="","",VLOOKUP(O$5,BBDD!$7:$1048576,$B135,FALSE)) -> 0.9517 | P135: =+Factores!F135 -> 0.9517
A136: d) Otros Elementos Electromecánicos en Media Tensión - C5 | B136: 100 | C136: =IF($B136="","",VLOOKUP(C$5,BBDD!$7:$1048576,$B136,FALSE)) -> 1.0373 | D136: =IF($B136="","",VLOOKUP(D$5,BBDD!$7:$1048576,$B136,FALSE)) -> 1.0378 | E136: =IF($B136="","",VLOOKUP(E$5,BBDD!$7:$1048576,$B136,FALSE)) -> 1.0378 | F136: =IF($B136="","",VLOOKUP(F$5,BBDD!$7:$1048576,$B136,FALSE)) -> 1.0358 | G136: =IF($B136="","",VLOOKUP(G$5,BBDD!$7:$1048576,$B136,FALSE)) -> 1.0358 | H136: =IF($B136="","",VLOOKUP(H$5,BBDD!$7:$1048576,$B136,FALSE)) -> 1.0075 | I136: =IF($B136="","",VLOOKUP(I$5,BBDD!$7:$1048576,$B136,FALSE)) -> 1.0016 | J136: =IF($B136="","",VLOOKUP(J$5,BBDD!$7:$1048576,$B136,FALSE)) -> 1.0016 | K136: =IF($B136="","",VLOOKUP(K$5,BBDD!$7:$1048576,$B136,FALSE)) -> 0.9996 | L136: =IF($B136="","",VLOOKUP(L$5,BBDD!$7:$1048576,$B136,FALSE)) -> 0.9996 | M136: =IF($B136="","",VLOOKUP(M$5,BBDD!$7:$1048576,$B136,FALSE)) -> 0.9917 | N136: =IF($B136="","",VLOOKUP(N$5,BBDD!$7:$1048576,$B136,FALSE)) -> 0.9957 | O136: =IF($B136="","",VLOOKUP(O$5,BBDD!$7:$1048576,$B136,FALSE)) -> 0.9981 | P136: =+Factores!F136 -> 0.9981
A137: e) Vereda, Murete, Mástil y Protección de Estructuras - C1/C2/C3/C4/C5 | B137: 101 | C137: =IF($B137="","",VLOOKUP(C$5,BBDD!$7:$1048576,$B137,FALSE)) -> 1.0843 | D137: =IF($B137="","",VLOOKUP(D$5,BBDD!$7:$1048576,$B137,FALSE)) -> 1.0855 | E137: =IF($B137="","",VLOOKUP(E$5,BBDD!$7:$1048576,$B137,FALSE)) -> 1.0855 | F137: =IF($B137="","",VLOOKUP(F$5,BBDD!$7:$1048576,$B137,FALSE)) -> 1.0812 | G137: =IF($B137="","",VLOOKUP(G$5,BBDD!$7:$1048576,$B137,FALSE)) -> 1.0812 | H137: =IF($B137="","",VLOOKUP(H$5,BBDD!$7:$1048576,$B137,FALSE)) -> 1.0746 | I137: =IF($B137="","",VLOOKUP(I$5,BBDD!$7:$1048576,$B137,FALSE)) -> 1.079 | J137: =IF($B137="","",VLOOKUP(J$5,BBDD!$7:$1048576,$B137,FALSE)) -> 1.079 | K137: =IF($B137="","",VLOOKUP(K$5,BBDD!$7:$1048576,$B137,FALSE)) -> 1.0792 | L137: =IF($B137="","",VLOOKUP(L$5,BBDD!$7:$1048576,$B137,FALSE)) -> 1.0792 | M137: =IF($B137="","",VLOOKUP(M$5,BBDD!$7:$1048576,$B137,FALSE)) -> 1.0755 | N137: =IF($B137="","",VLOOKUP(N$5,BBDD!$7:$1048576,$B137,FALSE)) -> 1.0672 | O137: =IF($B137="","",VLOOKUP(O$5,BBDD!$7:$1048576,$B137,FALSE)) -> 1.068 | P137: =+Factores!F137 -> 1.068
A138: Para cambio a conexión prepago | C138: =IF($B138="","",VLOOKUP(C$5,BBDD!$7:$1048576,$B138,FALSE)) ->  | D138: =IF($B138="","",VLOOKUP(D$5,BBDD!$7:$1048576,$B138,FALSE)) ->  | E138: =IF($B138="","",VLOOKUP(E$5,BBDD!$7:$1048576,$B138,FALSE)) ->  | F138: =IF($B138="","",VLOOKUP(F$5,BBDD!$7:$1048576,$B138,FALSE)) ->  | G138: =IF($B138="","",VLOOKUP(G$5,BBDD!$7:$1048576,$B138,FALSE)) ->  | H138: =IF($B138="","",VLOOKUP(H$5,BBDD!$7:$1048576,$B138,FALSE)) ->  | I138: =IF($B138="","",VLOOKUP(I$5,BBDD!$7:$1048576,$B138,FALSE)) ->  | J138: =IF($B138="","",VLOOKUP(J$5,BBDD!$7:$1048576,$B138,FALSE)) ->  | K138: =IF($B138="","",VLOOKUP(K$5,BBDD!$7:$1048576,$B138,FALSE)) ->  | L138: =IF($B138="","",VLOOKUP(L$5,BBDD!$7:$1048576,$B138,FALSE)) ->  | M138: =IF($B138="","",VLOOKUP(M$5,BBDD!$7:$1048576,$B138,FALSE)) ->  | N138: =IF($B138="","",VLOOKUP(N$5,BBDD!$7:$1048576,$B138,FALSE)) ->  | O138: =IF($B138="","",VLOOKUP(O$5,BBDD!$7:$1048576,$B138,FALSE)) ->  | P138: =+Factores!F138 -> 
A139: a) Conexiones en Baja Tensión - C1/C2 | B139: 102 | C139: =IF($B139="","",VLOOKUP(C$5,BBDD!$7:$1048576,$B139,FALSE)) -> 0.9957 | D139: =IF($B139="","",VLOOKUP(D$5,BBDD!$7:$1048576,$B139,FALSE)) -> 0.996 | E139: =IF($B139="","",VLOOKUP(E$5,BBDD!$7:$1048576,$B139,FALSE)) -> 0.996 | F139: =IF($B139="","",VLOOKUP(F$5,BBDD!$7:$1048576,$B139,FALSE)) -> 0.9999 | G139: =IF($B139="","",VLOOKUP(G$5,BBDD!$7:$1048576,$B139,FALSE)) -> 0.9999 | H139: =IF($B139="","",VLOOKUP(H$5,BBDD!$7:$1048576,$B139,FALSE)) -> 0.9768 | I139: =IF($B139="","",VLOOKUP(I$5,BBDD!$7:$1048576,$B139,FALSE)) -> 0.9727 | J139: =IF($B139="","",VLOOKUP(J$5,BBDD!$7:$1048576,$B139,FALSE)) -> 0.9727 | K139: =IF($B139="","",VLOOKUP(K$5,BBDD!$7:$1048576,$B139,FALSE)) -> 0.9706 | L139: =IF($B139="","",VLOOKUP(L$5,BBDD!$7:$1048576,$B139,FALSE)) -> 0.9706 | M139: =IF($B139="","",VLOOKUP(M$5,BBDD!$7:$1048576,$B139,FALSE)) -> 0.9592 | N139: =IF($B139="","",VLOOKUP(N$5,BBDD!$7:$1048576,$B139,FALSE)) -> 0.9649 | O139: =IF($B139="","",VLOOKUP(O$5,BBDD!$7:$1048576,$B139,FALSE)) -> 0.9675 | P139: =+Factores!F139 -> 0.9675
A140: Para costos por metro de cable | C140: =IF($B140="","",VLOOKUP(C$5,BBDD!$7:$1048576,$B140,FALSE)) ->  | D140: =IF($B140="","",VLOOKUP(D$5,BBDD!$7:$1048576,$B140,FALSE)) ->  | E140: =IF($B140="","",VLOOKUP(E$5,BBDD!$7:$1048576,$B140,FALSE)) ->  | F140: =IF($B140="","",VLOOKUP(F$5,BBDD!$7:$1048576,$B140,FALSE)) ->  | G140: =IF($B140="","",VLOOKUP(G$5,BBDD!$7:$1048576,$B140,FALSE)) ->  | H140: =IF($B140="","",VLOOKUP(H$5,BBDD!$7:$1048576,$B140,FALSE)) ->  | I140: =IF($B140="","",VLOOKUP(I$5,BBDD!$7:$1048576,$B140,FALSE)) ->  | J140: =IF($B140="","",VLOOKUP(J$5,BBDD!$7:$1048576,$B140,FALSE)) ->  | K140: =IF($B140="","",VLOOKUP(K$5,BBDD!$7:$1048576,$B140,FALSE)) ->  | L140: =IF($B140="","",VLOOKUP(L$5,BBDD!$7:$1048576,$B140,FALSE)) ->  | M140: =IF($B140="","",VLOOKUP(M$5,BBDD!$7:$1048576,$B140,FALSE)) ->  | N140: =IF($B140="","",VLOOKUP(N$5,BBDD!$7:$1048576,$B140,FALSE)) ->  | O140: =IF($B140="","",VLOOKUP(O$5,BBDD!$7:$1048576,$B140,FALSE)) ->  | P140: =+Factores!F140 -> 
A141: a) Conexiones en Baja Tensión - C1/C2 | B141: 103 | C141: =IF($B141="","",VLOOKUP(C$5,BBDD!$7:$1048576,$B141,FALSE)) -> 1.0704 | D141: =IF($B141="","",VLOOKUP(D$5,BBDD!$7:$1048576,$B141,FALSE)) -> 1.0707 | E141: =IF($B141="","",VLOOKUP(E$5,BBDD!$7:$1048576,$B141,FALSE)) -> 1.0707 | F141: =IF($B141="","",VLOOKUP(F$5,BBDD!$7:$1048576,$B141,FALSE)) -> 1.0612 | G141: =IF($B141="","",VLOOKUP(G$5,BBDD!$7:$1048576,$B141,FALSE)) -> 1.0612 | H141: =IF($B141="","",VLOOKUP(H$5,BBDD!$7:$1048576,$B141,FALSE)) -> 1.0136 | I141: =IF($B141="","",VLOOKUP(I$5,BBDD!$7:$1048576,$B141,FALSE)) -> 0.9996 | J141: =IF($B141="","",VLOOKUP(J$5,BBDD!$7:$1048576,$B141,FALSE)) -> 0.9996 | K141: =IF($B141="","",VLOOKUP(K$5,BBDD!$7:$1048576,$B141,FALSE)) -> 0.9961 | L141: =IF($B141="","",VLOOKUP(L$5,BBDD!$7:$1048576,$B141,FALSE)) -> 0.9961 | M141: =IF($B141="","",VLOOKUP(M$5,BBDD!$7:$1048576,$B141,FALSE)) -> 0.9903 | N141: =IF($B141="","",VLOOKUP(N$5,BBDD!$7:$1048576,$B141,FALSE)) -> 0.9985 | O141: =IF($B141="","",VLOOKUP(O$5,BBDD!$7:$1048576,$B141,FALSE)) -> 1.0015 | P141: =+Factores!F141 -> 1.0015
A142: 2. MANTENIMIENTO DE LA CONEXIÓN | C142: =IF($B142="","",VLOOKUP(C$5,BBDD!$7:$1048576,$B142,FALSE)) ->  | D142: =IF($B142="","",VLOOKUP(D$5,BBDD!$7:$1048576,$B142,FALSE)) ->  | E142: =IF($B142="","",VLOOKUP(E$5,BBDD!$7:$1048576,$B142,FALSE)) ->  | F142: =IF($B142="","",VLOOKUP(F$5,BBDD!$7:$1048576,$B142,FALSE)) ->  | G142: =IF($B142="","",VLOOKUP(G$5,BBDD!$7:$1048576,$B142,FALSE)) ->  | H142: =IF($B142="","",VLOOKUP(H$5,BBDD!$7:$1048576,$B142,FALSE)) ->  | I142: =IF($B142="","",VLOOKUP(I$5,BBDD!$7:$1048576,$B142,FALSE)) ->  | J142: =IF($B142="","",VLOOKUP(J$5,BBDD!$7:$1048576,$B142,FALSE)) ->  | K142: =IF($B142="","",VLOOKUP(K$5,BBDD!$7:$1048576,$B142,FALSE)) ->  | L142: =IF($B142="","",VLOOKUP(L$5,BBDD!$7:$1048576,$B142,FALSE)) ->  | M142: =IF($B142="","",VLOOKUP(M$5,BBDD!$7:$1048576,$B142,FALSE)) ->  | N142: =IF($B142="","",VLOOKUP(N$5,BBDD!$7:$1048576,$B142,FALSE)) ->  | O142: =IF($B142="","",VLOOKUP(O$5,BBDD!$7:$1048576,$B142,FALSE)) ->  | P142: =+Factores!F142 -> 
A143: a) Conexiones en Baja Tensión - C1/C2 | B143: 104 | C143: =IF($B143="","",VLOOKUP(C$5,BBDD!$7:$1048576,$B143,FALSE)) -> 1.0678 | D143: =IF($B143="","",VLOOKUP(D$5,BBDD!$7:$1048576,$B143,FALSE)) -> 1.069 | E143: =IF($B143="","",VLOOKUP(E$5,BBDD!$7:$1048576,$B143,FALSE)) -> 1.069 | F143: =IF($B143="","",VLOOKUP(F$5,BBDD!$7:$1048576,$B143,FALSE)) -> 1.0664 | G143: =IF($B143="","",VLOOKUP(G$5,BBDD!$7:$1048576,$B143,FALSE)) -> 1.0664 | H143: =IF($B143="","",VLOOKUP(H$5,BBDD!$7:$1048576,$B143,FALSE)) -> 1.058 | I143: =IF($B143="","",VLOOKUP(I$5,BBDD!$7:$1048576,$B143,FALSE)) -> 1.0613 | J143: =IF($B143="","",VLOOKUP(J$5,BBDD!$7:$1048576,$B143,FALSE)) -> 1.0613 | K143: =IF($B143="","",VLOOKUP(K$5,BBDD!$7:$1048576,$B143,FALSE)) -> 1.0613 | L143: =IF($B143="","",VLOOKUP(L$5,BBDD!$7:$1048576,$B143,FALSE)) -> 1.0613 | M143: =IF($B143="","",VLOOKUP(M$5,BBDD!$7:$1048576,$B143,FALSE)) -> 1.0563 | N143: =IF($B143="","",VLOOKUP(N$5,BBDD!$7:$1048576,$B143,FALSE)) -> 1.0501 | O143: =IF($B143="","",VLOOKUP(O$5,BBDD!$7:$1048576,$B143,FALSE)) -> 1.0512 | P143: =+Factores!F143 -> 1.0512
A144: b) Conexiones en Baja y Media Tensión (PMI y Celda) - C3/C4/C5 | B144: 105 | C144: =IF($B144="","",VLOOKUP(C$5,BBDD!$7:$1048576,$B144,FALSE)) -> 1.076 | D144: =IF($B144="","",VLOOKUP(D$5,BBDD!$7:$1048576,$B144,FALSE)) -> 1.0773 | E144: =IF($B144="","",VLOOKUP(E$5,BBDD!$7:$1048576,$B144,FALSE)) -> 1.0773 | F144: =IF($B144="","",VLOOKUP(F$5,BBDD!$7:$1048576,$B144,FALSE)) -> 1.0738 | G144: =IF($B144="","",VLOOKUP(G$5,BBDD!$7:$1048576,$B144,FALSE)) -> 1.0738 | H144: =IF($B144="","",VLOOKUP(H$5,BBDD!$7:$1048576,$B144,FALSE)) -> 1.0663 | I144: =IF($B144="","",VLOOKUP(I$5,BBDD!$7:$1048576,$B144,FALSE)) -> 1.0701 | J144: =IF($B144="","",VLOOKUP(J$5,BBDD!$7:$1048576,$B144,FALSE)) -> 1.0701 | K144: =IF($B144="","",VLOOKUP(K$5,BBDD!$7:$1048576,$B144,FALSE)) -> 1.0703 | L144: =IF($B144="","",VLOOKUP(L$5,BBDD!$7:$1048576,$B144,FALSE)) -> 1.0703 | M144: =IF($B144="","",VLOOKUP(M$5,BBDD!$7:$1048576,$B144,FALSE)) -> 1.0659 | N144: =IF($B144="","",VLOOKUP(N$5,BBDD!$7:$1048576,$B144,FALSE)) -> 1.0586 | O144: =IF($B144="","",VLOOKUP(O$5,BBDD!$7:$1048576,$B144,FALSE)) -> 1.0596 | P144: =+Factores!F144 -> 1.0596
C145: =IF($B145="","",VLOOKUP(C$5,BBDD!$7:$1048576,$B145,FALSE)) ->  | D145: =IF($B145="","",VLOOKUP(D$5,BBDD!$7:$1048576,$B145,FALSE)) ->  | E145: =IF($B145="","",VLOOKUP(E$5,BBDD!$7:$1048576,$B145,FALSE)) ->  | F145: =IF($B145="","",VLOOKUP(F$5,BBDD!$7:$1048576,$B145,FALSE)) ->  | G145: =IF($B145="","",VLOOKUP(G$5,BBDD!$7:$1048576,$B145,FALSE)) ->  | H145: =IF($B145="","",VLOOKUP(H$5,BBDD!$7:$1048576,$B145,FALSE)) ->  | I145: =IF($B145="","",VLOOKUP(I$5,BBDD!$7:$1048576,$B145,FALSE)) ->  | J145: =IF($B145="","",VLOOKUP(J$5,BBDD!$7:$1048576,$B145,FALSE)) ->  | K145: =IF($B145="","",VLOOKUP(K$5,BBDD!$7:$1048576,$B145,FALSE)) ->  | L145: =IF($B145="","",VLOOKUP(L$5,BBDD!$7:$1048576,$B145,FALSE)) ->  | M145: =IF($B145="","",VLOOKUP(M$5,BBDD!$7:$1048576,$B145,FALSE)) ->  | N145: =IF($B145="","",VLOOKUP(N$5,BBDD!$7:$1048576,$B145,FALSE)) ->  | O145: =IF($B145="","",VLOOKUP(O$5,BBDD!$7:$1048576,$B145,FALSE)) ->  | P145: =+Factores!F145 -> 
C146: =IF($B146="","",VLOOKUP(C$5,BBDD!$7:$1048576,$B146,FALSE)) ->  | D146: =IF($B146="","",VLOOKUP(D$5,BBDD!$7:$1048576,$B146,FALSE)) ->  | E146: =IF($B146="","",VLOOKUP(E$5,BBDD!$7:$1048576,$B146,FALSE)) ->  | F146: =IF($B146="","",VLOOKUP(F$5,BBDD!$7:$1048576,$B146,FALSE)) ->  | G146: =IF($B146="","",VLOOKUP(G$5,BBDD!$7:$1048576,$B146,FALSE)) ->  | H146: =IF($B146="","",VLOOKUP(H$5,BBDD!$7:$1048576,$B146,FALSE)) ->  | I146: =IF($B146="","",VLOOKUP(I$5,BBDD!$7:$1048576,$B146,FALSE)) ->  | J146: =IF($B146="","",VLOOKUP(J$5,BBDD!$7:$1048576,$B146,FALSE)) ->  | K146: =IF($B146="","",VLOOKUP(K$5,BBDD!$7:$1048576,$B146,FALSE)) ->  | L146: =IF($B146="","",VLOOKUP(L$5,BBDD!$7:$1048576,$B146,FALSE)) ->  | M146: =IF($B146="","",VLOOKUP(M$5,BBDD!$7:$1048576,$B146,FALSE)) ->  | N146: =IF($B146="","",VLOOKUP(N$5,BBDD!$7:$1048576,$B146,FALSE)) ->  | O146: =IF($B146="","",VLOOKUP(O$5,BBDD!$7:$1048576,$B146,FALSE)) ->  | P146: =+Factores!F146 -> 
A147: C.3. DISTRIBUCIÓN - CORTE Y RECONEXIÓN (FAIM) - Res. Nº 159-2011-OS/CD | C147: =IF($B147="","",VLOOKUP(C$5,BBDD!$7:$1048576,$B147,FALSE)) ->  | D147: =IF($B147="","",VLOOKUP(D$5,BBDD!$7:$1048576,$B147,FALSE)) ->  | E147: =IF($B147="","",VLOOKUP(E$5,BBDD!$7:$1048576,$B147,FALSE)) ->  | F147: =IF($B147="","",VLOOKUP(F$5,BBDD!$7:$1048576,$B147,FALSE)) ->  | G147: =IF($B147="","",VLOOKUP(G$5,BBDD!$7:$1048576,$B147,FALSE)) ->  | H147: =IF($B147="","",VLOOKUP(H$5,BBDD!$7:$1048576,$B147,FALSE)) ->  | I147: =IF($B147="","",VLOOKUP(I$5,BBDD!$7:$1048576,$B147,FALSE)) ->  | J147: =IF($B147="","",VLOOKUP(J$5,BBDD!$7:$1048576,$B147,FALSE)) ->  | K147: =IF($B147="","",VLOOKUP(K$5,BBDD!$7:$1048576,$B147,FALSE)) ->  | L147: =IF($B147="","",VLOOKUP(L$5,BBDD!$7:$1048576,$B147,FALSE)) ->  | M147: =IF($B147="","",VLOOKUP(M$5,BBDD!$7:$1048576,$B147,FALSE)) ->  | N147: =IF($B147="","",VLOOKUP(N$5,BBDD!$7:$1048576,$B147,FALSE)) ->  | O147: =IF($B147="","",VLOOKUP(O$5,BBDD!$7:$1048576,$B147,FALSE)) ->  | P147: =+Factores!F147 -> 
C148: =IF($B148="","",VLOOKUP(C$5,BBDD!$7:$1048576,$B148,FALSE)) ->  | D148: =IF($B148="","",VLOOKUP(D$5,BBDD!$7:$1048576,$B148,FALSE)) ->  | E148: =IF($B148="","",VLOOKUP(E$5,BBDD!$7:$1048576,$B148,FALSE)) ->  | F148: =IF($B148="","",VLOOKUP(F$5,BBDD!$7:$1048576,$B148,FALSE)) ->  | G148: =IF($B148="","",VLOOKUP(G$5,BBDD!$7:$1048576,$B148,FALSE)) ->  | H148: =IF($B148="","",VLOOKUP(H$5,BBDD!$7:$1048576,$B148,FALSE)) ->  | I148: =IF($B148="","",VLOOKUP(I$5,BBDD!$7:$1048576,$B148,FALSE)) ->  | J148: =IF($B148="","",VLOOKUP(J$5,BBDD!$7:$1048576,$B148,FALSE)) ->  | K148: =IF($B148="","",VLOOKUP(K$5,BBDD!$7:$1048576,$B148,FALSE)) ->  | L148: =IF($B148="","",VLOOKUP(L$5,BBDD!$7:$1048576,$B148,FALSE)) ->  | M148: =IF($B148="","",VLOOKUP(M$5,BBDD!$7:$1048576,$B148,FALSE)) ->  | N148: =IF($B148="","",VLOOKUP(N$5,BBDD!$7:$1048576,$B148,FALSE)) ->  | O148: =IF($B148="","",VLOOKUP(O$5,BBDD!$7:$1048576,$B148,FALSE)) ->  | P148: =+Factores!F148 -> 
